Workbook

Sheet Manual
G1: jj
D17: http://www.reiner-lemoine-institut.de/en/
B105: INPUT MANUAL
B106: General remarks: Please enter a value for each single field, if you copy & paste values make sure you insert them as "values only" without the cell format, otherwise format settings might be changed. If components should be ignored in a hybrid system, just set the size to 0, cost and other parameters are then ignored automatically.
B107: Tab | C107: Step | D107: Action | E107: Description | F107: Topic
B108: Existing Load | C108: 1 | D108: Seclect type of load input data | E108: Load input data from households or real consumption value | F108: Electricity consumption per day
C109: 1.1.1 | D109: If households are chosen in #1, enter number of households | E109: Number of households
C110: 1.1.2 | D110: If households are chosen in #1, enter consumption per household | E110: Consumption per household per day
C111: 1.1.3 | D111: If households are chosen in #1, enter additional commercial activity | E111: Additional commercial activity
C112: 1.2.1 | D112: If real consumption is chosen in #1, enter energy consumption per workday | E112: Energy consumption per workday
C113: 1.2.2 | D113: If real consumption is chosen in #1, enter energy consumption per weekend day | E113: Energy consumption per weekend day
C114: 2 | D114: Select load curve | E114: Select between evening peak, midday peak or individual load curve | F114: Load curve
C115: 2.1 | D115: If individual load curve is chosen in #2, enter percentual values for each hour of the day | E115: Percentage values for each hour of the day | F115: Energy consumption per hour
C116: 3 | D116: Insert demand growth factor | E116: Percentage of yearly demand growth | F116: Demand growth
B118: Input of RE parameters: Enter parameters of PV, Wind, Hydro or Biomass depending on the hybrid system option
B119: Tab | C119: Step | D119: Action | E119: Description | F119: Topic
B120: Input Solar | C120: 4 | D120: Select cost parameters of PV | E120: Select between default or individual PV cost parameters | F120: PV costs
C121: 4.1 | D121: If Individual is chosen, enter CAPEX | E121: Enter PV CAPEX in PHP per kW
C122: 4.2 | D122: If Individual is chosen, enter OPEX | E122: Enter PV OPEX in PHP per kW per year
C123: 4.3 | D123: If Individual is chosen, enter life span | E123: Enter PV life span in years
C124: 5 | D124: Select PV size | E124: Select between default or individual PV size | F124: PV size
C125: 5.1 | D125: No action required for PV capacity total | E125: Total PV capacity will be calculated from eligible and non-eligible capacities
C126: 5.2 | D126: If individual PV size is chosen, enter eligible capacity of PV system | E126: Enter existing non-eligible and eligible PV capacity in kW
C127: 5.3 | D127: If individual PV size is chosen in, enter non-eligible capacity of PV system | E127: Enter new (eligible) PV capacity in kW
C128: 6 | D128: Select location | E128: Select between 3 main geographic areas | F128: Location
C129: 7 | D129: Select irradiance parameters | E129: Select between default or individual parameters | F129: Irradiance parameters
C130: 7.1 | D130: If irradiance parameters is chosen, enter the daily energy output for your location | E130: Enter the average daily energy output in kWh per kW_peak installed (e.g. available from globalsolaratlas.info)
B132: Input Wind | C132: 8 | D132: Select wind park costs | E132: Select between default or individual values | F132: Wind park costs
C133: 8.1 | D133: If Individual is chosen, enter CAPEX | E133: Enter wind park CAPEX in PHP per kW
C134: 8.2 | D134: If Individual is chosen, enter OPEX | E134: Enter wind park OPEX in PHP per kW per year
C135: 8.3 | D135: If Individual is chosen, enter life span | E135: Enter wind turbine life span in years
C136: 9 | D136: Select wind park size parameters | E136: Select between default or individual values | F136: Wind park size
C137: 9.1 | D137: If Individual is chosen, enter mean wind speed | E137: Enter mean wind speed at 50m height in m/s as reference value, the wind speed will be automatically adjusted according to the hub height
C138: 9.2 | D138: No action required for wind park capacity total | E138: Total wind park capacity will be calculated from new (eligible) and existing eligible and non-eligible capacities
C139: 9.3 | D139: If individual PV size is chosen, enter eligible capacity of wind park | E139: Enter existing eligible and non-eligible wind park peak capacity in kW
C140: 9.4 | D140: If individual PV size is chosen in, enter non-eligible capacity of wind park | E140: Enter eligible wind park peak capacity in kW
C141: 9.3 | D141: If Individual is chosen, enter wind turbine type | E141: Select between the available options in kWp. Due to simplification reasons the choice is limited, the hub height and the number of turbines are automatically calculated in the background
B143: Input Hydro | C143: 10 | D143: Select hydro plant cost parameters | E143: Select between default and individual values | F143: Hydro power plant costs
C144: 10.1 | D144: If Individual is chosen, enter CAPEX | E144: Enter hydro plant CAPEX in PHP per kW
C145: 10.2 | D145: If Individual is chosen, enter OPEX | E145: Enter hydro plant OPEX in PHP per kW per year
C146: 10.3 | D146: If Individual is chosen, enter life span | E146: Enter hydro life span in years
C147: 11 | D147: Select hydro plant size parameters | E147: Select between Default, Individual and Calculation | F147: Hydro power plant size
C148: 11.1.1 | D148: If Individual is chosen, enter the rated capacity potential of the eligible hydro plant | E148: Enter the existing non-eligible and eligible hydro capacity potential at the location in kW
C149: 11.1.2 | D149: If Individual is chosen, enter the capacity factor of the eligible hydro plant | E149: Enter the average available new (eligible) capacity as a percentage of the total capacity
C150: 11.2.1 | D150: If Calculation is chosen, enter net head of the eligible hydro plant | E150: Enter the net head in m, which is equal to height of water inlet minus height of water turbine
C151: 11.2.2 | D151: If Calculation is chosen, enter water flow of the eligible hydro plant | E151: Enter the water flow in m^3/s
C152: 11.2.3 | D152: If Calculation is chosen, enter the capacity factor of the eligible hydro plant | E152: Enter the average available eligible capacity as a percentage of the total capacity
B154: Input Biomass | C154: 12 | D154: Select biomass/WtE power plant type | E154: Select between default and individual values | F154: Biomass power plant costs
C155: 12.1 | D155: If Default is chosen, select feedstock type from dropdown menu, if Individual enter your preferred Feedstock name | E155: In Default the Feedstock choice will automatically call a heating value (Step 12.6)
C156: 12.2 | D156: If Individual is chosen, enter CAPEX | E156: Enter biomass plant CAPEX in PHP per kW
C157: 12.3 | D157: If Individual is chosen, enter variable biomass OPEX | E157: Enter variable biomass OPEX in PHP per kWh per year
C158: 12.4 | D158: If Individual is chosen, enter fixed biomass OPEX | E158: Enter fixed biomass OPEX in PHP per kWh per year
C159: 12.5 | D159: If Individual is chosen, enter the biomass generator efficiency | E159: Enter the maximum efficiency of the generator at high load in %
C160: 12.6 | D160: If Default is chosen: No action required If Individual is chosen: Enter the heating value | E160: Default: Feedstock heating value will be automatically called for selected feedstock type, Individual: enter heating value (in kWh/kg; please convert if you have the data in e.g. kcal/kg) if you do not have any data, you can check if in "Default" your feedstock and corresponding heating value is available
C161: 12.7 | D161: No action required for fuel per kWh (high load) | E161: Fuel per kWh will be calculated from selected feedstock type and generator efficiency
C162: 12.8 | D162: If Individual is chosen, enter biomass fuel costs | E162: Enter biomass fuel costs in PHP per liter
C163: 12.9 | D163: If Individual is chosen, enter life span | E163: Enter biomass life span in years
C164: 13 | D164: Select size parameters of biomass/WtE plant | E164: Select between default or individual values | F164: Biomass power plant size
C165: 13.1 | D165: If Individual is chosen, choose the number of units the biomass power plant consists of | E165: Due to simplification reasons the range only goes from "1 to 5+"; the higher the number the higher the efficiency due to the higher load of the gensets
C166: 13.2 | D166: If Individual is chosen, enter the eligible capacity of the biomass power plant | E166: Enter the total rated capacity of all existing non-eligible and eligible units in kW
C167: 13.3 | D167: If Individual is chosen, enter the non-eligible capacity of the biomass power plant | E167: Enter the total rated capacity of new (eligible) units in kW
C168: 13.4 | D168: No action required for biomass power plant capacity total | E168: Total power plant capacity will be calculated from existing and new capacities
C169: 13.5 | D169: If Individual is chosen, enter the capacity of the smallest unit | E169: Enter the smallest capacity in kW, the size of the smallest unit defines the lower load limit and has an impact on eventual excess generation
B171: Following data is inserted for each hybrid system option
B172: Tab | C172: Step | D172: Action | E172: Description | F172: Topic
B173: Input Solar, Input Wind, Input Hydro, Input Biomass, Input RE | C173: 13 | D173: Select diesel power plant type | E173: Select between default or individual diesel power plant type | F173: Diesel power plant parameters
C174: 13.1 | D174: If individual, enter diesel CAPEX | E174: Enter diesel CAPEX in PHP per kW
C175: 13.2 | D175: If individual, enter variable diesel OPEX | E175: Enter variable diesel OPEX in PHP per kWh per year
C176: 13.3 | D176: If Individual is chosen, enter fixed diesel OPEX | E176: Enter fixed diesel OPEX in PHP per kW per year
C177: 13.4 | D177: If Individual is chosen, enter the genset efficiency | E177: Enter the liters of Diesel the genset needs to generate one kWh at full load
C178: 13.5 | D178: If Individual is chosen, enter intital diesel fuel costs | E178: Enter initital diesel fuel costs in PHP per liter
C179: 13.6 | D179: If Individual is chosen, enter diesel price increase | E179: Enter diesel price increase in percent per year
C180: 13.7 | D180: If Individual is chosen, enter diesel genset life span | E180: Enter diesel genset life span in years
C181: 14 | D181: Select size parameters of diesel genset | E181: Select between default or individual values | F181: Diesel power plant size
C182: 14.1 | D182: If Individual is chosen, choose the number of gensets the diesel power plant consists of | E182: Due to simplification reasons the range only goes from "1 to 5+"; the higher the number the higher the efficiency due to the higher load of the gensets
C183: 14.2 | D183: If Individual is chosen, enter total capacity of diesel power plant | E183: Enter the total rated capacity of all gensets in kW
C184: 14.3 | D184: If Individual is chosen, enter the capacity of the smallest unit | E184: Enter the smallest capacity in kW, the size of the smallest generator defines the lower load limit (30%) and has an impact on eventual excess generation
C186: 15 | D186: Select type of battery storage | E186: Select between default or individual battery type | F186: Battery type
C187: 15.1 | D187: If Individual is chosen, enter battery system CAPEX | E187: Enter battery system CAPEX in PHP per kWh
C188: 15.2 | D188: If Individual is chosen, enter fixed battery OPEX | E188: Enter fixed battery OPEX in PHP per kWh per year
C189: 15.3 | D189: If Individual is chosen, enter battery c-rate | E189: Enter c-rate as ratio between battery power and capacity
C190: 15.4 | D190: If Individual is chosen, enter battery DoD | E190: Enter maximum depth of discharge (DoD) in percent
C191: 15.5 | D191: If Individual is chosen, enter battery charging efficiency | E191: Enter charging efficiency of battery in percent
C192: 15.6 | D192: If Individual is chosen, enter battery discharging efficiency | E192: Enter discharging efficiency of battery in percent
C193: 15.7 | D193: If Individual is chosen, enter battery life span | E193: Enter life span of battery in years
C195: 16 | D195: Select system parameters | E195: Select between default or individual system parameters | F195: System parameters
C196: 16.1 | D196: If Individual is chosen, enter discount rate | E196: Enter discount rate in percent
C197: 16.2 | D197: If Individual is chosen, enter project duration | E197: Enter project duration in years
C198: 16.3 | D198: If Individual is chosen, enter distribution losses | E198: Enter distribution losses in percent
C199: 16.4 | D199: If Individual is chosen, enter system stability | E199: Enter system stability (rotating mass) in percent
C200: 16.5 | D200: If Individual is chosen, enter fixed project development costs | E200: Enter fixed project development costs in PHP
C201: 16.6 | D201: If Individual is chosen, enter fixed other initial costs | E201: Enter fixed other initial costs in PHP
C202: 16.7 | D202: If Individual is chosen, enter fixed other OPEX | E202: Enter fixed other OPEX in PHP per year
C203: 16.8 | D203: If Individual is chosen, enter fixed personnel costs | E203: Enter fixed personnel costs in PHP per year
C205: 17 | D205: Select distribution grid parameters | E205: Select between default or individual distribution grid parameters | F205: Distribution grid parameters
C206: 17.1 | D206: If Individual is chosen, enter initial grid costs | E206: Enter grid initial costs in PHP
C207: 17.2 | D207: If Individual is chosen, enter grid OPEX | E207: Enter grid OPEX in PHP per year
C208: 17.3 | D208: If Individual is chosen, enter life span of grid | E208: Enter life span of grid in years
C210: 18 | D210: Enter information about RE Certificates (REC) | E210: Enter REC amount, RE generation equivalent per REC (MWh/REC) and RE generation equivalent total (MWh/year) | F210: RE Certificates (REC)
C212: 19 | D212: Check the previously selected capacities | E212: The values cannot be modified in these fields only in the corresponding sections above. * | F212: Simulation sizes
C213: 20 | D213: Press the "Start Simulation" Button to simulate the hybrid system | E213: The VBA code will calculate the energy and cost values over time and show them in the Tab "Simulation Results"
C215: 21 | D215: Select Scenario sizes | E215: Select to use multiplier or sizes in scenario simulation (Diesel has to be defined in the inputs and remains at same size) | F215: Scenario parameters
C216: 21.1.1 | D216: If "Multiplier" is chosen, enter RE multiplier values | E216: Enter multiplier values for the RE technology (RE size equals peak load x multiplier factor)
C217: 21.1.2 | D217: If "Multiplier" is chosen, enter battery multiplier values | E217: Enter multiplier values for battery (battery size equals average hourly energy consumption x multiplier factor)
C218: 21.2.1 | D218: If "Sizes" is chosen, enter RE capacity values | E218: Enter capacity values for the RE technology in kW
C219: 21.2.2 | D219: If "Sizes" is chosen, enter battery capacity values | E219: Enter capcacity values for battery in kWh
C220: 22 | D220: Start "simplified" Scenario calculation | E220: Simplified calculation can take a few minutes, results are calculated with an average load increase over time
C221: 23 | D221: Start "detailed" Scenario calculation | E221: Detailed calculation takes up to 30 minutes, results are calculated with a yearly load increase
B223: RESULTS MANUAL
B224: Each hybrid system option has a Simulation Resuls tab. The results are listed in tabular format along 3 sections: Techno-economic results, Initial investment, Yearly cost results. Below the tabular results a power flow diagram and a cost diagram give further information on the techno-economic characteristics of the system.
B225: Tab | C225: Step | D225: Result section | E225: Description | F225: Topic
B226: Simulation Results | C226: 23.1 | D226: LCOE | E226: Levelized cost of electricity of hybrid system | F226: Simulation Results: techno-economic results
C227: 23.8 | D227: RE-share | E227: Renewable energy share
C228: 23.2 | D228: Load [MWh] | E228: Annual consumption, peak load and Distribution losses
C229: 23.3 | D229: Output [MWh] | E229: Annual electricity generation of system components
C230: 23.4 | D230: Investment | E230: Investment costs of system components
C231: 23.5 | D231: Operation & Maintenance costs (O&M) | E231: O&M costs of system components
C232: 23.6 | D232: Annualized total costs | E232: Annual costs of system components
C233: 23.7 | D233: Unmet load [kWh] | E233: Annual part of the load which is not covered by the electricity generation of the hybrid system
C235: Below the columns, two diagrams show the power curves of the electric load and the electricity generation of the different power plants.
C236: 24.1 | D236: Power curve diagram | E236: Load curve, genset power curve, RE generation curve, RE consumption curve, battery charge curve, battery discharge curve | F236: Diagrams
C237: 24.2 | D237: Cost diagram | E237: The annualized cost shares of the system components are visualized
B239: Each hybrid system option has a Scenario Results tab which show matrices of the average LCOE, RE-shares and unmet loads for different system configurations, the optimal system is highlighted. Please note: the scenario function is not available for the „all RE“ hybrid system due to exceeding calculation time
C240: Step | D240: Results | E240: Description
B241: Tab | C241: 26.1 | D241: LCOE/RE-Share | E241: Average LCOE and RE-Share for given RE and battery configuration | F241: Topic
B242: Scenario Results | C242: 26.2 | D242: LCOE [PHP/kWh] | E242: Average LCOE for given RE and battery configuration | F242: Scenario Results matrix
C243: 26.3 | D243: RE-Share | E243: Average RE-Share for given RE and battery configuration
B245: * The default battery size change in the Input sheet during the "Simulation" in the case of load growth. This is based on the VBA process of changing the load (the parameter with which the Default battery value is determined). In the calculation sheet the original default battery size is kept at the initial value or at the determined values of the "Scenario" function respectively.

Sheet Existing Load
C3: Energy demand per year | H3: Energy demand per hour
C5: Input data from: | D5: Total demand | G5: Hours | H5: Percentage per hour | I5: C: Individual Percentage per hour | J5: Kilowatt hour (kWh)
C7: No. of households | D7: 0 | G7: 1 | H7: =IF($D$23=Background!$A$1,Background!D3,IF($D$23=Background!$A$2,Background!E3,"")) -> 0.015 | J7: =IF($D$23=Background!$A$1,H7*IF($D$17=0,$D$19,$D$17),IF($D$23=Background!$A$2,H7*IF($D$17=0,$D$19,$D$17),IF($D$17=0,$D$19,$D$17)*I7)) -> 0
G8: 2 | H8: =IF($D$23=Background!$A$1,Background!D4,IF($D$23=Background!$A$2,Background!E4,"")) -> 0.015 | J8: =IF($D$23=Background!$A$1,H8*IF($D$17=0,$D$19,$D$17),IF($D$23=Background!$A$2,H8*IF($D$17=0,$D$19,$D$17),IF($D$17=0,$D$19,$D$17)*I8)) -> 0
C9: Energy demand per household | D9: 0 | E9: MWh/year | G9: 3 | H9: =IF($D$23=Background!$A$1,Background!D5,IF($D$23=Background!$A$2,Background!E5,"")) -> 0.015 | J9: =IF($D$23=Background!$A$1,H9*IF($D$17=0,$D$19,$D$17),IF($D$23=Background!$A$2,H9*IF($D$17=0,$D$19,$D$17),IF($D$17=0,$D$19,$D$17)*I9)) -> 0
G10: 4 | H10: =IF($D$23=Background!$A$1,Background!D6,IF($D$23=Background!$A$2,Background!E6,"")) -> 0.015 | J10: =IF($D$23=Background!$A$1,H10*IF($D$17=0,$D$19,$D$17),IF($D$23=Background!$A$2,H10*IF($D$17=0,$D$19,$D$17),IF($D$17=0,$D$19,$D$17)*I10)) -> 0
C11: Add. commercial activity | D11: 0 | G11: 5 | H11: =IF($D$23=Background!$A$1,Background!D7,IF($D$23=Background!$A$2,Background!E7,"")) -> 0.02 | J11: =IF($D$23=Background!$A$1,H11*IF($D$17=0,$D$19,$D$17),IF($D$23=Background!$A$2,H11*IF($D$17=0,$D$19,$D$17),IF($D$17=0,$D$19,$D$17)*I11)) -> 0
G12: 6 | H12: =IF($D$23=Background!$A$1,Background!D8,IF($D$23=Background!$A$2,Background!E8,"")) -> 0.025 | J12: =IF($D$23=Background!$A$1,H12*IF($D$17=0,$D$19,$D$17),IF($D$23=Background!$A$2,H12*IF($D$17=0,$D$19,$D$17),IF($D$17=0,$D$19,$D$17)*I12)) -> 0
C13: Total energy demand per year | E13: MWh/year | G13: 7 | H13: =IF($D$23=Background!$A$1,Background!D9,IF($D$23=Background!$A$2,Background!E9,"")) -> 0.03 | J13: =IF($D$23=Background!$A$1,H13*IF($D$17=0,$D$19,$D$17),IF($D$23=Background!$A$2,H13*IF($D$17=0,$D$19,$D$17),IF($D$17=0,$D$19,$D$17)*I13)) -> 0
G14: 8 | H14: =IF($D$23=Background!$A$1,Background!D10,IF($D$23=Background!$A$2,Background!E10,"")) -> 0.04 | J14: =IF($D$23=Background!$A$1,H14*IF($D$17=0,$D$19,$D$17),IF($D$23=Background!$A$2,H14*IF($D$17=0,$D$19,$D$17),IF($D$17=0,$D$19,$D$17)*I14)) -> 0
C15: Weekend consumption factor | G15: 9 | H15: =IF($D$23=Background!$A$1,Background!D11,IF($D$23=Background!$A$2,Background!E11,"")) -> 0.04 | J15: =IF($D$23=Background!$A$1,H15*IF($D$17=0,$D$19,$D$17),IF($D$23=Background!$A$2,H15*IF($D$17=0,$D$19,$D$17),IF($D$17=0,$D$19,$D$17)*I15)) -> 0
G16: 10 | H16: =IF($D$23=Background!$A$1,Background!D12,IF($D$23=Background!$A$2,Background!E12,"")) -> 0.04 | J16: =IF($D$23=Background!$A$1,H16*IF($D$17=0,$D$19,$D$17),IF($D$23=Background!$A$2,H16*IF($D$17=0,$D$19,$D$17),IF($D$17=0,$D$19,$D$17)*I16)) -> 0
C17: Total demand (weekday) | D17: =IF(D5=Background!Y2,(D7*D9+(D7*D9*D11))/365*1000,(D13/(365*(5/7+2/7*D15)))*1000) -> 0 | E17: kWh/day | G17: 11 | H17: =IF($D$23=Background!$A$1,Background!D13,IF($D$23=Background!$A$2,Background!E13,"")) -> 0.05 | J17: =IF($D$23=Background!$A$1,H17*IF($D$17=0,$D$19,$D$17),IF($D$23=Background!$A$2,H17*IF($D$17=0,$D$19,$D$17),IF($D$17=0,$D$19,$D$17)*I17)) -> 0
G18: 12 | H18: =IF($D$23=Background!$A$1,Background!D14,IF($D$23=Background!$A$2,Background!E14,"")) -> 0.055 | J18: =IF($D$23=Background!$A$1,H18*IF($D$17=0,$D$19,$D$17),IF($D$23=Background!$A$2,H18*IF($D$17=0,$D$19,$D$17),IF($D$17=0,$D$19,$D$17)*I18)) -> 0
C19: Total demand (weekend day) | D19: =IF(D5=Background!Y2,(D7*D9)/365*1000,D17*D15) -> 0 | E19: kWh/day | G19: 13 | H19: =IF($D$23=Background!$A$1,Background!D15,IF($D$23=Background!$A$2,Background!E15,"")) -> 0.05 | J19: =IF($D$23=Background!$A$1,H19*IF($D$17=0,$D$19,$D$17),IF($D$23=Background!$A$2,H19*IF($D$17=0,$D$19,$D$17),IF($D$17=0,$D$19,$D$17)*I19)) -> 0
G20: 14 | H20: =IF($D$23=Background!$A$1,Background!D16,IF($D$23=Background!$A$2,Background!E16,"")) -> 0.04 | J20: =IF($D$23=Background!$A$1,H20*IF($D$17=0,$D$19,$D$17),IF($D$23=Background!$A$2,H20*IF($D$17=0,$D$19,$D$17),IF($D$17=0,$D$19,$D$17)*I20)) -> 0
G21: 15 | H21: =IF($D$23=Background!$A$1,Background!D17,IF($D$23=Background!$A$2,Background!E17,"")) -> 0.045 | J21: =IF($D$23=Background!$A$1,H21*IF($D$17=0,$D$19,$D$17),IF($D$23=Background!$A$2,H21*IF($D$17=0,$D$19,$D$17),IF($D$17=0,$D$19,$D$17)*I21)) -> 0 | L21: Peak load | N21: =IF(D19>D17,MAX(J7:J30)*(D19/D17),MAX(J7:J30)) -> 0 | O21: kW
G22: 16 | H22: =IF($D$23=Background!$A$1,Background!D18,IF($D$23=Background!$A$2,Background!E18,"")) -> 0.05 | J22: =IF($D$23=Background!$A$1,H22*IF($D$17=0,$D$19,$D$17),IF($D$23=Background!$A$2,H22*IF($D$17=0,$D$19,$D$17),IF($D$17=0,$D$19,$D$17)*I22)) -> 0
C23: Load curve | D23: A: Evening peak | G23: 17 | H23: =IF($D$23=Background!$A$1,Background!D19,IF($D$23=Background!$A$2,Background!E19,"")) -> 0.055 | J23: =IF($D$23=Background!$A$1,H23*IF($D$17=0,$D$19,$D$17),IF($D$23=Background!$A$2,H23*IF($D$17=0,$D$19,$D$17),IF($D$17=0,$D$19,$D$17)*I23)) -> 0
G24: 18 | H24: =IF($D$23=Background!$A$1,Background!D20,IF($D$23=Background!$A$2,Background!E20,"")) -> 0.065 | J24: =IF($D$23=Background!$A$1,H24*IF($D$17=0,$D$19,$D$17),IF($D$23=Background!$A$2,H24*IF($D$17=0,$D$19,$D$17),IF($D$17=0,$D$19,$D$17)*I24)) -> 0
G25: 19 | H25: =IF($D$23=Background!$A$1,Background!D21,IF($D$23=Background!$A$2,Background!E21,"")) -> 0.075 | J25: =IF($D$23=Background!$A$1,H25*IF($D$17=0,$D$19,$D$17),IF($D$23=Background!$A$2,H25*IF($D$17=0,$D$19,$D$17),IF($D$17=0,$D$19,$D$17)*I25)) -> 0
G26: 20 | H26: =IF($D$23=Background!$A$1,Background!D22,IF($D$23=Background!$A$2,Background!E22,"")) -> 0.075 | J26: =IF($D$23=Background!$A$1,H26*IF($D$17=0,$D$19,$D$17),IF($D$23=Background!$A$2,H26*IF($D$17=0,$D$19,$D$17),IF($D$17=0,$D$19,$D$17)*I26)) -> 0
G27: 21 | H27: =IF($D$23=Background!$A$1,Background!D23,IF($D$23=Background!$A$2,Background!E23,"")) -> 0.07 | J27: =IF($D$23=Background!$A$1,H27*IF($D$17=0,$D$19,$D$17),IF($D$23=Background!$A$2,H27*IF($D$17=0,$D$19,$D$17),IF($D$17=0,$D$19,$D$17)*I27)) -> 0
G28: 22 | H28: =IF($D$23=Background!$A$1,Background!D24,IF($D$23=Background!$A$2,Background!E24,"")) -> 0.06 | J28: =IF($D$23=Background!$A$1,H28*IF($D$17=0,$D$19,$D$17),IF($D$23=Background!$A$2,H28*IF($D$17=0,$D$19,$D$17),IF($D$17=0,$D$19,$D$17)*I28)) -> 0
G29: 23 | H29: =IF($D$23=Background!$A$1,Background!D25,IF($D$23=Background!$A$2,Background!E25,"")) -> 0.035 | J29: =IF($D$23=Background!$A$1,H29*IF($D$17=0,$D$19,$D$17),IF($D$23=Background!$A$2,H29*IF($D$17=0,$D$19,$D$17),IF($D$17=0,$D$19,$D$17)*I29)) -> 0
G30: 24 | H30: =IF($D$23=Background!$A$1,Background!D26,IF($D$23=Background!$A$2,Background!E26,"")) -> 0.02 | J30: =IF($D$23=Background!$A$1,H30*IF($D$17=0,$D$19,$D$17),IF($D$23=Background!$A$2,H30*IF($D$17=0,$D$19,$D$17),IF($D$17=0,$D$19,$D$17)*I30)) -> 0
H31: =SUM(H7:H30) -> 1 | I31: =IF(D23=Background!$A$3,SUM(I7:I30),"") ->  | J31: =SUM(J7:J30) -> 0
G35: Annual load | I35: Default
H36: Value (Default) | I36: Value (Individual)
G37: Year 1 | H37: =IF($D$5=Background!$Y$2,(D$17*5/7+D$19*2/7)*365/1000,D$13) -> 0 | I37: =IF($D$5=Background!$Y$2,(D$17*5/7+D$19*2/7)*365/1000,D$13) -> 0 | J37: MWh
G38: Year 2 | H38: =IF($D$5=Background!$Y$2,(D$17*5/7+D$19*2/7)*365/1000,D$13) -> 0 | J38: MWh
G39: Year 3 | H39: =IF($D$5=Background!$Y$2,(D$17*5/7+D$19*2/7)*365/1000,D$13) -> 0 | J39: MWh
G40: Year 4 | H40: =IF($D$5=Background!$Y$2,(D$17*5/7+D$19*2/7)*365/1000,D$13) -> 0 | J40: MWh
G41: Year 5 | H41: =IF($D$5=Background!$Y$2,(D$17*5/7+D$19*2/7)*365/1000,D$13) -> 0 | J41: MWh
G42: Year 6 | H42: =IF($D$5=Background!$Y$2,(D$17*5/7+D$19*2/7)*365/1000,D$13) -> 0 | J42: MWh
G43: Year 7 | H43: =IF($D$5=Background!$Y$2,(D$17*5/7+D$19*2/7)*365/1000,D$13) -> 0 | J43: MWh
G44: Year 8 | H44: =IF($D$5=Background!$Y$2,(D$17*5/7+D$19*2/7)*365/1000,D$13) -> 0 | J44: MWh
G45: Year 9 | H45: =IF($D$5=Background!$Y$2,(D$17*5/7+D$19*2/7)*365/1000,D$13) -> 0 | J45: MWh
G46: Year 10 | H46: =IF($D$5=Background!$Y$2,(D$17*5/7+D$19*2/7)*365/1000,D$13) -> 0 | J46: MWh
G47: Year 11 | H47: =IF($D$5=Background!$Y$2,(D$17*5/7+D$19*2/7)*365/1000,D$13) -> 0 | J47: MWh
G48: Year 12 | H48: =IF($D$5=Background!$Y$2,(D$17*5/7+D$19*2/7)*365/1000,D$13) -> 0 | J48: MWh
G49: Year 13 | H49: =IF($D$5=Background!$Y$2,(D$17*5/7+D$19*2/7)*365/1000,D$13) -> 0 | J49: MWh
G50: Year 14 | H50: =IF($D$5=Background!$Y$2,(D$17*5/7+D$19*2/7)*365/1000,D$13) -> 0 | J50: MWh
G51: Year 15 | H51: =IF($D$5=Background!$Y$2,(D$17*5/7+D$19*2/7)*365/1000,D$13) -> 0 | J51: MWh
G52: Year 16 | H52: =IF($D$5=Background!$Y$2,(D$17*5/7+D$19*2/7)*365/1000,D$13) -> 0 | J52: MWh
G53: Year 17 | H53: =IF($D$5=Background!$Y$2,(D$17*5/7+D$19*2/7)*365/1000,D$13) -> 0 | J53: MWh
G54: Year 18 | H54: =IF($D$5=Background!$Y$2,(D$17*5/7+D$19*2/7)*365/1000,D$13) -> 0 | J54: MWh
G55: Year 19 | H55: =IF($D$5=Background!$Y$2,(D$17*5/7+D$19*2/7)*365/1000,D$13) -> 0 | J55: MWh
G56: Year 20 | H56: =IF($D$5=Background!$Y$2,(D$17*5/7+D$19*2/7)*365/1000,D$13) -> 0 | J56: MWh

Sheet Input Solar
C3: Select PV costs | D3: Default
C5: Parameters | D5: Value (Default) | E5: Value (Individual) | G5: Unit
C7: PV CAPEX | D7: =Background!O4 -> 70000 | G7: PHP/kW
C8: PV OPEX | D8: =Background!O5 -> 1400 | G8: PHP/kW/y
C9: Life span | D9: =Background!O6 -> 20 | G9: years
C11: Select PV size | D11: Default
C13: PV capacity existing eligible | D13: 0 | G13: kW
C14: PV capacity existing non-eligible | D14: 0 | G14: kW
C15: PV capacity new | D15: =Background!Q5 -> 0 | G15: kW
C16: PV capacity total | D16: =SUM(D13:D15) -> 0 | E16: =SUM(E13:E15) -> 0 | G16: kW
C18: Select location | D18: Luzon | G18: Region
C20: Select irradiance parameters | D20: Default
C22: Average daily energy output | D22: =IF('Input Solar'!$D18=Background!$X$2,'Calc Solar'!H171,IF('Input Solar'!$D18=Background!$X$3,'Calc Solar'!I171,'Calc Solar'!J171)) -> 3.738899356 | G22: kWh/kWp
C26: Select diesel power plant type | D26: Default
C28: Parameters | D28: Value (Default) | E28: Value (Individual) | G28: Unit
C30: Diesel plant CAPEX | D30: =Background!M4 -> 30000 | G30: PHP/kW
C31: Diesel plant OPEX var. | D31: =Background!M5 -> 2.5 | G31: PHP/kWh
C32: Diesel plant OPEX fix. | D32: =Background!M6 -> 300 | G32: PHP/kW/y
C33: Fuel per kWh (high load) | D33: =Background!M7 -> 0.33 | G33: liter/kWh
C34: Initital diesel fuel costs | D34: =Background!M9 -> 35 | G34: PHP/liter
C35: Diesel price increase | D35: =Background!M10 -> 0.03 | G35: per year
C36: Life span | D36: =Background!M11 -> 10 | G36: years
C38: Select diesel plant size | D38: Default
C40: Number of genset units | D40: =1 -> 1
C41: Diesel power plant total capacity | D41: =Background!$Q$7 -> 0 | G41: kW
C42: Capacity of smallest unit | D42: =D41 -> 0 | G42: kW
C46: Select battery type | D46: Lithium-Ion
C48: Parameters | D48: Value (Default) | E48: Value (Individual) | G48: Unit
C50: Battery system CAPEX | D50: =IF($D$46="Lithium-Ion",Background!H7,Background!J7) -> 27000 | G50: PHP/kWh_cap
C51: Battery OPEX | D51: =IF($D$46="Lithium-Ion",Background!H9,Background!J9) -> 405 | G51: PHP/kWh_cap/y
C52: C-rate (kW/kWh) | D52: =IF($D$46="Lithium-Ion",Background!H10,Background!J10) -> 1 | G52: ratio
C53: Maximum Depth of discharge (DoD) | D53: =IF($D$46="Lithium-Ion",Background!H11,Background!J11) -> 0.8
C54: Charging efficiency | D54: =IF($D$46="Lithium-Ion",Background!H13,Background!J13) -> 0.9
C55: Discharging efficiency | D55: =IF($D$46="Lithium-Ion",Background!H14,Background!J14) -> 0.9
C56: Life span | D56: =IF($D$46="Lithium-Ion",Background!H15,Background!J15) -> 10 | G56: years
C58: Select battery size | D58: Default
C60: Battery capacity | D60: =Background!$Q$6 -> 0 | G60: capacity in kWh
C64: Select system parameters | D64: Default
C66: Parameters | D66: Value (Default) | E66: Value (Individual) | G66: Unit
C68: Discount rate | D68: =Background!Q4 -> 0.12
C69: Project duration | D69: =Background!Q8 -> 20 | G69: years
C70: Distribution losses | D70: =Background!Q9 -> 0.05
C71: System stability factor | D71: =Background!Q10 -> 0.4 | G71: % of load
C73: Fixed project development costs | D73: =Background!M12 -> 500000 | G73: PHP
C74: Fixed other initial costs | D74: =Background!M13 -> 0 | G74: PHP
C75: Fixed other opex | D75: =Background!M14 -> 0 | G75: PHP/year
C76: Fixed personnel costs | D76: =Background!M15 -> 0 | G76: PHP/year
C80: Distribution grid parameters | D80: Default
C82: Parameters | D82: Value (Default) | E82: Value (Indiviudal) | G82: Unit
C84: Grid initial costs | D84: =Background!M17 -> 0 | G84: PHP
C85: Fixed grid OPEX | D85: =Background!M18 -> 0 | G85: PHP/year
C86: Life span | D86: =Background!M19 -> 20 | G86: years
C90: RE Certificates (REC) | D90: Default
D92: Value (Default) | E92: Value (Indiviudal)
C94: REC amount | D94: 0
C95: RE generation equivalent per REC | D95: 1 | G95: MWh/REC
C96: RE generation equivalent total | D96: =D94*D95 -> 0 | E96: =E94*E95 -> 0 | G96: MWh/year
C100: System simulation
C101: Overview of sizes for simulation | D101: Value (Default) | E101: Value (Individual)
C103: PV capacity total | D103: =IF($D$11="Default",$D$16,"") -> 0 | E103: =IF($D$11="Default","",$E$16) ->  | G103: kW
C104: Battery capacity | D104: =IF($D$58="Default",$D$60,"") -> 0 | E104: =IF($D$58="Default","",$E$60) ->  | G104: kWh
C105: Diesel capacity | D105: =IF($D$38="Default",$D$41,"") -> 0 | E105: =IF($D$38="Default","",$E$41) ->  | G105: kW
C108: PV-diesel-battery simulation
D109: Please note: The simulation can take some minutes. Please DO NOT INTERRUPT the simulation because afterwards the SPT might not work normally anymore. If you still need to interrupt, afterwards please restart the SPT from a previously saved version.
C112: System scenarios
C114: This function calculates average LCOE and RE-Share of different system configurations over project lifetime. New and eligible PV capacities are defined below, existing (eligible and ineligible) PV capacities remain constant as chosen above in section "select PV size". Diesel size remains constant at the value chosen above. Simplified: An average load growth is assumed, calc time: 1min. Detailed: yearly load growth is calculated, approx. 60min
C117: Select scenario parameters | D117: Multiplier
D118: Multiplier | F118: Size values
C119: Steps | D119: PV (new) | E119: Battery | F119: PV (new) | G119: Battery
C121: Step 0 | D121: 0 | E121: 0 | F121: 0 | G121: 0
C122: Step 1 | D122: 0.3 | E122: 0.3 | F122: 20 | G122: 30
C123: Step 2 | D123: 0.6 | E123: 0.6 | F123: 40 | G123: 60
C124: Step 3 | D124: 1 | E124: 1 | F124: 60 | G124: 90
C125: Step 4 | D125: 1.3 | E125: 1.3 | F125: 80 | G125: 120
C126: Step 5 | D126: 1.6 | E126: 1.6 | F126: 100 | G126: 150
C127: Step 6 | D127: 2 | E127: 2 | F127: 120 | G127: 180
C128: Step 7 | D128: 2.3 | E128: 2.3 | F128: 140 | G128: 210
C129: Step 8 | D129: 2.6 | E129: 2.6 | F129: 160 | G129: 240
C130: Step 9 | D130: 3 | E130: 3 | F130: 180 | G130: 270
C131: Step 10 | D131: 3.3 | E131: 3.3 | F131: 200 | G131: 300

Sheet Simulation Results Solar
B2: Techno-economic results - PV hybrid system
B3: =Background!A32 -> Year | C3: =Background!C32 -> LCOE [PHP/kWh] | D3: =Background!D32 -> RE share eligible | E3: =Background!E32 -> Consumption (+losses) [MWh] | F3: =Background!F32 -> Peak load [kW] | G3: =Background!G32 -> Distribution losses [MWh] | H3: =Background!H32 -> PV generation potential [MWh] | I3: =Background!I32 -> Existing non-eligible PV electricity consumed [MWh] | J3: =Background!J32 -> Existing eligible PV electricity consumed [MWh] | K3: =Background!K32 -> New PV electricity consumed [MWh] | L3: =Background!L32 -> Total PV electricity consumed [MWh] | M3: =Background!M32 -> Diesel genset electricity generation [MWh] | N3: =Background!N32 -> Diesel genset electricity consumed [MWh] | O3: =Background!O32 -> Diesel Fuel consumption [l] | P3: =Background!R32 -> Battery discharge [MWh] | Q3: =Background!S32 -> Diesel excess generation [MWh] | R3: =Background!T32 -> Unmet load [MWh]
B4: =Background!A33 -> 1 | C4: =Background!C33 -> 0 | D4: =Background!D33 -> 0 | E4: =Background!E33 -> 0 | F4: =Background!F33 -> 0 | G4: =Background!G33 -> 0 | H4: =Background!H33 -> 0 | I4: =Background!I33 -> 0 | J4: =Background!J33 -> 0 | K4: =Background!K33 -> 0 | L4: =Background!L33 -> 0 | M4: =Background!M33 -> 0 | N4: =Background!N33 -> 0 | O4: =Background!O33 -> 0 | P4: =Background!R33 -> 0 | Q4: =Background!S33 -> 0 | R4: =Background!T33 -> 0
B5: =Background!A34 -> 2 | C5: =Background!C34 -> 0 | D5: =Background!D34 -> 0 | E5: =Background!E34 -> 0 | F5: =Background!F34 -> 0 | G5: =Background!G34 -> 0 | H5: =Background!H34 -> 0 | I5: =Background!I34 -> 0 | J5: =Background!J34 -> 0 | K5: =Background!K34 -> 0 | L5: =Background!L34 -> 0 | M5: =Background!M34 -> 0 | N5: =Background!N34 -> 0 | O5: =Background!O34 -> 0 | P5: =Background!R34 -> 0 | Q5: =Background!S34 -> 0 | R5: =Background!T34 -> 0
B6: =Background!A35 -> 3 | C6: =Background!C35 -> 0 | D6: =Background!D35 -> 0 | E6: =Background!E35 -> 0 | F6: =Background!F35 -> 0 | G6: =Background!G35 -> 0 | H6: =Background!H35 -> 0 | I6: =Background!I35 -> 0 | J6: =Background!J35 -> 0 | K6: =Background!K35 -> 0 | L6: =Background!L35 -> 0 | M6: =Background!M35 -> 0 | N6: =Background!N35 -> 0 | O6: =Background!O35 -> 0 | P6: =Background!R35 -> 0 | Q6: =Background!S35 -> 0 | R6: =Background!T35 -> 0
B7: =Background!A36 -> 4 | C7: =Background!C36 -> 0 | D7: =Background!D36 -> 0 | E7: =Background!E36 -> 0 | F7: =Background!F36 -> 0 | G7: =Background!G36 -> 0 | H7: =Background!H36 -> 0 | I7: =Background!I36 -> 0 | J7: =Background!J36 -> 0 | K7: =Background!K36 -> 0 | L7: =Background!L36 -> 0 | M7: =Background!M36 -> 0 | N7: =Background!N36 -> 0 | O7: =Background!O36 -> 0 | P7: =Background!R36 -> 0 | Q7: =Background!S36 -> 0 | R7: =Background!T36 -> 0
B8: =Background!A37 -> 5 | C8: =Background!C37 -> 0 | D8: =Background!D37 -> 0 | E8: =Background!E37 -> 0 | F8: =Background!F37 -> 0 | G8: =Background!G37 -> 0 | H8: =Background!H37 -> 0 | I8: =Background!I37 -> 0 | J8: =Background!J37 -> 0 | K8: =Background!K37 -> 0 | L8: =Background!L37 -> 0 | M8: =Background!M37 -> 0 | N8: =Background!N37 -> 0 | O8: =Background!O37 -> 0 | P8: =Background!R37 -> 0 | Q8: =Background!S37 -> 0 | R8: =Background!T37 -> 0
B9: =Background!A38 -> 6 | C9: =Background!C38 -> 0 | D9: =Background!D38 -> 0 | E9: =Background!E38 -> 0 | F9: =Background!F38 -> 0 | G9: =Background!G38 -> 0 | H9: =Background!H38 -> 0 | I9: =Background!I38 -> 0 | J9: =Background!J38 -> 0 | K9: =Background!K38 -> 0 | L9: =Background!L38 -> 0 | M9: =Background!M38 -> 0 | N9: =Background!N38 -> 0 | O9: =Background!O38 -> 0 | P9: =Background!R38 -> 0 | Q9: =Background!S38 -> 0 | R9: =Background!T38 -> 0
B10: =Background!A39 -> 7 | C10: =Background!C39 -> 0 | D10: =Background!D39 -> 0 | E10: =Background!E39 -> 0 | F10: =Background!F39 -> 0 | G10: =Background!G39 -> 0 | H10: =Background!H39 -> 0 | I10: =Background!I39 -> 0 | J10: =Background!J39 -> 0 | K10: =Background!K39 -> 0 | L10: =Background!L39 -> 0 | M10: =Background!M39 -> 0 | N10: =Background!N39 -> 0 | O10: =Background!O39 -> 0 | P10: =Background!R39 -> 0 | Q10: =Background!S39 -> 0 | R10: =Background!T39 -> 0
B11: =Background!A40 -> 8 | C11: =Background!C40 -> 0 | D11: =Background!D40 -> 0 | E11: =Background!E40 -> 0 | F11: =Background!F40 -> 0 | G11: =Background!G40 -> 0 | H11: =Background!H40 -> 0 | I11: =Background!I40 -> 0 | J11: =Background!J40 -> 0 | K11: =Background!K40 -> 0 | L11: =Background!L40 -> 0 | M11: =Background!M40 -> 0 | N11: =Background!N40 -> 0 | O11: =Background!O40 -> 0 | P11: =Background!R40 -> 0 | Q11: =Background!S40 -> 0 | R11: =Background!T40 -> 0
B12: =Background!A41 -> 9 | C12: =Background!C41 -> 0 | D12: =Background!D41 -> 0 | E12: =Background!E41 -> 0 | F12: =Background!F41 -> 0 | G12: =Background!G41 -> 0 | H12: =Background!H41 -> 0 | I12: =Background!I41 -> 0 | J12: =Background!J41 -> 0 | K12: =Background!K41 -> 0 | L12: =Background!L41 -> 0 | M12: =Background!M41 -> 0 | N12: =Background!N41 -> 0 | O12: =Background!O41 -> 0 | P12: =Background!R41 -> 0 | Q12: =Background!S41 -> 0 | R12: =Background!T41 -> 0
B13: =Background!A42 -> 10 | C13: =Background!C42 -> 0 | D13: =Background!D42 -> 0 | E13: =Background!E42 -> 0 | F13: =Background!F42 -> 0 | G13: =Background!G42 -> 0 | H13: =Background!H42 -> 0 | I13: =Background!I42 -> 0 | J13: =Background!J42 -> 0 | K13: =Background!K42 -> 0 | L13: =Background!L42 -> 0 | M13: =Background!M42 -> 0 | N13: =Background!N42 -> 0 | O13: =Background!O42 -> 0 | P13: =Background!R42 -> 0 | Q13: =Background!S42 -> 0 | R13: =Background!T42 -> 0
B14: =Background!A43 -> 11 | C14: =Background!C43 -> 0 | D14: =Background!D43 -> 0 | E14: =Background!E43 -> 0 | F14: =Background!F43 -> 0 | G14: =Background!G43 -> 0 | H14: =Background!H43 -> 0 | I14: =Background!I43 -> 0 | J14: =Background!J43 -> 0 | K14: =Background!K43 -> 0 | L14: =Background!L43 -> 0 | M14: =Background!M43 -> 0 | N14: =Background!N43 -> 0 | O14: =Background!O43 -> 0 | P14: =Background!R43 -> 0 | Q14: =Background!S43 -> 0 | R14: =Background!T43 -> 0
B15: =Background!A44 -> 12 | C15: =Background!C44 -> 0 | D15: =Background!D44 -> 0 | E15: =Background!E44 -> 0 | F15: =Background!F44 -> 0 | G15: =Background!G44 -> 0 | H15: =Background!H44 -> 0 | I15: =Background!I44 -> 0 | J15: =Background!J44 -> 0 | K15: =Background!K44 -> 0 | L15: =Background!L44 -> 0 | M15: =Background!M44 -> 0 | N15: =Background!N44 -> 0 | O15: =Background!O44 -> 0 | P15: =Background!R44 -> 0 | Q15: =Background!S44 -> 0 | R15: =Background!T44 -> 0
B16: =Background!A45 -> 13 | C16: =Background!C45 -> 0 | D16: =Background!D45 -> 0 | E16: =Background!E45 -> 0 | F16: =Background!F45 -> 0 | G16: =Background!G45 -> 0 | H16: =Background!H45 -> 0 | I16: =Background!I45 -> 0 | J16: =Background!J45 -> 0 | K16: =Background!K45 -> 0 | L16: =Background!L45 -> 0 | M16: =Background!M45 -> 0 | N16: =Background!N45 -> 0 | O16: =Background!O45 -> 0 | P16: =Background!R45 -> 0 | Q16: =Background!S45 -> 0 | R16: =Background!T45 -> 0
B17: =Background!A46 -> 14 | C17: =Background!C46 -> 0 | D17: =Background!D46 -> 0 | E17: =Background!E46 -> 0 | F17: =Background!F46 -> 0 | G17: =Background!G46 -> 0 | H17: =Background!H46 -> 0 | I17: =Background!I46 -> 0 | J17: =Background!J46 -> 0 | K17: =Background!K46 -> 0 | L17: =Background!L46 -> 0 | M17: =Background!M46 -> 0 | N17: =Background!N46 -> 0 | O17: =Background!O46 -> 0 | P17: =Background!R46 -> 0 | Q17: =Background!S46 -> 0 | R17: =Background!T46 -> 0
B18: =Background!A47 -> 15 | C18: =Background!C47 -> 0 | D18: =Background!D47 -> 0 | E18: =Background!E47 -> 0 | F18: =Background!F47 -> 0 | G18: =Background!G47 -> 0 | H18: =Background!H47 -> 0 | I18: =Background!I47 -> 0 | J18: =Background!J47 -> 0 | K18: =Background!K47 -> 0 | L18: =Background!L47 -> 0 | M18: =Background!M47 -> 0 | N18: =Background!N47 -> 0 | O18: =Background!O47 -> 0 | P18: =Background!R47 -> 0 | Q18: =Background!S47 -> 0 | R18: =Background!T47 -> 0
B19: =Background!A48 -> 16 | C19: =Background!C48 -> 0 | D19: =Background!D48 -> 0 | E19: =Background!E48 -> 0 | F19: =Background!F48 -> 0 | G19: =Background!G48 -> 0 | H19: =Background!H48 -> 0 | I19: =Background!I48 -> 0 | J19: =Background!J48 -> 0 | K19: =Background!K48 -> 0 | L19: =Background!L48 -> 0 | M19: =Background!M48 -> 0 | N19: =Background!N48 -> 0 | O19: =Background!O48 -> 0 | P19: =Background!R48 -> 0 | Q19: =Background!S48 -> 0 | R19: =Background!T48 -> 0
B20: =Background!A49 -> 17 | C20: =Background!C49 -> 0 | D20: =Background!D49 -> 0 | E20: =Background!E49 -> 0 | F20: =Background!F49 -> 0 | G20: =Background!G49 -> 0 | H20: =Background!H49 -> 0 | I20: =Background!I49 -> 0 | J20: =Background!J49 -> 0 | K20: =Background!K49 -> 0 | L20: =Background!L49 -> 0 | M20: =Background!M49 -> 0 | N20: =Background!N49 -> 0 | O20: =Background!O49 -> 0 | P20: =Background!R49 -> 0 | Q20: =Background!S49 -> 0 | R20: =Background!T49 -> 0
B21: =Background!A50 -> 18 | C21: =Background!C50 -> 0 | D21: =Background!D50 -> 0 | E21: =Background!E50 -> 0 | F21: =Background!F50 -> 0 | G21: =Background!G50 -> 0 | H21: =Background!H50 -> 0 | I21: =Background!I50 -> 0 | J21: =Background!J50 -> 0 | K21: =Background!K50 -> 0 | L21: =Background!L50 -> 0 | M21: =Background!M50 -> 0 | N21: =Background!N50 -> 0 | O21: =Background!O50 -> 0 | P21: =Background!R50 -> 0 | Q21: =Background!S50 -> 0 | R21: =Background!T50 -> 0
B22: =Background!A51 -> 19 | C22: =Background!C51 -> 0 | D22: =Background!D51 -> 0 | E22: =Background!E51 -> 0 | F22: =Background!F51 -> 0 | G22: =Background!G51 -> 0 | H22: =Background!H51 -> 0 | I22: =Background!I51 -> 0 | J22: =Background!J51 -> 0 | K22: =Background!K51 -> 0 | L22: =Background!L51 -> 0 | M22: =Background!M51 -> 0 | N22: =Background!N51 -> 0 | O22: =Background!O51 -> 0 | P22: =Background!R51 -> 0 | Q22: =Background!S51 -> 0 | R22: =Background!T51 -> 0
B23: =Background!A52 -> 20 | C23: =Background!C52 -> 0 | D23: =Background!D52 -> 0 | E23: =Background!E52 -> 0 | F23: =Background!F52 -> 0 | G23: =Background!G52 -> 0 | H23: =Background!H52 -> 0 | I23: =Background!I52 -> 0 | J23: =Background!J52 -> 0 | K23: =Background!K52 -> 0 | L23: =Background!L52 -> 0 | M23: =Background!M52 -> 0 | N23: =Background!N52 -> 0 | O23: =Background!O52 -> 0 | P23: =Background!R52 -> 0 | Q23: =Background!S52 -> 0 | R23: =Background!T52 -> 0
B24: Average | C24: =Background!C55 ->  | D24: =Background!D55 ->  | E24: =Background!E55 ->  | F24: =Background!F55 ->  | G24: =Background!G55 ->  | H24: =Background!H55 ->  | I24: =Background!I55 ->  | J24: =Background!J55 ->  | K24: =Background!K55 ->  | L24: =Background!L55 ->  | M24: =Background!M55 ->  | N24: =Background!N55 ->  | O24: =Background!O55 ->  | P24: =Background!R55 ->  | Q24: =Background!S55 ->  | R24: =Background!T55 -> 
C26: PV investment | D26: Battery investment | E26: Diesel investment | F26: Project investment | G26: Grid investment | H26: Other investment
B27: Initial investment [PHP] | C27: ='Calc Solar'!B38 -> 0 | D27: ='Calc Solar'!B40 -> 2.7e-09 | E27: ='Calc Solar'!B39 -> 0 | F27: ='Calc Solar'!B58 -> 500000 | G27: ='Calc Solar'!B66 -> 0 | H27: ='Calc Solar'!B61 -> 0
B29: Yearly cost results [PHP]
B30: Year | C30: PV OPEX | D30: Battery OPEX | E30: =Background!P32 -> Diesel OPEX | F30: =Background!Q32 -> Diesel fuel costs | G30: Grid OPEX | H30: Other OPEX | I30: Personnel OPEX | J30: PV annual costs | K30: Battery annual costs | L30: Diesel annual costs | M30: Grid annual costs | N30: Project annual costs | O30: Other annual costs
B31: 1 | C31: =IF(Background!$B$56>=B31,'Calc Solar'!$B$41,0) -> 0 | D31: =IF(Background!$B$56>=B31,'Calc Solar'!$B$43,0) -> 4.05e-11 | E31: =Background!P33 -> 0 | F31: =Background!Q33 -> 0 | G31: =IF(Background!$B$56>=B31,'Calc Solar'!$B$67,0) -> 0 | H31: =IF(Background!$B$56>=B31,'Calc Solar'!$B$63,0) -> 0 | I31: =IF(Background!$B$56>=B31,'Calc Solar'!$B$64,0) -> 0 | J31: =IF(Background!$B$56>=B31,'Calc Solar'!$B$48+C31,0) -> 0 | K31: =IF(Background!$B$56>=B31,'Calc Solar'!$B$56+D31,0) -> 5.183572432e-10 | L31: =IF(Background!$B$56>=B31,E31+F31+'Calc Solar'!$B$52,0) -> 0 | M31: =IF(Background!$B$56>=B31,'Calc Solar'!$B$70+G31,0) -> 0 | N31: =IF(Background!$B$56>=B31,'Calc Solar'!$B$60,0) -> 66939.39002 | O31: =IF(Background!$B$56>=B31,'Calc Solar'!$B$62+H31,0) -> 0
B32: 2 | C32: =IF(Background!$B$56>=B32,'Calc Solar'!$B$41,0) -> 0 | D32: =IF(Background!$B$56>=B32,'Calc Solar'!$B$43,0) -> 4.05e-11 | E32: =Background!P34 -> 0 | F32: =Background!Q34 -> 0 | G32: =IF(Background!$B$56>=B32,'Calc Solar'!$B$67,0) -> 0 | H32: =IF(Background!$B$56>=B32,'Calc Solar'!$B$63,0) -> 0 | I32: =IF(Background!$B$56>=B32,'Calc Solar'!$B$64,0) -> 0 | J32: =IF(Background!$B$56>=B32,'Calc Solar'!$B$48+C32,0) -> 0 | K32: =IF(Background!$B$56>=B32,'Calc Solar'!$B$56+D32,0) -> 5.183572432e-10 | L32: =IF(Background!$B$56>=B32,E32+F32+'Calc Solar'!$B$52,0) -> 0 | M32: =IF(Background!$B$56>=B32,'Calc Solar'!$B$70+G32,0) -> 0 | N32: =IF(Background!$B$56>=B32,'Calc Solar'!$B$60,0) -> 66939.39002 | O32: =IF(Background!$B$56>=B32,'Calc Solar'!$B$62+H32,0) -> 0
B33: 3 | C33: =IF(Background!$B$56>=B33,'Calc Solar'!$B$41,0) -> 0 | D33: =IF(Background!$B$56>=B33,'Calc Solar'!$B$43,0) -> 4.05e-11 | E33: =Background!P35 -> 0 | F33: =Background!Q35 -> 0 | G33: =IF(Background!$B$56>=B33,'Calc Solar'!$B$67,0) -> 0 | H33: =IF(Background!$B$56>=B33,'Calc Solar'!$B$63,0) -> 0 | I33: =IF(Background!$B$56>=B33,'Calc Solar'!$B$64,0) -> 0 | J33: =IF(Background!$B$56>=B33,'Calc Solar'!$B$48+C33,0) -> 0 | K33: =IF(Background!$B$56>=B33,'Calc Solar'!$B$56+D33,0) -> 5.183572432e-10 | L33: =IF(Background!$B$56>=B33,E33+F33+'Calc Solar'!$B$52,0) -> 0 | M33: =IF(Background!$B$56>=B33,'Calc Solar'!$B$70+G33,0) -> 0 | N33: =IF(Background!$B$56>=B33,'Calc Solar'!$B$60,0) -> 66939.39002 | O33: =IF(Background!$B$56>=B33,'Calc Solar'!$B$62+H33,0) -> 0
B34: 4 | C34: =IF(Background!$B$56>=B34,'Calc Solar'!$B$41,0) -> 0 | D34: =IF(Background!$B$56>=B34,'Calc Solar'!$B$43,0) -> 4.05e-11 | E34: =Background!P36 -> 0 | F34: =Background!Q36 -> 0 | G34: =IF(Background!$B$56>=B34,'Calc Solar'!$B$67,0) -> 0 | H34: =IF(Background!$B$56>=B34,'Calc Solar'!$B$63,0) -> 0 | I34: =IF(Background!$B$56>=B34,'Calc Solar'!$B$64,0) -> 0 | J34: =IF(Background!$B$56>=B34,'Calc Solar'!$B$48+C34,0) -> 0 | K34: =IF(Background!$B$56>=B34,'Calc Solar'!$B$56+D34,0) -> 5.183572432e-10 | L34: =IF(Background!$B$56>=B34,E34+F34+'Calc Solar'!$B$52,0) -> 0 | M34: =IF(Background!$B$56>=B34,'Calc Solar'!$B$70+G34,0) -> 0 | N34: =IF(Background!$B$56>=B34,'Calc Solar'!$B$60,0) -> 66939.39002 | O34: =IF(Background!$B$56>=B34,'Calc Solar'!$B$62+H34,0) -> 0
B35: 5 | C35: =IF(Background!$B$56>=B35,'Calc Solar'!$B$41,0) -> 0 | D35: =IF(Background!$B$56>=B35,'Calc Solar'!$B$43,0) -> 4.05e-11 | E35: =Background!P37 -> 0 | F35: =Background!Q37 -> 0 | G35: =IF(Background!$B$56>=B35,'Calc Solar'!$B$67,0) -> 0 | H35: =IF(Background!$B$56>=B35,'Calc Solar'!$B$63,0) -> 0 | I35: =IF(Background!$B$56>=B35,'Calc Solar'!$B$64,0) -> 0 | J35: =IF(Background!$B$56>=B35,'Calc Solar'!$B$48+C35,0) -> 0 | K35: =IF(Background!$B$56>=B35,'Calc Solar'!$B$56+D35,0) -> 5.183572432e-10 | L35: =IF(Background!$B$56>=B35,E35+F35+'Calc Solar'!$B$52,0) -> 0 | M35: =IF(Background!$B$56>=B35,'Calc Solar'!$B$70+G35,0) -> 0 | N35: =IF(Background!$B$56>=B35,'Calc Solar'!$B$60,0) -> 66939.39002 | O35: =IF(Background!$B$56>=B35,'Calc Solar'!$B$62+H35,0) -> 0
B36: 6 | C36: =IF(Background!$B$56>=B36,'Calc Solar'!$B$41,0) -> 0 | D36: =IF(Background!$B$56>=B36,'Calc Solar'!$B$43,0) -> 4.05e-11 | E36: =Background!P38 -> 0 | F36: =Background!Q38 -> 0 | G36: =IF(Background!$B$56>=B36,'Calc Solar'!$B$67,0) -> 0 | H36: =IF(Background!$B$56>=B36,'Calc Solar'!$B$63,0) -> 0 | I36: =IF(Background!$B$56>=B36,'Calc Solar'!$B$64,0) -> 0 | J36: =IF(Background!$B$56>=B36,'Calc Solar'!$B$48+C36,0) -> 0 | K36: =IF(Background!$B$56>=B36,'Calc Solar'!$B$56+D36,0) -> 5.183572432e-10 | L36: =IF(Background!$B$56>=B36,E36+F36+'Calc Solar'!$B$52,0) -> 0 | M36: =IF(Background!$B$56>=B36,'Calc Solar'!$B$70+G36,0) -> 0 | N36: =IF(Background!$B$56>=B36,'Calc Solar'!$B$60,0) -> 66939.39002 | O36: =IF(Background!$B$56>=B36,'Calc Solar'!$B$62+H36,0) -> 0
B37: 7 | C37: =IF(Background!$B$56>=B37,'Calc Solar'!$B$41,0) -> 0 | D37: =IF(Background!$B$56>=B37,'Calc Solar'!$B$43,0) -> 4.05e-11 | E37: =Background!P39 -> 0 | F37: =Background!Q39 -> 0 | G37: =IF(Background!$B$56>=B37,'Calc Solar'!$B$67,0) -> 0 | H37: =IF(Background!$B$56>=B37,'Calc Solar'!$B$63,0) -> 0 | I37: =IF(Background!$B$56>=B37,'Calc Solar'!$B$64,0) -> 0 | J37: =IF(Background!$B$56>=B37,'Calc Solar'!$B$48+C37,0) -> 0 | K37: =IF(Background!$B$56>=B37,'Calc Solar'!$B$56+D37,0) -> 5.183572432e-10 | L37: =IF(Background!$B$56>=B37,E37+F37+'Calc Solar'!$B$52,0) -> 0 | M37: =IF(Background!$B$56>=B37,'Calc Solar'!$B$70+G37,0) -> 0 | N37: =IF(Background!$B$56>=B37,'Calc Solar'!$B$60,0) -> 66939.39002 | O37: =IF(Background!$B$56>=B37,'Calc Solar'!$B$62+H37,0) -> 0
B38: 8 | C38: =IF(Background!$B$56>=B38,'Calc Solar'!$B$41,0) -> 0 | D38: =IF(Background!$B$56>=B38,'Calc Solar'!$B$43,0) -> 4.05e-11 | E38: =Background!P40 -> 0 | F38: =Background!Q40 -> 0 | G38: =IF(Background!$B$56>=B38,'Calc Solar'!$B$67,0) -> 0 | H38: =IF(Background!$B$56>=B38,'Calc Solar'!$B$63,0) -> 0 | I38: =IF(Background!$B$56>=B38,'Calc Solar'!$B$64,0) -> 0 | J38: =IF(Background!$B$56>=B38,'Calc Solar'!$B$48+C38,0) -> 0 | K38: =IF(Background!$B$56>=B38,'Calc Solar'!$B$56+D38,0) -> 5.183572432e-10 | L38: =IF(Background!$B$56>=B38,E38+F38+'Calc Solar'!$B$52,0) -> 0 | M38: =IF(Background!$B$56>=B38,'Calc Solar'!$B$70+G38,0) -> 0 | N38: =IF(Background!$B$56>=B38,'Calc Solar'!$B$60,0) -> 66939.39002 | O38: =IF(Background!$B$56>=B38,'Calc Solar'!$B$62+H38,0) -> 0
B39: 9 | C39: =IF(Background!$B$56>=B39,'Calc Solar'!$B$41,0) -> 0 | D39: =IF(Background!$B$56>=B39,'Calc Solar'!$B$43,0) -> 4.05e-11 | E39: =Background!P41 -> 0 | F39: =Background!Q41 -> 0 | G39: =IF(Background!$B$56>=B39,'Calc Solar'!$B$67,0) -> 0 | H39: =IF(Background!$B$56>=B39,'Calc Solar'!$B$63,0) -> 0 | I39: =IF(Background!$B$56>=B39,'Calc Solar'!$B$64,0) -> 0 | J39: =IF(Background!$B$56>=B39,'Calc Solar'!$B$48+C39,0) -> 0 | K39: =IF(Background!$B$56>=B39,'Calc Solar'!$B$56+D39,0) -> 5.183572432e-10 | L39: =IF(Background!$B$56>=B39,E39+F39+'Calc Solar'!$B$52,0) -> 0 | M39: =IF(Background!$B$56>=B39,'Calc Solar'!$B$70+G39,0) -> 0 | N39: =IF(Background!$B$56>=B39,'Calc Solar'!$B$60,0) -> 66939.39002 | O39: =IF(Background!$B$56>=B39,'Calc Solar'!$B$62+H39,0) -> 0
B40: 10 | C40: =IF(Background!$B$56>=B40,'Calc Solar'!$B$41,0) -> 0 | D40: =IF(Background!$B$56>=B40,'Calc Solar'!$B$43,0) -> 4.05e-11 | E40: =Background!P42 -> 0 | F40: =Background!Q42 -> 0 | G40: =IF(Background!$B$56>=B40,'Calc Solar'!$B$67,0) -> 0 | H40: =IF(Background!$B$56>=B40,'Calc Solar'!$B$63,0) -> 0 | I40: =IF(Background!$B$56>=B40,'Calc Solar'!$B$64,0) -> 0 | J40: =IF(Background!$B$56>=B40,'Calc Solar'!$B$48+C40,0) -> 0 | K40: =IF(Background!$B$56>=B40,'Calc Solar'!$B$56+D40,0) -> 5.183572432e-10 | L40: =IF(Background!$B$56>=B40,E40+F40+'Calc Solar'!$B$52,0) -> 0 | M40: =IF(Background!$B$56>=B40,'Calc Solar'!$B$70+G40,0) -> 0 | N40: =IF(Background!$B$56>=B40,'Calc Solar'!$B$60,0) -> 66939.39002 | O40: =IF(Background!$B$56>=B40,'Calc Solar'!$B$62+H40,0) -> 0
B41: 11 | C41: =IF(Background!$B$56>=B41,'Calc Solar'!$B$41,0) -> 0 | D41: =IF(Background!$B$56>=B41,'Calc Solar'!$B$43,0) -> 4.05e-11 | E41: =Background!P43 -> 0 | F41: =Background!Q43 -> 0 | G41: =IF(Background!$B$56>=B41,'Calc Solar'!$B$67,0) -> 0 | H41: =IF(Background!$B$56>=B41,'Calc Solar'!$B$63,0) -> 0 | I41: =IF(Background!$B$56>=B41,'Calc Solar'!$B$64,0) -> 0 | J41: =IF(Background!$B$56>=B41,'Calc Solar'!$B$48+C41,0) -> 0 | K41: =IF(Background!$B$56>=B41,'Calc Solar'!$B$56+D41,0) -> 5.183572432e-10 | L41: =IF(Background!$B$56>=B41,E41+F41+'Calc Solar'!$B$52,0) -> 0 | M41: =IF(Background!$B$56>=B41,'Calc Solar'!$B$70+G41,0) -> 0 | N41: =IF(Background!$B$56>=B41,'Calc Solar'!$B$60,0) -> 66939.39002 | O41: =IF(Background!$B$56>=B41,'Calc Solar'!$B$62+H41,0) -> 0
B42: 12 | C42: =IF(Background!$B$56>=B42,'Calc Solar'!$B$41,0) -> 0 | D42: =IF(Background!$B$56>=B42,'Calc Solar'!$B$43,0) -> 4.05e-11 | E42: =Background!P44 -> 0 | F42: =Background!Q44 -> 0 | G42: =IF(Background!$B$56>=B42,'Calc Solar'!$B$67,0) -> 0 | H42: =IF(Background!$B$56>=B42,'Calc Solar'!$B$63,0) -> 0 | I42: =IF(Background!$B$56>=B42,'Calc Solar'!$B$64,0) -> 0 | J42: =IF(Background!$B$56>=B42,'Calc Solar'!$B$48+C42,0) -> 0 | K42: =IF(Background!$B$56>=B42,'Calc Solar'!$B$56+D42,0) -> 5.183572432e-10 | L42: =IF(Background!$B$56>=B42,E42+F42+'Calc Solar'!$B$52,0) -> 0 | M42: =IF(Background!$B$56>=B42,'Calc Solar'!$B$70+G42,0) -> 0 | N42: =IF(Background!$B$56>=B42,'Calc Solar'!$B$60,0) -> 66939.39002 | O42: =IF(Background!$B$56>=B42,'Calc Solar'!$B$62+H42,0) -> 0
B43: 13 | C43: =IF(Background!$B$56>=B43,'Calc Solar'!$B$41,0) -> 0 | D43: =IF(Background!$B$56>=B43,'Calc Solar'!$B$43,0) -> 4.05e-11 | E43: =Background!P45 -> 0 | F43: =Background!Q45 -> 0 | G43: =IF(Background!$B$56>=B43,'Calc Solar'!$B$67,0) -> 0 | H43: =IF(Background!$B$56>=B43,'Calc Solar'!$B$63,0) -> 0 | I43: =IF(Background!$B$56>=B43,'Calc Solar'!$B$64,0) -> 0 | J43: =IF(Background!$B$56>=B43,'Calc Solar'!$B$48+C43,0) -> 0 | K43: =IF(Background!$B$56>=B43,'Calc Solar'!$B$56+D43,0) -> 5.183572432e-10 | L43: =IF(Background!$B$56>=B43,E43+F43+'Calc Solar'!$B$52,0) -> 0 | M43: =IF(Background!$B$56>=B43,'Calc Solar'!$B$70+G43,0) -> 0 | N43: =IF(Background!$B$56>=B43,'Calc Solar'!$B$60,0) -> 66939.39002 | O43: =IF(Background!$B$56>=B43,'Calc Solar'!$B$62+H43,0) -> 0
B44: 14 | C44: =IF(Background!$B$56>=B44,'Calc Solar'!$B$41,0) -> 0 | D44: =IF(Background!$B$56>=B44,'Calc Solar'!$B$43,0) -> 4.05e-11 | E44: =Background!P46 -> 0 | F44: =Background!Q46 -> 0 | G44: =IF(Background!$B$56>=B44,'Calc Solar'!$B$67,0) -> 0 | H44: =IF(Background!$B$56>=B44,'Calc Solar'!$B$63,0) -> 0 | I44: =IF(Background!$B$56>=B44,'Calc Solar'!$B$64,0) -> 0 | J44: =IF(Background!$B$56>=B44,'Calc Solar'!$B$48+C44,0) -> 0 | K44: =IF(Background!$B$56>=B44,'Calc Solar'!$B$56+D44,0) -> 5.183572432e-10 | L44: =IF(Background!$B$56>=B44,E44+F44+'Calc Solar'!$B$52,0) -> 0 | M44: =IF(Background!$B$56>=B44,'Calc Solar'!$B$70+G44,0) -> 0 | N44: =IF(Background!$B$56>=B44,'Calc Solar'!$B$60,0) -> 66939.39002 | O44: =IF(Background!$B$56>=B44,'Calc Solar'!$B$62+H44,0) -> 0
B45: 15 | C45: =IF(Background!$B$56>=B45,'Calc Solar'!$B$41,0) -> 0 | D45: =IF(Background!$B$56>=B45,'Calc Solar'!$B$43,0) -> 4.05e-11 | E45: =Background!P47 -> 0 | F45: =Background!Q47 -> 0 | G45: =IF(Background!$B$56>=B45,'Calc Solar'!$B$67,0) -> 0 | H45: =IF(Background!$B$56>=B45,'Calc Solar'!$B$63,0) -> 0 | I45: =IF(Background!$B$56>=B45,'Calc Solar'!$B$64,0) -> 0 | J45: =IF(Background!$B$56>=B45,'Calc Solar'!$B$48+C45,0) -> 0 | K45: =IF(Background!$B$56>=B45,'Calc Solar'!$B$56+D45,0) -> 5.183572432e-10 | L45: =IF(Background!$B$56>=B45,E45+F45+'Calc Solar'!$B$52,0) -> 0 | M45: =IF(Background!$B$56>=B45,'Calc Solar'!$B$70+G45,0) -> 0 | N45: =IF(Background!$B$56>=B45,'Calc Solar'!$B$60,0) -> 66939.39002 | O45: =IF(Background!$B$56>=B45,'Calc Solar'!$B$62+H45,0) -> 0
B46: 16 | C46: =IF(Background!$B$56>=B46,'Calc Solar'!$B$41,0) -> 0 | D46: =IF(Background!$B$56>=B46,'Calc Solar'!$B$43,0) -> 4.05e-11 | E46: =Background!P48 -> 0 | F46: =Background!Q48 -> 0 | G46: =IF(Background!$B$56>=B46,'Calc Solar'!$B$67,0) -> 0 | H46: =IF(Background!$B$56>=B46,'Calc Solar'!$B$63,0) -> 0 | I46: =IF(Background!$B$56>=B46,'Calc Solar'!$B$64,0) -> 0 | J46: =IF(Background!$B$56>=B46,'Calc Solar'!$B$48+C46,0) -> 0 | K46: =IF(Background!$B$56>=B46,'Calc Solar'!$B$56+D46,0) -> 5.183572432e-10 | L46: =IF(Background!$B$56>=B46,E46+F46+'Calc Solar'!$B$52,0) -> 0 | M46: =IF(Background!$B$56>=B46,'Calc Solar'!$B$70+G46,0) -> 0 | N46: =IF(Background!$B$56>=B46,'Calc Solar'!$B$60,0) -> 66939.39002 | O46: =IF(Background!$B$56>=B46,'Calc Solar'!$B$62+H46,0) -> 0
B47: 17 | C47: =IF(Background!$B$56>=B47,'Calc Solar'!$B$41,0) -> 0 | D47: =IF(Background!$B$56>=B47,'Calc Solar'!$B$43,0) -> 4.05e-11 | E47: =Background!P49 -> 0 | F47: =Background!Q49 -> 0 | G47: =IF(Background!$B$56>=B47,'Calc Solar'!$B$67,0) -> 0 | H47: =IF(Background!$B$56>=B47,'Calc Solar'!$B$63,0) -> 0 | I47: =IF(Background!$B$56>=B47,'Calc Solar'!$B$64,0) -> 0 | J47: =IF(Background!$B$56>=B47,'Calc Solar'!$B$48+C47,0) -> 0 | K47: =IF(Background!$B$56>=B47,'Calc Solar'!$B$56+D47,0) -> 5.183572432e-10 | L47: =IF(Background!$B$56>=B47,E47+F47+'Calc Solar'!$B$52,0) -> 0 | M47: =IF(Background!$B$56>=B47,'Calc Solar'!$B$70+G47,0) -> 0 | N47: =IF(Background!$B$56>=B47,'Calc Solar'!$B$60,0) -> 66939.39002 | O47: =IF(Background!$B$56>=B47,'Calc Solar'!$B$62+H47,0) -> 0
B48: 18 | C48: =IF(Background!$B$56>=B48,'Calc Solar'!$B$41,0) -> 0 | D48: =IF(Background!$B$56>=B48,'Calc Solar'!$B$43,0) -> 4.05e-11 | E48: =Background!P50 -> 0 | F48: =Background!Q50 -> 0 | G48: =IF(Background!$B$56>=B48,'Calc Solar'!$B$67,0) -> 0 | H48: =IF(Background!$B$56>=B48,'Calc Solar'!$B$63,0) -> 0 | I48: =IF(Background!$B$56>=B48,'Calc Solar'!$B$64,0) -> 0 | J48: =IF(Background!$B$56>=B48,'Calc Solar'!$B$48+C48,0) -> 0 | K48: =IF(Background!$B$56>=B48,'Calc Solar'!$B$56+D48,0) -> 5.183572432e-10 | L48: =IF(Background!$B$56>=B48,E48+F48+'Calc Solar'!$B$52,0) -> 0 | M48: =IF(Background!$B$56>=B48,'Calc Solar'!$B$70+G48,0) -> 0 | N48: =IF(Background!$B$56>=B48,'Calc Solar'!$B$60,0) -> 66939.39002 | O48: =IF(Background!$B$56>=B48,'Calc Solar'!$B$62+H48,0) -> 0
B49: 19 | C49: =IF(Background!$B$56>=B49,'Calc Solar'!$B$41,0) -> 0 | D49: =IF(Background!$B$56>=B49,'Calc Solar'!$B$43,0) -> 4.05e-11 | E49: =Background!P51 -> 0 | F49: =Background!Q51 -> 0 | G49: =IF(Background!$B$56>=B49,'Calc Solar'!$B$67,0) -> 0 | H49: =IF(Background!$B$56>=B49,'Calc Solar'!$B$63,0) -> 0 | I49: =IF(Background!$B$56>=B49,'Calc Solar'!$B$64,0) -> 0 | J49: =IF(Background!$B$56>=B49,'Calc Solar'!$B$48+C49,0) -> 0 | K49: =IF(Background!$B$56>=B49,'Calc Solar'!$B$56+D49,0) -> 5.183572432e-10 | L49: =IF(Background!$B$56>=B49,E49+F49+'Calc Solar'!$B$52,0) -> 0 | M49: =IF(Background!$B$56>=B49,'Calc Solar'!$B$70+G49,0) -> 0 | N49: =IF(Background!$B$56>=B49,'Calc Solar'!$B$60,0) -> 66939.39002 | O49: =IF(Background!$B$56>=B49,'Calc Solar'!$B$62+H49,0) -> 0
B50: 20 | C50: =IF(Background!$B$56>=B50,'Calc Solar'!$B$41,0) -> 0 | D50: =IF(Background!$B$56>=B50,'Calc Solar'!$B$43,0) -> 4.05e-11 | E50: =Background!P52 -> 0 | F50: =Background!Q52 -> 0 | G50: =IF(Background!$B$56>=B50,'Calc Solar'!$B$67,0) -> 0 | H50: =IF(Background!$B$56>=B50,'Calc Solar'!$B$63,0) -> 0 | I50: =IF(Background!$B$56>=B50,'Calc Solar'!$B$64,0) -> 0 | J50: =IF(Background!$B$56>=B50,'Calc Solar'!$B$48+C50,0) -> 0 | K50: =IF(Background!$B$56>=B50,'Calc Solar'!$B$56+D50,0) -> 5.183572432e-10 | L50: =IF(Background!$B$56>=B50,E50+F50+'Calc Solar'!$B$52,0) -> 0 | M50: =IF(Background!$B$56>=B50,'Calc Solar'!$B$70+G50,0) -> 0 | N50: =IF(Background!$B$56>=B50,'Calc Solar'!$B$60,0) -> 66939.39002 | O50: =IF(Background!$B$56>=B50,'Calc Solar'!$B$62+H50,0) -> 0
B51: Average | C51: =IFERROR(AVERAGEIF(C31:C50,"<>0"),0) -> 0 | D51: =IFERROR(AVERAGEIF(D31:D50,"<>0"),0) -> 4.05e-11 | E51: 0 | F51: 0 | G51: =IFERROR(AVERAGEIF(G31:G50,"<>0"),0) -> 0 | H51: 0 | I51: 0 | J51: 0 | K51: 5.183572432e-10 | L51: 0 | M51: 0 | N51: 66939.39002 | O51: 0
B69: * Only the share of the RE potential that can be directly consumed or stored in the battery is actually generated, the surplus potential is curtailed and not generated ** The Diesel genset could generate a surplus that is not consumed (due to the lower load limit of the genset) and dumped through a ballast load
AE73: Other total | AG73: Project duration

Sheet Scenario Results Solar
BR1: 0 | BS1: 0 | BT1: 51.07142857 | BU1: 102.1428571 | BV1: 153.2142857 | BW1: 204.2857143 | BX1: 255.3571429 | BY1: 306.4285714 | BZ1: 357.5 | CA1: 408.5714286 | CB1: 127.4625 | CC1: 510.7142857
B2: Average LCOE & RE-Share | C2: PV-Size (new)
B3: Battery-Capacity | C3: =IF('Input Solar'!$D$117=Background!$M$1,'Input Solar'!$D$121*'Calc Solar'!$B$2,'Input Solar'!$F$121) -> 0 | D3: =IF('Input Solar'!$D$117=Background!$M$1,'Input Solar'!$D$122*'Calc Solar'!$B$2,'Input Solar'!$F$122) -> 0 | E3: =IF('Input Solar'!$D$117=Background!$M$1,'Input Solar'!$D$123*'Calc Solar'!$B$2,'Input Solar'!$F$123) -> 0 | F3: =IF('Input Solar'!$D$117=Background!$M$1,'Input Solar'!$D$124*'Calc Solar'!$B$2,'Input Solar'!$F$124) -> 0 | G3: =IF('Input Solar'!$D$117=Background!$M$1,'Input Solar'!$D$125*'Calc Solar'!$B$2,'Input Solar'!$F$125) -> 0 | H3: =IF('Input Solar'!$D$117=Background!$M$1,'Input Solar'!$D$126*'Calc Solar'!$B$2,'Input Solar'!$F$126) -> 0 | I3: =IF('Input Solar'!$D$117=Background!$M$1,'Input Solar'!$D$127*'Calc Solar'!$B$2,'Input Solar'!$F$127) -> 0 | J3: =IF('Input Solar'!$D$117=Background!$M$1,'Input Solar'!$D$128*'Calc Solar'!$B$2,'Input Solar'!$F$128) -> 0 | K3: =IF('Input Solar'!$D$117=Background!$M$1,'Input Solar'!$D$129*'Calc Solar'!$B$2,'Input Solar'!$F$129) -> 0 | L3: =IF('Input Solar'!$D$117=Background!$M$1,'Input Solar'!$D$130*'Calc Solar'!$B$2,'Input Solar'!$F$130) -> 0 | M3: =IF('Input Solar'!$D$117=Background!$M$1,'Input Solar'!$D$131*'Calc Solar'!$B$2,'Input Solar'!$F$131) -> 0
B4: =IF('Input Solar'!$D$117=Background!$M$1,'Input Solar'!$E121*'Calc Solar'!$B$3/168,'Input Solar'!$G121) -> 0
B6: =IF('Input Solar'!$D$117=Background!$M$1,'Input Solar'!$E122*'Calc Solar'!$B$3/168,'Input Solar'!$G122) -> 0
B8: =IF('Input Solar'!$D$117=Background!$M$1,'Input Solar'!$E123*'Calc Solar'!$B$3/168,'Input Solar'!$G123) -> 0
B10: =IF('Input Solar'!$D$117=Background!$M$1,'Input Solar'!$E124*'Calc Solar'!$B$3/168,'Input Solar'!$G124) -> 0
B12: =IF('Input Solar'!$D$117=Background!$M$1,'Input Solar'!$E125*'Calc Solar'!$B$3/168,'Input Solar'!$G125) -> 0
B14: =IF('Input Solar'!$D$117=Background!$M$1,'Input Solar'!$E126*'Calc Solar'!$B$3/168,'Input Solar'!$G126) -> 0
B16: =IF('Input Solar'!$D$117=Background!$M$1,'Input Solar'!$E127*'Calc Solar'!$B$3/168,'Input Solar'!$G127) -> 0
B18: =IF('Input Solar'!$D$117=Background!$M$1,'Input Solar'!$E128*'Calc Solar'!$B$3/168,'Input Solar'!$G128) -> 0
B20: =IF('Input Solar'!$D$117=Background!$M$1,'Input Solar'!$E129*'Calc Solar'!$B$3/168,'Input Solar'!$G129) -> 0
B22: =IF('Input Solar'!$D$117=Background!$M$1,'Input Solar'!$E130*'Calc Solar'!$B$3/168,'Input Solar'!$G130) -> 0
B24: =IF('Input Solar'!$D$117=Background!$M$1,'Input Solar'!$E131*'Calc Solar'!$B$3/168,'Input Solar'!$G131) -> 0
B27: LCOE [PHP/kWh] | C27: PV-Size (new)
B28: Battery-Capacity | C28: =IF('Input Solar'!$D$117=Background!$M$1,'Input Solar'!$D$121*'Calc Solar'!$B$2,'Input Solar'!$F$121) -> 0 | D28: =IF('Input Solar'!$D$117=Background!$M$1,'Input Solar'!$D$122*'Calc Solar'!$B$2,'Input Solar'!$F$122) -> 0 | E28: =IF('Input Solar'!$D$117=Background!$M$1,'Input Solar'!$D$123*'Calc Solar'!$B$2,'Input Solar'!$F$123) -> 0 | F28: =IF('Input Solar'!$D$117=Background!$M$1,'Input Solar'!$D$124*'Calc Solar'!$B$2,'Input Solar'!$F$124) -> 0 | G28: =IF('Input Solar'!$D$117=Background!$M$1,'Input Solar'!$D$125*'Calc Solar'!$B$2,'Input Solar'!$F$125) -> 0 | H28: =IF('Input Solar'!$D$117=Background!$M$1,'Input Solar'!$D$126*'Calc Solar'!$B$2,'Input Solar'!$F$126) -> 0 | I28: =IF('Input Solar'!$D$117=Background!$M$1,'Input Solar'!$D$127*'Calc Solar'!$B$2,'Input Solar'!$F$127) -> 0 | J28: =IF('Input Solar'!$D$117=Background!$M$1,'Input Solar'!$D$128*'Calc Solar'!$B$2,'Input Solar'!$F$128) -> 0 | K28: =IF('Input Solar'!$D$117=Background!$M$1,'Input Solar'!$D$129*'Calc Solar'!$B$2,'Input Solar'!$F$129) -> 0 | L28: =IF('Input Solar'!$D$117=Background!$M$1,'Input Solar'!$D$130*'Calc Solar'!$B$2,'Input Solar'!$F$130) -> 0 | M28: =IF('Input Solar'!$D$117=Background!$M$1,'Input Solar'!$D$131*'Calc Solar'!$B$2,'Input Solar'!$F$131) -> 0
B29: =IF('Input Solar'!$D$117=Background!$M$1,'Input Solar'!$E121*'Calc Solar'!$B$3/168,'Input Solar'!$G121) -> 0
B30: =IF('Input Solar'!$D$117=Background!$M$1,'Input Solar'!$E122*'Calc Solar'!$B$3/168,'Input Solar'!$G122) -> 0
B31: =IF('Input Solar'!$D$117=Background!$M$1,'Input Solar'!$E123*'Calc Solar'!$B$3/168,'Input Solar'!$G123) -> 0
B32: =IF('Input Solar'!$D$117=Background!$M$1,'Input Solar'!$E124*'Calc Solar'!$B$3/168,'Input Solar'!$G124) -> 0
B33: =IF('Input Solar'!$D$117=Background!$M$1,'Input Solar'!$E125*'Calc Solar'!$B$3/168,'Input Solar'!$G125) -> 0
B34: =IF('Input Solar'!$D$117=Background!$M$1,'Input Solar'!$E126*'Calc Solar'!$B$3/168,'Input Solar'!$G126) -> 0
B35: =IF('Input Solar'!$D$117=Background!$M$1,'Input Solar'!$E127*'Calc Solar'!$B$3/168,'Input Solar'!$G127) -> 0
B36: =IF('Input Solar'!$D$117=Background!$M$1,'Input Solar'!$E128*'Calc Solar'!$B$3/168,'Input Solar'!$G128) -> 0
B37: =IF('Input Solar'!$D$117=Background!$M$1,'Input Solar'!$E129*'Calc Solar'!$B$3/168,'Input Solar'!$G129) -> 0
B38: =IF('Input Solar'!$D$117=Background!$M$1,'Input Solar'!$E130*'Calc Solar'!$B$3/168,'Input Solar'!$G130) -> 0
B39: =IF('Input Solar'!$D$117=Background!$M$1,'Input Solar'!$E131*'Calc Solar'!$B$3/168,'Input Solar'!$G131) -> 0
B41: RE-Share | C41: PV-Size (new)
B42: Battery-Capacity | C42: =IF('Input Solar'!$D$117=Background!$M$1,'Input Solar'!$D$121*'Calc Solar'!$B$2,'Input Solar'!$F$121) -> 0 | D42: =IF('Input Solar'!$D$117=Background!$M$1,'Input Solar'!$D$122*'Calc Solar'!$B$2,'Input Solar'!$F$122) -> 0 | E42: =IF('Input Solar'!$D$117=Background!$M$1,'Input Solar'!$D$123*'Calc Solar'!$B$2,'Input Solar'!$F$123) -> 0 | F42: =IF('Input Solar'!$D$117=Background!$M$1,'Input Solar'!$D$124*'Calc Solar'!$B$2,'Input Solar'!$F$124) -> 0 | G42: =IF('Input Solar'!$D$117=Background!$M$1,'Input Solar'!$D$125*'Calc Solar'!$B$2,'Input Solar'!$F$125) -> 0 | H42: =IF('Input Solar'!$D$117=Background!$M$1,'Input Solar'!$D$126*'Calc Solar'!$B$2,'Input Solar'!$F$126) -> 0 | I42: =IF('Input Solar'!$D$117=Background!$M$1,'Input Solar'!$D$127*'Calc Solar'!$B$2,'Input Solar'!$F$127) -> 0 | J42: =IF('Input Solar'!$D$117=Background!$M$1,'Input Solar'!$D$128*'Calc Solar'!$B$2,'Input Solar'!$F$128) -> 0 | K42: =IF('Input Solar'!$D$117=Background!$M$1,'Input Solar'!$D$129*'Calc Solar'!$B$2,'Input Solar'!$F$129) -> 0 | L42: =IF('Input Solar'!$D$117=Background!$M$1,'Input Solar'!$D$130*'Calc Solar'!$B$2,'Input Solar'!$F$130) -> 0 | M42: =IF('Input Solar'!$D$117=Background!$M$1,'Input Solar'!$D$131*'Calc Solar'!$B$2,'Input Solar'!$F$131) -> 0
B43: =IF('Input Solar'!$D$117=Background!$M$1,'Input Solar'!$E$121*'Calc Solar'!$B$3/168,'Input Solar'!$G$121) -> 0
B44: =IF('Input Solar'!$D$117=Background!$M$1,'Input Solar'!$E122*'Calc Solar'!$B$3/168,'Input Solar'!$G122) -> 0
B45: =IF('Input Solar'!$D$117=Background!$M$1,'Input Solar'!$E123*'Calc Solar'!$B$3/168,'Input Solar'!$G123) -> 0
B46: =IF('Input Solar'!$D$117=Background!$M$1,'Input Solar'!$E124*'Calc Solar'!$B$3/168,'Input Solar'!$G124) -> 0
B47: =IF('Input Solar'!$D$117=Background!$M$1,'Input Solar'!$E125*'Calc Solar'!$B$3/168,'Input Solar'!$G125) -> 0
B48: =IF('Input Solar'!$D$117=Background!$M$1,'Input Solar'!$E126*'Calc Solar'!$B$3/168,'Input Solar'!$G126) -> 0
B49: =IF('Input Solar'!$D$117=Background!$M$1,'Input Solar'!$E127*'Calc Solar'!$B$3/168,'Input Solar'!$G127) -> 0
B50: =IF('Input Solar'!$D$117=Background!$M$1,'Input Solar'!$E128*'Calc Solar'!$B$3/168,'Input Solar'!$G128) -> 0
B51: =IF('Input Solar'!$D$117=Background!$M$1,'Input Solar'!$E129*'Calc Solar'!$B$3/168,'Input Solar'!$G129) -> 0
B52: =IF('Input Solar'!$D$117=Background!$M$1,'Input Solar'!$E130*'Calc Solar'!$B$3/168,'Input Solar'!$G130) -> 0
B53: =IF('Input Solar'!$D$117=Background!$M$1,'Input Solar'!$E131*'Calc Solar'!$B$3/168,'Input Solar'!$G131) -> 0

Sheet Calc Solar (hidden)
A1: Framework | C1: Caution when shifting cells, VBA uses cells in these columns | F1: Total Load | G1: Load plus losses | H1: kWh/kWp (Luzon) | I1: kWh/kWp (Visayas) | J1: kWh/kWp (Mindanao) | K1: kWh/kWP (individual) | L1: kWh/kWp | M1: PV generation potential | N1: Demand minus PV | O1: Excess | P1: C-rate constraint ch. | Q1: potential charge | R1: Residual | S1: C-rate constraint dch. | T1: pot. Discharge | U1: pot. Discharge - losses | V1: Diesel requirement | W1: RT requirement | X1: RT of Batt | Y1: RT req. minus Batt | Z1: Diesel req. total | AA1: Diesel generation | AB1: Gen Efficiency | AC1: L/kwh | AD1: Gen Consumption [L] | AE1: Surplus/shortage | AF1: C-rate check ch. | AG1: SOC Charge | AH1: C-rate check disch. | AI1: SOC Discharge | AJ1: Battery Discharge | AK1: Battery Charge | AL1: Real SoC | AM1: Initial Batt. Energy | AN1: unmet load | AO1: PV used | AP1: PV battcharge | AQ1: Diesel direct consumption | AR1: Diesel surplus | AS1: Diesel battcharge | AT1: Diesel discharged | AU1: Diesel excess | AV1: Diesel electricity used
A2: Peak load | B2: =MAX(F3:F170) -> 0 | E2: Hours | AJ2: (pos. for Diagram) | AK2: (neg. for diagram) | AL2: =MIN(B12+(AM2/B8),0.7) -> 0.2 | AM2: =MAX(AM6-AM8,0)*B10 -> 0 | AT2: =MIN(-SUM(AS3:AS170),SUM(AJ3:AJ171)) -> 0
A3: Demand per week | B3: =SUM(F3:F170) -> 0 | E3: 1 | F3: ='Existing Load'!J7 -> 0 | G3: =F3*(1+$B$4) -> 0 | H3: 0 | I3: 0 | J3: 0 | K3: =IF('Input Solar'!$D$18=Background!$X$2,'Calc Solar'!H3*$H$173,IF('Input Solar'!$D$18=Background!$X$3,'Calc Solar'!I3*$I$173,'Calc Solar'!J3*$J$173)) -> 0 | L3: =IF('Input Solar'!$D$20="Default",IF('Input Solar'!$D$18=Background!$X$2,'Calc Solar'!H3,IF('Input Solar'!$D$18=Background!$X$3,'Calc Solar'!I3,'Calc Solar'!J3)),K3) -> 0 | M3: =L3*$B$7 -> 0 | N3: =G3-M3 -> 0 | O3: =MIN(N3,0) -> 0 | P3: =MAX(O3*$B$10,-1*$B$8*$B$9*$B$10) -> 0 | Q3: =MAX(P3,-(1-AL2)*$B$8) -> 0 | R3: =MAX(N3,0) -> 0 | S3: =MIN(R3/$B$11,$B$8*$B$9/$B$11) -> 0 | T3: =MAX(MIN(S3,(AL2-$B$12)*$B$8),0) -> 0 | U3: =T3*$B$11 -> 0 | V3: =ROUND(MAX(0,N3-U3),5) -> 0 | W3: =G3*$B$14 -> 0 | X3: =MIN($B$9*$B$8,(AL2-$B$12)*$B$8*$B$11) -> 0 | Y3: =MAX(0,W3-X3) -> 0 | Z3: =MAX(V3,Y3) -> 0 | AA3: =IF(Z3<=0,0,MIN(MAX(Z3,$D$107),$D$108)) -> 0 | AB3: =IF(AA3=0,0,MIN((AA3/$D$109)/(($D$113+$D$114*(AA3/$D$109)))/$D$115,$D$125)) -> 0 | AC3: =IF(AB3>0,Background!$M$22/AB3,0) -> 0 | AD3: =AC3*AA3 -> 0 | AE3: =AA3+M3-G3 -> 0 | AF3: =IF(AE3>0,MIN(AE3*$B$10,$B$8*$B$9*$B$10),0) -> 0 | AG3: =MAX(0,MIN(AF3/$B$8,1-AL2)) -> 0 | AH3: =IF(AE3<0,MAX(AE3/$B$11,-$B$8*$B$9/$B$11),0) -> 0 | AI3: =MIN(0,MAX(AH3/$B$8,-1*(AL2-$B$12))) -> 0 | AJ3: =AI3*-$B$8*$B$11 -> 0 | AK3: =AG3*-$B$8 -> 0 | AL3: =MIN(1,AL2+AI3+AG3) -> 0.2 | AM3: initial Batt. used | AN3: =MAX(G3-M3-AA3-AJ3,0) -> 0 | AO3: =MAX(G3-AA3-AN3-AJ3,0) -> 0 | AP3: =MAX(AK3,-1*(M3-AO3)) -> 0 | AQ3: =G3-AO3-AJ3-AN3 -> 0 | AR3: =AA3-AQ3 -> 0 | AS3: =MAX(AK3-AP3,-1*AR3) -> 0 | AU3: =-1*(AR3+AS3) -> 0 | AV3: =AQ3-AS3 -> 0
A4: Losses | B4: =IF('Input Solar'!D64="Default",'Input Solar'!D70,'Input Solar'!E70) -> 0.05 | E4: 2 | F4: ='Existing Load'!J8 -> 0 | G4: =F4*(1+$B$4) -> 0 | H4: 0 | I4: 0 | J4: 0 | K4: =IF('Input Solar'!$D$18=Background!$X$2,'Calc Solar'!H4*$H$173,IF('Input Solar'!$D$18=Background!$X$3,'Calc Solar'!I4*$I$173,'Calc Solar'!J4*$J$173)) -> 0 | L4: =IF('Input Solar'!$D$20="Default",IF('Input Solar'!$D$18=Background!$X$2,'Calc Solar'!H4,IF('Input Solar'!$D$18=Background!$X$3,'Calc Solar'!I4,'Calc Solar'!J4)),K4) -> 0 | M4: =L4*$B$7 -> 0 | N4: =G4-M4 -> 0 | O4: =MIN(N4,0) -> 0 | P4: =MAX(O4*$B$10,-1*$B$8*$B$9*$B$10) -> 0 | Q4: =MAX(P4,-(1-AL3)*$B$8) -> 0 | R4: =MAX(N4,0) -> 0 | S4: =MIN(R4/$B$11,$B$8*$B$9/$B$11) -> 0 | T4: =MAX(MIN(S4,(AL3-$B$12)*$B$8),0) -> 0 | U4: =T4*$B$11 -> 0 | V4: =ROUND(MAX(0,N4-U4),5) -> 0 | W4: =G4*$B$14 -> 0 | X4: =MIN($B$9*$B$8,(AL3-$B$12)*$B$8*$B$11) -> 0 | Y4: =MAX(0,W4-X4) -> 0 | Z4: =MAX(V4,Y4) -> 0 | AA4: =IF(Z4<=0,0,MIN(MAX(Z4,$D$107),$D$108)) -> 0 | AB4: =IF(AA4=0,0,MIN((AA4/$D$109)/(($D$113+$D$114*(AA4/$D$109)))/$D$115,$D$125)) -> 0 | AC4: =IF(AB4>0,Background!$M$22/AB4,0) -> 0 | AD4: =AC4*AA4 -> 0 | AE4: =AA4+M4-G4 -> 0 | AF4: =IF(AE4>0,MIN(AE4*$B$10,$B$8*$B$9*$B$10),0) -> 0 | AG4: =MAX(0,MIN(AF4/$B$8,1-AL3)) -> 0 | AH4: =IF(AE4<0,MAX(AE4/$B$11,-$B$8*$B$9/$B$11),0) -> 0 | AI4: =MIN(0,MAX(AH4/$B$8,-1*(AL3-$B$12))) -> 0 | AJ4: =AI4*-$B$8*$B$11 -> 0 | AK4: =AG4*-$B$8 -> 0 | AL4: =MIN(1,AL3+AI4+AG4) -> 0.2 | AM4: =MAX(0,SUM(AJ3:AJ170)-(-1*SUM(AK3:AK170))) -> 0 | AN4: =MAX(G4-M4-AA4-AJ4,0) -> 0 | AO4: =MAX(G4-AA4-AN4-AJ4,0) -> 0 | AP4: =MAX(AK4,-1*(M4-AO4)) -> 0 | AQ4: =G4-AO4-AJ4-AN4 -> 0 | AR4: =AA4-AQ4 -> 0 | AS4: =MAX(AK4-AP4,-1*AR4) -> 0 | AU4: =-1*(AR4+AS4) -> 0 | AV4: =AQ4-AS4 -> 0
A5: Caution when shifting cells, VBA uses cells in these columns | E5: 3 | F5: ='Existing Load'!J9 -> 0 | G5: 0 | H5: 0 | I5: 0 | J5: 0 | K5: =IF('Input Solar'!$D$18=Background!$X$2,'Calc Solar'!H5*$H$173,IF('Input Solar'!$D$18=Background!$X$3,'Calc Solar'!I5*$I$173,'Calc Solar'!J5*$J$173)) -> 0 | L5: =IF('Input Solar'!$D$20="Default",IF('Input Solar'!$D$18=Background!$X$2,'Calc Solar'!H5,IF('Input Solar'!$D$18=Background!$X$3,'Calc Solar'!I5,'Calc Solar'!J5)),K5) -> 0 | M5: 0 | N5: 0 | O5: 0 | P5: 0 | Q5: 0 | R5: 0 | S5: 0 | T5: 0 | U5: 0 | V5: 0 | W5: 0 | X5: 0 | Y5: 0 | Z5: 0 | AA5: 0 | AB5: =IF(AA5=0,0,MIN((AA5/$D$109)/(($D$113+$D$114*(AA5/$D$109)))/$D$115,$D$125)) -> 0 | AC5: =IF(AB5>0,Background!$M$22/AB5,0) -> 0 | AD5: 0 | AE5: 0 | AF5: 0 | AG5: 0 | AH5: 0 | AI5: 0 | AJ5: 0 | AK5: 0 | AL5: 0.2 | AM5: RE excess | AN5: 0 | AO5: =MAX(G5-AA5-AN5-AJ5,0) -> 0 | AP5: 0 | AQ5: 0 | AR5: 0 | AS5: 0 | AU5: 0 | AV5: =AQ5-AS5 -> 0
A6: System parameters | E6: 4 | F6: ='Existing Load'!J10 -> 0 | G6: =F6*(1+$B$4) -> 0 | H6: 0 | I6: 0 | J6: 0 | K6: =IF('Input Solar'!$D$18=Background!$X$2,'Calc Solar'!H6*$H$173,IF('Input Solar'!$D$18=Background!$X$3,'Calc Solar'!I6*$I$173,'Calc Solar'!J6*$J$173)) -> 0 | L6: =IF('Input Solar'!$D$20="Default",IF('Input Solar'!$D$18=Background!$X$2,'Calc Solar'!H6,IF('Input Solar'!$D$18=Background!$X$3,'Calc Solar'!I6,'Calc Solar'!J6)),K6) -> 0 | M6: 0 | N6: 0 | O6: 0 | P6: 0 | Q6: 0 | R6: 0 | S6: 0 | T6: 0 | U6: 0 | V6: 0 | W6: 0 | X6: 0 | Y6: 0 | Z6: 0 | AA6: 0 | AB6: =IF(AA6=0,0,MIN((AA6/$D$109)/(($D$113+$D$114*(AA6/$D$109)))/$D$115,$D$125)) -> 0 | AC6: =IF(AB6>0,Background!$M$22/AB6,0) -> 0 | AD6: 0 | AE6: 0 | AF6: 0 | AG6: 0 | AH6: 0 | AI6: 0 | AJ6: 0 | AK6: 0 | AL6: 0.2 | AM6: =-1*SUM(O3:O170) -> 0 | AN6: 0 | AO6: 0 | AP6: 0 | AQ6: 0 | AR6: 0 | AS6: 0 | AU6: 0 | AV6: =AQ6-AS6 -> 0
A7: PV capacity | B7: =IF(Background!U2,Background!U3,IF('Input Solar'!$D$11="Default",'Input Solar'!$D$16,'Input Solar'!$E$16)) -> 0 | E7: 5 | F7: ='Existing Load'!J11 -> 0 | G7: 0 | H7: 0 | I7: 0 | J7: 0 | K7: =IF('Input Solar'!$D$18=Background!$X$2,'Calc Solar'!H7*$H$173,IF('Input Solar'!$D$18=Background!$X$3,'Calc Solar'!I7*$I$173,'Calc Solar'!J7*$J$173)) -> 0 | L7: =IF('Input Solar'!$D$20="Default",IF('Input Solar'!$D$18=Background!$X$2,'Calc Solar'!H7,IF('Input Solar'!$D$18=Background!$X$3,'Calc Solar'!I7,'Calc Solar'!J7)),K7) -> 0 | M7: 0 | N7: 0 | O7: 0 | P7: 0 | Q7: 0 | R7: 0 | S7: 0 | T7: 0 | U7: 0 | V7: 0 | W7: 0 | X7: 0 | Y7: 0 | Z7: 0 | AA7: 0 | AB7: =IF(AA7=0,0,MIN((AA7/$D$109)/(($D$113+$D$114*(AA7/$D$109)))/$D$115,$D$125)) -> 0 | AC7: =IF(AB7>0,Background!$M$22/AB7,0) -> 0 | AD7: 0 | AE7: 0 | AF7: 0 | AG7: 0 | AH7: 0 | AI7: 0 | AJ7: 0 | AK7: 0 | AL7: 0.2 | AM7: Residual | AN7: 0 | AO7: 0 | AP7: 0 | AQ7: 0 | AR7: 0 | AS7: 0 | AU7: 0 | AV7: 0
A8: Battery capacity | B8: =MAX(IF(Background!U2,Background!U4,IF('Input Solar'!$D$58="Default",'Input Solar'!$D$60,'Input Solar'!$E$60)),0.0000000000001) -> 1e-13 | E8: 6 | F8: ='Existing Load'!J12 -> 0 | G8: 0 | H8: 0 | I8: 0 | J8: 0 | K8: =IF('Input Solar'!$D$18=Background!$X$2,'Calc Solar'!H8*$H$173,IF('Input Solar'!$D$18=Background!$X$3,'Calc Solar'!I8*$I$173,'Calc Solar'!J8*$J$173)) -> 0 | L8: =IF('Input Solar'!$D$20="Default",IF('Input Solar'!$D$18=Background!$X$2,'Calc Solar'!H8,IF('Input Solar'!$D$18=Background!$X$3,'Calc Solar'!I8,'Calc Solar'!J8)),K8) -> 0 | M8: 0 | N8: 0 | O8: 0 | P8: 0 | Q8: 0 | R8: 0 | S8: 0 | T8: 0 | U8: 0 | V8: 0 | W8: 0 | X8: 0 | Y8: 0 | Z8: 0 | AA8: 0 | AB8: 0 | AC8: =IF(AB8>0,Background!$M$22/AB8,0) -> 0 | AD8: 0 | AE8: 0 | AF8: 0 | AG8: 0 | AH8: 0 | AI8: 0 | AJ8: 0 | AK8: 0 | AL8: 0.2 | AM8: =SUM(R3:R170) -> 0 | AN8: 0 | AO8: 0 | AP8: 0 | AQ8: 0 | AR8: 0 | AS8: 0 | AU8: 0 | AV8: 0
A9: C-rate 1: | B9: =IF('Input Solar'!D46<>"Individual",'Input Solar'!D52,'Input Solar'!E52) -> 1 | E9: 7 | F9: ='Existing Load'!J13 -> 0 | G9: =F9*(1+$B$4) -> 0 | H9: 0.02204130119 | I9: 0.06907030188 | J9: 0.08119854264 | K9: =IF('Input Solar'!$D$18=Background!$X$2,'Calc Solar'!H9*$H$173,IF('Input Solar'!$D$18=Background!$X$3,'Calc Solar'!I9*$I$173,'Calc Solar'!J9*$J$173)) -> 0 | L9: =IF('Input Solar'!$D$20="Default",IF('Input Solar'!$D$18=Background!$X$2,'Calc Solar'!H9,IF('Input Solar'!$D$18=Background!$X$3,'Calc Solar'!I9,'Calc Solar'!J9)),K9) -> 0.02204130119 | M9: 0 | N9: 0 | O9: 0 | P9: 0 | Q9: 0 | R9: 0 | S9: 0 | T9: 0 | U9: 0 | V9: 0 | W9: 0 | X9: 0 | Y9: 0 | Z9: 0 | AA9: 0 | AB9: 0 | AC9: =IF(AB9>0,Background!$M$22/AB9,0) -> 0 | AD9: 0 | AE9: 0 | AF9: 0 | AG9: 0 | AH9: 0 | AI9: 0 | AJ9: 0 | AK9: 0 | AL9: 0.2 | AN9: 0 | AO9: 0 | AP9: 0 | AQ9: 0 | AR9: 0 | AS9: 0 | AU9: 0 | AV9: 0
A10: Charge efficiency | B10: =IF('Input Solar'!D46<>"Individual",'Input Solar'!D54,'Input Solar'!E54) -> 0.9 | E10: 8 | F10: ='Existing Load'!J14 -> 0 | G10: 0 | H10: 0.1827715836 | I10: 0.2185324631 | J10: 0.1804460136 | K10: =IF('Input Solar'!$D$18=Background!$X$2,'Calc Solar'!H10*$H$173,IF('Input Solar'!$D$18=Background!$X$3,'Calc Solar'!I10*$I$173,'Calc Solar'!J10*$J$173)) -> 0 | L10: =IF('Input Solar'!$D$20="Default",IF('Input Solar'!$D$18=Background!$X$2,'Calc Solar'!H10,IF('Input Solar'!$D$18=Background!$X$3,'Calc Solar'!I10,'Calc Solar'!J10)),K10) -> 0.1827715836 | M10: 0 | N10: 0 | O10: 0 | P10: 0 | Q10: 0 | R10: 0 | S10: 0 | T10: 0 | U10: 0 | V10: 0 | W10: 0 | X10: 0 | Y10: 0 | Z10: 0 | AA10: 0 | AB10: 0 | AC10: =IF(AB10>0,Background!$M$22/AB10,0) -> 0 | AD10: 0 | AE10: =AA10+M10-G10 -> 0 | AF10: 0 | AG10: 0 | AH10: 0 | AI10: 0 | AJ10: 0 | AK10: 0 | AL10: 0.2 | AN10: 0 | AO10: =MAX(G10-AA10-AN10-AJ10,0) -> 0 | AP10: 0 | AQ10: 0 | AR10: 0 | AS10: 0 | AU10: 0 | AV10: 0
A11: Discharge efficiency | B11: =IF('Input Solar'!D46<>"Individual",'Input Solar'!D55,'Input Solar'!E55) -> 0.9 | E11: 9 | F11: ='Existing Load'!J15 -> 0 | G11: 0 | H11: 0.3194359526 | I11: 0.3700385344 | J11: 0.3223982513 | K11: =IF('Input Solar'!$D$18=Background!$X$2,'Calc Solar'!H11*$H$173,IF('Input Solar'!$D$18=Background!$X$3,'Calc Solar'!I11*$I$173,'Calc Solar'!J11*$J$173)) -> 0 | L11: =IF('Input Solar'!$D$20="Default",IF('Input Solar'!$D$18=Background!$X$2,'Calc Solar'!H11,IF('Input Solar'!$D$18=Background!$X$3,'Calc Solar'!I11,'Calc Solar'!J11)),K11) -> 0.3194359526 | M11: 0 | N11: 0 | O11: 0 | P11: =MAX(O11*$B$10,-1*$B$8*$B$9*$B$10) -> 0 | Q11: 0 | R11: 0 | S11: 0 | T11: 0 | U11: 0 | V11: 0 | W11: 0 | X11: 0 | Y11: 0 | Z11: 0 | AA11: 0 | AB11: 0 | AC11: =IF(AB11>0,Background!$M$22/AB11,0) -> 0 | AD11: 0 | AE11: 0 | AF11: 0 | AG11: 0 | AH11: 0 | AI11: 0 | AJ11: 0 | AK11: 0 | AL11: 0.2 | AN11: 0 | AO11: 0 | AP11: 0 | AQ11: 0 | AR11: 0 | AS11: 0 | AU11: 0 | AV11: 0
A12: min SOC | B12: =(1-IF('Input Solar'!D46<>"Individual",'Input Solar'!D53,'Input Solar'!E53)) -> 0.2 | E12: 10 | F12: ='Existing Load'!J16 -> 0 | G12: 0 | H12: 0.3690614556 | I12: 0.4794290403 | J12: 0.4464779373 | K12: =IF('Input Solar'!$D$18=Background!$X$2,'Calc Solar'!H12*$H$173,IF('Input Solar'!$D$18=Background!$X$3,'Calc Solar'!I12*$I$173,'Calc Solar'!J12*$J$173)) -> 0 | L12: =IF('Input Solar'!$D$20="Default",IF('Input Solar'!$D$18=Background!$X$2,'Calc Solar'!H12,IF('Input Solar'!$D$18=Background!$X$3,'Calc Solar'!I12,'Calc Solar'!J12)),K12) -> 0.3690614556 | M12: 0 | N12: 0 | O12: 0 | P12: 0 | Q12: 0 | R12: 0 | S12: 0 | T12: 0 | U12: 0 | V12: 0 | W12: 0 | X12: 0 | Y12: 0 | Z12: 0 | AA12: 0 | AB12: 0 | AC12: =IF(AB12>0,Background!$M$22/AB12,0) -> 0 | AD12: 0 | AE12: 0 | AF12: 0 | AG12: 0 | AH12: 0 | AI12: 0 | AJ12: 0 | AK12: 0 | AL12: 0.2 | AN12: 0 | AO12: 0 | AP12: 0 | AQ12: 0 | AR12: 0 | AS12: 0 | AU12: 0 | AV12: 0
A13: Diesel capacity | B13: =IF('Input Solar'!D38="Default",'Input Solar'!D41,'Input Solar'!E41) -> 0 | E13: 11 | F13: ='Existing Load'!J17 -> 0 | G13: 0 | H13: 0.3400743477 | I13: 0.542267762 | J13: 0.5404036159 | K13: =IF('Input Solar'!$D$18=Background!$X$2,'Calc Solar'!H13*$H$173,IF('Input Solar'!$D$18=Background!$X$3,'Calc Solar'!I13*$I$173,'Calc Solar'!J13*$J$173)) -> 0 | L13: =IF('Input Solar'!$D$20="Default",IF('Input Solar'!$D$18=Background!$X$2,'Calc Solar'!H13,IF('Input Solar'!$D$18=Background!$X$3,'Calc Solar'!I13,'Calc Solar'!J13)),K13) -> 0.3400743477 | M13: 0 | N13: 0 | O13: 0 | P13: 0 | Q13: 0 | R13: 0 | S13: 0 | T13: 0 | U13: 0 | V13: 0 | W13: 0 | X13: =MIN($B$9*$B$8,(AL12-$B$12)*$B$8*$B$11) -> 0 | Y13: 0 | Z13: 0 | AA13: 0 | AB13: 0 | AC13: =IF(AB13>0,Background!$M$22/AB13,0) -> 0 | AD13: 0 | AE13: 0 | AF13: 0 | AG13: 0 | AH13: 0 | AI13: 0 | AJ13: 0 | AK13: 0 | AL13: 0.2 | AN13: 0 | AO13: 0 | AP13: 0 | AQ13: 0 | AR13: 0 | AS13: 0 | AU13: 0 | AV13: 0
A14: Rotating mass | B14: =IF('Input Solar'!D64="Default",'Input Solar'!D71,'Input Solar'!E71) -> 0.4 | E14: 12 | F14: ='Existing Load'!J18 -> 0 | G14: =F14*(1+$B$4) -> 0 | H14: 0.3712007088 | I14: 0.5261863344 | J14: 0.5090854408 | K14: =IF('Input Solar'!$D$18=Background!$X$2,'Calc Solar'!H14*$H$173,IF('Input Solar'!$D$18=Background!$X$3,'Calc Solar'!I14*$I$173,'Calc Solar'!J14*$J$173)) -> 0 | L14: =IF('Input Solar'!$D$20="Default",IF('Input Solar'!$D$18=Background!$X$2,'Calc Solar'!H14,IF('Input Solar'!$D$18=Background!$X$3,'Calc Solar'!I14,'Calc Solar'!J14)),K14) -> 0.3712007088 | M14: 0 | N14: 0 | O14: 0 | P14: 0 | Q14: 0 | R14: 0 | S14: 0 | T14: 0 | U14: 0 | V14: 0 | W14: 0 | X14: 0 | Y14: 0 | Z14: 0 | AA14: 0 | AB14: 0 | AC14: =IF(AB14>0,Background!$M$22/AB14,0) -> 0 | AD14: 0 | AE14: 0 | AF14: 0 | AG14: 0 | AH14: 0 | AI14: 0 | AJ14: 0 | AK14: 0 | AL14: 0.2 | AN14: 0 | AO14: 0 | AP14: 0 | AQ14: 0 | AR14: 0 | AS14: 0 | AU14: 0 | AV14: 0
A15: Distribution losses | B15: =(SUM('Calc Solar'!$G$3:$G$170)-SUM('Calc Solar'!$F$3:$F$170)) -> 0 | E15: 13 | F15: ='Existing Load'!J19 -> 0 | G15: 0 | H15: 0.3705241149 | I15: 0.4668090038 | J15: 0.4350134597 | K15: =IF('Input Solar'!$D$18=Background!$X$2,'Calc Solar'!H15*$H$173,IF('Input Solar'!$D$18=Background!$X$3,'Calc Solar'!I15*$I$173,'Calc Solar'!J15*$J$173)) -> 0 | L15: =IF('Input Solar'!$D$20="Default",IF('Input Solar'!$D$18=Background!$X$2,'Calc Solar'!H15,IF('Input Solar'!$D$18=Background!$X$3,'Calc Solar'!I15,'Calc Solar'!J15)),K15) -> 0.3705241149 | M15: 0 | N15: 0 | O15: 0 | P15: 0 | Q15: 0 | R15: 0 | S15: 0 | T15: 0 | U15: 0 | V15: 0 | W15: 0 | X15: 0 | Y15: 0 | Z15: 0 | AA15: 0 | AB15: 0 | AC15: =IF(AB15>0,Background!$M$22/AB15,0) -> 0 | AD15: 0 | AE15: 0 | AF15: 0 | AG15: 0 | AH15: 0 | AI15: 0 | AJ15: 0 | AK15: 0 | AL15: 0.2 | AN15: 0 | AO15: 0 | AP15: 0 | AQ15: 0 | AR15: 0 | AS15: 0 | AU15: 0 | AV15: 0
A16: PV generation | B16: =SUM(M2:M170) -> 0 | E16: 14 | F16: ='Existing Load'!J20 -> 0 | G16: 0 | H16: 0.3362899831 | I16: 0.3749783065 | J16: 0.3323390083 | K16: =IF('Input Solar'!$D$18=Background!$X$2,'Calc Solar'!H16*$H$173,IF('Input Solar'!$D$18=Background!$X$3,'Calc Solar'!I16*$I$173,'Calc Solar'!J16*$J$173)) -> 0 | L16: =IF('Input Solar'!$D$20="Default",IF('Input Solar'!$D$18=Background!$X$2,'Calc Solar'!H16,IF('Input Solar'!$D$18=Background!$X$3,'Calc Solar'!I16,'Calc Solar'!J16)),K16) -> 0.3362899831 | M16: 0 | N16: 0 | O16: 0 | P16: 0 | Q16: 0 | R16: 0 | S16: 0 | T16: 0 | U16: 0 | V16: 0 | W16: 0 | X16: 0 | Y16: 0 | Z16: 0 | AA16: 0 | AB16: 0 | AC16: =IF(AB16>0,Background!$M$22/AB16,0) -> 0 | AD16: 0 | AE16: 0 | AF16: 0 | AG16: 0 | AH16: 0 | AI16: 0 | AJ16: 0 | AK16: 0 | AL16: 0.2 | AN16: 0 | AO16: 0 | AP16: 0 | AQ16: 0 | AR16: 0 | AS16: 0 | AU16: 0 | AV16: 0
A17: Battery discharge | B17: =SUM(AJ3:AJ170) -> 0 | E17: 15 | F17: ='Existing Load'!J21 -> 0 | G17: 0 | H17: 0.2395294508 | I17: 0.2433206291 | J17: 0.2450150885 | K17: =IF('Input Solar'!$D$18=Background!$X$2,'Calc Solar'!H17*$H$173,IF('Input Solar'!$D$18=Background!$X$3,'Calc Solar'!I17*$I$173,'Calc Solar'!J17*$J$173)) -> 0 | L17: =IF('Input Solar'!$D$20="Default",IF('Input Solar'!$D$18=Background!$X$2,'Calc Solar'!H17,IF('Input Solar'!$D$18=Background!$X$3,'Calc Solar'!I17,'Calc Solar'!J17)),K17) -> 0.2395294508 | M17: 0 | N17: 0 | O17: 0 | P17: 0 | Q17: 0 | R17: 0 | S17: 0 | T17: 0 | U17: 0 | V17: 0 | W17: 0 | X17: 0 | Y17: 0 | Z17: 0 | AA17: 0 | AB17: 0 | AC17: =IF(AB17>0,Background!$M$22/AB17,0) -> 0 | AD17: 0 | AE17: 0 | AF17: 0 | AG17: 0 | AH17: 0 | AI17: 0 | AJ17: 0 | AK17: 0 | AL17: 0.2 | AN17: 0 | AO17: 0 | AP17: 0 | AQ17: 0 | AR17: 0 | AS17: 0 | AU17: 0 | AV17: 0
A18: Diesel generation | B18: =SUM(AA3:AA170) -> 0 | E18: 16 | F18: ='Existing Load'!J22 -> 0 | G18: 0 | H18: 0.1368709962 | I18: 0.1213294542 | J18: 0.1502693412 | K18: =IF('Input Solar'!$D$18=Background!$X$2,'Calc Solar'!H18*$H$173,IF('Input Solar'!$D$18=Background!$X$3,'Calc Solar'!I18*$I$173,'Calc Solar'!J18*$J$173)) -> 0 | L18: =IF('Input Solar'!$D$20="Default",IF('Input Solar'!$D$18=Background!$X$2,'Calc Solar'!H18,IF('Input Solar'!$D$18=Background!$X$3,'Calc Solar'!I18,'Calc Solar'!J18)),K18) -> 0.1368709962 | M18: 0 | N18: 0 | O18: 0 | P18: 0 | Q18: 0 | R18: 0 | S18: =MIN(R18/$B$11,$B$8*$B$9/$B$11) -> 0 | T18: =MAX(MIN(S18,(AL17-$B$12)*$B$8),0) -> 0 | U18: =T18*$B$11 -> 0 | V18: 0 | W18: 0 | X18: 0 | Y18: 0 | Z18: 0 | AA18: 0 | AB18: 0 | AC18: =IF(AB18>0,Background!$M$22/AB18,0) -> 0 | AD18: 0 | AE18: 0 | AF18: 0 | AG18: 0 | AH18: 0 | AI18: 0 | AJ18: 0 | AK18: 0 | AL18: 0.2 | AN18: 0 | AO18: 0 | AP18: 0 | AQ18: 0 | AR18: 0 | AS18: 0 | AU18: 0 | AV18: 0
A19: Diesel fuel l/week | B19: =SUM(AD3:AD170) -> 0 | E19: 17 | F19: ='Existing Load'!J23 -> 0 | G19: 0 | H19: 0.04578549045 | I19: 0.03190881903 | J19: 0.06157304257 | K19: =IF('Input Solar'!$D$18=Background!$X$2,'Calc Solar'!H19*$H$173,IF('Input Solar'!$D$18=Background!$X$3,'Calc Solar'!I19*$I$173,'Calc Solar'!J19*$J$173)) -> 0 | L19: =IF('Input Solar'!$D$20="Default",IF('Input Solar'!$D$18=Background!$X$2,'Calc Solar'!H19,IF('Input Solar'!$D$18=Background!$X$3,'Calc Solar'!I19,'Calc Solar'!J19)),K19) -> 0.04578549045 | M19: 0 | N19: 0 | O19: 0 | P19: 0 | Q19: 0 | R19: 0 | S19: 0 | T19: 0 | U19: 0 | V19: 0 | W19: 0 | X19: 0 | Y19: 0 | Z19: 0 | AA19: 0 | AB19: 0 | AC19: =IF(AB19>0,Background!$M$22/AB19,0) -> 0 | AD19: 0 | AE19: 0 | AF19: 0 | AG19: 0 | AH19: 0 | AI19: 0 | AJ19: 0 | AK19: 0 | AL19: 0.2 | AN19: 0 | AO19: 0 | AP19: 0 | AQ19: 0 | AR19: 0 | AS19: 0 | AU19: 0 | AV19: 0
A20: Diesel fuel l/year | B20: =B19/168*8760 -> 0 | E20: 18 | F20: ='Existing Load'!J24 -> 0 | G20: 0 | H20: 0 | I20: 0 | J20: 0.001205943941 | K20: =IF('Input Solar'!$D$18=Background!$X$2,'Calc Solar'!H20*$H$173,IF('Input Solar'!$D$18=Background!$X$3,'Calc Solar'!I20*$I$173,'Calc Solar'!J20*$J$173)) -> 0 | L20: =IF('Input Solar'!$D$20="Default",IF('Input Solar'!$D$18=Background!$X$2,'Calc Solar'!H20,IF('Input Solar'!$D$18=Background!$X$3,'Calc Solar'!I20,'Calc Solar'!J20)),K20) -> 0 | M20: 0 | N20: 0 | O20: 0 | P20: 0 | Q20: 0 | R20: 0 | S20: 0 | T20: 0 | U20: 0 | V20: 0 | W20: 0 | X20: 0 | Y20: 0 | Z20: 0 | AA20: 0 | AB20: 0 | AC20: =IF(AB20>0,Background!$M$22/AB20,0) -> 0 | AD20: 0 | AE20: 0 | AF20: 0 | AG20: 0 | AH20: 0 | AI20: 0 | AJ20: 0 | AK20: 0 | AL20: 0.2 | AN20: 0 | AO20: 0 | AP20: 0 | AQ20: 0 | AR20: 0 | AS20: 0 | AU20: 0 | AV20: 0
A21: PV from batt. | B21: =IF(B18=0,B17,MIN(-1*SUM(AP3:AP170)+AM4,B17)) -> 0 | E21: 19 | F21: ='Existing Load'!J25 -> 0 | G21: 0 | H21: 0 | I21: 0 | J21: 0 | K21: =IF('Input Solar'!$D$18=Background!$X$2,'Calc Solar'!H21*$H$173,IF('Input Solar'!$D$18=Background!$X$3,'Calc Solar'!I21*$I$173,'Calc Solar'!J21*$J$173)) -> 0 | L21: =IF('Input Solar'!$D$20="Default",IF('Input Solar'!$D$18=Background!$X$2,'Calc Solar'!H21,IF('Input Solar'!$D$18=Background!$X$3,'Calc Solar'!I21,'Calc Solar'!J21)),K21) -> 0 | M21: 0 | N21: 0 | O21: 0 | P21: 0 | Q21: 0 | R21: 0 | S21: 0 | T21: 0 | U21: 0 | V21: 0 | W21: 0 | X21: 0 | Y21: 0 | Z21: 0 | AA21: 0 | AB21: =IF(AA21=0,0,MIN((AA21/$D$109)/(($D$113+$D$114*(AA21/$D$109)))/$D$115,$D$125)) -> 0 | AC21: =IF(AB21>0,Background!$M$22/AB21,0) -> 0 | AD21: 0 | AE21: 0 | AF21: 0 | AG21: 0 | AH21: 0 | AI21: 0 | AJ21: 0 | AK21: 0 | AL21: 0.2 | AN21: 0 | AO21: 0 | AP21: 0 | AQ21: 0 | AR21: 0 | AS21: 0 | AU21: 0 | AV21: 0
A22: PV capacity new | B22: =IF(Background!U2,Background!U5,IF('Input Solar'!$D$11="Default",'Input Solar'!$D$15,'Input Solar'!$E$15)) -> 0 | E22: 20 | F22: ='Existing Load'!J26 -> 0 | G22: 0 | H22: 0 | I22: 0 | J22: 0 | K22: =IF('Input Solar'!$D$18=Background!$X$2,'Calc Solar'!H22*$H$173,IF('Input Solar'!$D$18=Background!$X$3,'Calc Solar'!I22*$I$173,'Calc Solar'!J22*$J$173)) -> 0 | L22: =IF('Input Solar'!$D$20="Default",IF('Input Solar'!$D$18=Background!$X$2,'Calc Solar'!H22,IF('Input Solar'!$D$18=Background!$X$3,'Calc Solar'!I22,'Calc Solar'!J22)),K22) -> 0 | M22: 0 | N22: 0 | O22: 0 | P22: 0 | Q22: 0 | R22: 0 | S22: 0 | T22: 0 | U22: 0 | V22: 0 | W22: 0 | X22: 0 | Y22: 0 | Z22: 0 | AA22: 0 | AB22: 0 | AC22: =IF(AB22>0,Background!$M$22/AB22,0) -> 0 | AD22: 0 | AE22: 0 | AF22: 0 | AG22: 0 | AH22: 0 | AI22: 0 | AJ22: 0 | AK22: 0 | AL22: 0.2 | AN22: 0 | AO22: 0 | AP22: 0 | AQ22: 0 | AR22: 0 | AS22: 0 | AU22: 0 | AV22: 0
A23: PV capacity existing eligible | B23: =IF('Input Solar'!$D$11="Default",'Input Solar'!$D$13,'Input Solar'!$E$13) -> 0 | E23: 21 | F23: ='Existing Load'!J27 -> 0 | G23: 0 | H23: 0 | I23: 0 | J23: 0 | K23: =IF('Input Solar'!$D$18=Background!$X$2,'Calc Solar'!H23*$H$173,IF('Input Solar'!$D$18=Background!$X$3,'Calc Solar'!I23*$I$173,'Calc Solar'!J23*$J$173)) -> 0 | L23: =IF('Input Solar'!$D$20="Default",IF('Input Solar'!$D$18=Background!$X$2,'Calc Solar'!H23,IF('Input Solar'!$D$18=Background!$X$3,'Calc Solar'!I23,'Calc Solar'!J23)),K23) -> 0 | M23: 0 | N23: 0 | O23: 0 | P23: 0 | Q23: 0 | R23: 0 | S23: 0 | T23: 0 | U23: 0 | V23: 0 | W23: 0 | X23: 0 | Y23: 0 | Z23: 0 | AA23: 0 | AB23: 0 | AC23: =IF(AB23>0,Background!$M$22/AB23,0) -> 0 | AD23: 0 | AE23: 0 | AF23: 0 | AG23: 0 | AH23: 0 | AI23: 0 | AJ23: 0 | AK23: 0 | AL23: 0.2 | AN23: 0 | AO23: 0 | AP23: 0 | AQ23: 0 | AR23: 0 | AS23: 0 | AU23: 0 | AV23: 0
A24: PV Capex | B24: =IF('Input Solar'!D3="Default",'Input Solar'!D7,'Input Solar'!E7) -> 70000 | E24: 22 | F24: ='Existing Load'!J28 -> 0 | G24: 0 | H24: 0 | I24: 0 | J24: 0 | K24: =IF('Input Solar'!$D$18=Background!$X$2,'Calc Solar'!H24*$H$173,IF('Input Solar'!$D$18=Background!$X$3,'Calc Solar'!I24*$I$173,'Calc Solar'!J24*$J$173)) -> 0 | L24: =IF('Input Solar'!$D$20="Default",IF('Input Solar'!$D$18=Background!$X$2,'Calc Solar'!H24,IF('Input Solar'!$D$18=Background!$X$3,'Calc Solar'!I24,'Calc Solar'!J24)),K24) -> 0 | M24: 0 | N24: 0 | O24: 0 | P24: 0 | Q24: 0 | R24: 0 | S24: 0 | T24: 0 | U24: 0 | V24: 0 | W24: 0 | X24: 0 | Y24: 0 | Z24: 0 | AA24: 0 | AB24: 0 | AC24: =IF(AB24>0,Background!$M$22/AB24,0) -> 0 | AD24: 0 | AE24: 0 | AF24: 0 | AG24: 0 | AH24: 0 | AI24: 0 | AJ24: 0 | AK24: 0 | AL24: 0.2 | AN24: 0 | AO24: 0 | AP24: 0 | AQ24: 0 | AR24: 0 | AS24: 0 | AU24: 0 | AV24: 0
A25: PV OPEX | B25: =IF('Input Solar'!D3="Default",'Input Solar'!D8,'Input Solar'!E8) -> 1400 | E25: 23 | F25: ='Existing Load'!J29 -> 0 | G25: 0 | H25: 0 | I25: 0 | J25: 0 | K25: =IF('Input Solar'!$D$18=Background!$X$2,'Calc Solar'!H25*$H$173,IF('Input Solar'!$D$18=Background!$X$3,'Calc Solar'!I25*$I$173,'Calc Solar'!J25*$J$173)) -> 0 | L25: =IF('Input Solar'!$D$20="Default",IF('Input Solar'!$D$18=Background!$X$2,'Calc Solar'!H25,IF('Input Solar'!$D$18=Background!$X$3,'Calc Solar'!I25,'Calc Solar'!J25)),K25) -> 0 | M25: 0 | N25: 0 | O25: 0 | P25: 0 | Q25: 0 | R25: 0 | S25: 0 | T25: 0 | U25: 0 | V25: 0 | W25: 0 | X25: 0 | Y25: 0 | Z25: 0 | AA25: 0 | AB25: 0 | AC25: =IF(AB25>0,Background!$M$22/AB25,0) -> 0 | AD25: 0 | AE25: 0 | AF25: 0 | AG25: 0 | AH25: 0 | AI25: 0 | AJ25: 0 | AK25: 0 | AL25: 0.2 | AN25: 0 | AO25: 0 | AP25: 0 | AQ25: 0 | AR25: 0 | AS25: 0 | AU25: 0 | AV25: 0
A26: Diesel Capex | B26: =IF('Input Solar'!D26="Default",'Input Solar'!D30,'Input Solar'!E30) -> 30000 | E26: 24 | F26: ='Existing Load'!J30 -> 0 | G26: 0 | H26: 0 | I26: 0 | J26: 0 | K26: =IF('Input Solar'!$D$18=Background!$X$2,'Calc Solar'!H26*$H$173,IF('Input Solar'!$D$18=Background!$X$3,'Calc Solar'!I26*$I$173,'Calc Solar'!J26*$J$173)) -> 0 | L26: =IF('Input Solar'!$D$20="Default",IF('Input Solar'!$D$18=Background!$X$2,'Calc Solar'!H26,IF('Input Solar'!$D$18=Background!$X$3,'Calc Solar'!I26,'Calc Solar'!J26)),K26) -> 0 | M26: 0 | N26: 0 | O26: 0 | P26: 0 | Q26: 0 | R26: 0 | S26: 0 | T26: 0 | U26: 0 | V26: 0 | W26: 0 | X26: 0 | Y26: 0 | Z26: 0 | AA26: 0 | AB26: 0 | AC26: =IF(AB26>0,Background!$M$22/AB26,0) -> 0 | AD26: 0 | AE26: 0 | AF26: 0 | AG26: 0 | AH26: 0 | AI26: 0 | AJ26: 0 | AK26: 0 | AL26: 0.2 | AN26: 0 | AO26: 0 | AP26: 0 | AQ26: 0 | AR26: 0 | AS26: 0 | AU26: 0 | AV26: 0
A27: Diesel OPEX | B27: =IF('Input Solar'!D26="Default",'Input Solar'!D31,'Input Solar'!E31) -> 2.5 | E27: 25 | F27: =IF(E27-E3=24,F3,"") -> 0 | G27: 0 | H27: 0 | I27: 0 | J27: 0 | K27: =IF('Input Solar'!$D$18=Background!$X$2,'Calc Solar'!H27*$H$173,IF('Input Solar'!$D$18=Background!$X$3,'Calc Solar'!I27*$I$173,'Calc Solar'!J27*$J$173)) -> 0 | L27: =IF('Input Solar'!$D$20="Default",IF('Input Solar'!$D$18=Background!$X$2,'Calc Solar'!H27,IF('Input Solar'!$D$18=Background!$X$3,'Calc Solar'!I27,'Calc Solar'!J27)),K27) -> 0 | M27: 0 | N27: 0 | O27: 0 | P27: 0 | Q27: 0 | R27: 0 | S27: 0 | T27: 0 | U27: 0 | V27: 0 | W27: 0 | X27: 0 | Y27: 0 | Z27: 0 | AA27: 0 | AB27: 0 | AC27: =IF(AB27>0,Background!$M$22/AB27,0) -> 0 | AD27: 0 | AE27: 0 | AF27: 0 | AG27: 0 | AH27: 0 | AI27: 0 | AJ27: 0 | AK27: 0 | AL27: 0.2 | AN27: 0 | AO27: 0 | AP27: 0 | AQ27: 0 | AR27: 0 | AS27: 0 | AU27: 0 | AV27: 0
A28: Battery Capex | B28: =IF('Input Solar'!D46<>"Individual",'Input Solar'!D50,'Input Solar'!E50) -> 27000 | E28: 26 | F28: =IF(E28-E4=24,F4,"") -> 0 | G28: 0 | H28: 0 | I28: 0 | J28: 0 | K28: =IF('Input Solar'!$D$18=Background!$X$2,'Calc Solar'!H28*$H$173,IF('Input Solar'!$D$18=Background!$X$3,'Calc Solar'!I28*$I$173,'Calc Solar'!J28*$J$173)) -> 0 | L28: =IF('Input Solar'!$D$20="Default",IF('Input Solar'!$D$18=Background!$X$2,'Calc Solar'!H28,IF('Input Solar'!$D$18=Background!$X$3,'Calc Solar'!I28,'Calc Solar'!J28)),K28) -> 0 | M28: 0 | N28: 0 | O28: 0 | P28: 0 | Q28: 0 | R28: 0 | S28: 0 | T28: 0 | U28: 0 | V28: 0 | W28: 0 | X28: 0 | Y28: 0 | Z28: 0 | AA28: 0 | AB28: 0 | AC28: =IF(AB28>0,Background!$M$22/AB28,0) -> 0 | AD28: 0 | AE28: 0 | AF28: 0 | AG28: 0 | AH28: 0 | AI28: 0 | AJ28: 0 | AK28: 0 | AL28: 0.2 | AN28: 0 | AO28: 0 | AP28: 0 | AQ28: 0 | AR28: 0 | AS28: 0 | AU28: 0 | AV28: 0
A29: Battery OPEX fix | B29: =IF('Input Solar'!D46<>"Individual",'Input Solar'!D51,'Input Solar'!E51) -> 405 | E29: 27 | F29: =IF(E29-E5=24,F5,"") -> 0 | G29: 0 | H29: 0 | I29: 0 | J29: 0 | K29: =IF('Input Solar'!$D$18=Background!$X$2,'Calc Solar'!H29*$H$173,IF('Input Solar'!$D$18=Background!$X$3,'Calc Solar'!I29*$I$173,'Calc Solar'!J29*$J$173)) -> 0 | L29: =IF('Input Solar'!$D$20="Default",IF('Input Solar'!$D$18=Background!$X$2,'Calc Solar'!H29,IF('Input Solar'!$D$18=Background!$X$3,'Calc Solar'!I29,'Calc Solar'!J29)),K29) -> 0 | M29: 0 | N29: 0 | O29: 0 | P29: 0 | Q29: 0 | R29: 0 | S29: 0 | T29: 0 | U29: 0 | V29: 0 | W29: 0 | X29: 0 | Y29: 0 | Z29: 0 | AA29: 0 | AB29: 0 | AC29: =IF(AB29>0,Background!$M$22/AB29,0) -> 0 | AD29: 0 | AE29: 0 | AF29: 0 | AG29: 0 | AH29: 0 | AI29: 0 | AJ29: 0 | AK29: 0 | AL29: 0.2 | AN29: 0 | AO29: 0 | AP29: 0 | AQ29: 0 | AR29: 0 | AS29: 0 | AU29: 0 | AV29: 0
E30: 28 | F30: 0 | G30: 0 | H30: 0 | I30: 0 | J30: 0 | K30: =IF('Input Solar'!$D$18=Background!$X$2,'Calc Solar'!H30*$H$173,IF('Input Solar'!$D$18=Background!$X$3,'Calc Solar'!I30*$I$173,'Calc Solar'!J30*$J$173)) -> 0 | L30: =IF('Input Solar'!$D$20="Default",IF('Input Solar'!$D$18=Background!$X$2,'Calc Solar'!H30,IF('Input Solar'!$D$18=Background!$X$3,'Calc Solar'!I30,'Calc Solar'!J30)),K30) -> 0 | M30: 0 | N30: 0 | O30: 0 | P30: 0 | Q30: 0 | R30: 0 | S30: 0 | T30: 0 | U30: 0 | V30: 0 | W30: 0 | X30: 0 | Y30: 0 | Z30: 0 | AA30: 0 | AB30: 0 | AC30: =IF(AB30>0,Background!$M$22/AB30,0) -> 0 | AD30: 0 | AE30: 0 | AF30: 0 | AG30: 0 | AH30: 0 | AI30: 0 | AJ30: 0 | AK30: 0 | AL30: 0.2 | AN30: 0 | AO30: 0 | AP30: 0 | AQ30: 0 | AR30: 0 | AS30: 0 | AU30: 0 | AV30: 0
A31: Fuel start | B31: =IF('Input Solar'!$D$26="Default",'Input Solar'!$D$34,'Input Solar'!$E$34) -> 35 | E31: 29 | F31: 0 | G31: 0 | H31: 0 | I31: 0 | J31: 0 | K31: =IF('Input Solar'!$D$18=Background!$X$2,'Calc Solar'!H31*$H$173,IF('Input Solar'!$D$18=Background!$X$3,'Calc Solar'!I31*$I$173,'Calc Solar'!J31*$J$173)) -> 0 | L31: =IF('Input Solar'!$D$20="Default",IF('Input Solar'!$D$18=Background!$X$2,'Calc Solar'!H31,IF('Input Solar'!$D$18=Background!$X$3,'Calc Solar'!I31,'Calc Solar'!J31)),K31) -> 0 | M31: 0 | N31: 0 | O31: 0 | P31: 0 | Q31: 0 | R31: 0 | S31: 0 | T31: 0 | U31: 0 | V31: 0 | W31: 0 | X31: 0 | Y31: 0 | Z31: 0 | AA31: 0 | AB31: 0 | AC31: =IF(AB31>0,Background!$M$22/AB31,0) -> 0 | AD31: 0 | AE31: 0 | AF31: 0 | AG31: 0 | AH31: 0 | AI31: 0 | AJ31: 0 | AK31: 0 | AL31: 0.2 | AN31: 0 | AO31: 0 | AP31: 0 | AQ31: 0 | AR31: 0 | AS31: 0 | AU31: 0 | AV31: 0
A32: Fuel increase | B32: =IF('Input Solar'!D26="Default",'Input Solar'!D35,'Input Solar'!E35) -> 0.03 | E32: 30 | F32: 0 | G32: 0 | H32: 0 | I32: 0 | J32: 0 | K32: =IF('Input Solar'!$D$18=Background!$X$2,'Calc Solar'!H32*$H$173,IF('Input Solar'!$D$18=Background!$X$3,'Calc Solar'!I32*$I$173,'Calc Solar'!J32*$J$173)) -> 0 | L32: =IF('Input Solar'!$D$20="Default",IF('Input Solar'!$D$18=Background!$X$2,'Calc Solar'!H32,IF('Input Solar'!$D$18=Background!$X$3,'Calc Solar'!I32,'Calc Solar'!J32)),K32) -> 0 | M32: 0 | N32: 0 | O32: 0 | P32: 0 | Q32: 0 | R32: 0 | S32: 0 | T32: 0 | U32: 0 | V32: 0 | W32: 0 | X32: 0 | Y32: 0 | Z32: 0 | AA32: 0 | AB32: 0 | AC32: =IF(AB32>0,Background!$M$22/AB32,0) -> 0 | AD32: 0 | AE32: 0 | AF32: 0 | AG32: 0 | AH32: 0 | AI32: 0 | AJ32: 0 | AK32: 0 | AL32: 0.2 | AN32: 0 | AO32: 0 | AP32: 0 | AQ32: 0 | AR32: 0 | AS32: 0 | AU32: 0 | AV32: 0
A33: Fuel costs | B33: =IF(Background!W2,'Calc Solar'!B31*(1+'Calc Solar'!B32)^(Background!B56-1),IF(Background!U2,fuel_costs(B31,B32,B34),B31)) -> 35 | E33: 31 | F33: =IF(E33-E9=24,F9,"") -> 0 | G33: 0 | H33: 0.01182018695 | I33: 0.055311783 | J33: 0.04286908952 | K33: =IF('Input Solar'!$D$18=Background!$X$2,'Calc Solar'!H33*$H$173,IF('Input Solar'!$D$18=Background!$X$3,'Calc Solar'!I33*$I$173,'Calc Solar'!J33*$J$173)) -> 0 | L33: =IF('Input Solar'!$D$20="Default",IF('Input Solar'!$D$18=Background!$X$2,'Calc Solar'!H33,IF('Input Solar'!$D$18=Background!$X$3,'Calc Solar'!I33,'Calc Solar'!J33)),K33) -> 0.01182018695 | M33: 0 | N33: 0 | O33: 0 | P33: 0 | Q33: 0 | R33: 0 | S33: 0 | T33: 0 | U33: 0 | V33: 0 | W33: 0 | X33: 0 | Y33: 0 | Z33: 0 | AA33: 0 | AB33: 0 | AC33: =IF(AB33>0,Background!$M$22/AB33,0) -> 0 | AD33: 0 | AE33: 0 | AF33: 0 | AG33: 0 | AH33: 0 | AI33: 0 | AJ33: 0 | AK33: 0 | AL33: 0.2 | AN33: 0 | AO33: 0 | AP33: 0 | AQ33: 0 | AR33: 0 | AS33: 0 | AU33: 0 | AV33: 0
A34: Project duration | B34: =IF('Input Solar'!D64="Default",'Input Solar'!D69,'Input Solar'!E69) -> 20 | E34: 32 | F34: =IF(E34-E10=24,F10,"") -> 0 | G34: 0 | H34: 0.08980757949 | I34: 0.2268819799 | J34: 0.1045772992 | K34: =IF('Input Solar'!$D$18=Background!$X$2,'Calc Solar'!H34*$H$173,IF('Input Solar'!$D$18=Background!$X$3,'Calc Solar'!I34*$I$173,'Calc Solar'!J34*$J$173)) -> 0 | L34: =IF('Input Solar'!$D$20="Default",IF('Input Solar'!$D$18=Background!$X$2,'Calc Solar'!H34,IF('Input Solar'!$D$18=Background!$X$3,'Calc Solar'!I34,'Calc Solar'!J34)),K34) -> 0.08980757949 | M34: 0 | N34: 0 | O34: 0 | P34: 0 | Q34: 0 | R34: 0 | S34: 0 | T34: 0 | U34: 0 | V34: 0 | W34: 0 | X34: 0 | Y34: 0 | Z34: 0 | AA34: 0 | AB34: 0 | AC34: =IF(AB34>0,Background!$M$22/AB34,0) -> 0 | AD34: 0 | AE34: 0 | AF34: 0 | AG34: 0 | AH34: 0 | AI34: 0 | AJ34: 0 | AK34: 0 | AL34: 0.2 | AN34: 0 | AO34: 0 | AP34: 0 | AQ34: 0 | AR34: 0 | AS34: 0 | AU34: 0 | AV34: 0
A35: Fuel l/kWh | B35: =IF('Input Solar'!D26="Default",'Input Solar'!D33,'Input Solar'!E33) -> 0.33 | E35: 33 | F35: 0 | G35: 0 | H35: 0.2246337416 | I35: 0.3474205971 | J35: 0.2474989899 | K35: =IF('Input Solar'!$D$18=Background!$X$2,'Calc Solar'!H35*$H$173,IF('Input Solar'!$D$18=Background!$X$3,'Calc Solar'!I35*$I$173,'Calc Solar'!J35*$J$173)) -> 0 | L35: =IF('Input Solar'!$D$20="Default",IF('Input Solar'!$D$18=Background!$X$2,'Calc Solar'!H35,IF('Input Solar'!$D$18=Background!$X$3,'Calc Solar'!I35,'Calc Solar'!J35)),K35) -> 0.2246337416 | M35: 0 | N35: 0 | O35: 0 | P35: 0 | Q35: 0 | R35: 0 | S35: 0 | T35: 0 | U35: 0 | V35: 0 | W35: 0 | X35: 0 | Y35: 0 | Z35: 0 | AA35: 0 | AB35: 0 | AC35: =IF(AB35>0,Background!$M$22/AB35,0) -> 0 | AD35: 0 | AE35: 0 | AF35: 0 | AG35: 0 | AH35: 0 | AI35: 0 | AJ35: 0 | AK35: 0 | AL35: 0.2 | AN35: 0 | AO35: 0 | AP35: =MAX(AK35,-1*(M35-AO35)) -> 0 | AQ35: =G35-AO35-AJ35-AN35 -> 0 | AR35: =AA35-AQ35 -> 0 | AS35: =MAX(AK35-AP35,-1*AR35) -> 0 | AU35: 0 | AV35: 0
A36: Diesel OPEX fix | B36: =IF('Input Solar'!D26="Default",'Input Solar'!D32,'Input Solar'!E32) -> 300 | E36: 34 | F36: 0 | G36: 0 | H36: 0.367241494 | I36: 0.4013320069 | J36: 0.4149382612 | K36: =IF('Input Solar'!$D$18=Background!$X$2,'Calc Solar'!H36*$H$173,IF('Input Solar'!$D$18=Background!$X$3,'Calc Solar'!I36*$I$173,'Calc Solar'!J36*$J$173)) -> 0 | L36: =IF('Input Solar'!$D$20="Default",IF('Input Solar'!$D$18=Background!$X$2,'Calc Solar'!H36,IF('Input Solar'!$D$18=Background!$X$3,'Calc Solar'!I36,'Calc Solar'!J36)),K36) -> 0.367241494 | M36: 0 | N36: 0 | O36: 0 | P36: 0 | Q36: 0 | R36: 0 | S36: 0 | T36: 0 | U36: 0 | V36: 0 | W36: 0 | X36: 0 | Y36: 0 | Z36: 0 | AA36: 0 | AB36: 0 | AC36: =IF(AB36>0,Background!$M$22/AB36,0) -> 0 | AD36: 0 | AE36: 0 | AF36: 0 | AG36: 0 | AH36: 0 | AI36: 0 | AJ36: 0 | AK36: 0 | AL36: 0.2 | AN36: 0 | AO36: 0 | AP36: 0 | AQ36: 0 | AR36: 0 | AS36: 0 | AU36: 0 | AV36: 0
E37: 35 | F37: =IF(E37-E13=24,F13,"") -> 0 | G37: 0 | H37: 0.4959159731 | I37: 0.3958531745 | J37: 0.5771789565 | K37: =IF('Input Solar'!$D$18=Background!$X$2,'Calc Solar'!H37*$H$173,IF('Input Solar'!$D$18=Background!$X$3,'Calc Solar'!I37*$I$173,'Calc Solar'!J37*$J$173)) -> 0 | L37: =IF('Input Solar'!$D$20="Default",IF('Input Solar'!$D$18=Background!$X$2,'Calc Solar'!H37,IF('Input Solar'!$D$18=Background!$X$3,'Calc Solar'!I37,'Calc Solar'!J37)),K37) -> 0.4959159731 | M37: 0 | N37: 0 | O37: 0 | P37: 0 | Q37: 0 | R37: 0 | S37: 0 | T37: 0 | U37: 0 | V37: 0 | W37: 0 | X37: 0 | Y37: 0 | Z37: 0 | AA37: 0 | AB37: 0 | AC37: =IF(AB37>0,Background!$M$22/AB37,0) -> 0 | AD37: 0 | AE37: 0 | AF37: 0 | AG37: 0 | AH37: 0 | AI37: 0 | AJ37: 0 | AK37: 0 | AL37: 0.2 | AN37: 0 | AO37: 0 | AP37: 0 | AQ37: 0 | AR37: 0 | AS37: 0 | AU37: 0 | AV37: 0
A38: PV Capex | B38: =B22*B24 -> 0 | E38: 36 | F38: 0 | G38: 0 | H38: 0.4949672211 | I38: 0.4164805697 | J38: 0.5054116156 | K38: =IF('Input Solar'!$D$18=Background!$X$2,'Calc Solar'!H38*$H$173,IF('Input Solar'!$D$18=Background!$X$3,'Calc Solar'!I38*$I$173,'Calc Solar'!J38*$J$173)) -> 0 | L38: =IF('Input Solar'!$D$20="Default",IF('Input Solar'!$D$18=Background!$X$2,'Calc Solar'!H38,IF('Input Solar'!$D$18=Background!$X$3,'Calc Solar'!I38,'Calc Solar'!J38)),K38) -> 0.4949672211 | M38: 0 | N38: 0 | O38: 0 | P38: 0 | Q38: 0 | R38: 0 | S38: 0 | T38: 0 | U38: 0 | V38: 0 | W38: 0 | X38: 0 | Y38: 0 | Z38: 0 | AA38: 0 | AB38: 0 | AC38: =IF(AB38>0,Background!$M$22/AB38,0) -> 0 | AD38: 0 | AE38: 0 | AF38: 0 | AG38: 0 | AH38: 0 | AI38: 0 | AJ38: 0 | AK38: 0 | AL38: 0.2 | AN38: 0 | AO38: 0 | AP38: 0 | AQ38: 0 | AR38: 0 | AS38: 0 | AU38: 0 | AV38: 0
A39: Diesel Capex | B39: =B13*B26 -> 0 | E39: 37 | F39: =IF(E39-E15=24,F15,"") -> 0 | G39: 0 | H39: 0.4481925352 | I39: 0.4031428622 | J39: 0.3868900584 | K39: =IF('Input Solar'!$D$18=Background!$X$2,'Calc Solar'!H39*$H$173,IF('Input Solar'!$D$18=Background!$X$3,'Calc Solar'!I39*$I$173,'Calc Solar'!J39*$J$173)) -> 0 | L39: =IF('Input Solar'!$D$20="Default",IF('Input Solar'!$D$18=Background!$X$2,'Calc Solar'!H39,IF('Input Solar'!$D$18=Background!$X$3,'Calc Solar'!I39,'Calc Solar'!J39)),K39) -> 0.4481925352 | M39: 0 | N39: 0 | O39: 0 | P39: 0 | Q39: 0 | R39: 0 | S39: 0 | T39: 0 | U39: 0 | V39: 0 | W39: 0 | X39: 0 | Y39: 0 | Z39: 0 | AA39: 0 | AB39: 0 | AC39: =IF(AB39>0,Background!$M$22/AB39,0) -> 0 | AD39: 0 | AE39: 0 | AF39: 0 | AG39: 0 | AH39: 0 | AI39: 0 | AJ39: 0 | AK39: 0 | AL39: 0.2 | AN39: 0 | AO39: 0 | AP39: 0 | AQ39: 0 | AR39: 0 | AS39: 0 | AU39: 0 | AV39: 0
A40: Battery Capex | B40: =B8*B28 -> 2.7e-09 | E40: 38 | F40: 0 | G40: 0 | H40: 0.3660053798 | I40: 0.3577724916 | J40: 0.2458197036 | K40: =IF('Input Solar'!$D$18=Background!$X$2,'Calc Solar'!H40*$H$173,IF('Input Solar'!$D$18=Background!$X$3,'Calc Solar'!I40*$I$173,'Calc Solar'!J40*$J$173)) -> 0 | L40: =IF('Input Solar'!$D$20="Default",IF('Input Solar'!$D$18=Background!$X$2,'Calc Solar'!H40,IF('Input Solar'!$D$18=Background!$X$3,'Calc Solar'!I40,'Calc Solar'!J40)),K40) -> 0.3660053798 | M40: 0 | N40: 0 | O40: 0 | P40: 0 | Q40: 0 | R40: 0 | S40: 0 | T40: 0 | U40: 0 | V40: 0 | W40: 0 | X40: 0 | Y40: 0 | Z40: 0 | AA40: 0 | AB40: 0 | AC40: =IF(AB40>0,Background!$M$22/AB40,0) -> 0 | AD40: 0 | AE40: 0 | AF40: 0 | AG40: 0 | AH40: 0 | AI40: 0 | AJ40: 0 | AK40: 0 | AL40: 0.2 | AN40: 0 | AO40: 0 | AP40: 0 | AQ40: 0 | AR40: 0 | AS40: 0 | AU40: 0 | AV40: 0
A41: PV OPEX | B41: =B25*B7 -> 0 | E41: 39 | F41: 0 | G41: 0 | H41: 0.2716076047 | I41: 0.2517174885 | J41: 0.1624673474 | K41: =IF('Input Solar'!$D$18=Background!$X$2,'Calc Solar'!H41*$H$173,IF('Input Solar'!$D$18=Background!$X$3,'Calc Solar'!I41*$I$173,'Calc Solar'!J41*$J$173)) -> 0 | L41: =IF('Input Solar'!$D$20="Default",IF('Input Solar'!$D$18=Background!$X$2,'Calc Solar'!H41,IF('Input Solar'!$D$18=Background!$X$3,'Calc Solar'!I41,'Calc Solar'!J41)),K41) -> 0.2716076047 | M41: 0 | N41: 0 | O41: 0 | P41: 0 | Q41: 0 | R41: 0 | S41: 0 | T41: 0 | U41: 0 | V41: 0 | W41: 0 | X41: 0 | Y41: 0 | Z41: 0 | AA41: 0 | AB41: 0 | AC41: =IF(AB41>0,Background!$M$22/AB41,0) -> 0 | AD41: 0 | AE41: 0 | AF41: 0 | AG41: 0 | AH41: 0 | AI41: 0 | AJ41: 0 | AK41: 0 | AL41: 0.2 | AN41: 0 | AO41: 0 | AP41: 0 | AQ41: 0 | AR41: 0 | AS41: 0 | AU41: 0 | AV41: 0
A42: Diesel OPEX var | B42: =B18*8760/168*B27 -> 0 | E42: 40 | F42: 0 | G42: 0 | H42: 0.1645415588 | I42: 0.1425701515 | J42: 0.08496972524 | K42: =IF('Input Solar'!$D$18=Background!$X$2,'Calc Solar'!H42*$H$173,IF('Input Solar'!$D$18=Background!$X$3,'Calc Solar'!I42*$I$173,'Calc Solar'!J42*$J$173)) -> 0 | L42: =IF('Input Solar'!$D$20="Default",IF('Input Solar'!$D$18=Background!$X$2,'Calc Solar'!H42,IF('Input Solar'!$D$18=Background!$X$3,'Calc Solar'!I42,'Calc Solar'!J42)),K42) -> 0.1645415588 | M42: 0 | N42: 0 | O42: 0 | P42: 0 | Q42: 0 | R42: 0 | S42: 0 | T42: 0 | U42: 0 | V42: 0 | W42: 0 | X42: 0 | Y42: 0 | Z42: 0 | AA42: 0 | AB42: 0 | AC42: =IF(AB42>0,Background!$M$22/AB42,0) -> 0 | AD42: 0 | AE42: 0 | AF42: 0 | AG42: 0 | AH42: 0 | AI42: 0 | AJ42: 0 | AK42: 0 | AL42: 0.2 | AN42: 0 | AO42: 0 | AP42: 0 | AQ42: 0 | AR42: 0 | AS42: 0 | AU42: 0 | AV42: 0
A43: Battery OPEX | B43: =B29*B8 -> 4.05e-11 | E43: 41 | F43: 0 | G43: 0 | H43: 0.06029257628 | I43: 0.0476245249 | J43: 0.02650058076 | K43: =IF('Input Solar'!$D$18=Background!$X$2,'Calc Solar'!H43*$H$173,IF('Input Solar'!$D$18=Background!$X$3,'Calc Solar'!I43*$I$173,'Calc Solar'!J43*$J$173)) -> 0 | L43: =IF('Input Solar'!$D$20="Default",IF('Input Solar'!$D$18=Background!$X$2,'Calc Solar'!H43,IF('Input Solar'!$D$18=Background!$X$3,'Calc Solar'!I43,'Calc Solar'!J43)),K43) -> 0.06029257628 | M43: 0 | N43: 0 | O43: 0 | P43: 0 | Q43: 0 | R43: 0 | S43: 0 | T43: 0 | U43: 0 | V43: 0 | W43: 0 | X43: 0 | Y43: 0 | Z43: 0 | AA43: 0 | AB43: 0 | AC43: =IF(AB43>0,Background!$M$22/AB43,0) -> 0 | AD43: 0 | AE43: 0 | AF43: 0 | AG43: 0 | AH43: 0 | AI43: 0 | AJ43: 0 | AK43: 0 | AL43: 0.2 | AN43: 0 | AO43: 0 | AP43: 0 | AQ43: 0 | AR43: 0 | AS43: 0 | AU43: 0 | AV43: 0
A44: Fuel costs total | B44: =B33*B19*8760/168 -> 0 | E44: 42 | F44: 0 | G44: 0 | H44: 0 | I44: 0 | J44: 0 | K44: =IF('Input Solar'!$D$18=Background!$X$2,'Calc Solar'!H44*$H$173,IF('Input Solar'!$D$18=Background!$X$3,'Calc Solar'!I44*$I$173,'Calc Solar'!J44*$J$173)) -> 0 | L44: =IF('Input Solar'!$D$20="Default",IF('Input Solar'!$D$18=Background!$X$2,'Calc Solar'!H44,IF('Input Solar'!$D$18=Background!$X$3,'Calc Solar'!I44,'Calc Solar'!J44)),K44) -> 0 | M44: 0 | N44: 0 | O44: 0 | P44: 0 | Q44: 0 | R44: 0 | S44: 0 | T44: 0 | U44: 0 | V44: 0 | W44: 0 | X44: 0 | Y44: 0 | Z44: 0 | AA44: 0 | AB44: 0 | AC44: =IF(AB44>0,Background!$M$22/AB44,0) -> 0 | AD44: 0 | AE44: 0 | AF44: 0 | AG44: 0 | AH44: 0 | AI44: 0 | AJ44: 0 | AK44: 0 | AL44: 0.2 | AN44: 0 | AO44: 0 | AP44: 0 | AQ44: 0 | AR44: 0 | AS44: 0 | AU44: 0 | AV44: 0
A45: Diesel OPEX fix | B45: =B36*B13 -> 0 | E45: 43 | F45: 0 | G45: =F45*(1+$B$4) -> 0 | H45: 0 | I45: 0 | J45: 0 | K45: =IF('Input Solar'!$D$18=Background!$X$2,'Calc Solar'!H45*$H$173,IF('Input Solar'!$D$18=Background!$X$3,'Calc Solar'!I45*$I$173,'Calc Solar'!J45*$J$173)) -> 0 | L45: =IF('Input Solar'!$D$20="Default",IF('Input Solar'!$D$18=Background!$X$2,'Calc Solar'!H45,IF('Input Solar'!$D$18=Background!$X$3,'Calc Solar'!I45,'Calc Solar'!J45)),K45) -> 0 | M45: 0 | N45: 0 | O45: 0 | P45: 0 | Q45: 0 | R45: 0 | S45: 0 | T45: 0 | U45: 0 | V45: 0 | W45: 0 | X45: 0 | Y45: 0 | Z45: 0 | AA45: 0 | AB45: 0 | AC45: =IF(AB45>0,Background!$M$22/AB45,0) -> 0 | AD45: 0 | AE45: 0 | AF45: 0 | AG45: 0 | AH45: 0 | AI45: 0 | AJ45: 0 | AK45: 0 | AL45: 0.2 | AN45: 0 | AO45: 0 | AP45: 0 | AQ45: 0 | AR45: 0 | AS45: 0 | AU45: 0 | AV45: 0
A46: PV lifetime | B46: =IF('Input Solar'!D3="Default",'Input Solar'!D9,'Input Solar'!E9) -> 20 | E46: 44 | F46: =IF(E46-E22=24,F22,"") -> 0 | G46: 0 | H46: 0 | I46: 0 | J46: 0 | K46: =IF('Input Solar'!$D$18=Background!$X$2,'Calc Solar'!H46*$H$173,IF('Input Solar'!$D$18=Background!$X$3,'Calc Solar'!I46*$I$173,'Calc Solar'!J46*$J$173)) -> 0 | L46: =IF('Input Solar'!$D$20="Default",IF('Input Solar'!$D$18=Background!$X$2,'Calc Solar'!H46,IF('Input Solar'!$D$18=Background!$X$3,'Calc Solar'!I46,'Calc Solar'!J46)),K46) -> 0 | M46: 0 | N46: 0 | O46: 0 | P46: 0 | Q46: 0 | R46: 0 | S46: 0 | T46: 0 | U46: 0 | V46: 0 | W46: 0 | X46: 0 | Y46: 0 | Z46: 0 | AA46: 0 | AB46: 0 | AC46: =IF(AB46>0,Background!$M$22/AB46,0) -> 0 | AD46: 0 | AE46: 0 | AF46: 0 | AG46: 0 | AH46: 0 | AI46: 0 | AJ46: 0 | AK46: 0 | AL46: 0.2 | AN46: 0 | AO46: 0 | AP46: 0 | AQ46: 0 | AR46: 0 | AS46: 0 | AU46: 0 | AV46: 0
A47: PV CRF | B47: =B77*POWER(1+B77,B46)/(POWER(1+B77,B46)-1) -> 0.13387878 | E47: 45 | F47: 0 | G47: 0 | H47: 0 | I47: 0 | J47: 0 | K47: =IF('Input Solar'!$D$18=Background!$X$2,'Calc Solar'!H47*$H$173,IF('Input Solar'!$D$18=Background!$X$3,'Calc Solar'!I47*$I$173,'Calc Solar'!J47*$J$173)) -> 0 | L47: =IF('Input Solar'!$D$20="Default",IF('Input Solar'!$D$18=Background!$X$2,'Calc Solar'!H47,IF('Input Solar'!$D$18=Background!$X$3,'Calc Solar'!I47,'Calc Solar'!J47)),K47) -> 0 | M47: 0 | N47: 0 | O47: 0 | P47: 0 | Q47: 0 | R47: 0 | S47: 0 | T47: 0 | U47: 0 | V47: 0 | W47: 0 | X47: 0 | Y47: 0 | Z47: 0 | AA47: 0 | AB47: 0 | AC47: =IF(AB47>0,Background!$M$22/AB47,0) -> 0 | AD47: 0 | AE47: 0 | AF47: 0 | AG47: 0 | AH47: 0 | AI47: 0 | AJ47: 0 | AK47: 0 | AL47: 0.2 | AN47: 0 | AO47: 0 | AP47: 0 | AQ47: 0 | AR47: 0 | AS47: 0 | AU47: 0 | AV47: 0
A48: PV Ann | B48: =B47*B38 -> 0 | E48: 46 | F48: 0 | G48: 0 | H48: 0 | I48: 0 | J48: 0 | K48: =IF('Input Solar'!$D$18=Background!$X$2,'Calc Solar'!H48*$H$173,IF('Input Solar'!$D$18=Background!$X$3,'Calc Solar'!I48*$I$173,'Calc Solar'!J48*$J$173)) -> 0 | L48: =IF('Input Solar'!$D$20="Default",IF('Input Solar'!$D$18=Background!$X$2,'Calc Solar'!H48,IF('Input Solar'!$D$18=Background!$X$3,'Calc Solar'!I48,'Calc Solar'!J48)),K48) -> 0 | M48: 0 | N48: 0 | O48: 0 | P48: 0 | Q48: 0 | R48: 0 | S48: 0 | T48: 0 | U48: 0 | V48: 0 | W48: 0 | X48: 0 | Y48: 0 | Z48: 0 | AA48: 0 | AB48: 0 | AC48: =IF(AB48>0,Background!$M$22/AB48,0) -> 0 | AD48: 0 | AE48: 0 | AF48: 0 | AG48: 0 | AH48: 0 | AI48: 0 | AJ48: 0 | AK48: 0 | AL48: 0.2 | AN48: 0 | AO48: 0 | AP48: 0 | AQ48: 0 | AR48: 0 | AS48: 0 | AU48: 0 | AV48: 0
E49: 47 | F49: 0 | G49: 0 | H49: 0 | I49: 0 | J49: 0 | K49: =IF('Input Solar'!$D$18=Background!$X$2,'Calc Solar'!H49*$H$173,IF('Input Solar'!$D$18=Background!$X$3,'Calc Solar'!I49*$I$173,'Calc Solar'!J49*$J$173)) -> 0 | L49: =IF('Input Solar'!$D$20="Default",IF('Input Solar'!$D$18=Background!$X$2,'Calc Solar'!H49,IF('Input Solar'!$D$18=Background!$X$3,'Calc Solar'!I49,'Calc Solar'!J49)),K49) -> 0 | M49: 0 | N49: 0 | O49: 0 | P49: 0 | Q49: 0 | R49: 0 | S49: 0 | T49: 0 | U49: 0 | V49: 0 | W49: 0 | X49: 0 | Y49: 0 | Z49: 0 | AA49: 0 | AB49: 0 | AC49: =IF(AB49>0,Background!$M$22/AB49,0) -> 0 | AD49: 0 | AE49: 0 | AF49: 0 | AG49: 0 | AH49: 0 | AI49: 0 | AJ49: 0 | AK49: 0 | AL49: 0.2 | AN49: 0 | AO49: 0 | AP49: 0 | AQ49: 0 | AR49: 0 | AS49: 0 | AU49: 0 | AV49: 0
A50: Diesel lifetime | B50: =IF('Input Solar'!D26="Default",'Input Solar'!D36,'Input Solar'!E36) -> 10 | E50: 48 | F50: 0 | G50: 0 | H50: 0 | I50: 0 | J50: 0 | K50: =IF('Input Solar'!$D$18=Background!$X$2,'Calc Solar'!H50*$H$173,IF('Input Solar'!$D$18=Background!$X$3,'Calc Solar'!I50*$I$173,'Calc Solar'!J50*$J$173)) -> 0 | L50: =IF('Input Solar'!$D$20="Default",IF('Input Solar'!$D$18=Background!$X$2,'Calc Solar'!H50,IF('Input Solar'!$D$18=Background!$X$3,'Calc Solar'!I50,'Calc Solar'!J50)),K50) -> 0 | M50: 0 | N50: 0 | O50: 0 | P50: 0 | Q50: 0 | R50: 0 | S50: 0 | T50: 0 | U50: 0 | V50: 0 | W50: 0 | X50: 0 | Y50: 0 | Z50: 0 | AA50: 0 | AB50: 0 | AC50: =IF(AB50>0,Background!$M$22/AB50,0) -> 0 | AD50: 0 | AE50: 0 | AF50: 0 | AG50: 0 | AH50: 0 | AI50: 0 | AJ50: 0 | AK50: 0 | AL50: 0.2 | AN50: 0 | AO50: 0 | AP50: 0 | AQ50: 0 | AR50: 0 | AS50: 0 | AU50: 0 | AV50: 0
A51: Diesel CRF | B51: =B77*POWER(1+B77,B50)/(POWER(1+B77,B50)-1) -> 0.1769841642 | E51: 49 | F51: 0 | G51: 0 | H51: 0 | I51: 0 | J51: 0 | K51: =IF('Input Solar'!$D$18=Background!$X$2,'Calc Solar'!H51*$H$173,IF('Input Solar'!$D$18=Background!$X$3,'Calc Solar'!I51*$I$173,'Calc Solar'!J51*$J$173)) -> 0 | L51: =IF('Input Solar'!$D$20="Default",IF('Input Solar'!$D$18=Background!$X$2,'Calc Solar'!H51,IF('Input Solar'!$D$18=Background!$X$3,'Calc Solar'!I51,'Calc Solar'!J51)),K51) -> 0 | M51: 0 | N51: 0 | O51: 0 | P51: 0 | Q51: 0 | R51: 0 | S51: 0 | T51: 0 | U51: 0 | V51: 0 | W51: 0 | X51: 0 | Y51: 0 | Z51: 0 | AA51: 0 | AB51: 0 | AC51: =IF(AB51>0,Background!$M$22/AB51,0) -> 0 | AD51: 0 | AE51: 0 | AF51: 0 | AG51: 0 | AH51: 0 | AI51: 0 | AJ51: 0 | AK51: 0 | AL51: 0.2 | AN51: 0 | AO51: 0 | AP51: 0 | AQ51: 0 | AR51: 0 | AS51: 0 | AU51: 0 | AV51: 0
A52: Diesel Ann | B52: =B51*B39 -> 0 | E52: 50 | F52: 0 | G52: 0 | H52: 0 | I52: 0 | J52: 0 | K52: =IF('Input Solar'!$D$18=Background!$X$2,'Calc Solar'!H52*$H$173,IF('Input Solar'!$D$18=Background!$X$3,'Calc Solar'!I52*$I$173,'Calc Solar'!J52*$J$173)) -> 0 | L52: =IF('Input Solar'!$D$20="Default",IF('Input Solar'!$D$18=Background!$X$2,'Calc Solar'!H52,IF('Input Solar'!$D$18=Background!$X$3,'Calc Solar'!I52,'Calc Solar'!J52)),K52) -> 0 | M52: 0 | N52: 0 | O52: 0 | P52: 0 | Q52: 0 | R52: 0 | S52: 0 | T52: 0 | U52: 0 | V52: 0 | W52: 0 | X52: 0 | Y52: 0 | Z52: 0 | AA52: 0 | AB52: 0 | AC52: =IF(AB52>0,Background!$M$22/AB52,0) -> 0 | AD52: 0 | AE52: 0 | AF52: 0 | AG52: 0 | AH52: 0 | AI52: 0 | AJ52: 0 | AK52: 0 | AL52: 0.2 | AN52: 0 | AO52: 0 | AP52: 0 | AQ52: 0 | AR52: 0 | AS52: 0 | AU52: 0 | AV52: 0
A53: Diesel Opex total | B53: =B45+B42 -> 0 | E53: 51 | F53: 0 | G53: 0 | H53: 0 | I53: 0 | J53: 0 | K53: =IF('Input Solar'!$D$18=Background!$X$2,'Calc Solar'!H53*$H$173,IF('Input Solar'!$D$18=Background!$X$3,'Calc Solar'!I53*$I$173,'Calc Solar'!J53*$J$173)) -> 0 | L53: =IF('Input Solar'!$D$20="Default",IF('Input Solar'!$D$18=Background!$X$2,'Calc Solar'!H53,IF('Input Solar'!$D$18=Background!$X$3,'Calc Solar'!I53,'Calc Solar'!J53)),K53) -> 0 | M53: 0 | N53: 0 | O53: 0 | P53: 0 | Q53: 0 | R53: 0 | S53: 0 | T53: 0 | U53: 0 | V53: 0 | W53: 0 | X53: 0 | Y53: 0 | Z53: 0 | AA53: 0 | AB53: 0 | AC53: =IF(AB53>0,Background!$M$22/AB53,0) -> 0 | AD53: 0 | AE53: 0 | AF53: 0 | AG53: 0 | AH53: 0 | AI53: 0 | AJ53: 0 | AK53: 0 | AL53: 0.2 | AN53: 0 | AO53: 0 | AP53: 0 | AQ53: 0 | AR53: 0 | AS53: 0 | AU53: 0 | AV53: 0
A54: Bat lifetime | B54: =IF('Input Solar'!D46<>"Individual",'Input Solar'!D56,'Input Solar'!E56) -> 10 | E54: 52 | F54: 0 | G54: 0 | H54: 0 | I54: 0 | J54: 0 | K54: =IF('Input Solar'!$D$18=Background!$X$2,'Calc Solar'!H54*$H$173,IF('Input Solar'!$D$18=Background!$X$3,'Calc Solar'!I54*$I$173,'Calc Solar'!J54*$J$173)) -> 0 | L54: =IF('Input Solar'!$D$20="Default",IF('Input Solar'!$D$18=Background!$X$2,'Calc Solar'!H54,IF('Input Solar'!$D$18=Background!$X$3,'Calc Solar'!I54,'Calc Solar'!J54)),K54) -> 0 | M54: 0 | N54: 0 | O54: 0 | P54: 0 | Q54: 0 | R54: 0 | S54: 0 | T54: 0 | U54: 0 | V54: 0 | W54: 0 | X54: 0 | Y54: 0 | Z54: 0 | AA54: 0 | AB54: 0 | AC54: =IF(AB54>0,Background!$M$22/AB54,0) -> 0 | AD54: 0 | AE54: 0 | AF54: 0 | AG54: 0 | AH54: 0 | AI54: 0 | AJ54: 0 | AK54: 0 | AL54: 0.2 | AN54: 0 | AO54: 0 | AP54: 0 | AQ54: 0 | AR54: 0 | AS54: 0 | AU54: 0 | AV54: 0
A55: Bat CRF | B55: =B77*POWER(1+B77,B54)/(POWER(1+B77,B54)-1) -> 0.1769841642 | E55: 53 | F55: =IF(E55-E31=24,F31,"") -> 0 | G55: 0 | H55: 0 | I55: 0 | J55: 0 | K55: =IF('Input Solar'!$D$18=Background!$X$2,'Calc Solar'!H55*$H$173,IF('Input Solar'!$D$18=Background!$X$3,'Calc Solar'!I55*$I$173,'Calc Solar'!J55*$J$173)) -> 0 | L55: =IF('Input Solar'!$D$20="Default",IF('Input Solar'!$D$18=Background!$X$2,'Calc Solar'!H55,IF('Input Solar'!$D$18=Background!$X$3,'Calc Solar'!I55,'Calc Solar'!J55)),K55) -> 0 | M55: 0 | N55: 0 | O55: 0 | P55: 0 | Q55: 0 | R55: 0 | S55: 0 | T55: 0 | U55: 0 | V55: 0 | W55: 0 | X55: 0 | Y55: 0 | Z55: 0 | AA55: 0 | AB55: 0 | AC55: =IF(AB55>0,Background!$M$22/AB55,0) -> 0 | AD55: 0 | AE55: 0 | AF55: 0 | AG55: 0 | AH55: 0 | AI55: 0 | AJ55: 0 | AK55: 0 | AL55: 0.2 | AN55: 0 | AO55: 0 | AP55: 0 | AQ55: 0 | AR55: 0 | AS55: 0 | AU55: 0 | AV55: 0
A56: Bat Ann | B56: =B55*B40 -> 4.778572432e-10 | E56: 54 | F56: =IF(E56-E32=24,F32,"") -> 0 | G56: 0 | H56: 0 | I56: 0 | J56: 0 | K56: =IF('Input Solar'!$D$18=Background!$X$2,'Calc Solar'!H56*$H$173,IF('Input Solar'!$D$18=Background!$X$3,'Calc Solar'!I56*$I$173,'Calc Solar'!J56*$J$173)) -> 0 | L56: =IF('Input Solar'!$D$20="Default",IF('Input Solar'!$D$18=Background!$X$2,'Calc Solar'!H56,IF('Input Solar'!$D$18=Background!$X$3,'Calc Solar'!I56,'Calc Solar'!J56)),K56) -> 0 | M56: 0 | N56: 0 | O56: 0 | P56: 0 | Q56: 0 | R56: 0 | S56: 0 | T56: 0 | U56: 0 | V56: 0 | W56: 0 | X56: 0 | Y56: 0 | Z56: 0 | AA56: 0 | AB56: 0 | AC56: =IF(AB56>0,Background!$M$22/AB56,0) -> 0 | AD56: 0 | AE56: 0 | AF56: 0 | AG56: 0 | AH56: 0 | AI56: 0 | AJ56: 0 | AK56: 0 | AL56: 0.2 | AN56: 0 | AO56: 0 | AP56: 0 | AQ56: 0 | AR56: 0 | AS56: 0 | AU56: 0 | AV56: 0
E57: 55 | F57: 0 | G57: 0 | H57: 0.01484196181 | I57: 0.06216279826 | J57: 0.05784997204 | K57: =IF('Input Solar'!$D$18=Background!$X$2,'Calc Solar'!H57*$H$173,IF('Input Solar'!$D$18=Background!$X$3,'Calc Solar'!I57*$I$173,'Calc Solar'!J57*$J$173)) -> 0 | L57: =IF('Input Solar'!$D$20="Default",IF('Input Solar'!$D$18=Background!$X$2,'Calc Solar'!H57,IF('Input Solar'!$D$18=Background!$X$3,'Calc Solar'!I57,'Calc Solar'!J57)),K57) -> 0.01484196181 | M57: 0 | N57: 0 | O57: 0 | P57: 0 | Q57: 0 | R57: 0 | S57: 0 | T57: 0 | U57: 0 | V57: 0 | W57: 0 | X57: 0 | Y57: 0 | Z57: 0 | AA57: 0 | AB57: 0 | AC57: =IF(AB57>0,Background!$M$22/AB57,0) -> 0 | AD57: 0 | AE57: 0 | AF57: 0 | AG57: 0 | AH57: 0 | AI57: 0 | AJ57: 0 | AK57: 0 | AL57: 0.2 | AN57: 0 | AO57: 0 | AP57: 0 | AQ57: 0 | AR57: 0 | AS57: 0 | AU57: 0 | AV57: 0
A58: Project CAPEX | B58: =IF('Input Solar'!D64<>"Individual",'Input Solar'!D73,'Input Solar'!E73) -> 500000 | E58: 56 | F58: 0 | G58: 0 | H58: 0.1400236198 | I58: 0.2704716223 | J58: 0.1895873067 | K58: =IF('Input Solar'!$D$18=Background!$X$2,'Calc Solar'!H58*$H$173,IF('Input Solar'!$D$18=Background!$X$3,'Calc Solar'!I58*$I$173,'Calc Solar'!J58*$J$173)) -> 0 | L58: =IF('Input Solar'!$D$20="Default",IF('Input Solar'!$D$18=Background!$X$2,'Calc Solar'!H58,IF('Input Solar'!$D$18=Background!$X$3,'Calc Solar'!I58,'Calc Solar'!J58)),K58) -> 0.1400236198 | M58: 0 | N58: 0 | O58: 0 | P58: 0 | Q58: 0 | R58: 0 | S58: 0 | T58: 0 | U58: 0 | V58: 0 | W58: 0 | X58: 0 | Y58: 0 | Z58: 0 | AA58: 0 | AB58: 0 | AC58: =IF(AB58>0,Background!$M$22/AB58,0) -> 0 | AD58: 0 | AE58: 0 | AF58: 0 | AG58: 0 | AH58: 0 | AI58: 0 | AJ58: 0 | AK58: 0 | AL58: 0.2 | AN58: 0 | AO58: =MAX(G58-AA58-AN58-AJ58,0) -> 0 | AP58: 0 | AQ58: 0 | AR58: 0 | AS58: 0 | AU58: 0 | AV58: 0
A59: Project CRF | B59: =B77*POWER(1+B77,B34)/(POWER(1+B77,B34)-1) -> 0.13387878 | E59: 57 | F59: =IF(E59-E35=24,F35,"") -> 0 | G59: 0 | H59: 0.2747366615 | I59: 0.4390113535 | J59: 0.3443361184 | K59: =IF('Input Solar'!$D$18=Background!$X$2,'Calc Solar'!H59*$H$173,IF('Input Solar'!$D$18=Background!$X$3,'Calc Solar'!I59*$I$173,'Calc Solar'!J59*$J$173)) -> 0 | L59: =IF('Input Solar'!$D$20="Default",IF('Input Solar'!$D$18=Background!$X$2,'Calc Solar'!H59,IF('Input Solar'!$D$18=Background!$X$3,'Calc Solar'!I59,'Calc Solar'!J59)),K59) -> 0.2747366615 | M59: 0 | N59: 0 | O59: 0 | P59: 0 | Q59: 0 | R59: 0 | S59: 0 | T59: 0 | U59: 0 | V59: 0 | W59: 0 | X59: 0 | Y59: 0 | Z59: 0 | AA59: 0 | AB59: 0 | AC59: =IF(AB59>0,Background!$M$22/AB59,0) -> 0 | AD59: 0 | AE59: 0 | AF59: 0 | AG59: 0 | AH59: 0 | AI59: 0 | AJ59: 0 | AK59: 0 | AL59: 0.2 | AN59: 0 | AO59: 0 | AP59: 0 | AQ59: 0 | AR59: 0 | AS59: 0 | AU59: 0 | AV59: 0
A60: Project Ann | B60: =B58*B59 -> 66939.39002 | E60: 58 | F60: 0 | G60: 0 | H60: 0.3628200668 | I60: 0.5451599658 | J60: 0.4826310147 | K60: =IF('Input Solar'!$D$18=Background!$X$2,'Calc Solar'!H60*$H$173,IF('Input Solar'!$D$18=Background!$X$3,'Calc Solar'!I60*$I$173,'Calc Solar'!J60*$J$173)) -> 0 | L60: =IF('Input Solar'!$D$20="Default",IF('Input Solar'!$D$18=Background!$X$2,'Calc Solar'!H60,IF('Input Solar'!$D$18=Background!$X$3,'Calc Solar'!I60,'Calc Solar'!J60)),K60) -> 0.3628200668 | M60: 0 | N60: 0 | O60: 0 | P60: 0 | Q60: 0 | R60: 0 | S60: 0 | T60: 0 | U60: 0 | V60: 0 | W60: 0 | X60: 0 | Y60: 0 | Z60: 0 | AA60: 0 | AB60: 0 | AC60: =IF(AB60>0,Background!$M$22/AB60,0) -> 0 | AD60: 0 | AE60: 0 | AF60: 0 | AG60: 0 | AH60: 0 | AI60: 0 | AJ60: 0 | AK60: 0 | AL60: 0.2 | AN60: 0 | AO60: 0 | AP60: 0 | AQ60: 0 | AR60: 0 | AS60: 0 | AU60: 0 | AV60: 0
A61: Other CAPEX | B61: =IF('Input Solar'!D64<>"Individual",'Input Solar'!D74,'Input Solar'!E74) -> 0 | E61: 59 | F61: 0 | G61: 0 | H61: 0.4013190209 | I61: 0.5903129907 | J61: 0.5900486773 | K61: =IF('Input Solar'!$D$18=Background!$X$2,'Calc Solar'!H61*$H$173,IF('Input Solar'!$D$18=Background!$X$3,'Calc Solar'!I61*$I$173,'Calc Solar'!J61*$J$173)) -> 0 | L61: =IF('Input Solar'!$D$20="Default",IF('Input Solar'!$D$18=Background!$X$2,'Calc Solar'!H61,IF('Input Solar'!$D$18=Background!$X$3,'Calc Solar'!I61,'Calc Solar'!J61)),K61) -> 0.4013190209 | M61: 0 | N61: 0 | O61: 0 | P61: 0 | Q61: 0 | R61: 0 | S61: 0 | T61: 0 | U61: 0 | V61: 0 | W61: 0 | X61: 0 | Y61: 0 | Z61: 0 | AA61: 0 | AB61: 0 | AC61: =IF(AB61>0,Background!$M$22/AB61,0) -> 0 | AD61: 0 | AE61: 0 | AF61: 0 | AG61: 0 | AH61: 0 | AI61: 0 | AJ61: 0 | AK61: 0 | AL61: 0.2 | AN61: 0 | AO61: 0 | AP61: 0 | AQ61: 0 | AR61: 0 | AS61: 0 | AU61: 0 | AV61: 0
A62: Other Ann | B62: =B61*B59 -> 0 | E62: 60 | F62: 0 | G62: 0 | H62: 0.5233735226 | I62: 0.6133032131 | J62: 0.6075081041 | K62: =IF('Input Solar'!$D$18=Background!$X$2,'Calc Solar'!H62*$H$173,IF('Input Solar'!$D$18=Background!$X$3,'Calc Solar'!I62*$I$173,'Calc Solar'!J62*$J$173)) -> 0 | L62: =IF('Input Solar'!$D$20="Default",IF('Input Solar'!$D$18=Background!$X$2,'Calc Solar'!H62,IF('Input Solar'!$D$18=Background!$X$3,'Calc Solar'!I62,'Calc Solar'!J62)),K62) -> 0.5233735226 | M62: 0 | N62: 0 | O62: 0 | P62: 0 | Q62: 0 | R62: 0 | S62: 0 | T62: 0 | U62: 0 | V62: 0 | W62: 0 | X62: 0 | Y62: 0 | Z62: 0 | AA62: 0 | AB62: 0 | AC62: =IF(AB62>0,Background!$M$22/AB62,0) -> 0 | AD62: 0 | AE62: 0 | AF62: 0 | AG62: 0 | AH62: 0 | AI62: 0 | AJ62: 0 | AK62: 0 | AL62: 0.2 | AN62: 0 | AO62: 0 | AP62: 0 | AQ62: 0 | AR62: 0 | AS62: 0 | AU62: 0 | AV62: 0
A63: Other OPEX fix | B63: =IF('Input Solar'!D64<>"Individual",'Input Solar'!D75,'Input Solar'!E75) -> 0 | E63: 61 | F63: 0 | G63: 0 | H63: 0.6052003347 | I63: 0.5895705723 | J63: 0.579002476 | K63: =IF('Input Solar'!$D$18=Background!$X$2,'Calc Solar'!H63*$H$173,IF('Input Solar'!$D$18=Background!$X$3,'Calc Solar'!I63*$I$173,'Calc Solar'!J63*$J$173)) -> 0 | L63: =IF('Input Solar'!$D$20="Default",IF('Input Solar'!$D$18=Background!$X$2,'Calc Solar'!H63,IF('Input Solar'!$D$18=Background!$X$3,'Calc Solar'!I63,'Calc Solar'!J63)),K63) -> 0.6052003347 | M63: 0 | N63: 0 | O63: 0 | P63: 0 | Q63: 0 | R63: 0 | S63: 0 | T63: 0 | U63: 0 | V63: 0 | W63: 0 | X63: 0 | Y63: 0 | Z63: 0 | AA63: 0 | AB63: 0 | AC63: =IF(AB63>0,Background!$M$22/AB63,0) -> 0 | AD63: 0 | AE63: 0 | AF63: 0 | AG63: 0 | AH63: 0 | AI63: 0 | AJ63: 0 | AK63: 0 | AL63: 0.2 | AN63: 0 | AO63: 0 | AP63: 0 | AQ63: 0 | AR63: 0 | AS63: 0 | AU63: 0 | AV63: 0
A64: Personal OPEX fix | B64: =IF('Input Solar'!D64<>"Individual",'Input Solar'!D76,'Input Solar'!E76) -> 0 | E64: 62 | F64: 0 | G64: 0 | H64: 0.6262902993 | I64: 0.5215596692 | J64: 0.508555899 | K64: =IF('Input Solar'!$D$18=Background!$X$2,'Calc Solar'!H64*$H$173,IF('Input Solar'!$D$18=Background!$X$3,'Calc Solar'!I64*$I$173,'Calc Solar'!J64*$J$173)) -> 0 | L64: =IF('Input Solar'!$D$20="Default",IF('Input Solar'!$D$18=Background!$X$2,'Calc Solar'!H64,IF('Input Solar'!$D$18=Background!$X$3,'Calc Solar'!I64,'Calc Solar'!J64)),K64) -> 0.6262902993 | M64: 0 | N64: 0 | O64: 0 | P64: 0 | Q64: 0 | R64: 0 | S64: 0 | T64: 0 | U64: 0 | V64: 0 | W64: 0 | X64: 0 | Y64: 0 | Z64: 0 | AA64: 0 | AB64: 0 | AC64: =IF(AB64>0,Background!$M$22/AB64,0) -> 0 | AD64: 0 | AE64: 0 | AF64: 0 | AG64: 0 | AH64: 0 | AI64: 0 | AJ64: 0 | AK64: 0 | AL64: 0.2 | AN64: 0 | AO64: 0 | AP64: 0 | AQ64: 0 | AR64: 0 | AS64: 0 | AU64: 0 | AV64: 0
E65: 63 | F65: 0 | G65: 0 | H65: 0.4645797919 | I65: 0.3498985529 | J65: 0.3708214517 | K65: =IF('Input Solar'!$D$18=Background!$X$2,'Calc Solar'!H65*$H$173,IF('Input Solar'!$D$18=Background!$X$3,'Calc Solar'!I65*$I$173,'Calc Solar'!J65*$J$173)) -> 0 | L65: =IF('Input Solar'!$D$20="Default",IF('Input Solar'!$D$18=Background!$X$2,'Calc Solar'!H65,IF('Input Solar'!$D$18=Background!$X$3,'Calc Solar'!I65,'Calc Solar'!J65)),K65) -> 0.4645797919 | M65: 0 | N65: 0 | O65: 0 | P65: 0 | Q65: 0 | R65: 0 | S65: 0 | T65: 0 | U65: 0 | V65: 0 | W65: 0 | X65: 0 | Y65: 0 | Z65: 0 | AA65: 0 | AB65: 0 | AC65: =IF(AB65>0,Background!$M$22/AB65,0) -> 0 | AD65: 0 | AE65: 0 | AF65: 0 | AG65: 0 | AH65: 0 | AI65: 0 | AJ65: 0 | AK65: 0 | AL65: 0.2 | AN65: 0 | AO65: 0 | AP65: 0 | AQ65: 0 | AR65: 0 | AS65: 0 | AU65: 0 | AV65: 0
A66: Grid CAPEX | B66: =IF('Input Solar'!D80<>"Individual",'Input Solar'!D84,'Input Solar'!E84) -> 0 | E66: 64 | F66: 0 | G66: 0 | H66: 0.2818811892 | I66: 0.1834687963 | J66: 0.2241847262 | K66: =IF('Input Solar'!$D$18=Background!$X$2,'Calc Solar'!H66*$H$173,IF('Input Solar'!$D$18=Background!$X$3,'Calc Solar'!I66*$I$173,'Calc Solar'!J66*$J$173)) -> 0 | L66: =IF('Input Solar'!$D$20="Default",IF('Input Solar'!$D$18=Background!$X$2,'Calc Solar'!H66,IF('Input Solar'!$D$18=Background!$X$3,'Calc Solar'!I66,'Calc Solar'!J66)),K66) -> 0.2818811892 | M66: 0 | N66: 0 | O66: 0 | P66: 0 | Q66: 0 | R66: 0 | S66: 0 | T66: 0 | U66: 0 | V66: 0 | W66: 0 | X66: 0 | Y66: 0 | Z66: 0 | AA66: 0 | AB66: 0 | AC66: =IF(AB66>0,Background!$M$22/AB66,0) -> 0 | AD66: 0 | AE66: 0 | AF66: 0 | AG66: 0 | AH66: 0 | AI66: 0 | AJ66: 0 | AK66: 0 | AL66: 0.2 | AN66: 0 | AO66: 0 | AP66: 0 | AQ66: 0 | AR66: 0 | AS66: 0 | AU66: 0 | AV66: 0
A67: Grid OPEX | B67: =IF('Input Solar'!D80<>"Individual",'Input Solar'!D85,'Input Solar'!E85) -> 0 | E67: 65 | F67: 0 | G67: 0 | H67: 0.1058107741 | I67: 0.054007171 | J67: 0.09079643674 | K67: =IF('Input Solar'!$D$18=Background!$X$2,'Calc Solar'!H67*$H$173,IF('Input Solar'!$D$18=Background!$X$3,'Calc Solar'!I67*$I$173,'Calc Solar'!J67*$J$173)) -> 0 | L67: =IF('Input Solar'!$D$20="Default",IF('Input Solar'!$D$18=Background!$X$2,'Calc Solar'!H67,IF('Input Solar'!$D$18=Background!$X$3,'Calc Solar'!I67,'Calc Solar'!J67)),K67) -> 0.1058107741 | M67: 0 | N67: 0 | O67: 0 | P67: 0 | Q67: 0 | R67: 0 | S67: 0 | T67: 0 | U67: 0 | V67: 0 | W67: 0 | X67: 0 | Y67: 0 | Z67: 0 | AA67: 0 | AB67: 0 | AC67: =IF(AB67>0,Background!$M$22/AB67,0) -> 0 | AD67: 0 | AE67: 0 | AF67: 0 | AG67: 0 | AH67: 0 | AI67: 0 | AJ67: 0 | AK67: 0 | AL67: 0.2 | AN67: 0 | AO67: 0 | AP67: =MAX(AK67,-1*(M67-AO67)) -> 0 | AQ67: =G67-AO67-AJ67-AN67 -> 0 | AR67: =AA67-AQ67 -> 0 | AS67: =MAX(AK67-AP67,-1*AR67) -> 0 | AU67: 0 | AV67: 0
A68: Grid lifetime | B68: =IF('Input Solar'!$D$80<>"Individual",'Input Solar'!D86,'Input Solar'!E86) -> 20 | E68: 66 | F68: 0 | G68: =F68*(1+$B$4) -> 0 | H68: 0 | I68: 0 | J68: 0.003864820846 | K68: =IF('Input Solar'!$D$18=Background!$X$2,'Calc Solar'!H68*$H$173,IF('Input Solar'!$D$18=Background!$X$3,'Calc Solar'!I68*$I$173,'Calc Solar'!J68*$J$173)) -> 0 | L68: =IF('Input Solar'!$D$20="Default",IF('Input Solar'!$D$18=Background!$X$2,'Calc Solar'!H68,IF('Input Solar'!$D$18=Background!$X$3,'Calc Solar'!I68,'Calc Solar'!J68)),K68) -> 0 | M68: =L68*$B$7 -> 0 | N68: =G68-M68 -> 0 | O68: =MIN(N68,0) -> 0 | P68: =MAX(O68*$B$10,-1*$B$8*$B$9*$B$10) -> 0 | Q68: =MAX(P68,-(1-AL67)*$B$8) -> 0 | R68: =MAX(N68,0) -> 0 | S68: =MIN(R68/$B$11,$B$8*$B$9/$B$11) -> 0 | T68: =MAX(MIN(S68,(AL67-$B$12)*$B$8),0) -> 0 | U68: =T68*$B$11 -> 0 | V68: =ROUND(MAX(0,N68-U68),5) -> 0 | W68: =G68*$B$14 -> 0 | X68: =MIN($B$9*$B$8,(AL67-$B$12)*$B$8*$B$11) -> 0 | Y68: =MAX(0,W68-X68) -> 0 | Z68: =MAX(V68,Y68) -> 0 | AA68: =IF(Z68<=0,0,MIN(MAX(Z68,$D$107),$D$108)) -> 0 | AB68: =IF(AA68=0,0,MIN((AA68/$D$109)/(($D$113+$D$114*(AA68/$D$109)))/$D$115,$D$125)) -> 0 | AC68: =IF(AB68>0,Background!$M$22/AB68,0) -> 0 | AD68: =AC68*AA68 -> 0 | AE68: =AA68+M68-G68 -> 0 | AF68: =IF(AE68>0,MIN(AE68*$B$10,$B$8*$B$9*$B$10),0) -> 0 | AG68: =MAX(0,MIN(AF68/$B$8,1-AL67)) -> 0 | AH68: =IF(AE68<0,MAX(AE68/$B$11,-$B$8*$B$9/$B$11),0) -> 0 | AI68: =MIN(0,MAX(AH68/$B$8,-1*(AL67-$B$12))) -> 0 | AJ68: =AI68*-$B$8*$B$11 -> 0 | AK68: =AG68*-$B$8 -> 0 | AL68: =MIN(1,AL67+AI68+AG68) -> 0.2 | AN68: =MAX(G68-M68-AA68-AJ68,0) -> 0 | AO68: =MAX(G68-AA68-AN68-AJ68,0) -> 0 | AP68: =MAX(AK68,-1*(M68-AO68)) -> 0 | AQ68: 0 | AR68: 0 | AS68: 0 | AU68: =-1*(AR68+AS68) -> 0 | AV68: =AQ68-AS68 -> 0
A69: Grid CRF | B69: =B77*POWER(1+B77,B68)/(POWER(1+B77,B68)-1) -> 0.13387878 | E69: 67 | F69: 0 | G69: 0 | H69: 0 | I69: 0 | J69: 0 | K69: =IF('Input Solar'!$D$18=Background!$X$2,'Calc Solar'!H69*$H$173,IF('Input Solar'!$D$18=Background!$X$3,'Calc Solar'!I69*$I$173,'Calc Solar'!J69*$J$173)) -> 0 | L69: =IF('Input Solar'!$D$20="Default",IF('Input Solar'!$D$18=Background!$X$2,'Calc Solar'!H69,IF('Input Solar'!$D$18=Background!$X$3,'Calc Solar'!I69,'Calc Solar'!J69)),K69) -> 0 | M69: =L69*$B$7 -> 0 | N69: =G69-M69 -> 0 | O69: 0 | P69: 0 | Q69: 0 | R69: 0 | S69: 0 | T69: 0 | U69: 0 | V69: 0 | W69: 0 | X69: 0 | Y69: 0 | Z69: 0 | AA69: 0 | AB69: 0 | AC69: =IF(AB69>0,Background!$M$22/AB69,0) -> 0 | AD69: 0 | AE69: 0 | AF69: 0 | AG69: 0 | AH69: 0 | AI69: 0 | AJ69: 0 | AK69: 0 | AL69: 0.2 | AN69: 0 | AO69: 0 | AP69: 0 | AQ69: 0 | AR69: 0 | AS69: 0 | AU69: 0 | AV69: 0
A70: Grid Ann | B70: =B66*B69 -> 0 | E70: 68 | F70: 0 | G70: 0 | H70: 0 | I70: 0 | J70: 0 | K70: =IF('Input Solar'!$D$18=Background!$X$2,'Calc Solar'!H70*$H$173,IF('Input Solar'!$D$18=Background!$X$3,'Calc Solar'!I70*$I$173,'Calc Solar'!J70*$J$173)) -> 0 | L70: =IF('Input Solar'!$D$20="Default",IF('Input Solar'!$D$18=Background!$X$2,'Calc Solar'!H70,IF('Input Solar'!$D$18=Background!$X$3,'Calc Solar'!I70,'Calc Solar'!J70)),K70) -> 0 | M70: 0 | N70: 0 | O70: 0 | P70: 0 | Q70: 0 | R70: 0 | S70: 0 | T70: 0 | U70: 0 | V70: 0 | W70: 0 | X70: 0 | Y70: 0 | Z70: 0 | AA70: 0 | AB70: 0 | AC70: =IF(AB70>0,Background!$M$22/AB70,0) -> 0 | AD70: 0 | AE70: 0 | AF70: 0 | AG70: 0 | AH70: 0 | AI70: 0 | AJ70: 0 | AK70: 0 | AL70: 0.2 | AN70: 0 | AO70: 0 | AP70: 0 | AQ70: 0 | AR70: 0 | AS70: 0 | AU70: 0 | AV70: 0
E71: 69 | F71: 0 | G71: 0 | H71: 0 | I71: 0 | J71: 0 | K71: =IF('Input Solar'!$D$18=Background!$X$2,'Calc Solar'!H71*$H$173,IF('Input Solar'!$D$18=Background!$X$3,'Calc Solar'!I71*$I$173,'Calc Solar'!J71*$J$173)) -> 0 | L71: =IF('Input Solar'!$D$20="Default",IF('Input Solar'!$D$18=Background!$X$2,'Calc Solar'!H71,IF('Input Solar'!$D$18=Background!$X$3,'Calc Solar'!I71,'Calc Solar'!J71)),K71) -> 0 | M71: 0 | N71: 0 | O71: 0 | P71: 0 | Q71: 0 | R71: 0 | S71: 0 | T71: 0 | U71: 0 | V71: 0 | W71: 0 | X71: 0 | Y71: 0 | Z71: 0 | AA71: 0 | AB71: 0 | AC71: =IF(AB71>0,Background!$M$22/AB71,0) -> 0 | AD71: 0 | AE71: 0 | AF71: 0 | AG71: 0 | AH71: 0 | AI71: 0 | AJ71: 0 | AK71: 0 | AL71: 0.2 | AN71: 0 | AO71: 0 | AP71: 0 | AQ71: 0 | AR71: 0 | AS71: 0 | AU71: 0 | AV71: 0
A72: Diesel excess weekly | B72: =SUM(AR3:AR170)+SUM(AS3:AS170) -> 0 | E72: 70 | F72: 0 | G72: 0 | H72: 0 | I72: 0 | J72: 0 | K72: =IF('Input Solar'!$D$18=Background!$X$2,'Calc Solar'!H72*$H$173,IF('Input Solar'!$D$18=Background!$X$3,'Calc Solar'!I72*$I$173,'Calc Solar'!J72*$J$173)) -> 0 | L72: =IF('Input Solar'!$D$20="Default",IF('Input Solar'!$D$18=Background!$X$2,'Calc Solar'!H72,IF('Input Solar'!$D$18=Background!$X$3,'Calc Solar'!I72,'Calc Solar'!J72)),K72) -> 0 | M72: 0 | N72: 0 | O72: 0 | P72: 0 | Q72: 0 | R72: 0 | S72: 0 | T72: 0 | U72: 0 | V72: 0 | W72: 0 | X72: 0 | Y72: 0 | Z72: 0 | AA72: 0 | AB72: 0 | AC72: =IF(AB72>0,Background!$M$22/AB72,0) -> 0 | AD72: 0 | AE72: 0 | AF72: 0 | AG72: 0 | AH72: 0 | AI72: 0 | AJ72: 0 | AK72: 0 | AL72: 0.2 | AN72: 0 | AO72: 0 | AP72: 0 | AQ72: 0 | AR72: 0 | AS72: 0 | AU72: 0 | AV72: 0
E73: 71 | F73: 0 | G73: 0 | H73: 0 | I73: 0 | J73: 0 | K73: =IF('Input Solar'!$D$18=Background!$X$2,'Calc Solar'!H73*$H$173,IF('Input Solar'!$D$18=Background!$X$3,'Calc Solar'!I73*$I$173,'Calc Solar'!J73*$J$173)) -> 0 | L73: =IF('Input Solar'!$D$20="Default",IF('Input Solar'!$D$18=Background!$X$2,'Calc Solar'!H73,IF('Input Solar'!$D$18=Background!$X$3,'Calc Solar'!I73,'Calc Solar'!J73)),K73) -> 0 | M73: 0 | N73: 0 | O73: 0 | P73: 0 | Q73: 0 | R73: 0 | S73: 0 | T73: 0 | U73: 0 | V73: 0 | W73: 0 | X73: 0 | Y73: 0 | Z73: 0 | AA73: 0 | AB73: 0 | AC73: =IF(AB73>0,Background!$M$22/AB73,0) -> 0 | AD73: 0 | AE73: 0 | AF73: 0 | AG73: 0 | AH73: 0 | AI73: 0 | AJ73: 0 | AK73: 0 | AL73: 0.2 | AN73: 0 | AO73: 0 | AP73: 0 | AQ73: 0 | AR73: 0 | AS73: 0 | AU73: 0 | AV73: 0
A74: Opex | B74: =SUM(B41:B43)+B45+B63+B64+B67 -> 4.05e-11 | E74: 72 | F74: 0 | G74: 0 | H74: 0 | I74: 0 | J74: 0 | K74: =IF('Input Solar'!$D$18=Background!$X$2,'Calc Solar'!H74*$H$173,IF('Input Solar'!$D$18=Background!$X$3,'Calc Solar'!I74*$I$173,'Calc Solar'!J74*$J$173)) -> 0 | L74: =IF('Input Solar'!$D$20="Default",IF('Input Solar'!$D$18=Background!$X$2,'Calc Solar'!H74,IF('Input Solar'!$D$18=Background!$X$3,'Calc Solar'!I74,'Calc Solar'!J74)),K74) -> 0 | M74: 0 | N74: 0 | O74: 0 | P74: 0 | Q74: 0 | R74: 0 | S74: 0 | T74: 0 | U74: 0 | V74: 0 | W74: 0 | X74: 0 | Y74: 0 | Z74: 0 | AA74: 0 | AB74: 0 | AC74: =IF(AB74>0,Background!$M$22/AB74,0) -> 0 | AD74: 0 | AE74: 0 | AF74: 0 | AG74: 0 | AH74: 0 | AI74: 0 | AJ74: 0 | AK74: 0 | AL74: 0.2 | AN74: 0 | AO74: 0 | AP74: 0 | AQ74: 0 | AR74: 0 | AS74: 0 | AU74: 0 | AV74: 0
A75: Fuel costs | B75: =B44 -> 0 | E75: 73 | F75: 0 | G75: 0 | H75: 0 | I75: 0 | J75: 0 | K75: =IF('Input Solar'!$D$18=Background!$X$2,'Calc Solar'!H75*$H$173,IF('Input Solar'!$D$18=Background!$X$3,'Calc Solar'!I75*$I$173,'Calc Solar'!J75*$J$173)) -> 0 | L75: =IF('Input Solar'!$D$20="Default",IF('Input Solar'!$D$18=Background!$X$2,'Calc Solar'!H75,IF('Input Solar'!$D$18=Background!$X$3,'Calc Solar'!I75,'Calc Solar'!J75)),K75) -> 0 | M75: 0 | N75: 0 | O75: 0 | P75: 0 | Q75: 0 | R75: 0 | S75: 0 | T75: 0 | U75: 0 | V75: 0 | W75: 0 | X75: 0 | Y75: 0 | Z75: 0 | AA75: 0 | AB75: 0 | AC75: =IF(AB75>0,Background!$M$22/AB75,0) -> 0 | AD75: 0 | AE75: 0 | AF75: 0 | AG75: 0 | AH75: 0 | AI75: 0 | AJ75: 0 | AK75: 0 | AL75: 0.2 | AN75: 0 | AO75: 0 | AP75: 0 | AQ75: 0 | AR75: 0 | AS75: 0 | AU75: 0 | AV75: 0
A76: Annual cons. | B76: =ROUND((SUM(G3:G170)-B81)*8760/168,2) -> 0 | E76: 74 | F76: 0 | G76: 0 | H76: 0 | I76: 0 | J76: 0 | K76: =IF('Input Solar'!$D$18=Background!$X$2,'Calc Solar'!H76*$H$173,IF('Input Solar'!$D$18=Background!$X$3,'Calc Solar'!I76*$I$173,'Calc Solar'!J76*$J$173)) -> 0 | L76: =IF('Input Solar'!$D$20="Default",IF('Input Solar'!$D$18=Background!$X$2,'Calc Solar'!H76,IF('Input Solar'!$D$18=Background!$X$3,'Calc Solar'!I76,'Calc Solar'!J76)),K76) -> 0 | M76: 0 | N76: 0 | O76: 0 | P76: 0 | Q76: 0 | R76: 0 | S76: 0 | T76: 0 | U76: 0 | V76: 0 | W76: 0 | X76: 0 | Y76: 0 | Z76: 0 | AA76: 0 | AB76: =IF(AA76=0,0,MIN((AA76/$D$109)/(($D$113+$D$114*(AA76/$D$109)))/$D$115,$D$125)) -> 0 | AC76: =IF(AB76>0,Background!$M$22/AB76,0) -> 0 | AD76: 0 | AE76: 0 | AF76: 0 | AG76: 0 | AH76: 0 | AI76: 0 | AJ76: 0 | AK76: 0 | AL76: 0.2 | AN76: 0 | AO76: 0 | AP76: 0 | AQ76: 0 | AR76: 0 | AS76: 0 | AU76: 0 | AV76: 0
A77: WACC | B77: =IF('Input Solar'!D64="Default",'Input Solar'!D68,'Input Solar'!E68) -> 0.12 | E77: 75 | F77: 0 | G77: 0 | H77: 0 | I77: 0 | J77: 0 | K77: =IF('Input Solar'!$D$18=Background!$X$2,'Calc Solar'!H77*$H$173,IF('Input Solar'!$D$18=Background!$X$3,'Calc Solar'!I77*$I$173,'Calc Solar'!J77*$J$173)) -> 0 | L77: =IF('Input Solar'!$D$20="Default",IF('Input Solar'!$D$18=Background!$X$2,'Calc Solar'!H77,IF('Input Solar'!$D$18=Background!$X$3,'Calc Solar'!I77,'Calc Solar'!J77)),K77) -> 0 | M77: 0 | N77: 0 | O77: 0 | P77: 0 | Q77: 0 | R77: 0 | S77: 0 | T77: 0 | U77: 0 | V77: 0 | W77: 0 | X77: 0 | Y77: 0 | Z77: 0 | AA77: 0 | AB77: 0 | AC77: =IF(AB77>0,Background!$M$22/AB77,0) -> 0 | AD77: 0 | AE77: 0 | AF77: 0 | AG77: 0 | AH77: 0 | AI77: 0 | AJ77: 0 | AK77: 0 | AL77: 0.2 | AN77: 0 | AO77: 0 | AP77: 0 | AQ77: 0 | AR77: 0 | AS77: 0 | AU77: 0 | AV77: 0
A78: Ann Capex | B78: =B56+B52+B48+B60+B62+B70 -> 66939.39002 | E78: 76 | F78: 0 | G78: 0 | H78: 0 | I78: 0 | J78: 0 | K78: =IF('Input Solar'!$D$18=Background!$X$2,'Calc Solar'!H78*$H$173,IF('Input Solar'!$D$18=Background!$X$3,'Calc Solar'!I78*$I$173,'Calc Solar'!J78*$J$173)) -> 0 | L78: =IF('Input Solar'!$D$20="Default",IF('Input Solar'!$D$18=Background!$X$2,'Calc Solar'!H78,IF('Input Solar'!$D$18=Background!$X$3,'Calc Solar'!I78,'Calc Solar'!J78)),K78) -> 0 | M78: 0 | N78: 0 | O78: 0 | P78: 0 | Q78: 0 | R78: 0 | S78: 0 | T78: 0 | U78: 0 | V78: 0 | W78: 0 | X78: 0 | Y78: 0 | Z78: 0 | AA78: 0 | AB78: 0 | AC78: =IF(AB78>0,Background!$M$22/AB78,0) -> 0 | AD78: 0 | AE78: 0 | AF78: 0 | AG78: 0 | AH78: 0 | AI78: 0 | AJ78: 0 | AK78: 0 | AL78: 0.2 | AN78: 0 | AO78: 0 | AP78: 0 | AQ78: 0 | AR78: 0 | AS78: 0 | AU78: 0 | AV78: 0
A79: LCOE | B79: =IFERROR(MAX(0,(B78+B74+B75)/B76),0) -> 0 | E79: 77 | F79: 0 | G79: 0 | H79: 0 | I79: 0 | J79: 0 | K79: =IF('Input Solar'!$D$18=Background!$X$2,'Calc Solar'!H79*$H$173,IF('Input Solar'!$D$18=Background!$X$3,'Calc Solar'!I79*$I$173,'Calc Solar'!J79*$J$173)) -> 0 | L79: =IF('Input Solar'!$D$20="Default",IF('Input Solar'!$D$18=Background!$X$2,'Calc Solar'!H79,IF('Input Solar'!$D$18=Background!$X$3,'Calc Solar'!I79,'Calc Solar'!J79)),K79) -> 0 | M79: 0 | N79: 0 | O79: 0 | P79: 0 | Q79: 0 | R79: 0 | S79: 0 | T79: 0 | U79: 0 | V79: 0 | W79: 0 | X79: 0 | Y79: 0 | Z79: 0 | AA79: 0 | AB79: 0 | AC79: =IF(AB79>0,Background!$M$22/AB79,0) -> 0 | AD79: 0 | AE79: 0 | AF79: 0 | AG79: 0 | AH79: 0 | AI79: 0 | AJ79: 0 | AK79: 0 | AL79: 0.2 | AN79: 0 | AO79: 0 | AP79: 0 | AQ79: 0 | AR79: 0 | AS79: 0 | AU79: 0 | AV79: 0
A80: RE Share eligible | B80: =IFERROR((B83+C82)/(B82-B81),0) -> 0 | E80: 78 | F80: 0 | G80: 0 | H80: 0 | I80: 0 | J80: 0 | K80: =IF('Input Solar'!$D$18=Background!$X$2,'Calc Solar'!H80*$H$173,IF('Input Solar'!$D$18=Background!$X$3,'Calc Solar'!I80*$I$173,'Calc Solar'!J80*$J$173)) -> 0 | L80: =IF('Input Solar'!$D$20="Default",IF('Input Solar'!$D$18=Background!$X$2,'Calc Solar'!H80,IF('Input Solar'!$D$18=Background!$X$3,'Calc Solar'!I80,'Calc Solar'!J80)),K80) -> 0 | M80: 0 | N80: 0 | O80: 0 | P80: 0 | Q80: 0 | R80: 0 | S80: 0 | T80: 0 | U80: 0 | V80: 0 | W80: 0 | X80: 0 | Y80: 0 | Z80: 0 | AA80: 0 | AB80: 0 | AC80: =IF(AB80>0,Background!$M$22/AB80,0) -> 0 | AD80: 0 | AE80: 0 | AF80: 0 | AG80: 0 | AH80: 0 | AI80: 0 | AJ80: 0 | AK80: 0 | AL80: 0.2 | AN80: 0 | AO80: 0 | AP80: 0 | AQ80: 0 | AR80: 0 | AS80: 0 | AU80: 0 | AV80: 0
A81: Weekly unmet load | B81: =SUM(AN3:AN170) -> 0 | C81: RECs kwh total | E81: 79 | F81: =IF(E81-E57=24,F57,"") -> 0 | G81: =F81*(1+$B$4) -> 0 | H81: 0.02025266056 | I81: 0.05277195898 | J81: 0.07808506335 | K81: =IF('Input Solar'!$D$18=Background!$X$2,'Calc Solar'!H81*$H$173,IF('Input Solar'!$D$18=Background!$X$3,'Calc Solar'!I81*$I$173,'Calc Solar'!J81*$J$173)) -> 0 | L81: =IF('Input Solar'!$D$20="Default",IF('Input Solar'!$D$18=Background!$X$2,'Calc Solar'!H81,IF('Input Solar'!$D$18=Background!$X$3,'Calc Solar'!I81,'Calc Solar'!J81)),K81) -> 0.02025266056 | M81: 0 | N81: 0 | O81: 0 | P81: 0 | Q81: =MAX(P81,-(1-AL80)*$B$8) -> 0 | R81: 0 | S81: 0 | T81: =MAX(MIN(S81,(AL80-$B$12)*$B$8),0) -> 0 | U81: 0 | V81: 0 | W81: 0 | X81: 0 | Y81: 0 | Z81: 0 | AA81: 0 | AB81: 0 | AC81: =IF(AB81>0,Background!$M$22/AB81,0) -> 0 | AD81: 0 | AE81: 0 | AF81: 0 | AG81: =MAX(0,MIN(AF81/$B$8,1-AL80)) -> 0 | AH81: 0 | AI81: =MIN(0,MAX(AH81/$B$8,-1*(AL80-$B$12))) -> 0 | AJ81: 0 | AK81: 0 | AL81: =MIN(1,AL80+AI81+AG81) -> 0.2 | AN81: 0 | AO81: 0 | AP81: 0 | AQ81: 0 | AR81: 0 | AS81: 0 | AU81: 0 | AV81: 0
A82: weekly demand+losses | B82: =SUM(G3:G170) -> 0 | C82: =IF('Input Solar'!$D$90="Default",'Input Solar'!$D$96,'Input Solar'!$E$96)/(365/7)*1000 -> 0 | E82: 80 | F82: 0 | G82: 0 | H82: 0.2240058017 | I82: 0.2191350055 | J82: 0.3030988213 | K82: =IF('Input Solar'!$D$18=Background!$X$2,'Calc Solar'!H82*$H$173,IF('Input Solar'!$D$18=Background!$X$3,'Calc Solar'!I82*$I$173,'Calc Solar'!J82*$J$173)) -> 0 | L82: =IF('Input Solar'!$D$20="Default",IF('Input Solar'!$D$18=Background!$X$2,'Calc Solar'!H82,IF('Input Solar'!$D$18=Background!$X$3,'Calc Solar'!I82,'Calc Solar'!J82)),K82) -> 0.2240058017 | M82: 0 | N82: 0 | O82: 0 | P82: 0 | Q82: 0 | R82: 0 | S82: 0 | T82: 0 | U82: 0 | V82: 0 | W82: 0 | X82: 0 | Y82: 0 | Z82: 0 | AA82: 0 | AB82: 0 | AC82: =IF(AB82>0,Background!$M$22/AB82,0) -> 0 | AD82: 0 | AE82: 0 | AF82: 0 | AG82: 0 | AH82: 0 | AI82: 0 | AJ82: 0 | AK82: 0 | AL82: 0.2 | AN82: 0 | AO82: 0 | AP82: 0 | AQ82: 0 | AR82: 0 | AS82: 0 | AU82: 0 | AV82: 0
A83: weekly PV+ PV_Batt eligible | B83: =IFERROR(IF(B16=0,0,B86+B87)*(C84/B7),0) -> 0 | C83: eligible PV capacity | E83: 81 | F83: 0 | G83: 0 | H83: 0.4319314746 | I83: 0.3287202618 | J83: 0.4834737486 | K83: =IF('Input Solar'!$D$18=Background!$X$2,'Calc Solar'!H83*$H$173,IF('Input Solar'!$D$18=Background!$X$3,'Calc Solar'!I83*$I$173,'Calc Solar'!J83*$J$173)) -> 0 | L83: =IF('Input Solar'!$D$20="Default",IF('Input Solar'!$D$18=Background!$X$2,'Calc Solar'!H83,IF('Input Solar'!$D$18=Background!$X$3,'Calc Solar'!I83,'Calc Solar'!J83)),K83) -> 0.4319314746 | M83: 0 | N83: 0 | O83: 0 | P83: 0 | Q83: 0 | R83: 0 | S83: 0 | T83: 0 | U83: 0 | V83: 0 | W83: 0 | X83: 0 | Y83: 0 | Z83: 0 | AA83: 0 | AB83: 0 | AC83: =IF(AB83>0,Background!$M$22/AB83,0) -> 0 | AD83: 0 | AE83: 0 | AF83: 0 | AG83: 0 | AH83: 0 | AI83: 0 | AJ83: 0 | AK83: 0 | AL83: 0.2 | AN83: 0 | AO83: 0 | AP83: 0 | AQ83: 0 | AR83: 0 | AS83: 0 | AU83: 0 | AV83: 0
A84: weekly PV total consumed | B84: =B86+B87 -> 0 | C84: =B22+B23 -> 0 | E84: 82 | F84: 0 | G84: 0 | H84: 0.5659898167 | I84: 0.36716785 | J84: 0.6023795842 | K84: =IF('Input Solar'!$D$18=Background!$X$2,'Calc Solar'!H84*$H$173,IF('Input Solar'!$D$18=Background!$X$3,'Calc Solar'!I84*$I$173,'Calc Solar'!J84*$J$173)) -> 0 | L84: =IF('Input Solar'!$D$20="Default",IF('Input Solar'!$D$18=Background!$X$2,'Calc Solar'!H84,IF('Input Solar'!$D$18=Background!$X$3,'Calc Solar'!I84,'Calc Solar'!J84)),K84) -> 0.5659898167 | M84: 0 | N84: 0 | O84: 0 | P84: 0 | Q84: 0 | R84: 0 | S84: 0 | T84: 0 | U84: 0 | V84: 0 | W84: 0 | X84: 0 | Y84: 0 | Z84: 0 | AA84: 0 | AB84: 0 | AC84: =IF(AB84>0,Background!$M$22/AB84,0) -> 0 | AD84: 0 | AE84: 0 | AF84: 0 | AG84: 0 | AH84: 0 | AI84: 0 | AJ84: 0 | AK84: 0 | AL84: 0.2 | AN84: 0 | AO84: 0 | AP84: 0 | AQ84: 0 | AR84: 0 | AS84: 0 | AU84: 0 | AV84: 0
A85: weekly Diesel consumed directly | B85: =SUM(AQ3:AQ170) -> 0 | C85: weekly existing nn-eligible PV consumed | E85: 83 | F85: 0 | G85: 0 | H85: 0.6231399564 | I85: 0.3441195253 | J85: 0.6596267646 | K85: =IF('Input Solar'!$D$18=Background!$X$2,'Calc Solar'!H85*$H$173,IF('Input Solar'!$D$18=Background!$X$3,'Calc Solar'!I85*$I$173,'Calc Solar'!J85*$J$173)) -> 0 | L85: =IF('Input Solar'!$D$20="Default",IF('Input Solar'!$D$18=Background!$X$2,'Calc Solar'!H85,IF('Input Solar'!$D$18=Background!$X$3,'Calc Solar'!I85,'Calc Solar'!J85)),K85) -> 0.6231399564 | M85: 0 | N85: 0 | O85: 0 | P85: 0 | Q85: 0 | R85: 0 | S85: 0 | T85: 0 | U85: 0 | V85: 0 | W85: 0 | X85: 0 | Y85: 0 | Z85: 0 | AA85: 0 | AB85: 0 | AC85: =IF(AB85>0,Background!$M$22/AB85,0) -> 0 | AD85: 0 | AE85: 0 | AF85: 0 | AG85: 0 | AH85: 0 | AI85: 0 | AJ85: 0 | AK85: 0 | AL85: 0.2 | AN85: 0 | AO85: 0 | AP85: 0 | AQ85: 0 | AR85: 0 | AS85: 0 | AU85: 0 | AV85: 0
A86: weekly PV consumed directly | B86: =SUM(AO3:AO170) -> 0 | C86: =IFERROR(IF(B16=0,0,B86+B87)*((B7-C84)/B7),0) -> 0 | E86: 84 | F86: 0 | G86: 0 | H86: 0.7023500985 | I86: 0.409910705 | J86: 0.6628864345 | K86: =IF('Input Solar'!$D$18=Background!$X$2,'Calc Solar'!H86*$H$173,IF('Input Solar'!$D$18=Background!$X$3,'Calc Solar'!I86*$I$173,'Calc Solar'!J86*$J$173)) -> 0 | L86: =IF('Input Solar'!$D$20="Default",IF('Input Solar'!$D$18=Background!$X$2,'Calc Solar'!H86,IF('Input Solar'!$D$18=Background!$X$3,'Calc Solar'!I86,'Calc Solar'!J86)),K86) -> 0.7023500985 | M86: 0 | N86: 0 | O86: 0 | P86: 0 | Q86: 0 | R86: 0 | S86: 0 | T86: 0 | U86: 0 | V86: 0 | W86: 0 | X86: 0 | Y86: 0 | Z86: 0 | AA86: 0 | AB86: 0 | AC86: =IF(AB86>0,Background!$M$22/AB86,0) -> 0 | AD86: 0 | AE86: 0 | AF86: 0 | AG86: 0 | AH86: 0 | AI86: 0 | AJ86: 0 | AK86: 0 | AL86: 0.2 | AN86: 0 | AO86: 0 | AP86: 0 | AQ86: 0 | AR86: 0 | AS86: 0 | AU86: 0 | AV86: 0
A87: weekly PV from Batt consumed | B87: =B21 -> 0 | C87: weekly existing eligible PV consumed | E87: 85 | F87: 0 | G87: 0 | H87: 0.7246107986 | I87: 0.4436444745 | J87: 0.6157263048 | K87: =IF('Input Solar'!$D$18=Background!$X$2,'Calc Solar'!H87*$H$173,IF('Input Solar'!$D$18=Background!$X$3,'Calc Solar'!I87*$I$173,'Calc Solar'!J87*$J$173)) -> 0 | L87: =IF('Input Solar'!$D$20="Default",IF('Input Solar'!$D$18=Background!$X$2,'Calc Solar'!H87,IF('Input Solar'!$D$18=Background!$X$3,'Calc Solar'!I87,'Calc Solar'!J87)),K87) -> 0.7246107986 | M87: 0 | N87: 0 | O87: 0 | P87: 0 | Q87: 0 | R87: 0 | S87: 0 | T87: 0 | U87: 0 | V87: 0 | W87: 0 | X87: 0 | Y87: 0 | Z87: 0 | AA87: 0 | AB87: 0 | AC87: =IF(AB87>0,Background!$M$22/AB87,0) -> 0 | AD87: 0 | AE87: 0 | AF87: 0 | AG87: 0 | AH87: 0 | AI87: 0 | AJ87: 0 | AK87: 0 | AL87: 0.2 | AN87: 0 | AO87: 0 | AP87: 0 | AQ87: 0 | AR87: 0 | AS87: 0 | AU87: 0 | AV87: 0
A88: weekly batt discharge | B88: =B17 -> 0 | C88: =IFERROR(IF(B16=0,0,B86+B87)*(B23/B7),0) -> 0 | E88: 86 | F88: 0 | G88: 0 | H88: 0.6857180517 | I88: 0.4356564832 | J88: 0.5254507559 | K88: =IF('Input Solar'!$D$18=Background!$X$2,'Calc Solar'!H88*$H$173,IF('Input Solar'!$D$18=Background!$X$3,'Calc Solar'!I88*$I$173,'Calc Solar'!J88*$J$173)) -> 0 | L88: =IF('Input Solar'!$D$20="Default",IF('Input Solar'!$D$18=Background!$X$2,'Calc Solar'!H88,IF('Input Solar'!$D$18=Background!$X$3,'Calc Solar'!I88,'Calc Solar'!J88)),K88) -> 0.6857180517 | M88: 0 | N88: 0 | O88: 0 | P88: 0 | Q88: 0 | R88: 0 | S88: 0 | T88: 0 | U88: 0 | V88: 0 | W88: 0 | X88: 0 | Y88: 0 | Z88: 0 | AA88: 0 | AB88: 0 | AC88: =IF(AB88>0,Background!$M$22/AB88,0) -> 0 | AD88: 0 | AE88: 0 | AF88: 0 | AG88: 0 | AH88: 0 | AI88: 0 | AJ88: 0 | AK88: 0 | AL88: 0.2 | AN88: 0 | AO88: 0 | AP88: 0 | AQ88: 0 | AR88: 0 | AS88: 0 | AU88: 0 | AV88: 0
A89: weekly Diesel from batt consumed | B89: =B88-B87 -> 0 | C89: weekly new PV consumed | E89: 87 | F89: 0 | G89: 0 | H89: 0.4931107691 | I89: 0.3031122076 | J89: 0.3269230523 | K89: =IF('Input Solar'!$D$18=Background!$X$2,'Calc Solar'!H89*$H$173,IF('Input Solar'!$D$18=Background!$X$3,'Calc Solar'!I89*$I$173,'Calc Solar'!J89*$J$173)) -> 0 | L89: =IF('Input Solar'!$D$20="Default",IF('Input Solar'!$D$18=Background!$X$2,'Calc Solar'!H89,IF('Input Solar'!$D$18=Background!$X$3,'Calc Solar'!I89,'Calc Solar'!J89)),K89) -> 0.4931107691 | M89: 0 | N89: 0 | O89: 0 | P89: 0 | Q89: 0 | R89: 0 | S89: 0 | T89: 0 | U89: 0 | V89: 0 | W89: 0 | X89: 0 | Y89: 0 | Z89: 0 | AA89: 0 | AB89: 0 | AC89: =IF(AB89>0,Background!$M$22/AB89,0) -> 0 | AD89: 0 | AE89: 0 | AF89: 0 | AG89: 0 | AH89: 0 | AI89: 0 | AJ89: 0 | AK89: 0 | AL89: 0.2 | AN89: 0 | AO89: 0 | AP89: 0 | AQ89: 0 | AR89: 0 | AS89: 0 | AU89: 0 | AV89: 0
A90: weekly Diesel total consumed | B90: =B85+B89 -> 0 | C90: =IFERROR(IF(B16=0,0,B86+B87)*(B22/B7),0) -> 0 | E90: 88 | F90: 0 | G90: 0 | H90: 0.2866736027 | I90: 0.1686871389 | J90: 0.1502775831 | K90: =IF('Input Solar'!$D$18=Background!$X$2,'Calc Solar'!H90*$H$173,IF('Input Solar'!$D$18=Background!$X$3,'Calc Solar'!I90*$I$173,'Calc Solar'!J90*$J$173)) -> 0 | L90: =IF('Input Solar'!$D$20="Default",IF('Input Solar'!$D$18=Background!$X$2,'Calc Solar'!H90,IF('Input Solar'!$D$18=Background!$X$3,'Calc Solar'!I90,'Calc Solar'!J90)),K90) -> 0.2866736027 | M90: 0 | N90: 0 | O90: 0 | P90: 0 | Q90: 0 | R90: 0 | S90: 0 | T90: 0 | U90: 0 | V90: 0 | W90: 0 | X90: 0 | Y90: 0 | Z90: 0 | AA90: 0 | AB90: 0 | AC90: =IF(AB90>0,Background!$M$22/AB90,0) -> 0 | AD90: 0 | AE90: 0 | AF90: 0 | AG90: 0 | AH90: 0 | AI90: 0 | AJ90: 0 | AK90: 0 | AL90: 0.2 | AN90: 0 | AO90: 0 | AP90: 0 | AQ90: 0 | AR90: 0 | AS90: 0 | AU90: 0 | AV90: 0
A91: Dieselgen efficiency | E91: 89 | F91: 0 | G91: 0 | H91: 0.1015427589 | I91: 0.0554937293 | J91: 0.03339255733 | K91: =IF('Input Solar'!$D$18=Background!$X$2,'Calc Solar'!H91*$H$173,IF('Input Solar'!$D$18=Background!$X$3,'Calc Solar'!I91*$I$173,'Calc Solar'!J91*$J$173)) -> 0 | L91: =IF('Input Solar'!$D$20="Default",IF('Input Solar'!$D$18=Background!$X$2,'Calc Solar'!H91,IF('Input Solar'!$D$18=Background!$X$3,'Calc Solar'!I91,'Calc Solar'!J91)),K91) -> 0.1015427589 | M91: 0 | N91: 0 | O91: 0 | P91: 0 | Q91: 0 | R91: 0 | S91: 0 | T91: 0 | U91: 0 | V91: 0 | W91: 0 | X91: 0 | Y91: 0 | Z91: 0 | AA91: =IF(Z91<=0,0,MIN(MAX(Z91,$D$107),$D$108)) -> 0 | AB91: 0 | AC91: =IF(AB91>0,Background!$M$22/AB91,0) -> 0 | AD91: 0 | AE91: 0 | AF91: 0 | AG91: 0 | AH91: 0 | AI91: 0 | AJ91: 0 | AK91: 0 | AL91: 0.2 | AN91: 0 | AO91: 0 | AP91: 0 | AQ91: 0 | AR91: 0 | AS91: 0 | AU91: 0 | AV91: 0
A92: Source: | E92: 90 | F92: 0 | G92: 0 | H92: 0 | I92: 0 | J92: 0 | K92: =IF('Input Solar'!$D$18=Background!$X$2,'Calc Solar'!H92*$H$173,IF('Input Solar'!$D$18=Background!$X$3,'Calc Solar'!I92*$I$173,'Calc Solar'!J92*$J$173)) -> 0 | L92: =IF('Input Solar'!$D$20="Default",IF('Input Solar'!$D$18=Background!$X$2,'Calc Solar'!H92,IF('Input Solar'!$D$18=Background!$X$3,'Calc Solar'!I92,'Calc Solar'!J92)),K92) -> 0 | M92: 0 | N92: 0 | O92: 0 | P92: 0 | Q92: 0 | R92: 0 | S92: 0 | T92: 0 | U92: 0 | V92: 0 | W92: 0 | X92: 0 | Y92: 0 | Z92: 0 | AA92: 0 | AB92: =IF(AA92=0,0,MIN((AA92/$D$109)/(($D$113+$D$114*(AA92/$D$109)))/$D$115,$D$125)) -> 0 | AC92: =IF(AB92>0,Background!$M$22/AB92,0) -> 0 | AD92: 0 | AE92: 0 | AF92: 0 | AG92: 0 | AH92: 0 | AI92: 0 | AJ92: 0 | AK92: 0 | AL92: 0.2 | AN92: 0 | AO92: 0 | AP92: 0 | AQ92: 0 | AR92: 0 | AS92: 0 | AU92: 0 | AV92: 0
A93: https://www.homerenergy.com/products/pro/docs/3.11/how_homer_creates_the_generator_efficiency_curve.html | E93: 91 | F93: 0 | G93: 0 | H93: 0 | I93: 0 | J93: 0 | K93: =IF('Input Solar'!$D$18=Background!$X$2,'Calc Solar'!H93*$H$173,IF('Input Solar'!$D$18=Background!$X$3,'Calc Solar'!I93*$I$173,'Calc Solar'!J93*$J$173)) -> 0 | L93: =IF('Input Solar'!$D$20="Default",IF('Input Solar'!$D$18=Background!$X$2,'Calc Solar'!H93,IF('Input Solar'!$D$18=Background!$X$3,'Calc Solar'!I93,'Calc Solar'!J93)),K93) -> 0 | M93: 0 | N93: 0 | O93: 0 | P93: 0 | Q93: 0 | R93: 0 | S93: 0 | T93: 0 | U93: 0 | V93: 0 | W93: 0 | X93: 0 | Y93: 0 | Z93: 0 | AA93: =IF(Z93<=0,0,MIN(MAX(Z93,$D$107),$D$108)) -> 0 | AB93: 0 | AC93: =IF(AB93>0,Background!$M$22/AB93,0) -> 0 | AD93: =AC93*AA93 -> 0 | AE93: 0 | AF93: 0 | AG93: 0 | AH93: 0 | AI93: 0 | AJ93: 0 | AK93: 0 | AL93: 0.2 | AN93: 0 | AO93: 0 | AP93: 0 | AQ93: 0 | AR93: 0 | AS93: 0 | AU93: 0 | AV93: 0
E94: 92 | F94: 0 | G94: 0 | H94: 0 | I94: 0 | J94: 0 | K94: =IF('Input Solar'!$D$18=Background!$X$2,'Calc Solar'!H94*$H$173,IF('Input Solar'!$D$18=Background!$X$3,'Calc Solar'!I94*$I$173,'Calc Solar'!J94*$J$173)) -> 0 | L94: =IF('Input Solar'!$D$20="Default",IF('Input Solar'!$D$18=Background!$X$2,'Calc Solar'!H94,IF('Input Solar'!$D$18=Background!$X$3,'Calc Solar'!I94,'Calc Solar'!J94)),K94) -> 0 | M94: 0 | N94: 0 | O94: 0 | P94: 0 | Q94: 0 | R94: 0 | S94: 0 | T94: 0 | U94: 0 | V94: 0 | W94: 0 | X94: 0 | Y94: 0 | Z94: =MAX(V94,Y94) -> 0 | AA94: 0 | AB94: 0 | AC94: =IF(AB94>0,Background!$M$22/AB94,0) -> 0 | AD94: 0 | AE94: 0 | AF94: 0 | AG94: 0 | AH94: 0 | AI94: 0 | AJ94: 0 | AK94: 0 | AL94: 0.2 | AN94: 0 | AO94: 0 | AP94: 0 | AQ94: 0 | AR94: 0 | AS94: 0 | AU94: 0 | AV94: 0
E95: 93 | F95: 0 | G95: 0 | H95: 0 | I95: 0 | J95: 0 | K95: =IF('Input Solar'!$D$18=Background!$X$2,'Calc Solar'!H95*$H$173,IF('Input Solar'!$D$18=Background!$X$3,'Calc Solar'!I95*$I$173,'Calc Solar'!J95*$J$173)) -> 0 | L95: =IF('Input Solar'!$D$20="Default",IF('Input Solar'!$D$18=Background!$X$2,'Calc Solar'!H95,IF('Input Solar'!$D$18=Background!$X$3,'Calc Solar'!I95,'Calc Solar'!J95)),K95) -> 0 | M95: 0 | N95: 0 | O95: 0 | P95: 0 | Q95: 0 | R95: 0 | S95: 0 | T95: 0 | U95: 0 | V95: 0 | W95: 0 | X95: 0 | Y95: 0 | Z95: =MAX(V95,Y95) -> 0 | AA95: =IF(Z95<=0,0,MIN(MAX(Z95,$D$107),$D$108)) -> 0 | AB95: 0 | AC95: =IF(AB95>0,Background!$M$22/AB95,0) -> 0 | AD95: 0 | AE95: 0 | AF95: 0 | AG95: 0 | AH95: 0 | AI95: 0 | AJ95: 0 | AK95: 0 | AL95: 0.2 | AN95: 0 | AO95: 0 | AP95: 0 | AQ95: 0 | AR95: 0 | AS95: 0 | AU95: 0 | AV95: 0
A96: Input parameters | B96: l/kWh | D96: n. of Gens | E96: 94 | F96: 0 | G96: 0 | H96: 0 | I96: 0 | J96: 0 | K96: =IF('Input Solar'!$D$18=Background!$X$2,'Calc Solar'!H96*$H$173,IF('Input Solar'!$D$18=Background!$X$3,'Calc Solar'!I96*$I$173,'Calc Solar'!J96*$J$173)) -> 0 | L96: =IF('Input Solar'!$D$20="Default",IF('Input Solar'!$D$18=Background!$X$2,'Calc Solar'!H96,IF('Input Solar'!$D$18=Background!$X$3,'Calc Solar'!I96,'Calc Solar'!J96)),K96) -> 0 | M96: 0 | N96: 0 | O96: 0 | P96: 0 | Q96: 0 | R96: 0 | S96: 0 | T96: 0 | U96: 0 | V96: 0 | W96: 0 | X96: 0 | Y96: 0 | Z96: 0 | AA96: 0 | AB96: =IF(AA96=0,0,MIN((AA96/$D$109)/(($D$113+$D$114*(AA96/$D$109)))/$D$115,$D$125)) -> 0 | AC96: =IF(AB96>0,Background!$M$22/AB96,0) -> 0 | AD96: =AC96*AA96 -> 0 | AE96: 0 | AF96: 0 | AG96: 0 | AH96: 0 | AI96: 0 | AJ96: 0 | AK96: 0 | AL96: 0.2 | AN96: 0 | AO96: 0 | AP96: 0 | AQ96: 0 | AR96: 0 | AS96: 0 | AU96: 0 | AV96: 0
A97: full load | B97: =IF('Input Solar'!$D$26="Default",'Input Solar'!D33,'Input Solar'!E33) -> 0.33 | D97: =IF('Input Solar'!$D$38="Default",'Input Solar'!D40,'Input Solar'!E40) -> 1 | E97: 95 | F97: 0 | G97: 0 | H97: 0 | I97: 0 | J97: 0 | K97: =IF('Input Solar'!$D$18=Background!$X$2,'Calc Solar'!H97*$H$173,IF('Input Solar'!$D$18=Background!$X$3,'Calc Solar'!I97*$I$173,'Calc Solar'!J97*$J$173)) -> 0 | L97: =IF('Input Solar'!$D$20="Default",IF('Input Solar'!$D$18=Background!$X$2,'Calc Solar'!H97,IF('Input Solar'!$D$18=Background!$X$3,'Calc Solar'!I97,'Calc Solar'!J97)),K97) -> 0 | M97: 0 | N97: 0 | O97: 0 | P97: 0 | Q97: 0 | R97: 0 | S97: 0 | T97: 0 | U97: 0 | V97: 0 | W97: 0 | X97: 0 | Y97: 0 | Z97: 0 | AA97: 0 | AB97: 0 | AC97: =IF(AB97>0,Background!$M$22/AB97,0) -> 0 | AD97: 0 | AE97: 0 | AF97: 0 | AG97: 0 | AH97: 0 | AI97: 0 | AJ97: 0 | AK97: 0 | AL97: 0.2 | AN97: 0 | AO97: 0 | AP97: 0 | AQ97: 0 | AR97: 0 | AS97: 0 | AU97: 0 | AV97: 0
A98: half load | B98: =$B$101*B97 -> 0.4026 | D98: =IF(D97="5+",5,D97) -> 1 | E98: 96 | F98: 0 | G98: 0 | H98: 0 | I98: 0 | J98: 0 | K98: =IF('Input Solar'!$D$18=Background!$X$2,'Calc Solar'!H98*$H$173,IF('Input Solar'!$D$18=Background!$X$3,'Calc Solar'!I98*$I$173,'Calc Solar'!J98*$J$173)) -> 0 | L98: =IF('Input Solar'!$D$20="Default",IF('Input Solar'!$D$18=Background!$X$2,'Calc Solar'!H98,IF('Input Solar'!$D$18=Background!$X$3,'Calc Solar'!I98,'Calc Solar'!J98)),K98) -> 0 | M98: 0 | N98: 0 | O98: 0 | P98: 0 | Q98: 0 | R98: 0 | S98: 0 | T98: 0 | U98: 0 | V98: 0 | W98: 0 | X98: 0 | Y98: 0 | Z98: 0 | AA98: 0 | AB98: 0 | AC98: =IF(AB98>0,Background!$M$22/AB98,0) -> 0 | AD98: 0 | AE98: 0 | AF98: 0 | AG98: 0 | AH98: 0 | AI98: 0 | AJ98: 0 | AK98: 0 | AL98: 0.2 | AN98: 0 | AO98: 0 | AP98: 0 | AQ98: 0 | AR98: 0 | AS98: 0 | AU98: 0 | AV98: 0
E99: 97 | F99: 0 | G99: 0 | H99: 0 | I99: 0 | J99: 0 | K99: =IF('Input Solar'!$D$18=Background!$X$2,'Calc Solar'!H99*$H$173,IF('Input Solar'!$D$18=Background!$X$3,'Calc Solar'!I99*$I$173,'Calc Solar'!J99*$J$173)) -> 0 | L99: =IF('Input Solar'!$D$20="Default",IF('Input Solar'!$D$18=Background!$X$2,'Calc Solar'!H99,IF('Input Solar'!$D$18=Background!$X$3,'Calc Solar'!I99,'Calc Solar'!J99)),K99) -> 0 | M99: 0 | N99: 0 | O99: 0 | P99: 0 | Q99: 0 | R99: 0 | S99: 0 | T99: 0 | U99: 0 | V99: 0 | W99: 0 | X99: 0 | Y99: 0 | Z99: 0 | AA99: 0 | AB99: 0 | AC99: =IF(AB99>0,Background!$M$22/AB99,0) -> 0 | AD99: 0 | AE99: 0 | AF99: 0 | AG99: 0 | AH99: 0 | AI99: 0 | AJ99: 0 | AK99: 0 | AL99: 0.2 | AN99: 0 | AO99: 0 | AP99: 0 | AQ99: =G99-AO99-AJ99-AN99 -> 0 | AR99: =AA99-AQ99 -> 0 | AS99: =MAX(AK99-AP99,-1*AR99) -> 0 | AU99: 0 | AV99: 0
A100: half load ratios: | C100: just example | D100: (formula applied in column "Gen efficiency") | E100: 98 | F100: 0 | G100: 0 | H100: 0 | I100: 0 | J100: 0 | K100: =IF('Input Solar'!$D$18=Background!$X$2,'Calc Solar'!H100*$H$173,IF('Input Solar'!$D$18=Background!$X$3,'Calc Solar'!I100*$I$173,'Calc Solar'!J100*$J$173)) -> 0 | L100: =IF('Input Solar'!$D$20="Default",IF('Input Solar'!$D$18=Background!$X$2,'Calc Solar'!H100,IF('Input Solar'!$D$18=Background!$X$3,'Calc Solar'!I100,'Calc Solar'!J100)),K100) -> 0 | M100: 0 | N100: 0 | O100: 0 | P100: 0 | Q100: 0 | R100: 0 | S100: 0 | T100: 0 | U100: 0 | V100: 0 | W100: 0 | X100: 0 | Y100: 0 | Z100: 0 | AA100: 0 | AB100: 0 | AC100: =IF(AB100>0,Background!$M$22/AB100,0) -> 0 | AD100: 0 | AE100: 0 | AF100: 0 | AG100: 0 | AH100: 0 | AI100: 0 | AJ100: 0 | AK100: 0 | AL100: 0.2 | AN100: 0 | AO100: 0 | AP100: 0 | AQ100: 0 | AR100: 0 | AS100: 0 | AU100: 0 | AV100: 0
A101: current | B101: =IF(D97=1,B103,IF(D97=2,B104,IF(D97=3,B105,IF(D97=4,B106,IF(D97="5+",B107,))))) -> 1.22 | C101: P_t | D101: 20 | E101: 99 | F101: 0 | G101: 0 | H101: 0 | I101: 0 | J101: 0 | K101: =IF('Input Solar'!$D$18=Background!$X$2,'Calc Solar'!H101*$H$173,IF('Input Solar'!$D$18=Background!$X$3,'Calc Solar'!I101*$I$173,'Calc Solar'!J101*$J$173)) -> 0 | L101: =IF('Input Solar'!$D$20="Default",IF('Input Solar'!$D$18=Background!$X$2,'Calc Solar'!H101,IF('Input Solar'!$D$18=Background!$X$3,'Calc Solar'!I101,'Calc Solar'!J101)),K101) -> 0 | M101: 0 | N101: 0 | O101: 0 | P101: 0 | Q101: 0 | R101: 0 | S101: 0 | T101: 0 | U101: 0 | V101: 0 | W101: 0 | X101: 0 | Y101: 0 | Z101: 0 | AA101: 0 | AB101: 0 | AC101: =IF(AB101>0,Background!$M$22/AB101,0) -> 0 | AD101: 0 | AE101: 0 | AF101: 0 | AG101: 0 | AH101: 0 | AI101: 0 | AJ101: 0 | AK101: 0 | AL101: 0.2 | AN101: 0 | AO101: 0 | AP101: 0 | AQ101: 0 | AR101: 0 | AS101: 0 | AU101: 0 | AV101: 0
A102: nr. of Gensets | C102: P_rel. | D102: =D101/D109 ->  | E102: 100 | F102: 0 | G102: 0 | H102: 0 | I102: 0 | J102: 0 | K102: =IF('Input Solar'!$D$18=Background!$X$2,'Calc Solar'!H102*$H$173,IF('Input Solar'!$D$18=Background!$X$3,'Calc Solar'!I102*$I$173,'Calc Solar'!J102*$J$173)) -> 0 | L102: =IF('Input Solar'!$D$20="Default",IF('Input Solar'!$D$18=Background!$X$2,'Calc Solar'!H102,IF('Input Solar'!$D$18=Background!$X$3,'Calc Solar'!I102,'Calc Solar'!J102)),K102) -> 0 | M102: 0 | N102: 0 | O102: 0 | P102: 0 | Q102: 0 | R102: 0 | S102: 0 | T102: 0 | U102: 0 | V102: 0 | W102: 0 | X102: 0 | Y102: 0 | Z102: 0 | AA102: 0 | AB102: 0 | AC102: =IF(AB102>0,Background!$M$22/AB102,0) -> 0 | AD102: 0 | AE102: 0 | AF102: 0 | AG102: 0 | AH102: 0 | AI102: 0 | AJ102: 0 | AK102: 0 | AL102: 0.2 | AN102: 0 | AO102: 0 | AP102: 0 | AQ102: 0 | AR102: 0 | AS102: 0 | AU102: 0 | AV102: 0
A103: 1 | B103: 1.22 | C103: eff_t | D103: =$D$102/($D$113+$D$114*$D$102)/$D$115 ->  | E103: 101 | F103: 0 | G103: 0 | H103: 0 | I103: 0 | J103: 0 | K103: =IF('Input Solar'!$D$18=Background!$X$2,'Calc Solar'!H103*$H$173,IF('Input Solar'!$D$18=Background!$X$3,'Calc Solar'!I103*$I$173,'Calc Solar'!J103*$J$173)) -> 0 | L103: =IF('Input Solar'!$D$20="Default",IF('Input Solar'!$D$18=Background!$X$2,'Calc Solar'!H103,IF('Input Solar'!$D$18=Background!$X$3,'Calc Solar'!I103,'Calc Solar'!J103)),K103) -> 0 | M103: 0 | N103: 0 | O103: 0 | P103: 0 | Q103: 0 | R103: 0 | S103: 0 | T103: 0 | U103: 0 | V103: 0 | W103: 0 | X103: 0 | Y103: 0 | Z103: 0 | AA103: 0 | AB103: 0 | AC103: =IF(AB103>0,Background!$M$22/AB103,0) -> 0 | AD103: 0 | AE103: 0 | AF103: 0 | AG103: 0 | AH103: 0 | AI103: 0 | AJ103: 0 | AK103: 0 | AL103: 0.2 | AN103: 0 | AO103: 0 | AP103: 0 | AQ103: 0 | AR103: 0 | AS103: 0 | AU103: 0 | AV103: 0
A104: 2 | B104: 1.18 | C104: l/kwh_t | D104: =0.1/D103 ->  | E104: 102 | F104: 0 | G104: 0 | H104: 0 | I104: 0 | J104: 0 | K104: =IF('Input Solar'!$D$18=Background!$X$2,'Calc Solar'!H104*$H$173,IF('Input Solar'!$D$18=Background!$X$3,'Calc Solar'!I104*$I$173,'Calc Solar'!J104*$J$173)) -> 0 | L104: =IF('Input Solar'!$D$20="Default",IF('Input Solar'!$D$18=Background!$X$2,'Calc Solar'!H104,IF('Input Solar'!$D$18=Background!$X$3,'Calc Solar'!I104,'Calc Solar'!J104)),K104) -> 0 | M104: 0 | N104: 0 | O104: 0 | P104: 0 | Q104: 0 | R104: 0 | S104: 0 | T104: 0 | U104: 0 | V104: 0 | W104: 0 | X104: 0 | Y104: 0 | Z104: 0 | AA104: 0 | AB104: 0 | AC104: =IF(AB104>0,Background!$M$22/AB104,0) -> 0 | AD104: 0 | AE104: 0 | AF104: 0 | AG104: 0 | AH104: 0 | AI104: 0 | AJ104: 0 | AK104: 0 | AL104: 0.2 | AN104: 0 | AO104: 0 | AP104: 0 | AQ104: 0 | AR104: 0 | AS104: 0 | AU104: 0 | AV104: 0
A105: 3 | B105: 1.15 | E105: 103 | F105: =IF(E105-E81=24,F81,"") -> 0 | G105: 0 | H105: 0.02072962126 | I105: 0.04260297916 | J105: 0.07727024889 | K105: =IF('Input Solar'!$D$18=Background!$X$2,'Calc Solar'!H105*$H$173,IF('Input Solar'!$D$18=Background!$X$3,'Calc Solar'!I105*$I$173,'Calc Solar'!J105*$J$173)) -> 0 | L105: =IF('Input Solar'!$D$20="Default",IF('Input Solar'!$D$18=Background!$X$2,'Calc Solar'!H105,IF('Input Solar'!$D$18=Background!$X$3,'Calc Solar'!I105,'Calc Solar'!J105)),K105) -> 0.02072962126 | M105: 0 | N105: 0 | O105: 0 | P105: 0 | Q105: 0 | R105: 0 | S105: 0 | T105: 0 | U105: 0 | V105: 0 | W105: 0 | X105: 0 | Y105: 0 | Z105: 0 | AA105: 0 | AB105: 0 | AC105: =IF(AB105>0,Background!$M$22/AB105,0) -> 0 | AD105: 0 | AE105: 0 | AF105: 0 | AG105: 0 | AH105: 0 | AI105: 0 | AJ105: 0 | AK105: 0 | AL105: 0.2 | AN105: 0 | AO105: 0 | AP105: 0 | AQ105: 0 | AR105: 0 | AS105: 0 | AU105: 0 | AV105: 0
A106: 4 | B106: 1.11 | C106: P_smallest gen | D106: =IF('Input Solar'!$D$38="Default",'Input Solar'!$D$42,'Input Solar'!$E$42) -> 0 | E106: 104 | F106: 0 | G106: 0 | H106: 0.2351353915 | I106: 0.1567460387 | J106: 0.3026207913 | K106: =IF('Input Solar'!$D$18=Background!$X$2,'Calc Solar'!H106*$H$173,IF('Input Solar'!$D$18=Background!$X$3,'Calc Solar'!I106*$I$173,'Calc Solar'!J106*$J$173)) -> 0 | L106: =IF('Input Solar'!$D$20="Default",IF('Input Solar'!$D$18=Background!$X$2,'Calc Solar'!H106,IF('Input Solar'!$D$18=Background!$X$3,'Calc Solar'!I106,'Calc Solar'!J106)),K106) -> 0.2351353915 | M106: 0 | N106: 0 | O106: 0 | P106: 0 | Q106: 0 | R106: 0 | S106: 0 | T106: 0 | U106: 0 | V106: 0 | W106: 0 | X106: 0 | Y106: 0 | Z106: 0 | AA106: 0 | AB106: 0 | AC106: =IF(AB106>0,Background!$M$22/AB106,0) -> 0 | AD106: 0 | AE106: 0 | AF106: 0 | AG106: 0 | AH106: 0 | AI106: 0 | AJ106: 0 | AK106: 0 | AL106: 0.2 | AN106: 0 | AO106: 0 | AP106: 0 | AQ106: 0 | AR106: 0 | AS106: 0 | AU106: 0 | AV106: 0
A107: 5+ | B107: 1.06 | C107: P_min | D107: =0.3*D106 -> 0 | E107: 105 | F107: 0 | G107: 0 | H107: 0.4200903209 | I107: 0.3065154965 | J107: 0.4940017407 | K107: =IF('Input Solar'!$D$18=Background!$X$2,'Calc Solar'!H107*$H$173,IF('Input Solar'!$D$18=Background!$X$3,'Calc Solar'!I107*$I$173,'Calc Solar'!J107*$J$173)) -> 0 | L107: =IF('Input Solar'!$D$20="Default",IF('Input Solar'!$D$18=Background!$X$2,'Calc Solar'!H107,IF('Input Solar'!$D$18=Background!$X$3,'Calc Solar'!I107,'Calc Solar'!J107)),K107) -> 0.4200903209 | M107: 0 | N107: 0 | O107: 0 | P107: 0 | Q107: 0 | R107: 0 | S107: 0 | T107: 0 | U107: 0 | V107: 0 | W107: 0 | X107: 0 | Y107: 0 | Z107: 0 | AA107: 0 | AB107: 0 | AC107: =IF(AB107>0,Background!$M$22/AB107,0) -> 0 | AD107: 0 | AE107: 0 | AF107: 0 | AG107: 0 | AH107: 0 | AI107: 0 | AJ107: 0 | AK107: 0 | AL107: 0.2 | AN107: 0 | AO107: 0 | AP107: 0 | AQ107: 0 | AR107: 0 | AS107: 0 | AU107: 0 | AV107: 0
C108: P_max | D108: =B13 -> 0 | E108: 106 | F108: 0 | G108: 0 | H108: 0.4994373023 | I108: 0.4456651437 | J108: 0.6290946603 | K108: =IF('Input Solar'!$D$18=Background!$X$2,'Calc Solar'!H108*$H$173,IF('Input Solar'!$D$18=Background!$X$3,'Calc Solar'!I108*$I$173,'Calc Solar'!J108*$J$173)) -> 0 | L108: =IF('Input Solar'!$D$20="Default",IF('Input Solar'!$D$18=Background!$X$2,'Calc Solar'!H108,IF('Input Solar'!$D$18=Background!$X$3,'Calc Solar'!I108,'Calc Solar'!J108)),K108) -> 0.4994373023 | M108: 0 | N108: 0 | O108: 0 | P108: 0 | Q108: 0 | R108: 0 | S108: 0 | T108: 0 | U108: 0 | V108: 0 | W108: 0 | X108: 0 | Y108: 0 | Z108: 0 | AA108: 0 | AB108: 0 | AC108: =IF(AB108>0,Background!$M$22/AB108,0) -> 0 | AD108: 0 | AE108: 0 | AF108: 0 | AG108: 0 | AH108: 0 | AI108: 0 | AJ108: 0 | AK108: 0 | AL108: 0.2 | AN108: 0 | AO108: 0 | AP108: 0 | AQ108: 0 | AR108: 0 | AS108: 0 | AU108: 0 | AV108: 0
A109: efficiency curves | C109: P_full load | D109: =D108/D98 -> 0 | E109: 107 | F109: 0 | G109: 0 | H109: 0.482447953 | I109: 0.5591561662 | J109: 0.704825323 | K109: =IF('Input Solar'!$D$18=Background!$X$2,'Calc Solar'!H109*$H$173,IF('Input Solar'!$D$18=Background!$X$3,'Calc Solar'!I109*$I$173,'Calc Solar'!J109*$J$173)) -> 0 | L109: =IF('Input Solar'!$D$20="Default",IF('Input Solar'!$D$18=Background!$X$2,'Calc Solar'!H109,IF('Input Solar'!$D$18=Background!$X$3,'Calc Solar'!I109,'Calc Solar'!J109)),K109) -> 0.482447953 | M109: 0 | N109: 0 | O109: 0 | P109: 0 | Q109: 0 | R109: 0 | S109: 0 | T109: 0 | U109: 0 | V109: 0 | W109: 0 | X109: 0 | Y109: 0 | Z109: 0 | AA109: 0 | AB109: 0 | AC109: =IF(AB109>0,Background!$M$22/AB109,0) -> 0 | AD109: 0 | AE109: 0 | AF109: 0 | AG109: 0 | AH109: 0 | AI109: 0 | AJ109: 0 | AK109: 0 | AL109: 0.2 | AN109: 0 | AO109: 0 | AP109: 0 | AQ109: 0 | AR109: 0 | AS109: 0 | AU109: 0 | AV109: 0
C110: P_half load | D110: =D109/2 -> 0 | E110: 108 | F110: 0 | G110: 0 | H110: 0.5372733464 | I110: 0.6146427941 | J110: 0.7224011665 | K110: =IF('Input Solar'!$D$18=Background!$X$2,'Calc Solar'!H110*$H$173,IF('Input Solar'!$D$18=Background!$X$3,'Calc Solar'!I110*$I$173,'Calc Solar'!J110*$J$173)) -> 0 | L110: =IF('Input Solar'!$D$20="Default",IF('Input Solar'!$D$18=Background!$X$2,'Calc Solar'!H110,IF('Input Solar'!$D$18=Background!$X$3,'Calc Solar'!I110,'Calc Solar'!J110)),K110) -> 0.5372733464 | M110: 0 | N110: 0 | O110: 0 | P110: 0 | Q110: 0 | R110: 0 | S110: 0 | T110: 0 | U110: 0 | V110: 0 | W110: 0 | X110: 0 | Y110: 0 | Z110: 0 | AA110: 0 | AB110: 0 | AC110: =IF(AB110>0,Background!$M$22/AB110,0) -> 0 | AD110: 0 | AE110: 0 | AF110: 0 | AG110: 0 | AH110: 0 | AI110: 0 | AJ110: 0 | AK110: 0 | AL110: 0.2 | AN110: 0 | AO110: 0 | AP110: 0 | AQ110: 0 | AR110: 0 | AS110: 0 | AU110: 0 | AV110: 0
C111: liter_full load | D111: =D109*B97 -> 0 | E111: 109 | F111: 0 | G111: 0 | H111: 0.5473143042 | I111: 0.6234818766 | J111: 0.6868487173 | K111: =IF('Input Solar'!$D$18=Background!$X$2,'Calc Solar'!H111*$H$173,IF('Input Solar'!$D$18=Background!$X$3,'Calc Solar'!I111*$I$173,'Calc Solar'!J111*$J$173)) -> 0 | L111: =IF('Input Solar'!$D$20="Default",IF('Input Solar'!$D$18=Background!$X$2,'Calc Solar'!H111,IF('Input Solar'!$D$18=Background!$X$3,'Calc Solar'!I111,'Calc Solar'!J111)),K111) -> 0.5473143042 | M111: 0 | N111: 0 | O111: 0 | P111: 0 | Q111: 0 | R111: 0 | S111: 0 | T111: 0 | U111: 0 | V111: 0 | W111: 0 | X111: 0 | Y111: 0 | Z111: 0 | AA111: 0 | AB111: 0 | AC111: =IF(AB111>0,Background!$M$22/AB111,0) -> 0 | AD111: 0 | AE111: 0 | AF111: 0 | AG111: 0 | AH111: 0 | AI111: 0 | AJ111: 0 | AK111: 0 | AL111: 0.2 | AN111: 0 | AO111: 0 | AP111: 0 | AQ111: 0 | AR111: 0 | AS111: 0 | AU111: 0 | AV111: 0
C112: liter_half load | D112: =D110*B98 -> 0 | E112: 110 | F112: 0 | G112: 0 | H112: 0.5105136769 | I112: 0.583399892 | J112: 0.6029977264 | K112: =IF('Input Solar'!$D$18=Background!$X$2,'Calc Solar'!H112*$H$173,IF('Input Solar'!$D$18=Background!$X$3,'Calc Solar'!I112*$I$173,'Calc Solar'!J112*$J$173)) -> 0 | L112: =IF('Input Solar'!$D$20="Default",IF('Input Solar'!$D$18=Background!$X$2,'Calc Solar'!H112,IF('Input Solar'!$D$18=Background!$X$3,'Calc Solar'!I112,'Calc Solar'!J112)),K112) -> 0.5105136769 | M112: 0 | N112: 0 | O112: 0 | P112: 0 | Q112: 0 | R112: 0 | S112: 0 | T112: 0 | U112: 0 | V112: 0 | W112: 0 | X112: 0 | Y112: 0 | Z112: 0 | AA112: 0 | AB112: 0 | AC112: =IF(AB112>0,Background!$M$22/AB112,0) -> 0 | AD112: 0 | AE112: 0 | AF112: 0 | AG112: 0 | AH112: 0 | AI112: 0 | AJ112: 0 | AK112: 0 | AL112: 0.2 | AN112: 0 | AO112: 0 | AP112: 0 | AQ112: 0 | AR112: 0 | AS112: 0 | AU112: 0 | AV112: 0
C113: F_0 | D113: =((D112-(D110*D114))/D109) ->  | E113: 111 | F113: 0 | G113: 0 | H113: 0.3625129388 | I113: 0.4018570796 | J113: 0.4185677862 | K113: =IF('Input Solar'!$D$18=Background!$X$2,'Calc Solar'!H113*$H$173,IF('Input Solar'!$D$18=Background!$X$3,'Calc Solar'!I113*$I$173,'Calc Solar'!J113*$J$173)) -> 0 | L113: =IF('Input Solar'!$D$20="Default",IF('Input Solar'!$D$18=Background!$X$2,'Calc Solar'!H113,IF('Input Solar'!$D$18=Background!$X$3,'Calc Solar'!I113,'Calc Solar'!J113)),K113) -> 0.3625129388 | M113: 0 | N113: 0 | O113: 0 | P113: 0 | Q113: 0 | R113: 0 | S113: 0 | T113: 0 | U113: 0 | V113: 0 | W113: 0 | X113: 0 | Y113: 0 | Z113: 0 | AA113: 0 | AB113: 0 | AC113: =IF(AB113>0,Background!$M$22/AB113,0) -> 0 | AD113: 0 | AE113: 0 | AF113: 0 | AG113: 0 | AH113: 0 | AI113: 0 | AJ113: 0 | AK113: 0 | AL113: 0.2 | AN113: 0 | AO113: 0 | AP113: 0 | AQ113: 0 | AR113: 0 | AS113: 0 | AU113: 0 | AV113: 0
C114: F_1 (Liter/h/kW) | D114: =((D111-D112)/(D109-D110)) ->  | E114: 112 | F114: 0 | G114: 0 | H114: 0.2073494278 | I114: 0.2192479822 | J114: 0.2345149128 | K114: =IF('Input Solar'!$D$18=Background!$X$2,'Calc Solar'!H114*$H$173,IF('Input Solar'!$D$18=Background!$X$3,'Calc Solar'!I114*$I$173,'Calc Solar'!J114*$J$173)) -> 0 | L114: =IF('Input Solar'!$D$20="Default",IF('Input Solar'!$D$18=Background!$X$2,'Calc Solar'!H114,IF('Input Solar'!$D$18=Background!$X$3,'Calc Solar'!I114,'Calc Solar'!J114)),K114) -> 0.2073494278 | M114: 0 | N114: 0 | O114: 0 | P114: 0 | Q114: 0 | R114: 0 | S114: 0 | T114: 0 | U114: 0 | V114: 0 | W114: 0 | X114: 0 | Y114: 0 | Z114: 0 | AA114: 0 | AB114: 0 | AC114: =IF(AB114>0,Background!$M$22/AB114,0) -> 0 | AD114: 0 | AE114: 0 | AF114: 0 | AG114: 0 | AH114: 0 | AI114: 0 | AJ114: 0 | AK114: 0 | AL114: 0.2 | AN114: 0 | AO114: 0 | AP114: 0 | AQ114: 0 | AR114: 0 | AS114: 0 | AU114: 0 | AV114: 0
C115: Energy Density Diesel [kWh_th/l] | D115: 10 | E115: 113 | F115: 0 | G115: 0 | H115: 0.07157694646 | I115: 0.06973621888 | J115: 0.08403787586 | K115: =IF('Input Solar'!$D$18=Background!$X$2,'Calc Solar'!H115*$H$173,IF('Input Solar'!$D$18=Background!$X$3,'Calc Solar'!I115*$I$173,'Calc Solar'!J115*$J$173)) -> 0 | L115: =IF('Input Solar'!$D$20="Default",IF('Input Solar'!$D$18=Background!$X$2,'Calc Solar'!H115,IF('Input Solar'!$D$18=Background!$X$3,'Calc Solar'!I115,'Calc Solar'!J115)),K115) -> 0.07157694646 | M115: 0 | N115: 0 | O115: 0 | P115: 0 | Q115: 0 | R115: 0 | S115: 0 | T115: 0 | U115: 0 | V115: 0 | W115: 0 | X115: 0 | Y115: 0 | Z115: 0 | AA115: 0 | AB115: 0 | AC115: =IF(AB115>0,Background!$M$22/AB115,0) -> 0 | AD115: 0 | AE115: 0 | AF115: 0 | AG115: 0 | AH115: 0 | AI115: 0 | AJ115: 0 | AK115: 0 | AL115: 0.2 | AN115: 0 | AO115: 0 | AP115: 0 | AQ115: 0 | AR115: 0 | AS115: 0 | AU115: 0 | AV115: 0
E116: 114 | F116: 0 | G116: 0 | H116: 0 | I116: 0 | J116: 0.003571203296 | K116: =IF('Input Solar'!$D$18=Background!$X$2,'Calc Solar'!H116*$H$173,IF('Input Solar'!$D$18=Background!$X$3,'Calc Solar'!I116*$I$173,'Calc Solar'!J116*$J$173)) -> 0 | L116: =IF('Input Solar'!$D$20="Default",IF('Input Solar'!$D$18=Background!$X$2,'Calc Solar'!H116,IF('Input Solar'!$D$18=Background!$X$3,'Calc Solar'!I116,'Calc Solar'!J116)),K116) -> 0 | M116: 0 | N116: 0 | O116: 0 | P116: 0 | Q116: 0 | R116: 0 | S116: 0 | T116: 0 | U116: 0 | V116: 0 | W116: 0 | X116: 0 | Y116: 0 | Z116: 0 | AA116: 0 | AB116: 0 | AC116: =IF(AB116>0,Background!$M$22/AB116,0) -> 0 | AD116: 0 | AE116: 0 | AF116: 0 | AG116: 0 | AH116: 0 | AI116: 0 | AJ116: 0 | AK116: 0 | AL116: 0.2 | AN116: 0 | AO116: 0 | AP116: 0 | AQ116: 0 | AR116: 0 | AS116: 0 | AU116: 0 | AV116: 0
C117: single generator | E117: 115 | F117: 0 | G117: 0 | H117: 0 | I117: 0 | J117: 0 | K117: =IF('Input Solar'!$D$18=Background!$X$2,'Calc Solar'!H117*$H$173,IF('Input Solar'!$D$18=Background!$X$3,'Calc Solar'!I117*$I$173,'Calc Solar'!J117*$J$173)) -> 0 | L117: =IF('Input Solar'!$D$20="Default",IF('Input Solar'!$D$18=Background!$X$2,'Calc Solar'!H117,IF('Input Solar'!$D$18=Background!$X$3,'Calc Solar'!I117,'Calc Solar'!J117)),K117) -> 0 | M117: 0 | N117: 0 | O117: 0 | P117: 0 | Q117: 0 | R117: 0 | S117: 0 | T117: 0 | U117: 0 | V117: 0 | W117: 0 | X117: 0 | Y117: 0 | Z117: 0 | AA117: 0 | AB117: 0 | AC117: =IF(AB117>0,Background!$M$22/AB117,0) -> 0 | AD117: 0 | AE117: 0 | AF117: 0 | AG117: 0 | AH117: 0 | AI117: 0 | AJ117: 0 | AK117: 0 | AL117: 0.2 | AN117: 0 | AO117: 0 | AP117: 0 | AQ117: 0 | AR117: 0 | AS117: 0 | AU117: 0 | AV117: 0
C118: output | D118: efficiency | E118: 116 | F118: 0 | G118: 0 | H118: 0 | I118: 0 | J118: 0 | K118: =IF('Input Solar'!$D$18=Background!$X$2,'Calc Solar'!H118*$H$173,IF('Input Solar'!$D$18=Background!$X$3,'Calc Solar'!I118*$I$173,'Calc Solar'!J118*$J$173)) -> 0 | L118: =IF('Input Solar'!$D$20="Default",IF('Input Solar'!$D$18=Background!$X$2,'Calc Solar'!H118,IF('Input Solar'!$D$18=Background!$X$3,'Calc Solar'!I118,'Calc Solar'!J118)),K118) -> 0 | M118: 0 | N118: 0 | O118: 0 | P118: 0 | Q118: 0 | R118: 0 | S118: 0 | T118: 0 | U118: 0 | V118: 0 | W118: 0 | X118: 0 | Y118: 0 | Z118: 0 | AA118: 0 | AB118: 0 | AC118: =IF(AB118>0,Background!$M$22/AB118,0) -> 0 | AD118: 0 | AE118: 0 | AF118: 0 | AG118: 0 | AH118: 0 | AI118: 0 | AJ118: 0 | AK118: 0 | AL118: 0.2 | AN118: 0 | AO118: 0 | AP118: 0 | AQ118: 0 | AR118: 0 | AS118: 0 | AU118: 0 | AV118: 0
C119: 0.02 | D119: =C119/($D$113+$D$114*C119)/$D$115 ->  | E119: 117 | F119: 0 | G119: 0 | H119: 0 | I119: 0 | J119: 0 | K119: =IF('Input Solar'!$D$18=Background!$X$2,'Calc Solar'!H119*$H$173,IF('Input Solar'!$D$18=Background!$X$3,'Calc Solar'!I119*$I$173,'Calc Solar'!J119*$J$173)) -> 0 | L119: =IF('Input Solar'!$D$20="Default",IF('Input Solar'!$D$18=Background!$X$2,'Calc Solar'!H119,IF('Input Solar'!$D$18=Background!$X$3,'Calc Solar'!I119,'Calc Solar'!J119)),K119) -> 0 | M119: 0 | N119: 0 | O119: 0 | P119: 0 | Q119: 0 | R119: 0 | S119: 0 | T119: 0 | U119: 0 | V119: 0 | W119: 0 | X119: 0 | Y119: 0 | Z119: 0 | AA119: 0 | AB119: 0 | AC119: =IF(AB119>0,Background!$M$22/AB119,0) -> 0 | AD119: 0 | AE119: 0 | AF119: 0 | AG119: 0 | AH119: 0 | AI119: 0 | AJ119: 0 | AK119: 0 | AL119: 0.2 | AN119: 0 | AO119: 0 | AP119: 0 | AQ119: 0 | AR119: 0 | AS119: 0 | AU119: 0 | AV119: 0
C120: 0.1 | E120: 118 | F120: 0 | G120: 0 | H120: 0 | I120: 0 | J120: 0 | K120: =IF('Input Solar'!$D$18=Background!$X$2,'Calc Solar'!H120*$H$173,IF('Input Solar'!$D$18=Background!$X$3,'Calc Solar'!I120*$I$173,'Calc Solar'!J120*$J$173)) -> 0 | L120: =IF('Input Solar'!$D$20="Default",IF('Input Solar'!$D$18=Background!$X$2,'Calc Solar'!H120,IF('Input Solar'!$D$18=Background!$X$3,'Calc Solar'!I120,'Calc Solar'!J120)),K120) -> 0 | M120: 0 | N120: 0 | O120: 0 | P120: 0 | Q120: 0 | R120: 0 | S120: 0 | T120: 0 | U120: 0 | V120: 0 | W120: 0 | X120: 0 | Y120: 0 | Z120: 0 | AA120: 0 | AB120: 0 | AC120: =IF(AB120>0,Background!$M$22/AB120,0) -> 0 | AD120: 0 | AE120: 0 | AF120: 0 | AG120: 0 | AH120: 0 | AI120: 0 | AJ120: 0 | AK120: 0 | AL120: 0.2 | AN120: 0 | AO120: 0 | AP120: 0 | AQ120: 0 | AR120: 0 | AS120: 0 | AU120: 0 | AV120: 0
C121: 0.25 | E121: 119 | F121: 0 | G121: 0 | H121: 0 | I121: 0 | J121: 0 | K121: =IF('Input Solar'!$D$18=Background!$X$2,'Calc Solar'!H121*$H$173,IF('Input Solar'!$D$18=Background!$X$3,'Calc Solar'!I121*$I$173,'Calc Solar'!J121*$J$173)) -> 0 | L121: =IF('Input Solar'!$D$20="Default",IF('Input Solar'!$D$18=Background!$X$2,'Calc Solar'!H121,IF('Input Solar'!$D$18=Background!$X$3,'Calc Solar'!I121,'Calc Solar'!J121)),K121) -> 0 | M121: 0 | N121: 0 | O121: 0 | P121: 0 | Q121: 0 | R121: 0 | S121: 0 | T121: 0 | U121: 0 | V121: 0 | W121: 0 | X121: 0 | Y121: 0 | Z121: 0 | AA121: 0 | AB121: 0 | AC121: =IF(AB121>0,Background!$M$22/AB121,0) -> 0 | AD121: 0 | AE121: 0 | AF121: 0 | AG121: 0 | AH121: 0 | AI121: 0 | AJ121: 0 | AK121: 0 | AL121: 0.2 | AN121: 0 | AO121: 0 | AP121: 0 | AQ121: 0 | AR121: 0 | AS121: 0 | AU121: 0 | AV121: 0
C122: 0.5 | E122: 120 | F122: =IF(E122-E98=24,F98,"") -> 0 | G122: 0 | H122: 0 | I122: 0 | J122: 0 | K122: =IF('Input Solar'!$D$18=Background!$X$2,'Calc Solar'!H122*$H$173,IF('Input Solar'!$D$18=Background!$X$3,'Calc Solar'!I122*$I$173,'Calc Solar'!J122*$J$173)) -> 0 | L122: =IF('Input Solar'!$D$20="Default",IF('Input Solar'!$D$18=Background!$X$2,'Calc Solar'!H122,IF('Input Solar'!$D$18=Background!$X$3,'Calc Solar'!I122,'Calc Solar'!J122)),K122) -> 0 | M122: 0 | N122: 0 | O122: 0 | P122: 0 | Q122: 0 | R122: 0 | S122: 0 | T122: 0 | U122: 0 | V122: 0 | W122: 0 | X122: 0 | Y122: 0 | Z122: 0 | AA122: 0 | AB122: 0 | AC122: =IF(AB122>0,Background!$M$22/AB122,0) -> 0 | AD122: 0 | AE122: 0 | AF122: 0 | AG122: 0 | AH122: 0 | AI122: 0 | AJ122: 0 | AK122: 0 | AL122: 0.2 | AN122: 0 | AO122: 0 | AP122: 0 | AQ122: 0 | AR122: 0 | AS122: 0 | AU122: 0 | AV122: 0
C123: 0.75 | E123: 121 | F123: =IF('Existing Load'!$D$17='Existing Load'!$D$19,'Existing Load'!J7,'Existing Load'!J7*'Existing Load'!$D$19/'Existing Load'!$D$17) -> 0 | G123: 0 | H123: 0 | I123: 0 | J123: 0 | K123: =IF('Input Solar'!$D$18=Background!$X$2,'Calc Solar'!H123*$H$173,IF('Input Solar'!$D$18=Background!$X$3,'Calc Solar'!I123*$I$173,'Calc Solar'!J123*$J$173)) -> 0 | L123: =IF('Input Solar'!$D$20="Default",IF('Input Solar'!$D$18=Background!$X$2,'Calc Solar'!H123,IF('Input Solar'!$D$18=Background!$X$3,'Calc Solar'!I123,'Calc Solar'!J123)),K123) -> 0 | M123: 0 | N123: 0 | O123: 0 | P123: 0 | Q123: 0 | R123: 0 | S123: 0 | T123: 0 | U123: 0 | V123: 0 | W123: 0 | X123: 0 | Y123: 0 | Z123: 0 | AA123: 0 | AB123: 0 | AC123: =IF(AB123>0,Background!$M$22/AB123,0) -> 0 | AD123: 0 | AE123: 0 | AF123: 0 | AG123: 0 | AH123: 0 | AI123: 0 | AJ123: 0 | AK123: 0 | AL123: 0.2 | AN123: 0 | AO123: 0 | AP123: 0 | AQ123: 0 | AR123: 0 | AS123: 0 | AU123: 0 | AV123: 0
C124: 0.9 | E124: 122 | F124: =IF('Existing Load'!$D$17='Existing Load'!$D$19,'Existing Load'!J8,'Existing Load'!J8*'Existing Load'!$D$19/'Existing Load'!$D$17) -> 0 | G124: 0 | H124: 0 | I124: 0 | J124: 0 | K124: =IF('Input Solar'!$D$18=Background!$X$2,'Calc Solar'!H124*$H$173,IF('Input Solar'!$D$18=Background!$X$3,'Calc Solar'!I124*$I$173,'Calc Solar'!J124*$J$173)) -> 0 | L124: =IF('Input Solar'!$D$20="Default",IF('Input Solar'!$D$18=Background!$X$2,'Calc Solar'!H124,IF('Input Solar'!$D$18=Background!$X$3,'Calc Solar'!I124,'Calc Solar'!J124)),K124) -> 0 | M124: 0 | N124: 0 | O124: 0 | P124: 0 | Q124: 0 | R124: 0 | S124: 0 | T124: 0 | U124: 0 | V124: 0 | W124: 0 | X124: 0 | Y124: 0 | Z124: 0 | AA124: 0 | AB124: 0 | AC124: =IF(AB124>0,Background!$M$22/AB124,0) -> 0 | AD124: 0 | AE124: 0 | AF124: 0 | AG124: 0 | AH124: 0 | AI124: 0 | AJ124: 0 | AK124: 0 | AL124: 0.2 | AN124: 0 | AO124: 0 | AP124: 0 | AQ124: 0 | AR124: 0 | AS124: 0 | AU124: 0 | AV124: 0
C125: 1 | E125: 123 | F125: =IF('Existing Load'!$D$17='Existing Load'!$D$19,'Existing Load'!J9,'Existing Load'!J9*'Existing Load'!$D$19/'Existing Load'!$D$17) -> 0 | G125: 0 | H125: 0 | I125: 0 | J125: 0 | K125: =IF('Input Solar'!$D$18=Background!$X$2,'Calc Solar'!H125*$H$173,IF('Input Solar'!$D$18=Background!$X$3,'Calc Solar'!I125*$I$173,'Calc Solar'!J125*$J$173)) -> 0 | L125: =IF('Input Solar'!$D$20="Default",IF('Input Solar'!$D$18=Background!$X$2,'Calc Solar'!H125,IF('Input Solar'!$D$18=Background!$X$3,'Calc Solar'!I125,'Calc Solar'!J125)),K125) -> 0 | M125: 0 | N125: 0 | O125: 0 | P125: 0 | Q125: 0 | R125: 0 | S125: 0 | T125: 0 | U125: 0 | V125: =ROUND(MAX(0,N125-U125),5) -> 0 | W125: 0 | X125: 0 | Y125: =MAX(0,W125-X125) -> 0 | Z125: =MAX(V125,Y125) -> 0 | AA125: 0 | AB125: 0 | AC125: =IF(AB125>0,Background!$M$22/AB125,0) -> 0 | AD125: 0 | AE125: 0 | AF125: 0 | AG125: 0 | AH125: 0 | AI125: 0 | AJ125: 0 | AK125: 0 | AL125: 0.2 | AN125: 0 | AO125: 0 | AP125: 0 | AQ125: 0 | AR125: 0 | AS125: 0 | AU125: 0 | AV125: 0
E126: 124 | F126: =IF('Existing Load'!$D$17='Existing Load'!$D$19,'Existing Load'!J10,'Existing Load'!J10*'Existing Load'!$D$19/'Existing Load'!$D$17) -> 0 | G126: 0 | H126: 0 | I126: 0 | J126: 0 | K126: =IF('Input Solar'!$D$18=Background!$X$2,'Calc Solar'!H126*$H$173,IF('Input Solar'!$D$18=Background!$X$3,'Calc Solar'!I126*$I$173,'Calc Solar'!J126*$J$173)) -> 0 | L126: =IF('Input Solar'!$D$20="Default",IF('Input Solar'!$D$18=Background!$X$2,'Calc Solar'!H126,IF('Input Solar'!$D$18=Background!$X$3,'Calc Solar'!I126,'Calc Solar'!J126)),K126) -> 0 | M126: 0 | N126: 0 | O126: 0 | P126: 0 | Q126: 0 | R126: 0 | S126: 0 | T126: 0 | U126: 0 | V126: 0 | W126: 0 | X126: 0 | Y126: 0 | Z126: 0 | AA126: 0 | AB126: 0 | AC126: =IF(AB126>0,Background!$M$22/AB126,0) -> 0 | AD126: 0 | AE126: 0 | AF126: 0 | AG126: 0 | AH126: 0 | AI126: 0 | AJ126: 0 | AK126: 0 | AL126: 0.2 | AN126: 0 | AO126: 0 | AP126: 0 | AQ126: 0 | AR126: 0 | AS126: 0 | AU126: 0 | AV126: 0
E127: 125 | F127: =IF('Existing Load'!$D$17='Existing Load'!$D$19,'Existing Load'!J11,'Existing Load'!J11*'Existing Load'!$D$19/'Existing Load'!$D$17) -> 0 | G127: 0 | H127: 0 | I127: 0 | J127: 0 | K127: =IF('Input Solar'!$D$18=Background!$X$2,'Calc Solar'!H127*$H$173,IF('Input Solar'!$D$18=Background!$X$3,'Calc Solar'!I127*$I$173,'Calc Solar'!J127*$J$173)) -> 0 | L127: =IF('Input Solar'!$D$20="Default",IF('Input Solar'!$D$18=Background!$X$2,'Calc Solar'!H127,IF('Input Solar'!$D$18=Background!$X$3,'Calc Solar'!I127,'Calc Solar'!J127)),K127) -> 0 | M127: 0 | N127: 0 | O127: 0 | P127: 0 | Q127: 0 | R127: 0 | S127: 0 | T127: 0 | U127: 0 | V127: 0 | W127: 0 | X127: 0 | Y127: 0 | Z127: 0 | AA127: 0 | AB127: 0 | AC127: =IF(AB127>0,Background!$M$22/AB127,0) -> 0 | AD127: 0 | AE127: 0 | AF127: 0 | AG127: 0 | AH127: 0 | AI127: 0 | AJ127: 0 | AK127: 0 | AL127: 0.2 | AN127: 0 | AO127: 0 | AP127: 0 | AQ127: 0 | AR127: 0 | AS127: 0 | AU127: 0 | AV127: 0
E128: 126 | F128: =IF('Existing Load'!$D$17='Existing Load'!$D$19,'Existing Load'!J12,'Existing Load'!J12*'Existing Load'!$D$19/'Existing Load'!$D$17) -> 0 | G128: 0 | H128: 0 | I128: 0 | J128: 0 | K128: =IF('Input Solar'!$D$18=Background!$X$2,'Calc Solar'!H128*$H$173,IF('Input Solar'!$D$18=Background!$X$3,'Calc Solar'!I128*$I$173,'Calc Solar'!J128*$J$173)) -> 0 | L128: =IF('Input Solar'!$D$20="Default",IF('Input Solar'!$D$18=Background!$X$2,'Calc Solar'!H128,IF('Input Solar'!$D$18=Background!$X$3,'Calc Solar'!I128,'Calc Solar'!J128)),K128) -> 0 | M128: 0 | N128: 0 | O128: 0 | P128: 0 | Q128: 0 | R128: 0 | S128: 0 | T128: 0 | U128: 0 | V128: 0 | W128: 0 | X128: 0 | Y128: 0 | Z128: 0 | AA128: 0 | AB128: 0 | AC128: =IF(AB128>0,Background!$M$22/AB128,0) -> 0 | AD128: 0 | AE128: 0 | AF128: 0 | AG128: 0 | AH128: 0 | AI128: 0 | AJ128: 0 | AK128: 0 | AL128: 0.2 | AN128: 0 | AO128: 0 | AP128: 0 | AQ128: 0 | AR128: 0 | AS128: 0 | AU128: 0 | AV128: 0
A129: Diesel l/kWh | B129: 0.1 | E129: 127 | F129: =IF('Existing Load'!$D$17='Existing Load'!$D$19,'Existing Load'!J13,'Existing Load'!J13*'Existing Load'!$D$19/'Existing Load'!$D$17) -> 0 | G129: 0 | H129: 0 | I129: 0.06176910133 | J129: 0.07653764735 | K129: =IF('Input Solar'!$D$18=Background!$X$2,'Calc Solar'!H129*$H$173,IF('Input Solar'!$D$18=Background!$X$3,'Calc Solar'!I129*$I$173,'Calc Solar'!J129*$J$173)) -> 0 | L129: =IF('Input Solar'!$D$20="Default",IF('Input Solar'!$D$18=Background!$X$2,'Calc Solar'!H129,IF('Input Solar'!$D$18=Background!$X$3,'Calc Solar'!I129,'Calc Solar'!J129)),K129) -> 0 | M129: 0 | N129: 0 | O129: 0 | P129: 0 | Q129: 0 | R129: 0 | S129: 0 | T129: 0 | U129: 0 | V129: 0 | W129: 0 | X129: 0 | Y129: 0 | Z129: 0 | AA129: 0 | AB129: 0 | AC129: =IF(AB129>0,Background!$M$22/AB129,0) -> 0 | AD129: 0 | AE129: 0 | AF129: 0 | AG129: 0 | AH129: 0 | AI129: 0 | AJ129: 0 | AK129: 0 | AL129: 0.2 | AN129: 0 | AO129: 0 | AP129: 0 | AQ129: 0 | AR129: 0 | AS129: 0 | AU129: 0 | AV129: 0
A130: Energy Density Diesel | B130: 10kWh/l | E130: 128 | F130: =IF('Existing Load'!$D$17='Existing Load'!$D$19,'Existing Load'!J14,'Existing Load'!J14*'Existing Load'!$D$19/'Existing Load'!$D$17) -> 0 | G130: 0 | H130: 0.06672569206 | I130: 0.2802414178 | J130: 0.301536982 | K130: =IF('Input Solar'!$D$18=Background!$X$2,'Calc Solar'!H130*$H$173,IF('Input Solar'!$D$18=Background!$X$3,'Calc Solar'!I130*$I$173,'Calc Solar'!J130*$J$173)) -> 0 | L130: =IF('Input Solar'!$D$20="Default",IF('Input Solar'!$D$18=Background!$X$2,'Calc Solar'!H130,IF('Input Solar'!$D$18=Background!$X$3,'Calc Solar'!I130,'Calc Solar'!J130)),K130) -> 0.06672569206 | M130: 0 | N130: 0 | O130: 0 | P130: 0 | Q130: 0 | R130: 0 | S130: 0 | T130: 0 | U130: 0 | V130: 0 | W130: 0 | X130: 0 | Y130: 0 | Z130: 0 | AA130: 0 | AB130: 0 | AC130: =IF(AB130>0,Background!$M$22/AB130,0) -> 0 | AD130: 0 | AE130: 0 | AF130: 0 | AG130: 0 | AH130: 0 | AI130: 0 | AJ130: 0 | AK130: 0 | AL130: 0.2 | AN130: 0 | AO130: 0 | AP130: 0 | AQ130: 0 | AR130: 0 | AS130: 0 | AU130: 0 | AV130: 0
E131: 129 | F131: =IF('Existing Load'!$D$17='Existing Load'!$D$19,'Existing Load'!J15,'Existing Load'!J15*'Existing Load'!$D$19/'Existing Load'!$D$17) -> 0 | G131: 0 | H131: 0.1568253473 | I131: 0.4629957709 | J131: 0.4723410074 | K131: =IF('Input Solar'!$D$18=Background!$X$2,'Calc Solar'!H131*$H$173,IF('Input Solar'!$D$18=Background!$X$3,'Calc Solar'!I131*$I$173,'Calc Solar'!J131*$J$173)) -> 0 | L131: =IF('Input Solar'!$D$20="Default",IF('Input Solar'!$D$18=Background!$X$2,'Calc Solar'!H131,IF('Input Solar'!$D$18=Background!$X$3,'Calc Solar'!I131,'Calc Solar'!J131)),K131) -> 0.1568253473 | M131: 0 | N131: 0 | O131: 0 | P131: 0 | Q131: 0 | R131: 0 | S131: 0 | T131: 0 | U131: 0 | V131: 0 | W131: 0 | X131: 0 | Y131: 0 | Z131: 0 | AA131: 0 | AB131: 0 | AC131: =IF(AB131>0,Background!$M$22/AB131,0) -> 0 | AD131: 0 | AE131: 0 | AF131: 0 | AG131: 0 | AH131: 0 | AI131: 0 | AJ131: 0 | AK131: 0 | AL131: 0.2 | AN131: 0 | AO131: 0 | AP131: 0 | AQ131: =G131-AO131-AJ131-AN131 -> 0 | AR131: =AA131-AQ131 -> 0 | AS131: =MAX(AK131-AP131,-1*AR131) -> 0 | AU131: 0 | AV131: 0
E132: 130 | F132: =IF('Existing Load'!$D$17='Existing Load'!$D$19,'Existing Load'!J16,'Existing Load'!J16*'Existing Load'!$D$19/'Existing Load'!$D$17) -> 0 | G132: =F132*(1+$B$4) -> 0 | H132: 0.2415805187 | I132: 0.5826693093 | J132: 0.5751545408 | K132: =IF('Input Solar'!$D$18=Background!$X$2,'Calc Solar'!H132*$H$173,IF('Input Solar'!$D$18=Background!$X$3,'Calc Solar'!I132*$I$173,'Calc Solar'!J132*$J$173)) -> 0 | L132: =IF('Input Solar'!$D$20="Default",IF('Input Solar'!$D$18=Background!$X$2,'Calc Solar'!H132,IF('Input Solar'!$D$18=Background!$X$3,'Calc Solar'!I132,'Calc Solar'!J132)),K132) -> 0.2415805187 | M132: =L132*$B$7 -> 0 | N132: =G132-M132 -> 0 | O132: =MIN(N132,0) -> 0 | P132: =MAX(O132*$B$10,-1*$B$8*$B$9*$B$10) -> 0 | Q132: =MAX(P132,-(1-AL131)*$B$8) -> 0 | R132: =MAX(N132,0) -> 0 | S132: =MIN(R132/$B$11,$B$8*$B$9/$B$11) -> 0 | T132: =MAX(MIN(S132,(AL131-$B$12)*$B$8),0) -> 0 | U132: =T132*$B$11 -> 0 | V132: =ROUND(MAX(0,N132-U132),5) -> 0 | W132: =G132*$B$14 -> 0 | X132: =MIN($B$9*$B$8,(AL131-$B$12)*$B$8*$B$11) -> 0 | Y132: =MAX(0,W132-X132) -> 0 | Z132: =MAX(V132,Y132) -> 0 | AA132: =IF(Z132<=0,0,MIN(MAX(Z132,$D$107),$D$108)) -> 0 | AB132: =IF(AA132=0,0,MIN((AA132/$D$109)/(($D$113+$D$114*(AA132/$D$109)))/$D$115,$D$125)) -> 0 | AC132: =IF(AB132>0,Background!$M$22/AB132,0) -> 0 | AD132: =AC132*AA132 -> 0 | AE132: =AA132+M132-G132 -> 0 | AF132: =IF(AE132>0,MIN(AE132*$B$10,$B$8*$B$9*$B$10),0) -> 0 | AG132: =MAX(0,MIN(AF132/$B$8,1-AL131)) -> 0 | AH132: =IF(AE132<0,MAX(AE132/$B$11,-$B$8*$B$9/$B$11),0) -> 0 | AI132: =MIN(0,MAX(AH132/$B$8,-1*(AL131-$B$12))) -> 0 | AJ132: =AI132*-$B$8*$B$11 -> 0 | AK132: =AG132*-$B$8 -> 0 | AL132: =MIN(1,AL131+AI132+AG132) -> 0.2 | AN132: =MAX(G132-M132-AA132-AJ132,0) -> 0 | AO132: =MAX(G132-AA132-AN132-AJ132,0) -> 0 | AP132: =MAX(AK132,-1*(M132-AO132)) -> 0 | AQ132: 0 | AR132: 0 | AS132: 0 | AU132: =-1*(AR132+AS132) -> 0 | AV132: =AQ132-AS132 -> 0
E133: 131 | F133: =IF('Existing Load'!$D$17='Existing Load'!$D$19,'Existing Load'!J17,'Existing Load'!J17*'Existing Load'!$D$19/'Existing Load'!$D$17) -> 0 | G133: 0 | H133: 0.3097431746 | I133: 0.6392577291 | J133: 0.6128447318 | K133: =IF('Input Solar'!$D$18=Background!$X$2,'Calc Solar'!H133*$H$173,IF('Input Solar'!$D$18=Background!$X$3,'Calc Solar'!I133*$I$173,'Calc Solar'!J133*$J$173)) -> 0 | L133: =IF('Input Solar'!$D$20="Default",IF('Input Solar'!$D$18=Background!$X$2,'Calc Solar'!H133,IF('Input Solar'!$D$18=Background!$X$3,'Calc Solar'!I133,'Calc Solar'!J133)),K133) -> 0.3097431746 | M133: 0 | N133: 0 | O133: 0 | P133: 0 | Q133: 0 | R133: 0 | S133: 0 | T133: 0 | U133: 0 | V133: 0 | W133: 0 | X133: 0 | Y133: 0 | Z133: 0 | AA133: 0 | AB133: 0 | AC133: =IF(AB133>0,Background!$M$22/AB133,0) -> 0 | AD133: 0 | AE133: 0 | AF133: 0 | AG133: 0 | AH133: 0 | AI133: 0 | AJ133: 0 | AK133: 0 | AL133: 0.2 | AN133: 0 | AO133: 0 | AP133: 0 | AQ133: 0 | AR133: 0 | AS133: 0 | AU133: 0 | AV133: 0
E134: 132 | F134: =IF('Existing Load'!$D$17='Existing Load'!$D$19,'Existing Load'!J18,'Existing Load'!J18*'Existing Load'!$D$19/'Existing Load'!$D$17) -> 0 | G134: 0 | H134: 0.4300506956 | I134: 0.6865874386 | J134: 0.5991199143 | K134: =IF('Input Solar'!$D$18=Background!$X$2,'Calc Solar'!H134*$H$173,IF('Input Solar'!$D$18=Background!$X$3,'Calc Solar'!I134*$I$173,'Calc Solar'!J134*$J$173)) -> 0 | L134: =IF('Input Solar'!$D$20="Default",IF('Input Solar'!$D$18=Background!$X$2,'Calc Solar'!H134,IF('Input Solar'!$D$18=Background!$X$3,'Calc Solar'!I134,'Calc Solar'!J134)),K134) -> 0.4300506956 | M134: 0 | N134: 0 | O134: 0 | P134: 0 | Q134: 0 | R134: 0 | S134: 0 | T134: 0 | U134: 0 | V134: 0 | W134: 0 | X134: 0 | Y134: 0 | Z134: 0 | AA134: 0 | AB134: 0 | AC134: =IF(AB134>0,Background!$M$22/AB134,0) -> 0 | AD134: 0 | AE134: 0 | AF134: 0 | AG134: 0 | AH134: 0 | AI134: 0 | AJ134: 0 | AK134: 0 | AL134: 0.2 | AN134: 0 | AO134: 0 | AP134: 0 | AQ134: 0 | AR134: 0 | AS134: 0 | AU134: 0 | AV134: 0
E135: 133 | F135: =IF('Existing Load'!$D$17='Existing Load'!$D$19,'Existing Load'!J19,'Existing Load'!J19*'Existing Load'!$D$19/'Existing Load'!$D$17) -> 0 | G135: 0 | H135: 0.5173951691 | I135: 0.6831637063 | J135: 0.537657004 | K135: =IF('Input Solar'!$D$18=Background!$X$2,'Calc Solar'!H135*$H$173,IF('Input Solar'!$D$18=Background!$X$3,'Calc Solar'!I135*$I$173,'Calc Solar'!J135*$J$173)) -> 0 | L135: =IF('Input Solar'!$D$20="Default",IF('Input Solar'!$D$18=Background!$X$2,'Calc Solar'!H135,IF('Input Solar'!$D$18=Background!$X$3,'Calc Solar'!I135,'Calc Solar'!J135)),K135) -> 0.5173951691 | M135: 0 | N135: 0 | O135: 0 | P135: 0 | Q135: 0 | R135: 0 | S135: 0 | T135: 0 | U135: 0 | V135: 0 | W135: 0 | X135: 0 | Y135: 0 | Z135: 0 | AA135: 0 | AB135: 0 | AC135: =IF(AB135>0,Background!$M$22/AB135,0) -> 0 | AD135: 0 | AE135: 0 | AF135: 0 | AG135: 0 | AH135: 0 | AI135: 0 | AJ135: 0 | AK135: 0 | AL135: 0.2 | AN135: 0 | AO135: 0 | AP135: 0 | AQ135: 0 | AR135: 0 | AS135: 0 | AU135: 0 | AV135: 0
E136: 134 | F136: =IF('Existing Load'!$D$17='Existing Load'!$D$19,'Existing Load'!J20,'Existing Load'!J20*'Existing Load'!$D$19/'Existing Load'!$D$17) -> 0 | G136: 0 | H136: 0.5504448814 | I136: 0.6283032922 | J136: 0.4392322803 | K136: =IF('Input Solar'!$D$18=Background!$X$2,'Calc Solar'!H136*$H$173,IF('Input Solar'!$D$18=Background!$X$3,'Calc Solar'!I136*$I$173,'Calc Solar'!J136*$J$173)) -> 0 | L136: =IF('Input Solar'!$D$20="Default",IF('Input Solar'!$D$18=Background!$X$2,'Calc Solar'!H136,IF('Input Solar'!$D$18=Background!$X$3,'Calc Solar'!I136,'Calc Solar'!J136)),K136) -> 0.5504448814 | M136: 0 | N136: 0 | O136: 0 | P136: 0 | Q136: 0 | R136: 0 | S136: 0 | T136: 0 | U136: 0 | V136: 0 | W136: 0 | X136: 0 | Y136: 0 | Z136: 0 | AA136: 0 | AB136: 0 | AC136: =IF(AB136>0,Background!$M$22/AB136,0) -> 0 | AD136: 0 | AE136: 0 | AF136: 0 | AG136: 0 | AH136: 0 | AI136: 0 | AJ136: 0 | AK136: 0 | AL136: 0.2 | AN136: 0 | AO136: 0 | AP136: 0 | AQ136: 0 | AR136: 0 | AS136: 0 | AU136: 0 | AV136: 0
E137: 135 | F137: =IF('Existing Load'!$D$17='Existing Load'!$D$19,'Existing Load'!J21,'Existing Load'!J21*'Existing Load'!$D$19/'Existing Load'!$D$17) -> 0 | G137: 0 | H137: 0.4226218464 | I137: 0.4618703077 | J137: 0.3287764487 | K137: =IF('Input Solar'!$D$18=Background!$X$2,'Calc Solar'!H137*$H$173,IF('Input Solar'!$D$18=Background!$X$3,'Calc Solar'!I137*$I$173,'Calc Solar'!J137*$J$173)) -> 0 | L137: =IF('Input Solar'!$D$20="Default",IF('Input Solar'!$D$18=Background!$X$2,'Calc Solar'!H137,IF('Input Solar'!$D$18=Background!$X$3,'Calc Solar'!I137,'Calc Solar'!J137)),K137) -> 0.4226218464 | M137: 0 | N137: 0 | O137: 0 | P137: 0 | Q137: 0 | R137: 0 | S137: 0 | T137: 0 | U137: 0 | V137: 0 | W137: 0 | X137: 0 | Y137: 0 | Z137: 0 | AA137: 0 | AB137: 0 | AC137: =IF(AB137>0,Background!$M$22/AB137,0) -> 0 | AD137: 0 | AE137: 0 | AF137: 0 | AG137: 0 | AH137: 0 | AI137: 0 | AJ137: 0 | AK137: 0 | AL137: 0.2 | AN137: 0 | AO137: 0 | AP137: 0 | AQ137: 0 | AR137: 0 | AS137: 0 | AU137: 0 | AV137: 0
E138: 136 | F138: =IF('Existing Load'!$D$17='Existing Load'!$D$19,'Existing Load'!J22,'Existing Load'!J22*'Existing Load'!$D$19/'Existing Load'!$D$17) -> 0 | G138: 0 | H138: 0.2688966677 | I138: 0.2779356169 | J138: 0.206323507 | K138: =IF('Input Solar'!$D$18=Background!$X$2,'Calc Solar'!H138*$H$173,IF('Input Solar'!$D$18=Background!$X$3,'Calc Solar'!I138*$I$173,'Calc Solar'!J138*$J$173)) -> 0 | L138: =IF('Input Solar'!$D$20="Default",IF('Input Solar'!$D$18=Background!$X$2,'Calc Solar'!H138,IF('Input Solar'!$D$18=Background!$X$3,'Calc Solar'!I138,'Calc Solar'!J138)),K138) -> 0.2688966677 | M138: 0 | N138: 0 | O138: 0 | P138: 0 | Q138: 0 | R138: 0 | S138: 0 | T138: 0 | U138: 0 | V138: 0 | W138: 0 | X138: 0 | Y138: 0 | Z138: 0 | AA138: 0 | AB138: 0 | AC138: =IF(AB138>0,Background!$M$22/AB138,0) -> 0 | AD138: 0 | AE138: 0 | AF138: 0 | AG138: 0 | AH138: 0 | AI138: 0 | AJ138: 0 | AK138: 0 | AL138: 0.2 | AN138: 0 | AO138: 0 | AP138: 0 | AQ138: 0 | AR138: 0 | AS138: 0 | AU138: 0 | AV138: 0
E139: 137 | F139: =IF('Existing Load'!$D$17='Existing Load'!$D$19,'Existing Load'!J23,'Existing Load'!J23*'Existing Load'!$D$19/'Existing Load'!$D$17) -> 0 | G139: 0 | H139: 0.1085676283 | I139: 0.1038298999 | J139: 0.08872957524 | K139: =IF('Input Solar'!$D$18=Background!$X$2,'Calc Solar'!H139*$H$173,IF('Input Solar'!$D$18=Background!$X$3,'Calc Solar'!I139*$I$173,'Calc Solar'!J139*$J$173)) -> 0 | L139: =IF('Input Solar'!$D$20="Default",IF('Input Solar'!$D$18=Background!$X$2,'Calc Solar'!H139,IF('Input Solar'!$D$18=Background!$X$3,'Calc Solar'!I139,'Calc Solar'!J139)),K139) -> 0.1085676283 | M139: 0 | N139: 0 | O139: 0 | P139: 0 | Q139: 0 | R139: 0 | S139: 0 | T139: 0 | U139: 0 | V139: 0 | W139: 0 | X139: 0 | Y139: 0 | Z139: 0 | AA139: 0 | AB139: 0 | AC139: =IF(AB139>0,Background!$M$22/AB139,0) -> 0 | AD139: 0 | AE139: 0 | AF139: 0 | AG139: 0 | AH139: 0 | AI139: 0 | AJ139: 0 | AK139: 0 | AL139: 0.2 | AN139: 0 | AO139: 0 | AP139: 0 | AQ139: 0 | AR139: 0 | AS139: 0 | AU139: 0 | AV139: 0
E140: 138 | F140: =IF('Existing Load'!$D$17='Existing Load'!$D$19,'Existing Load'!J24,'Existing Load'!J24*'Existing Load'!$D$19/'Existing Load'!$D$17) -> 0 | G140: 0 | H140: 0 | I140: 0.0005193722249 | J140: 0.004063512357 | K140: =IF('Input Solar'!$D$18=Background!$X$2,'Calc Solar'!H140*$H$173,IF('Input Solar'!$D$18=Background!$X$3,'Calc Solar'!I140*$I$173,'Calc Solar'!J140*$J$173)) -> 0 | L140: =IF('Input Solar'!$D$20="Default",IF('Input Solar'!$D$18=Background!$X$2,'Calc Solar'!H140,IF('Input Solar'!$D$18=Background!$X$3,'Calc Solar'!I140,'Calc Solar'!J140)),K140) -> 0 | M140: 0 | N140: 0 | O140: 0 | P140: 0 | Q140: 0 | R140: 0 | S140: 0 | T140: 0 | U140: 0 | V140: 0 | W140: 0 | X140: 0 | Y140: 0 | Z140: 0 | AA140: 0 | AB140: 0 | AC140: =IF(AB140>0,Background!$M$22/AB140,0) -> 0 | AD140: 0 | AE140: 0 | AF140: 0 | AG140: 0 | AH140: 0 | AI140: 0 | AJ140: 0 | AK140: 0 | AL140: 0.2 | AN140: 0 | AO140: 0 | AP140: 0 | AQ140: 0 | AR140: 0 | AS140: 0 | AU140: 0 | AV140: 0
E141: 139 | F141: =IF('Existing Load'!$D$17='Existing Load'!$D$19,'Existing Load'!J25,'Existing Load'!J25*'Existing Load'!$D$19/'Existing Load'!$D$17) -> 0 | G141: 0 | H141: 0 | I141: 0 | J141: 0 | K141: =IF('Input Solar'!$D$18=Background!$X$2,'Calc Solar'!H141*$H$173,IF('Input Solar'!$D$18=Background!$X$3,'Calc Solar'!I141*$I$173,'Calc Solar'!J141*$J$173)) -> 0 | L141: =IF('Input Solar'!$D$20="Default",IF('Input Solar'!$D$18=Background!$X$2,'Calc Solar'!H141,IF('Input Solar'!$D$18=Background!$X$3,'Calc Solar'!I141,'Calc Solar'!J141)),K141) -> 0 | M141: 0 | N141: 0 | O141: 0 | P141: 0 | Q141: 0 | R141: 0 | S141: 0 | T141: 0 | U141: 0 | V141: 0 | W141: 0 | X141: 0 | Y141: 0 | Z141: 0 | AA141: 0 | AB141: 0 | AC141: =IF(AB141>0,Background!$M$22/AB141,0) -> 0 | AD141: 0 | AE141: 0 | AF141: 0 | AG141: 0 | AH141: 0 | AI141: 0 | AJ141: 0 | AK141: 0 | AL141: 0.2 | AN141: 0 | AO141: 0 | AP141: 0 | AQ141: 0 | AR141: 0 | AS141: 0 | AU141: 0 | AV141: 0
E142: 140 | F142: =IF('Existing Load'!$D$17='Existing Load'!$D$19,'Existing Load'!J26,'Existing Load'!J26*'Existing Load'!$D$19/'Existing Load'!$D$17) -> 0 | G142: 0 | H142: 0 | I142: 0 | J142: 0 | K142: =IF('Input Solar'!$D$18=Background!$X$2,'Calc Solar'!H142*$H$173,IF('Input Solar'!$D$18=Background!$X$3,'Calc Solar'!I142*$I$173,'Calc Solar'!J142*$J$173)) -> 0 | L142: =IF('Input Solar'!$D$20="Default",IF('Input Solar'!$D$18=Background!$X$2,'Calc Solar'!H142,IF('Input Solar'!$D$18=Background!$X$3,'Calc Solar'!I142,'Calc Solar'!J142)),K142) -> 0 | M142: 0 | N142: 0 | O142: 0 | P142: 0 | Q142: 0 | R142: 0 | S142: 0 | T142: 0 | U142: 0 | V142: 0 | W142: 0 | X142: 0 | Y142: 0 | Z142: 0 | AA142: 0 | AB142: 0 | AC142: =IF(AB142>0,Background!$M$22/AB142,0) -> 0 | AD142: 0 | AE142: 0 | AF142: 0 | AG142: 0 | AH142: 0 | AI142: 0 | AJ142: 0 | AK142: 0 | AL142: 0.2 | AN142: 0 | AO142: 0 | AP142: 0 | AQ142: 0 | AR142: 0 | AS142: 0 | AU142: 0 | AV142: 0
E143: 141 | F143: =IF('Existing Load'!$D$17='Existing Load'!$D$19,'Existing Load'!J27,'Existing Load'!J27*'Existing Load'!$D$19/'Existing Load'!$D$17) -> 0 | G143: 0 | H143: 0 | I143: 0 | J143: 0 | K143: =IF('Input Solar'!$D$18=Background!$X$2,'Calc Solar'!H143*$H$173,IF('Input Solar'!$D$18=Background!$X$3,'Calc Solar'!I143*$I$173,'Calc Solar'!J143*$J$173)) -> 0 | L143: =IF('Input Solar'!$D$20="Default",IF('Input Solar'!$D$18=Background!$X$2,'Calc Solar'!H143,IF('Input Solar'!$D$18=Background!$X$3,'Calc Solar'!I143,'Calc Solar'!J143)),K143) -> 0 | M143: 0 | N143: 0 | O143: 0 | P143: 0 | Q143: 0 | R143: 0 | S143: 0 | T143: 0 | U143: 0 | V143: 0 | W143: 0 | X143: 0 | Y143: 0 | Z143: 0 | AA143: 0 | AB143: 0 | AC143: =IF(AB143>0,Background!$M$22/AB143,0) -> 0 | AD143: 0 | AE143: 0 | AF143: 0 | AG143: 0 | AH143: 0 | AI143: 0 | AJ143: 0 | AK143: 0 | AL143: 0.2 | AN143: 0 | AO143: 0 | AP143: 0 | AQ143: 0 | AR143: 0 | AS143: 0 | AU143: 0 | AV143: 0
E144: 142 | F144: =IF('Existing Load'!$D$17='Existing Load'!$D$19,'Existing Load'!J28,'Existing Load'!J28*'Existing Load'!$D$19/'Existing Load'!$D$17) -> 0 | G144: 0 | H144: 0 | I144: 0 | J144: 0 | K144: =IF('Input Solar'!$D$18=Background!$X$2,'Calc Solar'!H144*$H$173,IF('Input Solar'!$D$18=Background!$X$3,'Calc Solar'!I144*$I$173,'Calc Solar'!J144*$J$173)) -> 0 | L144: =IF('Input Solar'!$D$20="Default",IF('Input Solar'!$D$18=Background!$X$2,'Calc Solar'!H144,IF('Input Solar'!$D$18=Background!$X$3,'Calc Solar'!I144,'Calc Solar'!J144)),K144) -> 0 | M144: 0 | N144: 0 | O144: 0 | P144: 0 | Q144: 0 | R144: 0 | S144: 0 | T144: 0 | U144: 0 | V144: 0 | W144: 0 | X144: 0 | Y144: 0 | Z144: 0 | AA144: 0 | AB144: =IF(AA144=0,0,MIN((AA144/$D$109)/(($D$113+$D$114*(AA144/$D$109)))/$D$115,$D$125)) -> 0 | AC144: =IF(AB144>0,Background!$M$22/AB144,0) -> 0 | AD144: 0 | AE144: 0 | AF144: 0 | AG144: 0 | AH144: 0 | AI144: 0 | AJ144: 0 | AK144: 0 | AL144: 0.2 | AN144: 0 | AO144: 0 | AP144: 0 | AQ144: 0 | AR144: 0 | AS144: 0 | AU144: 0 | AV144: 0
E145: 143 | F145: =IF('Existing Load'!$D$17='Existing Load'!$D$19,'Existing Load'!J29,'Existing Load'!J29*'Existing Load'!$D$19/'Existing Load'!$D$17) -> 0 | G145: 0 | H145: 0 | I145: 0 | J145: 0 | K145: =IF('Input Solar'!$D$18=Background!$X$2,'Calc Solar'!H145*$H$173,IF('Input Solar'!$D$18=Background!$X$3,'Calc Solar'!I145*$I$173,'Calc Solar'!J145*$J$173)) -> 0 | L145: =IF('Input Solar'!$D$20="Default",IF('Input Solar'!$D$18=Background!$X$2,'Calc Solar'!H145,IF('Input Solar'!$D$18=Background!$X$3,'Calc Solar'!I145,'Calc Solar'!J145)),K145) -> 0 | M145: 0 | N145: 0 | O145: 0 | P145: 0 | Q145: 0 | R145: 0 | S145: 0 | T145: 0 | U145: 0 | V145: 0 | W145: 0 | X145: 0 | Y145: 0 | Z145: 0 | AA145: 0 | AB145: 0 | AC145: =IF(AB145>0,Background!$M$22/AB145,0) -> 0 | AD145: 0 | AE145: 0 | AF145: 0 | AG145: 0 | AH145: 0 | AI145: 0 | AJ145: 0 | AK145: 0 | AL145: 0.2 | AN145: 0 | AO145: 0 | AP145: 0 | AQ145: 0 | AR145: 0 | AS145: 0 | AU145: 0 | AV145: 0
C146: leave section empty for VBA usage | E146: 144 | F146: =IF('Existing Load'!$D$17='Existing Load'!$D$19,'Existing Load'!J30,'Existing Load'!J30*'Existing Load'!$D$19/'Existing Load'!$D$17) -> 0 | G146: 0 | H146: 0 | I146: 0 | J146: 0 | K146: =IF('Input Solar'!$D$18=Background!$X$2,'Calc Solar'!H146*$H$173,IF('Input Solar'!$D$18=Background!$X$3,'Calc Solar'!I146*$I$173,'Calc Solar'!J146*$J$173)) -> 0 | L146: =IF('Input Solar'!$D$20="Default",IF('Input Solar'!$D$18=Background!$X$2,'Calc Solar'!H146,IF('Input Solar'!$D$18=Background!$X$3,'Calc Solar'!I146,'Calc Solar'!J146)),K146) -> 0 | M146: 0 | N146: 0 | O146: 0 | P146: 0 | Q146: 0 | R146: 0 | S146: 0 | T146: 0 | U146: 0 | V146: 0 | W146: 0 | X146: 0 | Y146: 0 | Z146: 0 | AA146: 0 | AB146: 0 | AC146: =IF(AB146>0,Background!$M$22/AB146,0) -> 0 | AD146: 0 | AE146: 0 | AF146: 0 | AG146: 0 | AH146: 0 | AI146: 0 | AJ146: 0 | AK146: 0 | AL146: 0.2 | AN146: 0 | AO146: 0 | AP146: 0 | AQ146: 0 | AR146: 0 | AS146: 0 | AU146: 0 | AV146: 0
E147: 145 | F147: =IF(E147-E123=24,F123,"") -> 0 | G147: 0 | H147: 0 | I147: 0 | J147: 0 | K147: =IF('Input Solar'!$D$18=Background!$X$2,'Calc Solar'!H147*$H$173,IF('Input Solar'!$D$18=Background!$X$3,'Calc Solar'!I147*$I$173,'Calc Solar'!J147*$J$173)) -> 0 | L147: =IF('Input Solar'!$D$20="Default",IF('Input Solar'!$D$18=Background!$X$2,'Calc Solar'!H147,IF('Input Solar'!$D$18=Background!$X$3,'Calc Solar'!I147,'Calc Solar'!J147)),K147) -> 0 | M147: 0 | N147: 0 | O147: 0 | P147: 0 | Q147: 0 | R147: 0 | S147: 0 | T147: 0 | U147: 0 | V147: 0 | W147: 0 | X147: 0 | Y147: 0 | Z147: 0 | AA147: 0 | AB147: 0 | AC147: =IF(AB147>0,Background!$M$22/AB147,0) -> 0 | AD147: 0 | AE147: 0 | AF147: 0 | AG147: 0 | AH147: 0 | AI147: 0 | AJ147: 0 | AK147: 0 | AL147: 0.2 | AN147: 0 | AO147: 0 | AP147: 0 | AQ147: 0 | AR147: 0 | AS147: 0 | AU147: 0 | AV147: 0
E148: 146 | F148: =IF(E148-E124=24,F124,"") -> 0 | G148: 0 | H148: 0 | I148: 0 | J148: 0 | K148: =IF('Input Solar'!$D$18=Background!$X$2,'Calc Solar'!H148*$H$173,IF('Input Solar'!$D$18=Background!$X$3,'Calc Solar'!I148*$I$173,'Calc Solar'!J148*$J$173)) -> 0 | L148: =IF('Input Solar'!$D$20="Default",IF('Input Solar'!$D$18=Background!$X$2,'Calc Solar'!H148,IF('Input Solar'!$D$18=Background!$X$3,'Calc Solar'!I148,'Calc Solar'!J148)),K148) -> 0 | M148: 0 | N148: 0 | O148: 0 | P148: 0 | Q148: 0 | R148: 0 | S148: 0 | T148: 0 | U148: 0 | V148: 0 | W148: 0 | X148: 0 | Y148: 0 | Z148: 0 | AA148: 0 | AB148: 0 | AC148: =IF(AB148>0,Background!$M$22/AB148,0) -> 0 | AD148: 0 | AE148: 0 | AF148: 0 | AG148: 0 | AH148: 0 | AI148: 0 | AJ148: 0 | AK148: 0 | AL148: 0.2 | AN148: 0 | AO148: 0 | AP148: 0 | AQ148: 0 | AR148: 0 | AS148: 0 | AU148: 0 | AV148: 0
E149: 147 | F149: 0 | G149: 0 | H149: 0 | I149: 0 | J149: 0 | K149: =IF('Input Solar'!$D$18=Background!$X$2,'Calc Solar'!H149*$H$173,IF('Input Solar'!$D$18=Background!$X$3,'Calc Solar'!I149*$I$173,'Calc Solar'!J149*$J$173)) -> 0 | L149: =IF('Input Solar'!$D$20="Default",IF('Input Solar'!$D$18=Background!$X$2,'Calc Solar'!H149,IF('Input Solar'!$D$18=Background!$X$3,'Calc Solar'!I149,'Calc Solar'!J149)),K149) -> 0 | M149: 0 | N149: 0 | O149: 0 | P149: 0 | Q149: 0 | R149: 0 | S149: 0 | T149: 0 | U149: 0 | V149: 0 | W149: 0 | X149: 0 | Y149: 0 | Z149: 0 | AA149: 0 | AB149: 0 | AC149: =IF(AB149>0,Background!$M$22/AB149,0) -> 0 | AD149: 0 | AE149: 0 | AF149: 0 | AG149: 0 | AH149: 0 | AI149: 0 | AJ149: 0 | AK149: 0 | AL149: 0.2 | AN149: 0 | AO149: 0 | AP149: 0 | AQ149: 0 | AR149: 0 | AS149: 0 | AU149: 0 | AV149: 0
E150: 148 | F150: =IF(E150-E126=24,F126,"") -> 0 | G150: 0 | H150: 0 | I150: 0 | J150: 0 | K150: =IF('Input Solar'!$D$18=Background!$X$2,'Calc Solar'!H150*$H$173,IF('Input Solar'!$D$18=Background!$X$3,'Calc Solar'!I150*$I$173,'Calc Solar'!J150*$J$173)) -> 0 | L150: =IF('Input Solar'!$D$20="Default",IF('Input Solar'!$D$18=Background!$X$2,'Calc Solar'!H150,IF('Input Solar'!$D$18=Background!$X$3,'Calc Solar'!I150,'Calc Solar'!J150)),K150) -> 0 | M150: 0 | N150: 0 | O150: 0 | P150: 0 | Q150: 0 | R150: 0 | S150: 0 | T150: 0 | U150: 0 | V150: 0 | W150: 0 | X150: 0 | Y150: 0 | Z150: 0 | AA150: 0 | AB150: 0 | AC150: =IF(AB150>0,Background!$M$22/AB150,0) -> 0 | AD150: 0 | AE150: 0 | AF150: 0 | AG150: 0 | AH150: 0 | AI150: 0 | AJ150: 0 | AK150: 0 | AL150: 0.2 | AN150: 0 | AO150: 0 | AP150: 0 | AQ150: 0 | AR150: 0 | AS150: 0 | AU150: 0 | AV150: 0
E151: 149 | F151: 0 | G151: 0 | H151: 0 | I151: 0 | J151: 0 | K151: =IF('Input Solar'!$D$18=Background!$X$2,'Calc Solar'!H151*$H$173,IF('Input Solar'!$D$18=Background!$X$3,'Calc Solar'!I151*$I$173,'Calc Solar'!J151*$J$173)) -> 0 | L151: =IF('Input Solar'!$D$20="Default",IF('Input Solar'!$D$18=Background!$X$2,'Calc Solar'!H151,IF('Input Solar'!$D$18=Background!$X$3,'Calc Solar'!I151,'Calc Solar'!J151)),K151) -> 0 | M151: 0 | N151: 0 | O151: 0 | P151: 0 | Q151: 0 | R151: 0 | S151: 0 | T151: 0 | U151: 0 | V151: 0 | W151: 0 | X151: 0 | Y151: 0 | Z151: 0 | AA151: 0 | AB151: 0 | AC151: =IF(AB151>0,Background!$M$22/AB151,0) -> 0 | AD151: 0 | AE151: 0 | AF151: 0 | AG151: 0 | AH151: 0 | AI151: 0 | AJ151: 0 | AK151: 0 | AL151: 0.2 | AN151: 0 | AO151: 0 | AP151: 0 | AQ151: 0 | AR151: 0 | AS151: 0 | AU151: 0 | AV151: 0
E152: 150 | F152: 0 | G152: 0 | H152: 0 | I152: 0 | J152: 0 | K152: =IF('Input Solar'!$D$18=Background!$X$2,'Calc Solar'!H152*$H$173,IF('Input Solar'!$D$18=Background!$X$3,'Calc Solar'!I152*$I$173,'Calc Solar'!J152*$J$173)) -> 0 | L152: =IF('Input Solar'!$D$20="Default",IF('Input Solar'!$D$18=Background!$X$2,'Calc Solar'!H152,IF('Input Solar'!$D$18=Background!$X$3,'Calc Solar'!I152,'Calc Solar'!J152)),K152) -> 0 | M152: 0 | N152: 0 | O152: 0 | P152: 0 | Q152: 0 | R152: 0 | S152: 0 | T152: 0 | U152: 0 | V152: 0 | W152: 0 | X152: 0 | Y152: 0 | Z152: 0 | AA152: 0 | AB152: 0 | AC152: =IF(AB152>0,Background!$M$22/AB152,0) -> 0 | AD152: 0 | AE152: 0 | AF152: 0 | AG152: 0 | AH152: 0 | AI152: 0 | AJ152: 0 | AK152: 0 | AL152: 0.2 | AN152: 0 | AO152: 0 | AP152: 0 | AQ152: 0 | AR152: 0 | AS152: 0 | AU152: 0 | AV152: 0
E153: 151 | F153: 0 | G153: 0 | H153: 0.0244212393 | I153: 0.05526573154 | J153: 0.07342396201 | K153: =IF('Input Solar'!$D$18=Background!$X$2,'Calc Solar'!H153*$H$173,IF('Input Solar'!$D$18=Background!$X$3,'Calc Solar'!I153*$I$173,'Calc Solar'!J153*$J$173)) -> 0 | L153: =IF('Input Solar'!$D$20="Default",IF('Input Solar'!$D$18=Background!$X$2,'Calc Solar'!H153,IF('Input Solar'!$D$18=Background!$X$3,'Calc Solar'!I153,'Calc Solar'!J153)),K153) -> 0.0244212393 | M153: 0 | N153: 0 | O153: 0 | P153: 0 | Q153: 0 | R153: 0 | S153: 0 | T153: 0 | U153: 0 | V153: 0 | W153: 0 | X153: 0 | Y153: 0 | Z153: 0 | AA153: 0 | AB153: 0 | AC153: =IF(AB153>0,Background!$M$22/AB153,0) -> 0 | AD153: 0 | AE153: 0 | AF153: 0 | AG153: 0 | AH153: 0 | AI153: 0 | AJ153: 0 | AK153: 0 | AL153: 0.2 | AN153: 0 | AO153: 0 | AP153: 0 | AQ153: 0 | AR153: 0 | AS153: 0 | AU153: 0 | AV153: 0
E154: 152 | F154: 0 | G154: 0 | H154: 0.2981422497 | I154: 0.2435519624 | J154: 0.2879656697 | K154: =IF('Input Solar'!$D$18=Background!$X$2,'Calc Solar'!H154*$H$173,IF('Input Solar'!$D$18=Background!$X$3,'Calc Solar'!I154*$I$173,'Calc Solar'!J154*$J$173)) -> 0 | L154: =IF('Input Solar'!$D$20="Default",IF('Input Solar'!$D$18=Background!$X$2,'Calc Solar'!H154,IF('Input Solar'!$D$18=Background!$X$3,'Calc Solar'!I154,'Calc Solar'!J154)),K154) -> 0.2981422497 | M154: 0 | N154: 0 | O154: 0 | P154: 0 | Q154: 0 | R154: 0 | S154: 0 | T154: 0 | U154: 0 | V154: 0 | W154: 0 | X154: 0 | Y154: 0 | Z154: 0 | AA154: 0 | AB154: 0 | AC154: =IF(AB154>0,Background!$M$22/AB154,0) -> 0 | AD154: 0 | AE154: 0 | AF154: 0 | AG154: 0 | AH154: 0 | AI154: 0 | AJ154: 0 | AK154: 0 | AL154: 0.2 | AN154: 0 | AO154: 0 | AP154: 0 | AQ154: 0 | AR154: 0 | AS154: 0 | AU154: 0 | AV154: 0
E155: 153 | F155: =IF(E155-E131=24,F131,"") -> 0 | G155: 0 | H155: 0.5201380353 | I155: 0.4051129608 | J155: 0.4764083831 | K155: =IF('Input Solar'!$D$18=Background!$X$2,'Calc Solar'!H155*$H$173,IF('Input Solar'!$D$18=Background!$X$3,'Calc Solar'!I155*$I$173,'Calc Solar'!J155*$J$173)) -> 0 | L155: =IF('Input Solar'!$D$20="Default",IF('Input Solar'!$D$18=Background!$X$2,'Calc Solar'!H155,IF('Input Solar'!$D$18=Background!$X$3,'Calc Solar'!I155,'Calc Solar'!J155)),K155) -> 0.5201380353 | M155: 0 | N155: 0 | O155: 0 | P155: 0 | Q155: 0 | R155: 0 | S155: 0 | T155: 0 | U155: 0 | V155: 0 | W155: 0 | X155: 0 | Y155: 0 | Z155: 0 | AA155: 0 | AB155: 0 | AC155: =IF(AB155>0,Background!$M$22/AB155,0) -> 0 | AD155: 0 | AE155: 0 | AF155: 0 | AG155: 0 | AH155: 0 | AI155: 0 | AJ155: 0 | AK155: 0 | AL155: 0.2 | AN155: 0 | AO155: 0 | AP155: 0 | AQ155: 0 | AR155: 0 | AS155: 0 | AU155: 0 | AV155: 0
E156: 154 | F156: 0 | G156: 0 | H156: 0.601429654 | I156: 0.5120653217 | J156: 0.6129250903 | K156: =IF('Input Solar'!$D$18=Background!$X$2,'Calc Solar'!H156*$H$173,IF('Input Solar'!$D$18=Background!$X$3,'Calc Solar'!I156*$I$173,'Calc Solar'!J156*$J$173)) -> 0 | L156: =IF('Input Solar'!$D$20="Default",IF('Input Solar'!$D$18=Background!$X$2,'Calc Solar'!H156,IF('Input Solar'!$D$18=Background!$X$3,'Calc Solar'!I156,'Calc Solar'!J156)),K156) -> 0.601429654 | M156: 0 | N156: 0 | O156: 0 | P156: 0 | Q156: 0 | R156: 0 | S156: 0 | T156: 0 | U156: 0 | V156: 0 | W156: 0 | X156: 0 | Y156: 0 | Z156: 0 | AA156: 0 | AB156: 0 | AC156: =IF(AB156>0,Background!$M$22/AB156,0) -> 0 | AD156: 0 | AE156: 0 | AF156: 0 | AG156: 0 | AH156: 0 | AI156: 0 | AJ156: 0 | AK156: 0 | AL156: 0.2 | AN156: 0 | AO156: 0 | AP156: 0 | AQ156: 0 | AR156: 0 | AS156: 0 | AU156: 0 | AV156: 0
E157: 155 | F157: 0 | G157: 0 | H157: 0.5568200686 | I157: 0.5633879509 | J157: 0.6932650334 | K157: =IF('Input Solar'!$D$18=Background!$X$2,'Calc Solar'!H157*$H$173,IF('Input Solar'!$D$18=Background!$X$3,'Calc Solar'!I157*$I$173,'Calc Solar'!J157*$J$173)) -> 0 | L157: =IF('Input Solar'!$D$20="Default",IF('Input Solar'!$D$18=Background!$X$2,'Calc Solar'!H157,IF('Input Solar'!$D$18=Background!$X$3,'Calc Solar'!I157,'Calc Solar'!J157)),K157) -> 0.5568200686 | M157: 0 | N157: 0 | O157: 0 | P157: 0 | Q157: 0 | R157: 0 | S157: 0 | T157: 0 | U157: 0 | V157: 0 | W157: 0 | X157: 0 | Y157: 0 | Z157: 0 | AA157: 0 | AB157: 0 | AC157: =IF(AB157>0,Background!$M$22/AB157,0) -> 0 | AD157: 0 | AE157: 0 | AF157: 0 | AG157: 0 | AH157: 0 | AI157: 0 | AJ157: 0 | AK157: 0 | AL157: 0.2 | AN157: 0 | AO157: 0 | AP157: 0 | AQ157: 0 | AR157: 0 | AS157: 0 | AU157: 0 | AV157: 0
E158: 156 | F158: 0 | G158: 0 | H158: 0.6410233219 | I158: 0.6145599445 | J158: 0.668361114 | K158: =IF('Input Solar'!$D$18=Background!$X$2,'Calc Solar'!H158*$H$173,IF('Input Solar'!$D$18=Background!$X$3,'Calc Solar'!I158*$I$173,'Calc Solar'!J158*$J$173)) -> 0 | L158: =IF('Input Solar'!$D$20="Default",IF('Input Solar'!$D$18=Background!$X$2,'Calc Solar'!H158,IF('Input Solar'!$D$18=Background!$X$3,'Calc Solar'!I158,'Calc Solar'!J158)),K158) -> 0.6410233219 | M158: 0 | N158: 0 | O158: 0 | P158: 0 | Q158: 0 | R158: 0 | S158: 0 | T158: 0 | U158: 0 | V158: 0 | W158: 0 | X158: 0 | Y158: 0 | Z158: 0 | AA158: 0 | AB158: 0 | AC158: =IF(AB158>0,Background!$M$22/AB158,0) -> 0 | AD158: 0 | AE158: 0 | AF158: 0 | AG158: 0 | AH158: 0 | AI158: 0 | AJ158: 0 | AK158: 0 | AL158: 0.2 | AN158: 0 | AO158: 0 | AP158: 0 | AQ158: 0 | AR158: 0 | AS158: 0 | AU158: 0 | AV158: 0
E159: 157 | F159: 0 | G159: 0 | H159: 0.6741186472 | I159: 0.6204218218 | J159: 0.5900394052 | K159: =IF('Input Solar'!$D$18=Background!$X$2,'Calc Solar'!H159*$H$173,IF('Input Solar'!$D$18=Background!$X$3,'Calc Solar'!I159*$I$173,'Calc Solar'!J159*$J$173)) -> 0 | L159: =IF('Input Solar'!$D$20="Default",IF('Input Solar'!$D$18=Background!$X$2,'Calc Solar'!H159,IF('Input Solar'!$D$18=Background!$X$3,'Calc Solar'!I159,'Calc Solar'!J159)),K159) -> 0.6741186472 | M159: 0 | N159: 0 | O159: 0 | P159: 0 | Q159: 0 | R159: 0 | S159: 0 | T159: 0 | U159: 0 | V159: 0 | W159: 0 | X159: 0 | Y159: 0 | Z159: 0 | AA159: 0 | AB159: 0 | AC159: =IF(AB159>0,Background!$M$22/AB159,0) -> 0 | AD159: 0 | AE159: 0 | AF159: 0 | AG159: 0 | AH159: 0 | AI159: 0 | AJ159: 0 | AK159: 0 | AL159: 0.2 | AN159: 0 | AO159: 0 | AP159: 0 | AQ159: 0 | AR159: 0 | AS159: 0 | AU159: 0 | AV159: 0
E160: 158 | F160: 0 | G160: 0 | H160: 0.6478029449 | I160: 0.5766804678 | J160: 0.4717218349 | K160: =IF('Input Solar'!$D$18=Background!$X$2,'Calc Solar'!H160*$H$173,IF('Input Solar'!$D$18=Background!$X$3,'Calc Solar'!I160*$I$173,'Calc Solar'!J160*$J$173)) -> 0 | L160: =IF('Input Solar'!$D$20="Default",IF('Input Solar'!$D$18=Background!$X$2,'Calc Solar'!H160,IF('Input Solar'!$D$18=Background!$X$3,'Calc Solar'!I160,'Calc Solar'!J160)),K160) -> 0.6478029449 | M160: 0 | N160: 0 | O160: 0 | P160: 0 | Q160: 0 | R160: 0 | S160: 0 | T160: 0 | U160: 0 | V160: 0 | W160: 0 | X160: 0 | Y160: 0 | Z160: 0 | AA160: 0 | AB160: 0 | AC160: =IF(AB160>0,Background!$M$22/AB160,0) -> 0 | AD160: 0 | AE160: 0 | AF160: 0 | AG160: 0 | AH160: 0 | AI160: 0 | AJ160: 0 | AK160: 0 | AL160: 0.2 | AN160: 0 | AO160: 0 | AP160: 0 | AQ160: 0 | AR160: 0 | AS160: 0 | AU160: 0 | AV160: 0
E161: 159 | F161: 0 | G161: 0 | H161: 0.4711860853 | I161: 0.4005874366 | J161: 0.3465367047 | K161: =IF('Input Solar'!$D$18=Background!$X$2,'Calc Solar'!H161*$H$173,IF('Input Solar'!$D$18=Background!$X$3,'Calc Solar'!I161*$I$173,'Calc Solar'!J161*$J$173)) -> 0 | L161: =IF('Input Solar'!$D$20="Default",IF('Input Solar'!$D$18=Background!$X$2,'Calc Solar'!H161,IF('Input Solar'!$D$18=Background!$X$3,'Calc Solar'!I161,'Calc Solar'!J161)),K161) -> 0.4711860853 | M161: 0 | N161: 0 | O161: 0 | P161: 0 | Q161: 0 | R161: 0 | S161: 0 | T161: 0 | U161: 0 | V161: 0 | W161: 0 | X161: 0 | Y161: 0 | Z161: 0 | AA161: 0 | AB161: 0 | AC161: =IF(AB161>0,Background!$M$22/AB161,0) -> 0 | AD161: 0 | AE161: 0 | AF161: 0 | AG161: 0 | AH161: 0 | AI161: 0 | AJ161: 0 | AK161: 0 | AL161: 0.2 | AN161: 0 | AO161: 0 | AP161: 0 | AQ161: 0 | AR161: 0 | AS161: 0 | AU161: 0 | AV161: 0
E162: 160 | F162: 0 | G162: 0 | H162: 0.2784282795 | I162: 0.2218959411 | J162: 0.2120907739 | K162: =IF('Input Solar'!$D$18=Background!$X$2,'Calc Solar'!H162*$H$173,IF('Input Solar'!$D$18=Background!$X$3,'Calc Solar'!I162*$I$173,'Calc Solar'!J162*$J$173)) -> 0 | L162: =IF('Input Solar'!$D$20="Default",IF('Input Solar'!$D$18=Background!$X$2,'Calc Solar'!H162,IF('Input Solar'!$D$18=Background!$X$3,'Calc Solar'!I162,'Calc Solar'!J162)),K162) -> 0.2784282795 | M162: 0 | N162: 0 | O162: 0 | P162: 0 | Q162: 0 | R162: 0 | S162: 0 | T162: 0 | U162: 0 | V162: 0 | W162: 0 | X162: 0 | Y162: 0 | Z162: 0 | AA162: 0 | AB162: 0 | AC162: =IF(AB162>0,Background!$M$22/AB162,0) -> 0 | AD162: 0 | AE162: 0 | AF162: 0 | AG162: 0 | AH162: 0 | AI162: 0 | AJ162: 0 | AK162: 0 | AL162: 0.2 | AN162: 0 | AO162: 0 | AP162: 0 | AQ162: 0 | AR162: 0 | AS162: 0 | AU162: 0 | AV162: 0
E163: 161 | F163: 0 | G163: 0 | H163: 0.1025748307 | I163: 0.07312035552 | J163: 0.08829193055 | K163: =IF('Input Solar'!$D$18=Background!$X$2,'Calc Solar'!H163*$H$173,IF('Input Solar'!$D$18=Background!$X$3,'Calc Solar'!I163*$I$173,'Calc Solar'!J163*$J$173)) -> 0 | L163: =IF('Input Solar'!$D$20="Default",IF('Input Solar'!$D$18=Background!$X$2,'Calc Solar'!H163,IF('Input Solar'!$D$18=Background!$X$3,'Calc Solar'!I163,'Calc Solar'!J163)),K163) -> 0.1025748307 | M163: 0 | N163: 0 | O163: 0 | P163: 0 | Q163: 0 | R163: 0 | S163: 0 | T163: 0 | U163: 0 | V163: 0 | W163: 0 | X163: 0 | Y163: 0 | Z163: 0 | AA163: 0 | AB163: 0 | AC163: =IF(AB163>0,Background!$M$22/AB163,0) -> 0 | AD163: 0 | AE163: 0 | AF163: 0 | AG163: 0 | AH163: 0 | AI163: 0 | AJ163: 0 | AK163: 0 | AL163: 0.2 | AN163: 0 | AO163: 0 | AP163: 0 | AQ163: =G163-AO163-AJ163-AN163 -> 0 | AR163: =AA163-AQ163 -> 0 | AS163: =MAX(AK163-AP163,-1*AR163) -> 0 | AU163: 0 | AV163: 0
E164: 162 | F164: =IF(E164-E140=24,F140,"") -> 0 | G164: 0 | H164: 0.0001630165617 | I164: 0 | J164: 0.004145230757 | K164: =IF('Input Solar'!$D$18=Background!$X$2,'Calc Solar'!H164*$H$173,IF('Input Solar'!$D$18=Background!$X$3,'Calc Solar'!I164*$I$173,'Calc Solar'!J164*$J$173)) -> 0 | L164: =IF('Input Solar'!$D$20="Default",IF('Input Solar'!$D$18=Background!$X$2,'Calc Solar'!H164,IF('Input Solar'!$D$18=Background!$X$3,'Calc Solar'!I164,'Calc Solar'!J164)),K164) -> 0.0001630165617 | M164: 0 | N164: 0 | O164: 0 | P164: 0 | Q164: 0 | R164: 0 | S164: 0 | T164: 0 | U164: 0 | V164: 0 | W164: 0 | X164: 0 | Y164: 0 | Z164: 0 | AA164: 0 | AB164: 0 | AC164: =IF(AB164>0,Background!$M$22/AB164,0) -> 0 | AD164: 0 | AE164: 0 | AF164: 0 | AG164: 0 | AH164: 0 | AI164: 0 | AJ164: 0 | AK164: 0 | AL164: 0.2 | AN164: 0 | AO164: 0 | AP164: 0 | AQ164: 0 | AR164: 0 | AS164: 0 | AU164: 0 | AV164: 0
E165: 163 | F165: 0 | G165: 0 | H165: 0 | I165: 0 | J165: 0 | K165: =IF('Input Solar'!$D$18=Background!$X$2,'Calc Solar'!H165*$H$173,IF('Input Solar'!$D$18=Background!$X$3,'Calc Solar'!I165*$I$173,'Calc Solar'!J165*$J$173)) -> 0 | L165: =IF('Input Solar'!$D$20="Default",IF('Input Solar'!$D$18=Background!$X$2,'Calc Solar'!H165,IF('Input Solar'!$D$18=Background!$X$3,'Calc Solar'!I165,'Calc Solar'!J165)),K165) -> 0 | M165: 0 | N165: 0 | O165: 0 | P165: 0 | Q165: 0 | R165: 0 | S165: 0 | T165: 0 | U165: 0 | V165: 0 | W165: 0 | X165: 0 | Y165: 0 | Z165: 0 | AA165: 0 | AB165: 0 | AC165: =IF(AB165>0,Background!$M$22/AB165,0) -> 0 | AD165: 0 | AE165: 0 | AF165: 0 | AG165: 0 | AH165: 0 | AI165: 0 | AJ165: 0 | AK165: 0 | AL165: 0.2 | AN165: 0 | AO165: 0 | AP165: 0 | AQ165: 0 | AR165: 0 | AS165: 0 | AU165: 0 | AV165: 0
E166: 164 | F166: 0 | G166: 0 | H166: 0 | I166: 0 | J166: 0 | K166: =IF('Input Solar'!$D$18=Background!$X$2,'Calc Solar'!H166*$H$173,IF('Input Solar'!$D$18=Background!$X$3,'Calc Solar'!I166*$I$173,'Calc Solar'!J166*$J$173)) -> 0 | L166: =IF('Input Solar'!$D$20="Default",IF('Input Solar'!$D$18=Background!$X$2,'Calc Solar'!H166,IF('Input Solar'!$D$18=Background!$X$3,'Calc Solar'!I166,'Calc Solar'!J166)),K166) -> 0 | M166: 0 | N166: 0 | O166: 0 | P166: 0 | Q166: 0 | R166: 0 | S166: 0 | T166: 0 | U166: 0 | V166: 0 | W166: 0 | X166: 0 | Y166: 0 | Z166: 0 | AA166: 0 | AB166: =IF(AA166=0,0,MIN((AA166/$D$109)/(($D$113+$D$114*(AA166/$D$109)))/$D$115,$D$125)) -> 0 | AC166: =IF(AB166>0,Background!$M$22/AB166,0) -> 0 | AD166: 0 | AE166: 0 | AF166: 0 | AG166: 0 | AH166: 0 | AI166: 0 | AJ166: 0 | AK166: 0 | AL166: 0.2 | AN166: 0 | AO166: 0 | AP166: 0 | AQ166: 0 | AR166: 0 | AS166: 0 | AU166: 0 | AV166: 0
E167: 165 | F167: 0 | G167: 0 | H167: 0 | I167: 0 | J167: 0 | K167: =IF('Input Solar'!$D$18=Background!$X$2,'Calc Solar'!H167*$H$173,IF('Input Solar'!$D$18=Background!$X$3,'Calc Solar'!I167*$I$173,'Calc Solar'!J167*$J$173)) -> 0 | L167: =IF('Input Solar'!$D$20="Default",IF('Input Solar'!$D$18=Background!$X$2,'Calc Solar'!H167,IF('Input Solar'!$D$18=Background!$X$3,'Calc Solar'!I167,'Calc Solar'!J167)),K167) -> 0 | M167: 0 | N167: 0 | O167: 0 | P167: 0 | Q167: 0 | R167: 0 | S167: 0 | T167: 0 | U167: 0 | V167: 0 | W167: 0 | X167: 0 | Y167: 0 | Z167: 0 | AA167: 0 | AB167: 0 | AC167: =IF(AB167>0,Background!$M$22/AB167,0) -> 0 | AD167: 0 | AE167: =AA167+M167-G167 -> 0 | AF167: 0 | AG167: 0 | AH167: 0 | AI167: 0 | AJ167: 0 | AK167: 0 | AL167: 0.2 | AN167: 0 | AO167: 0 | AP167: 0 | AQ167: 0 | AR167: 0 | AS167: 0 | AU167: 0 | AV167: 0
E168: 166 | F168: 0 | G168: 0 | H168: 0 | I168: 0 | J168: 0 | K168: =IF('Input Solar'!$D$18=Background!$X$2,'Calc Solar'!H168*$H$173,IF('Input Solar'!$D$18=Background!$X$3,'Calc Solar'!I168*$I$173,'Calc Solar'!J168*$J$173)) -> 0 | L168: =IF('Input Solar'!$D$20="Default",IF('Input Solar'!$D$18=Background!$X$2,'Calc Solar'!H168,IF('Input Solar'!$D$18=Background!$X$3,'Calc Solar'!I168,'Calc Solar'!J168)),K168) -> 0 | M168: 0 | N168: 0 | O168: 0 | P168: 0 | Q168: 0 | R168: 0 | S168: 0 | T168: 0 | U168: 0 | V168: 0 | W168: 0 | X168: 0 | Y168: 0 | Z168: 0 | AA168: 0 | AB168: 0 | AC168: =IF(AB168>0,Background!$M$22/AB168,0) -> 0 | AD168: 0 | AE168: 0 | AF168: 0 | AG168: 0 | AH168: 0 | AI168: 0 | AJ168: 0 | AK168: 0 | AL168: 0.2 | AN168: 0 | AO168: 0 | AP168: 0 | AQ168: 0 | AR168: 0 | AS168: 0 | AU168: 0 | AV168: 0
E169: 167 | F169: 0 | G169: 0 | H169: 0 | I169: 0 | J169: 0 | K169: =IF('Input Solar'!$D$18=Background!$X$2,'Calc Solar'!H169*$H$173,IF('Input Solar'!$D$18=Background!$X$3,'Calc Solar'!I169*$I$173,'Calc Solar'!J169*$J$173)) -> 0 | L169: =IF('Input Solar'!$D$20="Default",IF('Input Solar'!$D$18=Background!$X$2,'Calc Solar'!H169,IF('Input Solar'!$D$18=Background!$X$3,'Calc Solar'!I169,'Calc Solar'!J169)),K169) -> 0 | M169: 0 | N169: 0 | O169: 0 | P169: 0 | Q169: 0 | R169: 0 | S169: 0 | T169: 0 | U169: 0 | V169: 0 | W169: 0 | X169: 0 | Y169: 0 | Z169: 0 | AA169: 0 | AB169: 0 | AC169: =IF(AB169>0,Background!$M$22/AB169,0) -> 0 | AD169: 0 | AE169: 0 | AF169: 0 | AG169: 0 | AH169: 0 | AI169: 0 | AJ169: 0 | AK169: 0 | AL169: 0.2 | AN169: 0 | AO169: 0 | AP169: 0 | AQ169: 0 | AR169: 0 | AS169: 0 | AU169: 0 | AV169: 0
E170: 168 | F170: =IF(E170-E146=24,F146,"") -> 0 | G170: 0 | H170: 0 | I170: 0 | J170: 0 | K170: =IF('Input Solar'!$D$18=Background!$X$2,'Calc Solar'!H170*$H$173,IF('Input Solar'!$D$18=Background!$X$3,'Calc Solar'!I170*$I$173,'Calc Solar'!J170*$J$173)) -> 0 | L170: =IF('Input Solar'!$D$20="Default",IF('Input Solar'!$D$18=Background!$X$2,'Calc Solar'!H170,IF('Input Solar'!$D$18=Background!$X$3,'Calc Solar'!I170,'Calc Solar'!J170)),K170) -> 0 | M170: 0 | N170: 0 | O170: 0 | P170: 0 | Q170: 0 | R170: 0 | S170: 0 | T170: 0 | U170: 0 | V170: 0 | W170: 0 | X170: 0 | Y170: 0 | Z170: 0 | AA170: 0 | AB170: 0 | AC170: =IF(AB170>0,Background!$M$22/AB170,0) -> 0 | AD170: 0 | AE170: 0 | AF170: 0 | AG170: 0 | AH170: 0 | AI170: 0 | AJ170: 0 | AK170: 0 | AL170: 0.2 | AN170: 0 | AO170: 0 | AP170: 0 | AQ170: 0 | AR170: 0 | AS170: 0 | AU170: 0 | AV170: 0
G171: kWh/kWp per day | H171: =SUM(H3:H170)/7 -> 3.738899356 | I171: =SUM(I3:I170)/7 -> 3.859452693 | J171: =SUM(J3:J170)/7 -> 4.046185632 | K171: =IF('Input Solar'!$D$18=Background!$X$2,'Calc Solar'!H171*$H$173,IF('Input Solar'!$D$18=Background!$X$3,'Calc Solar'!I171*$I$173,'Calc Solar'!J171*$J$173)) -> 0
G172: input | H172: ='Input Solar'!$E$22 -> 0 | I172: ='Input Solar'!$E$22 -> 0 | J172: ='Input Solar'!$E$22 -> 0
G173: ratio | H173: =H172/H171 -> 0 | I173: =I172/I171 -> 0 | J173: =J172/J171 -> 0

Sheet Input Wind
C3: Select wind park costs | D3: Default
C5: Parameters | D5: Value (Default) | E5: Value (Individual) | G5: Unit
C7: Wind CAPEX | D7: =Background!Q14 -> 100000 | G7: PHP/kW
C8: Wind OPEX | D8: =Background!Q15 -> 2000 | G8: PHP/kW/y
C9: Life span | D9: =Background!O6 -> 20 | G9: years
C11: Select wind park size | D11: Default
C13: Mean wind speed (at 50m height) | D13: 7 | G13: m/s
C14: Wind park capacity existing eligible | D14: 0 | G14: kW
C15: Wind park capacity existing non-eligible | D15: 0 | G15: kW
C16: Wind park capacity new | D16: =Background!Q11 -> 0 | G16: kW
C17: Wind park capacity total | D17: =SUM(D14:D16) -> 0 | E17: =SUM(E14:E16) -> 0 | G17: kW
C18: Wind turbine type | D18: =Background!$Q$12 -> 0 | G18: kW
C19: Hub height | D19: =VLOOKUP(D18,Background!$AG$20:$AH$24,2,FALSE) -> 0 | E19: =VLOOKUP(E18,Background!$AG$20:$AH$24,2,FALSE) -> 0 | G19: m
C23: Select diesel power plant type | D23: Default
C25: Parameters | D25: Value (Default) | E25: Value (Individual) | G25: Unit
C27: Diesel CAPEX total | D27: =Background!M4 -> 30000 | G27: PHP/kW
C28: Diesel OPEX var. total | D28: =Background!M5 -> 2.5 | G28: PHP/kWh
C29: Diesel OPEX fix. total | D29: =Background!M6 -> 300 | G29: PHP/kW/y
C30: Fuel per kWh (high load) | D30: =Background!M7 -> 0.33 | G30: liter/kWh
C31: Initital diesel fuel price | D31: =Background!M9 -> 35 | G31: PHP/liter
C32: Diesel price increase | D32: =Background!M10 -> 0.03 | G32: per year
C33: Life span | D33: =Background!M11 -> 10 | G33: years
C35: Select diesel power plant size | D35: Default
C37: Number of genset units | D37: =1 -> 1
C38: Diesel power plant total capacity | D38: =Background!$Q$7 -> 0 | G38: kW
C39: Capacity of smallest unit | D39: =D38 -> 0 | G39: kW
C45: Select battery type | D45: Lithium-Ion
C47: Parameters | D47: Value (Default) | E47: Value (Individual) | G47: Unit
C49: Battery system CAPEX | D49: =IF($D$45="Lithium-Ion",Background!H7,Background!J7) -> 27000 | G49: PHP/kWh_cap
C50: Battery OPEX fix. | D50: =IF($D$45="Lithium-Ion",Background!H9,Background!J9) -> 405 | G50: PHP/kWh_cap/y
C51: C-rate (kW/kWh) | D51: =IF($D$45="Lithium-Ion",Background!H10,Background!J10) -> 1 | G51: ratio
C52: Maximum Depth of discharge (DoD) | D52: =IF($D$45="Lithium-Ion",Background!H11,Background!J11) -> 0.8
C53: Charging efficiency | D53: =IF($D$45="Lithium-Ion",Background!H13,Background!J13) -> 0.9
C54: Discharging efficiency | D54: =IF($D$45="Lithium-Ion",Background!H14,Background!J14) -> 0.9
C55: Life span | D55: =IF($D$45="Lithium-Ion",Background!H15,Background!J15) -> 10 | G55: years
C57: Select battery size | D57: Default
C59: Battery capacity | D59: =Background!$Q$13 -> 0 | G59: capacity in kWh
C63: Select system parameters | D63: Default
C65: Parameters | D65: Value (Default) | E65: Value (Individual) | G65: Unit
C67: Discount rate | D67: =Background!Q4 -> 0.12
C68: Project duration | D68: =Background!Q8 -> 20 | G68: years
C69: Distribution losses | D69: =Background!Q9 -> 0.05
C70: System stability factor | D70: =Background!Q10 -> 0.4 | G70: % of load
C72: Fixed project development costs | D72: =Background!M12 -> 500000 | G72: PHP
C73: Fixed other initial costs | D73: =Background!M13 -> 0 | G73: PHP
C74: Fixed other opex | D74: =Background!M14 -> 0 | G74: PHP/year
C75: Fixed personnel costs | D75: =Background!M15 -> 0 | G75: PHP/year
C79: Distribution grid parameters | D79: Default
C81: Parameters | D81: Value (Default) | E81: Value (indiviudal) | G81: Unit
C83: Grid initial costs | D83: =Background!M17 -> 0 | G83: PHP
C84: Fixed grid OPEX | D84: =Background!M18 -> 0 | G84: PHP/year
C85: Life span | D85: =Background!M19 -> 20 | G85: years
C89: RE Certificates (REC) | D89: Default
D91: Value (Default) | E91: Value (Indiviudal)
C93: REC amount | D93: 0
C94: RE generation equivalent per REC | D94: 1 | G94: MWh/REC
C95: RE generation equivalent total | D95: =D93*D94 -> 0 | E95: =E93*E94 -> 0 | G95: MWh/year
C99: System simulation
C100: Overview of sizes for simulation | D100: Value (Default) | E100: Value (Indiviudal)
C102: Wind capacity total | D102: =IF($D$11="Default",$D$17,"") -> 0 | E102: =IF($D$11="Default","",$E$17) ->  | G102: kW
C103: Battery capacity | D103: =IF($D$57="Default",$D$59,"") -> 0 | E103: =IF($D$57="Default","",$E$59) ->  | G103: kWh
C104: Diesel capacity | D104: =IF($D$35="Default",$D$38,"") -> 0 | E104: =IF($D$35="Default","",$E$38) ->  | G104: kW
C106: Wind-diesel-battery simulation:
D107: Please note: The simulation can take some minutes. please DO NOT INTERRUPT the simulation because afterwards the SPT might not work normally anymore. If you still need to interrupt, afterwards please restart the SPT from a previously saved version.
C110: System scenarios
C112: This function calculates average LCOE and RE-Share of different system configurations over project lifetime. New and eligible Wind power capacities are defined below, existing (eligible and ineligible) Wind power capacities remain constant as chosen above in section "select Wind park size". Diesel size remains constant at the value chosen above. Simplified: An average load growth is assumed, calc time: approx 1min. Detailed: yearly load growth is calculated, approx. 60min
C116: Select scenario parameters | D116: Multiplier
D117: Multiplier | F117: Size values
C118: Steps | D118: Wind (new) | E118: Battery | F118: Wind (new) | G118: Battery
C120: Step 0 | D120: 0 | E120: 0 | F120: 0 | G120: 0
C121: Step 1 | D121: 0.3 | E121: 0.3 | F121: 20 | G121: 30
C122: Step 2 | D122: 0.6 | E122: 0.6 | F122: 40 | G122: 60
C123: Step 3 | D123: 1 | E123: 1 | F123: 60 | G123: 90
C124: Step 4 | D124: 1.3 | E124: 1.3 | F124: 80 | G124: 120
C125: Step 5 | D125: 1.6 | E125: 1.6 | F125: 100 | G125: 150
C126: Step 6 | D126: 2 | E126: 2 | F126: 120 | G126: 180
C127: Step 7 | D127: 2.3 | E127: 2.3 | F127: 140 | G127: 210
C128: Step 8 | D128: 2.6 | E128: 2.6 | F128: 160 | G128: 240
C129: Step 9 | D129: 3 | E129: 3 | F129: 180 | G129: 270
C130: Step 10 | D130: 3.3 | E130: 3.3 | F130: 200 | G130: 300

Sheet Simulation Results Wind
B2: Techno-economic results - Wind hybrid system
B3: =Background!A60 -> Year | C3: =Background!C60 -> LCOE [PHP/kWh] | D3: =Background!D60 -> RE share eligible | E3: =Background!E60 -> Consumption (+losses) [MWh] | F3: =Background!F60 -> Peak load [kW] | G3: =Background!G60 -> Distribution losses [MWh] | H3: =Background!H60 -> Wind generation potential [MWh] | I3: =Background!I60 -> Existing non-eligible Wind electricity consumed [MWh] | J3: =Background!J60 -> Existing eligible Wind electricity consumed [MWh] | K3: =Background!K60 -> New Wind electricity consumed [MWh] | L3: =Background!L60 -> Total Wind electricity consumed [MWh] | M3: =Background!M60 -> Diesel genset electricity generation [MWh] | N3: =Background!N60 -> Diesel genset electricity consumed [MWh] | O3: =Background!O60 -> Diesel Fuel consumption [l] | P3: =Background!R60 -> Battery discharge [MWh] | Q3: =Background!S60 -> Diesel excess generation [MWh] | R3: =Background!T60 -> Unmet load [MWh]
B4: =Background!A61 -> 1 | C4: =Background!C61 -> 0 | D4: =Background!D61 -> 0 | E4: =Background!E61 -> 0 | F4: =Background!F61 -> 0 | G4: =Background!G61 -> 0 | H4: =Background!H61 -> 0 | I4: =Background!I61 -> 0 | J4: =Background!J61 -> 0 | K4: =Background!K61 -> 0 | L4: =Background!L61 -> 0 | M4: =Background!M61 -> 0 | N4: =Background!N61 -> 0 | O4: =Background!O61 -> 0 | P4: =Background!R61 -> 0 | Q4: =Background!S61 -> 0 | R4: =Background!T61 -> 0
B5: =Background!A62 -> 2 | C5: =Background!C62 -> 0 | D5: =Background!D62 -> 0 | E5: =Background!E62 -> 0 | F5: =Background!F62 -> 0 | G5: =Background!G62 -> 0 | H5: =Background!H62 -> 0 | I5: =Background!I62 -> 0 | J5: =Background!J62 -> 0 | K5: =Background!K62 -> 0 | L5: =Background!L62 -> 0 | M5: =Background!M62 -> 0 | N5: =Background!N62 -> 0 | O5: =Background!O62 -> 0 | P5: =Background!R62 -> 0 | Q5: =Background!S62 -> 0 | R5: =Background!T62 -> 0
B6: =Background!A63 -> 3 | C6: =Background!C63 -> 0 | D6: =Background!D63 -> 0 | E6: =Background!E63 -> 0 | F6: =Background!F63 -> 0 | G6: =Background!G63 -> 0 | H6: =Background!H63 -> 0 | I6: =Background!I63 -> 0 | J6: =Background!J63 -> 0 | K6: =Background!K63 -> 0 | L6: =Background!L63 -> 0 | M6: =Background!M63 -> 0 | N6: =Background!N63 -> 0 | O6: =Background!O63 -> 0 | P6: =Background!R63 -> 0 | Q6: =Background!S63 -> 0 | R6: =Background!T63 -> 0
B7: =Background!A64 -> 4 | C7: =Background!C64 -> 0 | D7: =Background!D64 -> 0 | E7: =Background!E64 -> 0 | F7: =Background!F64 -> 0 | G7: =Background!G64 -> 0 | H7: =Background!H64 -> 0 | I7: =Background!I64 -> 0 | J7: =Background!J64 -> 0 | K7: =Background!K64 -> 0 | L7: =Background!L64 -> 0 | M7: =Background!M64 -> 0 | N7: =Background!N64 -> 0 | O7: =Background!O64 -> 0 | P7: =Background!R64 -> 0 | Q7: =Background!S64 -> 0 | R7: =Background!T64 -> 0
B8: =Background!A65 -> 5 | C8: =Background!C65 -> 0 | D8: =Background!D65 -> 0 | E8: =Background!E65 -> 0 | F8: =Background!F65 -> 0 | G8: =Background!G65 -> 0 | H8: =Background!H65 -> 0 | I8: =Background!I65 -> 0 | J8: =Background!J65 -> 0 | K8: =Background!K65 -> 0 | L8: =Background!L65 -> 0 | M8: =Background!M65 -> 0 | N8: =Background!N65 -> 0 | O8: =Background!O65 -> 0 | P8: =Background!R65 -> 0 | Q8: =Background!S65 -> 0 | R8: =Background!T65 -> 0
B9: =Background!A66 -> 6 | C9: =Background!C66 -> 0 | D9: =Background!D66 -> 0 | E9: =Background!E66 -> 0 | F9: =Background!F66 -> 0 | G9: =Background!G66 -> 0 | H9: =Background!H66 -> 0 | I9: =Background!I66 -> 0 | J9: =Background!J66 -> 0 | K9: =Background!K66 -> 0 | L9: =Background!L66 -> 0 | M9: =Background!M66 -> 0 | N9: =Background!N66 -> 0 | O9: =Background!O66 -> 0 | P9: =Background!R66 -> 0 | Q9: =Background!S66 -> 0 | R9: =Background!T66 -> 0
B10: =Background!A67 -> 7 | C10: =Background!C67 -> 0 | D10: =Background!D67 -> 0 | E10: =Background!E67 -> 0 | F10: =Background!F67 -> 0 | G10: =Background!G67 -> 0 | H10: =Background!H67 -> 0 | I10: =Background!I67 -> 0 | J10: =Background!J67 -> 0 | K10: =Background!K67 -> 0 | L10: =Background!L67 -> 0 | M10: =Background!M67 -> 0 | N10: =Background!N67 -> 0 | O10: =Background!O67 -> 0 | P10: =Background!R67 -> 0 | Q10: =Background!S67 -> 0 | R10: =Background!T67 -> 0
B11: =Background!A68 -> 8 | C11: =Background!C68 -> 0 | D11: =Background!D68 -> 0 | E11: =Background!E68 -> 0 | F11: =Background!F68 -> 0 | G11: =Background!G68 -> 0 | H11: =Background!H68 -> 0 | I11: =Background!I68 -> 0 | J11: =Background!J68 -> 0 | K11: =Background!K68 -> 0 | L11: =Background!L68 -> 0 | M11: =Background!M68 -> 0 | N11: =Background!N68 -> 0 | O11: =Background!O68 -> 0 | P11: =Background!R68 -> 0 | Q11: =Background!S68 -> 0 | R11: =Background!T68 -> 0
B12: =Background!A69 -> 9 | C12: =Background!C69 -> 0 | D12: =Background!D69 -> 0 | E12: =Background!E69 -> 0 | F12: =Background!F69 -> 0 | G12: =Background!G69 -> 0 | H12: =Background!H69 -> 0 | I12: =Background!I69 -> 0 | J12: =Background!J69 -> 0 | K12: =Background!K69 -> 0 | L12: =Background!L69 -> 0 | M12: =Background!M69 -> 0 | N12: =Background!N69 -> 0 | O12: =Background!O69 -> 0 | P12: =Background!R69 -> 0 | Q12: =Background!S69 -> 0 | R12: =Background!T69 -> 0
B13: =Background!A70 -> 10 | C13: =Background!C70 -> 0 | D13: =Background!D70 -> 0 | E13: =Background!E70 -> 0 | F13: =Background!F70 -> 0 | G13: =Background!G70 -> 0 | H13: =Background!H70 -> 0 | I13: =Background!I70 -> 0 | J13: =Background!J70 -> 0 | K13: =Background!K70 -> 0 | L13: =Background!L70 -> 0 | M13: =Background!M70 -> 0 | N13: =Background!N70 -> 0 | O13: =Background!O70 -> 0 | P13: =Background!R70 -> 0 | Q13: =Background!S70 -> 0 | R13: =Background!T70 -> 0
B14: =Background!A71 -> 11 | C14: =Background!C71 -> 0 | D14: =Background!D71 -> 0 | E14: =Background!E71 -> 0 | F14: =Background!F71 -> 0 | G14: =Background!G71 -> 0 | H14: =Background!H71 -> 0 | I14: =Background!I71 -> 0 | J14: =Background!J71 -> 0 | K14: =Background!K71 -> 0 | L14: =Background!L71 -> 0 | M14: =Background!M71 -> 0 | N14: =Background!N71 -> 0 | O14: =Background!O71 -> 0 | P14: =Background!R71 -> 0 | Q14: =Background!S71 -> 0 | R14: =Background!T71 -> 0
B15: =Background!A72 -> 12 | C15: =Background!C72 -> 0 | D15: =Background!D72 -> 0 | E15: =Background!E72 -> 0 | F15: =Background!F72 -> 0 | G15: =Background!G72 -> 0 | H15: =Background!H72 -> 0 | I15: =Background!I72 -> 0 | J15: =Background!J72 -> 0 | K15: =Background!K72 -> 0 | L15: =Background!L72 -> 0 | M15: =Background!M72 -> 0 | N15: =Background!N72 -> 0 | O15: =Background!O72 -> 0 | P15: =Background!R72 -> 0 | Q15: =Background!S72 -> 0 | R15: =Background!T72 -> 0
B16: =Background!A73 -> 13 | C16: =Background!C73 -> 0 | D16: =Background!D73 -> 0 | E16: =Background!E73 -> 0 | F16: =Background!F73 -> 0 | G16: =Background!G73 -> 0 | H16: =Background!H73 -> 0 | I16: =Background!I73 -> 0 | J16: =Background!J73 -> 0 | K16: =Background!K73 -> 0 | L16: =Background!L73 -> 0 | M16: =Background!M73 -> 0 | N16: =Background!N73 -> 0 | O16: =Background!O73 -> 0 | P16: =Background!R73 -> 0 | Q16: =Background!S73 -> 0 | R16: =Background!T73 -> 0
B17: =Background!A74 -> 14 | C17: =Background!C74 -> 0 | D17: =Background!D74 -> 0 | E17: =Background!E74 -> 0 | F17: =Background!F74 -> 0 | G17: =Background!G74 -> 0 | H17: =Background!H74 -> 0 | I17: =Background!I74 -> 0 | J17: =Background!J74 -> 0 | K17: =Background!K74 -> 0 | L17: =Background!L74 -> 0 | M17: =Background!M74 -> 0 | N17: =Background!N74 -> 0 | O17: =Background!O74 -> 0 | P17: =Background!R74 -> 0 | Q17: =Background!S74 -> 0 | R17: =Background!T74 -> 0
B18: =Background!A75 -> 15 | C18: =Background!C75 -> 0 | D18: =Background!D75 -> 0 | E18: =Background!E75 -> 0 | F18: =Background!F75 -> 0 | G18: =Background!G75 -> 0 | H18: =Background!H75 -> 0 | I18: =Background!I75 -> 0 | J18: =Background!J75 -> 0 | K18: =Background!K75 -> 0 | L18: =Background!L75 -> 0 | M18: =Background!M75 -> 0 | N18: =Background!N75 -> 0 | O18: =Background!O75 -> 0 | P18: =Background!R75 -> 0 | Q18: =Background!S75 -> 0 | R18: =Background!T75 -> 0
B19: =Background!A76 -> 16 | C19: =Background!C76 -> 0 | D19: =Background!D76 -> 0 | E19: =Background!E76 -> 0 | F19: =Background!F76 -> 0 | G19: =Background!G76 -> 0 | H19: =Background!H76 -> 0 | I19: =Background!I76 -> 0 | J19: =Background!J76 -> 0 | K19: =Background!K76 -> 0 | L19: =Background!L76 -> 0 | M19: =Background!M76 -> 0 | N19: =Background!N76 -> 0 | O19: =Background!O76 -> 0 | P19: =Background!R76 -> 0 | Q19: =Background!S76 -> 0 | R19: =Background!T76 -> 0
B20: =Background!A77 -> 17 | C20: =Background!C77 -> 0 | D20: =Background!D77 -> 0 | E20: =Background!E77 -> 0 | F20: =Background!F77 -> 0 | G20: =Background!G77 -> 0 | H20: =Background!H77 -> 0 | I20: =Background!I77 -> 0 | J20: =Background!J77 -> 0 | K20: =Background!K77 -> 0 | L20: =Background!L77 -> 0 | M20: =Background!M77 -> 0 | N20: =Background!N77 -> 0 | O20: =Background!O77 -> 0 | P20: =Background!R77 -> 0 | Q20: =Background!S77 -> 0 | R20: =Background!T77 -> 0
B21: =Background!A78 -> 18 | C21: =Background!C78 -> 0 | D21: =Background!D78 -> 0 | E21: =Background!E78 -> 0 | F21: =Background!F78 -> 0 | G21: =Background!G78 -> 0 | H21: =Background!H78 -> 0 | I21: =Background!I78 -> 0 | J21: =Background!J78 -> 0 | K21: =Background!K78 -> 0 | L21: =Background!L78 -> 0 | M21: =Background!M78 -> 0 | N21: =Background!N78 -> 0 | O21: =Background!O78 -> 0 | P21: =Background!R78 -> 0 | Q21: =Background!S78 -> 0 | R21: =Background!T78 -> 0
B22: =Background!A79 -> 19 | C22: =Background!C79 -> 0 | D22: =Background!D79 -> 0 | E22: =Background!E79 -> 0 | F22: =Background!F79 -> 0 | G22: =Background!G79 -> 0 | H22: =Background!H79 -> 0 | I22: =Background!I79 -> 0 | J22: =Background!J79 -> 0 | K22: =Background!K79 -> 0 | L22: =Background!L79 -> 0 | M22: =Background!M79 -> 0 | N22: =Background!N79 -> 0 | O22: =Background!O79 -> 0 | P22: =Background!R79 -> 0 | Q22: =Background!S79 -> 0 | R22: =Background!T79 -> 0
B23: =Background!A80 -> 20 | C23: =Background!C80 -> 0 | D23: =Background!D80 -> 0 | E23: =Background!E80 -> 0 | F23: =Background!F80 -> 0 | G23: =Background!G80 -> 0 | H23: =Background!H80 -> 0 | I23: =Background!I80 -> 0 | J23: =Background!J80 -> 0 | K23: =Background!K80 -> 0 | L23: =Background!L80 -> 0 | M23: =Background!M80 -> 0 | N23: =Background!N80 -> 0 | O23: =Background!O80 -> 0 | P23: =Background!R80 -> 0 | Q23: =Background!S80 -> 0 | R23: =Background!T80 -> 0
B24: Average | C24: =Background!C83 ->  | D24: =Background!D83 ->  | E24: =Background!E83 ->  | F24: =Background!F83 ->  | G24: =Background!G83 ->  | H24: =Background!H83 ->  | I24: =Background!I83 ->  | J24: =Background!J83 ->  | K24: =Background!K83 ->  | L24: =Background!L83 ->  | M24: =Background!M83 ->  | N24: =Background!N83 ->  | O24: =Background!O83 ->  | P24: =Background!R83 ->  | Q24: =Background!S83 ->  | R24: =Background!T83 -> 
C26: Wind investment | D26: Battery investment | E26: Diesel investment | F26: Project investment | G26: Grid investment | H26: Other investment
B27: Initial investment [PHP] | C27: ='Calc Wind'!B38 -> 0 | D27: ='Calc Wind'!B40 -> 2.7e-05 | E27: ='Calc Wind'!B39 -> 0 | F27: ='Calc Wind'!B58 -> 500000 | G27: ='Calc Wind'!B66 -> 0 | H27: ='Calc Wind'!B61 -> 0
B29: Yearly cost results [PHP]
B30: Year | C30: Wind OPEX | D30: Battery OPEX | E30: =Background!P32 -> Diesel OPEX | F30: =Background!Q32 -> Diesel fuel costs | G30: Grid OPEX | H30: Other OPEX | I30: Personnel OPEX | J30: Wind annual costs | K30: Battery annual costs | L30: Diesel annual costs | M30: Grid annual costs | N30: Project annual costs | O30: Other annual costs
B31: 1 | C31: =IF(Background!$B$84>=B31,'Calc Wind'!$B$41,0) -> 0 | D31: =IF(Background!$B$84>=B31,'Calc Wind'!$B$43,0) -> 4.05e-07 | E31: =Background!P61 -> 0 | F31: =Background!Q61 -> 0 | G31: =IF(Background!$B$84>=B31,'Calc Wind'!$B$67,0) -> 0 | H31: =IF(Background!$B$84>=B31,'Calc Wind'!$B$63,0) -> 0 | I31: =IF(Background!$B$84>=B31,'Calc Wind'!$B$64,0) -> 0 | J31: =IF(Background!$B$84>=B31,'Calc Wind'!$B$48+C31,0) -> 0 | K31: =IF(Background!$B$84>=B31,'Calc Wind'!$B$56+D31,0) -> 5.183572432e-06 | L31: =IF(Background!$B$84>=B31,E31+F31+'Calc Wind'!$B$52,0) -> 0 | M31: =IF(Background!$B$84>=B31,'Calc Wind'!$B$70+G31,0) -> 0 | N31: =IF(Background!$B$84>=B31,'Calc Wind'!$B$60,0) -> 66939.39002 | O31: =IF(Background!$B$84>=B31,'Calc Wind'!$B$62+H31,0) -> 0
B32: 2 | C32: =IF(Background!$B$84>=B32,'Calc Wind'!$B$41,0) -> 0 | D32: =IF(Background!$B$84>=B32,'Calc Wind'!$B$43,0) -> 4.05e-07 | E32: =Background!P62 -> 0 | F32: =Background!Q62 -> 0 | G32: =IF(Background!$B$84>=B32,'Calc Wind'!$B$67,0) -> 0 | H32: =IF(Background!$B$84>=B32,'Calc Wind'!$B$63,0) -> 0 | I32: =IF(Background!$B$84>=B32,'Calc Wind'!$B$64,0) -> 0 | J32: =IF(Background!$B$84>=B32,'Calc Wind'!$B$48+C32,0) -> 0 | K32: =IF(Background!$B$84>=B32,'Calc Wind'!$B$56+D32,0) -> 5.183572432e-06 | L32: =IF(Background!$B$84>=B32,E32+F32+'Calc Wind'!$B$52,0) -> 0 | M32: =IF(Background!$B$84>=B32,'Calc Wind'!$B$70+G32,0) -> 0 | N32: =IF(Background!$B$84>=B32,'Calc Wind'!$B$60,0) -> 66939.39002 | O32: =IF(Background!$B$84>=B32,'Calc Wind'!$B$62+H32,0) -> 0
B33: 3 | C33: =IF(Background!$B$84>=B33,'Calc Wind'!$B$41,0) -> 0 | D33: =IF(Background!$B$84>=B33,'Calc Wind'!$B$43,0) -> 4.05e-07 | E33: =Background!P63 -> 0 | F33: =Background!Q63 -> 0 | G33: =IF(Background!$B$84>=B33,'Calc Wind'!$B$67,0) -> 0 | H33: =IF(Background!$B$84>=B33,'Calc Wind'!$B$63,0) -> 0 | I33: =IF(Background!$B$84>=B33,'Calc Wind'!$B$64,0) -> 0 | J33: =IF(Background!$B$84>=B33,'Calc Wind'!$B$48+C33,0) -> 0 | K33: =IF(Background!$B$84>=B33,'Calc Wind'!$B$56+D33,0) -> 5.183572432e-06 | L33: =IF(Background!$B$84>=B33,E33+F33+'Calc Wind'!$B$52,0) -> 0 | M33: =IF(Background!$B$84>=B33,'Calc Wind'!$B$70+G33,0) -> 0 | N33: =IF(Background!$B$84>=B33,'Calc Wind'!$B$60,0) -> 66939.39002 | O33: =IF(Background!$B$84>=B33,'Calc Wind'!$B$62+H33,0) -> 0
B34: 4 | C34: =IF(Background!$B$84>=B34,'Calc Wind'!$B$41,0) -> 0 | D34: =IF(Background!$B$84>=B34,'Calc Wind'!$B$43,0) -> 4.05e-07 | E34: =Background!P64 -> 0 | F34: =Background!Q64 -> 0 | G34: =IF(Background!$B$84>=B34,'Calc Wind'!$B$67,0) -> 0 | H34: =IF(Background!$B$84>=B34,'Calc Wind'!$B$63,0) -> 0 | I34: =IF(Background!$B$84>=B34,'Calc Wind'!$B$64,0) -> 0 | J34: =IF(Background!$B$84>=B34,'Calc Wind'!$B$48+C34,0) -> 0 | K34: =IF(Background!$B$84>=B34,'Calc Wind'!$B$56+D34,0) -> 5.183572432e-06 | L34: =IF(Background!$B$84>=B34,E34+F34+'Calc Wind'!$B$52,0) -> 0 | M34: =IF(Background!$B$84>=B34,'Calc Wind'!$B$70+G34,0) -> 0 | N34: =IF(Background!$B$84>=B34,'Calc Wind'!$B$60,0) -> 66939.39002 | O34: =IF(Background!$B$84>=B34,'Calc Wind'!$B$62+H34,0) -> 0
B35: 5 | C35: =IF(Background!$B$84>=B35,'Calc Wind'!$B$41,0) -> 0 | D35: =IF(Background!$B$84>=B35,'Calc Wind'!$B$43,0) -> 4.05e-07 | E35: =Background!P65 -> 0 | F35: =Background!Q65 -> 0 | G35: =IF(Background!$B$84>=B35,'Calc Wind'!$B$67,0) -> 0 | H35: =IF(Background!$B$84>=B35,'Calc Wind'!$B$63,0) -> 0 | I35: =IF(Background!$B$84>=B35,'Calc Wind'!$B$64,0) -> 0 | J35: =IF(Background!$B$84>=B35,'Calc Wind'!$B$48+C35,0) -> 0 | K35: =IF(Background!$B$84>=B35,'Calc Wind'!$B$56+D35,0) -> 5.183572432e-06 | L35: =IF(Background!$B$84>=B35,E35+F35+'Calc Wind'!$B$52,0) -> 0 | M35: =IF(Background!$B$84>=B35,'Calc Wind'!$B$70+G35,0) -> 0 | N35: =IF(Background!$B$84>=B35,'Calc Wind'!$B$60,0) -> 66939.39002 | O35: =IF(Background!$B$84>=B35,'Calc Wind'!$B$62+H35,0) -> 0
B36: 6 | C36: =IF(Background!$B$84>=B36,'Calc Wind'!$B$41,0) -> 0 | D36: =IF(Background!$B$84>=B36,'Calc Wind'!$B$43,0) -> 4.05e-07 | E36: =Background!P66 -> 0 | F36: =Background!Q66 -> 0 | G36: =IF(Background!$B$84>=B36,'Calc Wind'!$B$67,0) -> 0 | H36: =IF(Background!$B$84>=B36,'Calc Wind'!$B$63,0) -> 0 | I36: =IF(Background!$B$84>=B36,'Calc Wind'!$B$64,0) -> 0 | J36: =IF(Background!$B$84>=B36,'Calc Wind'!$B$48+C36,0) -> 0 | K36: =IF(Background!$B$84>=B36,'Calc Wind'!$B$56+D36,0) -> 5.183572432e-06 | L36: =IF(Background!$B$84>=B36,E36+F36+'Calc Wind'!$B$52,0) -> 0 | M36: =IF(Background!$B$84>=B36,'Calc Wind'!$B$70+G36,0) -> 0 | N36: =IF(Background!$B$84>=B36,'Calc Wind'!$B$60,0) -> 66939.39002 | O36: =IF(Background!$B$84>=B36,'Calc Wind'!$B$62+H36,0) -> 0
B37: 7 | C37: =IF(Background!$B$84>=B37,'Calc Wind'!$B$41,0) -> 0 | D37: =IF(Background!$B$84>=B37,'Calc Wind'!$B$43,0) -> 4.05e-07 | E37: =Background!P67 -> 0 | F37: =Background!Q67 -> 0 | G37: =IF(Background!$B$84>=B37,'Calc Wind'!$B$67,0) -> 0 | H37: =IF(Background!$B$84>=B37,'Calc Wind'!$B$63,0) -> 0 | I37: =IF(Background!$B$84>=B37,'Calc Wind'!$B$64,0) -> 0 | J37: =IF(Background!$B$84>=B37,'Calc Wind'!$B$48+C37,0) -> 0 | K37: =IF(Background!$B$84>=B37,'Calc Wind'!$B$56+D37,0) -> 5.183572432e-06 | L37: =IF(Background!$B$84>=B37,E37+F37+'Calc Wind'!$B$52,0) -> 0 | M37: =IF(Background!$B$84>=B37,'Calc Wind'!$B$70+G37,0) -> 0 | N37: =IF(Background!$B$84>=B37,'Calc Wind'!$B$60,0) -> 66939.39002 | O37: =IF(Background!$B$84>=B37,'Calc Wind'!$B$62+H37,0) -> 0
B38: 8 | C38: =IF(Background!$B$84>=B38,'Calc Wind'!$B$41,0) -> 0 | D38: =IF(Background!$B$84>=B38,'Calc Wind'!$B$43,0) -> 4.05e-07 | E38: =Background!P68 -> 0 | F38: =Background!Q68 -> 0 | G38: =IF(Background!$B$84>=B38,'Calc Wind'!$B$67,0) -> 0 | H38: =IF(Background!$B$84>=B38,'Calc Wind'!$B$63,0) -> 0 | I38: =IF(Background!$B$84>=B38,'Calc Wind'!$B$64,0) -> 0 | J38: =IF(Background!$B$84>=B38,'Calc Wind'!$B$48+C38,0) -> 0 | K38: =IF(Background!$B$84>=B38,'Calc Wind'!$B$56+D38,0) -> 5.183572432e-06 | L38: =IF(Background!$B$84>=B38,E38+F38+'Calc Wind'!$B$52,0) -> 0 | M38: =IF(Background!$B$84>=B38,'Calc Wind'!$B$70+G38,0) -> 0 | N38: =IF(Background!$B$84>=B38,'Calc Wind'!$B$60,0) -> 66939.39002 | O38: =IF(Background!$B$84>=B38,'Calc Wind'!$B$62+H38,0) -> 0
B39: 9 | C39: =IF(Background!$B$84>=B39,'Calc Wind'!$B$41,0) -> 0 | D39: =IF(Background!$B$84>=B39,'Calc Wind'!$B$43,0) -> 4.05e-07 | E39: =Background!P69 -> 0 | F39: =Background!Q69 -> 0 | G39: =IF(Background!$B$84>=B39,'Calc Wind'!$B$67,0) -> 0 | H39: =IF(Background!$B$84>=B39,'Calc Wind'!$B$63,0) -> 0 | I39: =IF(Background!$B$84>=B39,'Calc Wind'!$B$64,0) -> 0 | J39: =IF(Background!$B$84>=B39,'Calc Wind'!$B$48+C39,0) -> 0 | K39: =IF(Background!$B$84>=B39,'Calc Wind'!$B$56+D39,0) -> 5.183572432e-06 | L39: =IF(Background!$B$84>=B39,E39+F39+'Calc Wind'!$B$52,0) -> 0 | M39: =IF(Background!$B$84>=B39,'Calc Wind'!$B$70+G39,0) -> 0 | N39: =IF(Background!$B$84>=B39,'Calc Wind'!$B$60,0) -> 66939.39002 | O39: =IF(Background!$B$84>=B39,'Calc Wind'!$B$62+H39,0) -> 0
B40: 10 | C40: =IF(Background!$B$84>=B40,'Calc Wind'!$B$41,0) -> 0 | D40: =IF(Background!$B$84>=B40,'Calc Wind'!$B$43,0) -> 4.05e-07 | E40: =Background!P70 -> 0 | F40: =Background!Q70 -> 0 | G40: =IF(Background!$B$84>=B40,'Calc Wind'!$B$67,0) -> 0 | H40: =IF(Background!$B$84>=B40,'Calc Wind'!$B$63,0) -> 0 | I40: =IF(Background!$B$84>=B40,'Calc Wind'!$B$64,0) -> 0 | J40: =IF(Background!$B$84>=B40,'Calc Wind'!$B$48+C40,0) -> 0 | K40: =IF(Background!$B$84>=B40,'Calc Wind'!$B$56+D40,0) -> 5.183572432e-06 | L40: =IF(Background!$B$84>=B40,E40+F40+'Calc Wind'!$B$52,0) -> 0 | M40: =IF(Background!$B$84>=B40,'Calc Wind'!$B$70+G40,0) -> 0 | N40: =IF(Background!$B$84>=B40,'Calc Wind'!$B$60,0) -> 66939.39002 | O40: =IF(Background!$B$84>=B40,'Calc Wind'!$B$62+H40,0) -> 0
B41: 11 | C41: =IF(Background!$B$84>=B41,'Calc Wind'!$B$41,0) -> 0 | D41: =IF(Background!$B$84>=B41,'Calc Wind'!$B$43,0) -> 4.05e-07 | E41: =Background!P71 -> 0 | F41: =Background!Q71 -> 0 | G41: =IF(Background!$B$84>=B41,'Calc Wind'!$B$67,0) -> 0 | H41: =IF(Background!$B$84>=B41,'Calc Wind'!$B$63,0) -> 0 | I41: =IF(Background!$B$84>=B41,'Calc Wind'!$B$64,0) -> 0 | J41: =IF(Background!$B$84>=B41,'Calc Wind'!$B$48+C41,0) -> 0 | K41: =IF(Background!$B$84>=B41,'Calc Wind'!$B$56+D41,0) -> 5.183572432e-06 | L41: =IF(Background!$B$84>=B41,E41+F41+'Calc Wind'!$B$52,0) -> 0 | M41: =IF(Background!$B$84>=B41,'Calc Wind'!$B$70+G41,0) -> 0 | N41: =IF(Background!$B$84>=B41,'Calc Wind'!$B$60,0) -> 66939.39002 | O41: =IF(Background!$B$84>=B41,'Calc Wind'!$B$62+H41,0) -> 0
B42: 12 | C42: =IF(Background!$B$84>=B42,'Calc Wind'!$B$41,0) -> 0 | D42: =IF(Background!$B$84>=B42,'Calc Wind'!$B$43,0) -> 4.05e-07 | E42: =Background!P72 -> 0 | F42: =Background!Q72 -> 0 | G42: =IF(Background!$B$84>=B42,'Calc Wind'!$B$67,0) -> 0 | H42: =IF(Background!$B$84>=B42,'Calc Wind'!$B$63,0) -> 0 | I42: =IF(Background!$B$84>=B42,'Calc Wind'!$B$64,0) -> 0 | J42: =IF(Background!$B$84>=B42,'Calc Wind'!$B$48+C42,0) -> 0 | K42: =IF(Background!$B$84>=B42,'Calc Wind'!$B$56+D42,0) -> 5.183572432e-06 | L42: =IF(Background!$B$84>=B42,E42+F42+'Calc Wind'!$B$52,0) -> 0 | M42: =IF(Background!$B$84>=B42,'Calc Wind'!$B$70+G42,0) -> 0 | N42: =IF(Background!$B$84>=B42,'Calc Wind'!$B$60,0) -> 66939.39002 | O42: =IF(Background!$B$84>=B42,'Calc Wind'!$B$62+H42,0) -> 0
B43: 13 | C43: =IF(Background!$B$84>=B43,'Calc Wind'!$B$41,0) -> 0 | D43: =IF(Background!$B$84>=B43,'Calc Wind'!$B$43,0) -> 4.05e-07 | E43: =Background!P73 -> 0 | F43: =Background!Q73 -> 0 | G43: =IF(Background!$B$84>=B43,'Calc Wind'!$B$67,0) -> 0 | H43: =IF(Background!$B$84>=B43,'Calc Wind'!$B$63,0) -> 0 | I43: =IF(Background!$B$84>=B43,'Calc Wind'!$B$64,0) -> 0 | J43: =IF(Background!$B$84>=B43,'Calc Wind'!$B$48+C43,0) -> 0 | K43: =IF(Background!$B$84>=B43,'Calc Wind'!$B$56+D43,0) -> 5.183572432e-06 | L43: =IF(Background!$B$84>=B43,E43+F43+'Calc Wind'!$B$52,0) -> 0 | M43: =IF(Background!$B$84>=B43,'Calc Wind'!$B$70+G43,0) -> 0 | N43: =IF(Background!$B$84>=B43,'Calc Wind'!$B$60,0) -> 66939.39002 | O43: =IF(Background!$B$84>=B43,'Calc Wind'!$B$62+H43,0) -> 0
B44: 14 | C44: =IF(Background!$B$84>=B44,'Calc Wind'!$B$41,0) -> 0 | D44: =IF(Background!$B$84>=B44,'Calc Wind'!$B$43,0) -> 4.05e-07 | E44: =Background!P74 -> 0 | F44: =Background!Q74 -> 0 | G44: =IF(Background!$B$84>=B44,'Calc Wind'!$B$67,0) -> 0 | H44: =IF(Background!$B$84>=B44,'Calc Wind'!$B$63,0) -> 0 | I44: =IF(Background!$B$84>=B44,'Calc Wind'!$B$64,0) -> 0 | J44: =IF(Background!$B$84>=B44,'Calc Wind'!$B$48+C44,0) -> 0 | K44: =IF(Background!$B$84>=B44,'Calc Wind'!$B$56+D44,0) -> 5.183572432e-06 | L44: =IF(Background!$B$84>=B44,E44+F44+'Calc Wind'!$B$52,0) -> 0 | M44: =IF(Background!$B$84>=B44,'Calc Wind'!$B$70+G44,0) -> 0 | N44: =IF(Background!$B$84>=B44,'Calc Wind'!$B$60,0) -> 66939.39002 | O44: =IF(Background!$B$84>=B44,'Calc Wind'!$B$62+H44,0) -> 0
B45: 15 | C45: =IF(Background!$B$84>=B45,'Calc Wind'!$B$41,0) -> 0 | D45: =IF(Background!$B$84>=B45,'Calc Wind'!$B$43,0) -> 4.05e-07 | E45: =Background!P75 -> 0 | F45: =Background!Q75 -> 0 | G45: =IF(Background!$B$84>=B45,'Calc Wind'!$B$67,0) -> 0 | H45: =IF(Background!$B$84>=B45,'Calc Wind'!$B$63,0) -> 0 | I45: =IF(Background!$B$84>=B45,'Calc Wind'!$B$64,0) -> 0 | J45: =IF(Background!$B$84>=B45,'Calc Wind'!$B$48+C45,0) -> 0 | K45: =IF(Background!$B$84>=B45,'Calc Wind'!$B$56+D45,0) -> 5.183572432e-06 | L45: =IF(Background!$B$84>=B45,E45+F45+'Calc Wind'!$B$52,0) -> 0 | M45: =IF(Background!$B$84>=B45,'Calc Wind'!$B$70+G45,0) -> 0 | N45: =IF(Background!$B$84>=B45,'Calc Wind'!$B$60,0) -> 66939.39002 | O45: =IF(Background!$B$84>=B45,'Calc Wind'!$B$62+H45,0) -> 0
B46: 16 | C46: =IF(Background!$B$84>=B46,'Calc Wind'!$B$41,0) -> 0 | D46: =IF(Background!$B$84>=B46,'Calc Wind'!$B$43,0) -> 4.05e-07 | E46: =Background!P76 -> 0 | F46: =Background!Q76 -> 0 | G46: =IF(Background!$B$84>=B46,'Calc Wind'!$B$67,0) -> 0 | H46: =IF(Background!$B$84>=B46,'Calc Wind'!$B$63,0) -> 0 | I46: =IF(Background!$B$84>=B46,'Calc Wind'!$B$64,0) -> 0 | J46: =IF(Background!$B$84>=B46,'Calc Wind'!$B$48+C46,0) -> 0 | K46: =IF(Background!$B$84>=B46,'Calc Wind'!$B$56+D46,0) -> 5.183572432e-06 | L46: =IF(Background!$B$84>=B46,E46+F46+'Calc Wind'!$B$52,0) -> 0 | M46: =IF(Background!$B$84>=B46,'Calc Wind'!$B$70+G46,0) -> 0 | N46: =IF(Background!$B$84>=B46,'Calc Wind'!$B$60,0) -> 66939.39002 | O46: =IF(Background!$B$84>=B46,'Calc Wind'!$B$62+H46,0) -> 0
B47: 17 | C47: =IF(Background!$B$84>=B47,'Calc Wind'!$B$41,0) -> 0 | D47: =IF(Background!$B$84>=B47,'Calc Wind'!$B$43,0) -> 4.05e-07 | E47: =Background!P77 -> 0 | F47: =Background!Q77 -> 0 | G47: =IF(Background!$B$84>=B47,'Calc Wind'!$B$67,0) -> 0 | H47: =IF(Background!$B$84>=B47,'Calc Wind'!$B$63,0) -> 0 | I47: =IF(Background!$B$84>=B47,'Calc Wind'!$B$64,0) -> 0 | J47: =IF(Background!$B$84>=B47,'Calc Wind'!$B$48+C47,0) -> 0 | K47: =IF(Background!$B$84>=B47,'Calc Wind'!$B$56+D47,0) -> 5.183572432e-06 | L47: =IF(Background!$B$84>=B47,E47+F47+'Calc Wind'!$B$52,0) -> 0 | M47: =IF(Background!$B$84>=B47,'Calc Wind'!$B$70+G47,0) -> 0 | N47: =IF(Background!$B$84>=B47,'Calc Wind'!$B$60,0) -> 66939.39002 | O47: =IF(Background!$B$84>=B47,'Calc Wind'!$B$62+H47,0) -> 0
B48: 18 | C48: =IF(Background!$B$84>=B48,'Calc Wind'!$B$41,0) -> 0 | D48: =IF(Background!$B$84>=B48,'Calc Wind'!$B$43,0) -> 4.05e-07 | E48: =Background!P78 -> 0 | F48: =Background!Q78 -> 0 | G48: =IF(Background!$B$84>=B48,'Calc Wind'!$B$67,0) -> 0 | H48: =IF(Background!$B$84>=B48,'Calc Wind'!$B$63,0) -> 0 | I48: =IF(Background!$B$84>=B48,'Calc Wind'!$B$64,0) -> 0 | J48: =IF(Background!$B$84>=B48,'Calc Wind'!$B$48+C48,0) -> 0 | K48: =IF(Background!$B$84>=B48,'Calc Wind'!$B$56+D48,0) -> 5.183572432e-06 | L48: =IF(Background!$B$84>=B48,E48+F48+'Calc Wind'!$B$52,0) -> 0 | M48: =IF(Background!$B$84>=B48,'Calc Wind'!$B$70+G48,0) -> 0 | N48: =IF(Background!$B$84>=B48,'Calc Wind'!$B$60,0) -> 66939.39002 | O48: =IF(Background!$B$84>=B48,'Calc Wind'!$B$62+H48,0) -> 0
B49: 19 | C49: =IF(Background!$B$84>=B49,'Calc Wind'!$B$41,0) -> 0 | D49: =IF(Background!$B$84>=B49,'Calc Wind'!$B$43,0) -> 4.05e-07 | E49: =Background!P79 -> 0 | F49: =Background!Q79 -> 0 | G49: =IF(Background!$B$84>=B49,'Calc Wind'!$B$67,0) -> 0 | H49: =IF(Background!$B$84>=B49,'Calc Wind'!$B$63,0) -> 0 | I49: =IF(Background!$B$84>=B49,'Calc Wind'!$B$64,0) -> 0 | J49: =IF(Background!$B$84>=B49,'Calc Wind'!$B$48+C49,0) -> 0 | K49: =IF(Background!$B$84>=B49,'Calc Wind'!$B$56+D49,0) -> 5.183572432e-06 | L49: =IF(Background!$B$84>=B49,E49+F49+'Calc Wind'!$B$52,0) -> 0 | M49: =IF(Background!$B$84>=B49,'Calc Wind'!$B$70+G49,0) -> 0 | N49: =IF(Background!$B$84>=B49,'Calc Wind'!$B$60,0) -> 66939.39002 | O49: =IF(Background!$B$84>=B49,'Calc Wind'!$B$62+H49,0) -> 0
B50: 20 | C50: =IF(Background!$B$84>=B50,'Calc Wind'!$B$41,0) -> 0 | D50: =IF(Background!$B$84>=B50,'Calc Wind'!$B$43,0) -> 4.05e-07 | E50: =Background!P80 -> 0 | F50: =Background!Q80 -> 0 | G50: =IF(Background!$B$84>=B50,'Calc Wind'!$B$67,0) -> 0 | H50: =IF(Background!$B$84>=B50,'Calc Wind'!$B$63,0) -> 0 | I50: =IF(Background!$B$84>=B50,'Calc Wind'!$B$64,0) -> 0 | J50: =IF(Background!$B$84>=B50,'Calc Wind'!$B$48+C50,0) -> 0 | K50: =IF(Background!$B$84>=B50,'Calc Wind'!$B$56+D50,0) -> 5.183572432e-06 | L50: =IF(Background!$B$84>=B50,E50+F50+'Calc Wind'!$B$52,0) -> 0 | M50: =IF(Background!$B$84>=B50,'Calc Wind'!$B$70+G50,0) -> 0 | N50: =IF(Background!$B$84>=B50,'Calc Wind'!$B$60,0) -> 66939.39002 | O50: =IF(Background!$B$84>=B50,'Calc Wind'!$B$62+H50,0) -> 0
B51: Average | C51: =IFERROR(AVERAGEIF(C31:C50,"<>0"),0) -> 0 | D51: =IFERROR(AVERAGEIF(D31:D50,"<>0"),0) -> 4.05e-07 | E51: =IFERROR(AVERAGEIF(E31:E50,"<>0"),0) -> 0 | F51: =IFERROR(AVERAGEIF(F31:F50,"<>0"),0) -> 0 | G51: =IFERROR(AVERAGEIF(G31:G50,"<>0"),0) -> 0 | H51: =IFERROR(AVERAGEIF(H31:H50,"<>0"),0) -> 0 | I51: 0 | J51: 0 | K51: 5.183572432e-06 | L51: 0 | M51: 0 | N51: 66939.39002 | O51: 0
B70: * Only the share of the RE potential that can be directly consumed or stored in the battery is actually generated, the surplus potential is curtailed and not generated ** The Diesel genset could generate a surplus that is not consumed (due to the lower load limit of the genset) and dumped through a ballast load

Sheet Scenario Results Wind
B2: Average LCOE & RE-Share | C2: Wind-Size (new)
B3: Battery-Capacity | C3: =IF('Input Wind'!$D$116=Background!$M$1,'Input Wind'!$D$120*'Calc Wind'!$B$2,'Input Wind'!$F$120) -> 0 | D3: =IF('Input Wind'!$D$116=Background!$M$1,'Input Wind'!$D$121*'Calc Wind'!$B$2,'Input Wind'!$F$121) -> 0 | E3: =IF('Input Wind'!$D$116=Background!$M$1,'Input Wind'!$D$122*'Calc Wind'!$B$2,'Input Wind'!F$122) -> 0 | F3: =IF('Input Wind'!$D$116=Background!$M$1,'Input Wind'!$D$123*'Calc Wind'!$B$2,'Input Wind'!$F$123) -> 0 | G3: =IF('Input Wind'!$D$116=Background!$M$1,'Input Wind'!$D$124*'Calc Wind'!$B$2,'Input Wind'!F$124) -> 0 | H3: =IF('Input Wind'!$D$116=Background!$M$1,'Input Wind'!$D$125*'Calc Wind'!$B$2,'Input Wind'!F$125) -> 0 | I3: =IF('Input Wind'!$D$116=Background!$M$1,'Input Wind'!$D$126*'Calc Wind'!$B$2,'Input Wind'!F$126) -> 0 | J3: =IF('Input Wind'!$D$116=Background!$M$1,'Input Wind'!$D$127*'Calc Wind'!$B$2,'Input Wind'!F$127) -> 0 | K3: =IF('Input Wind'!$D$116=Background!$M$1,'Input Wind'!$D$128*'Calc Wind'!$B$2,'Input Wind'!F$128) -> 0 | L3: =IF('Input Wind'!$D$116=Background!$M$1,'Input Wind'!$D$129*'Calc Wind'!$B$2,'Input Wind'!F$129) -> 0 | M3: =IF('Input Wind'!$D$116=Background!$M$1,'Input Wind'!$D$130*'Calc Wind'!$B$2,'Input Wind'!F$130) -> 0
B4: =IF('Input Wind'!$D$116=Background!$M$1,'Input Wind'!$E120*'Calc Wind'!$B$3/168,'Input Wind'!G120) -> 0
B6: =IF('Input Wind'!$D$116=Background!$M$1,'Input Wind'!$E121*'Calc Wind'!$B$3/168,'Input Wind'!G121) -> 0
B8: =IF('Input Wind'!$D$116=Background!$M$1,'Input Wind'!$E122*'Calc Wind'!$B$3/168,'Input Wind'!G122) -> 0
B10: =IF('Input Wind'!$D$116=Background!$M$1,'Input Wind'!$E123*'Calc Wind'!$B$3/168,'Input Wind'!G123) -> 0
B12: =IF('Input Wind'!$D$116=Background!$M$1,'Input Wind'!$E124*'Calc Wind'!$B$3/168,'Input Wind'!G124) -> 0
B14: =IF('Input Wind'!$D$116=Background!$M$1,'Input Wind'!$E125*'Calc Wind'!$B$3/168,'Input Wind'!G125) -> 0
B16: =IF('Input Wind'!$D$116=Background!$M$1,'Input Wind'!$E126*'Calc Wind'!$B$3/168,'Input Wind'!G126) -> 0
B18: =IF('Input Wind'!$D$116=Background!$M$1,'Input Wind'!$E127*'Calc Wind'!$B$3/168,'Input Wind'!G127) -> 0
B20: =IF('Input Wind'!$D$116=Background!$M$1,'Input Wind'!$E128*'Calc Wind'!$B$3/168,'Input Wind'!G128) -> 0
B22: =IF('Input Wind'!$D$116=Background!$M$1,'Input Wind'!$E129*'Calc Wind'!$B$3/168,'Input Wind'!G129) -> 0
B24: =IF('Input Wind'!$D$116=Background!$M$1,'Input Wind'!$E130*'Calc Wind'!$B$3/168,'Input Wind'!G130) -> 0
B27: LCOE [PHP/kWh] | C27: Wind-Size (new)
B28: Battery-Capacity | C28: =IF('Input Wind'!$D$116=Background!$M$1,'Input Wind'!$D$120*'Calc Wind'!$B$2,'Input Wind'!$F$120) -> 0 | D28: =IF('Input Wind'!$D$116=Background!$M$1,'Input Wind'!$D$121*'Calc Wind'!$B$2,'Input Wind'!$F$121) -> 0 | E28: =IF('Input Wind'!$D$116=Background!$M$1,'Input Wind'!$D$122*'Calc Wind'!$B$2,'Input Wind'!F$122) -> 0 | F28: =IF('Input Wind'!$D$116=Background!$M$1,'Input Wind'!$D$123*'Calc Wind'!$B$2,'Input Wind'!$F$123) -> 0 | G28: =IF('Input Wind'!$D$116=Background!$M$1,'Input Wind'!$D$124*'Calc Wind'!$B$2,'Input Wind'!F$124) -> 0 | H28: =IF('Input Wind'!$D$116=Background!$M$1,'Input Wind'!$D$125*'Calc Wind'!$B$2,'Input Wind'!F$125) -> 0 | I28: =IF('Input Wind'!$D$116=Background!$M$1,'Input Wind'!$D$126*'Calc Wind'!$B$2,'Input Wind'!F$126) -> 0 | J28: =IF('Input Wind'!$D$116=Background!$M$1,'Input Wind'!$D$127*'Calc Wind'!$B$2,'Input Wind'!F$127) -> 0 | K28: =IF('Input Wind'!$D$116=Background!$M$1,'Input Wind'!$D$128*'Calc Wind'!$B$2,'Input Wind'!F$128) -> 0 | L28: =IF('Input Wind'!$D$116=Background!$M$1,'Input Wind'!$D$129*'Calc Wind'!$B$2,'Input Wind'!F$129) -> 0 | M28: =IF('Input Wind'!$D$116=Background!$M$1,'Input Wind'!$D$130*'Calc Wind'!$B$2,'Input Wind'!F$130) -> 0
B29: =IF('Input Wind'!$D$116=Background!$M$1,'Input Wind'!$E120*'Calc Wind'!$B$3/168,'Input Wind'!G120) -> 0
B30: =IF('Input Wind'!$D$116=Background!$M$1,'Input Wind'!$E121*'Calc Wind'!$B$3/168,'Input Wind'!G121) -> 0
B31: =IF('Input Wind'!$D$116=Background!$M$1,'Input Wind'!$E122*'Calc Wind'!$B$3/168,'Input Wind'!G122) -> 0
B32: =IF('Input Wind'!$D$116=Background!$M$1,'Input Wind'!$E123*'Calc Wind'!$B$3/168,'Input Wind'!G123) -> 0
B33: =IF('Input Wind'!$D$116=Background!$M$1,'Input Wind'!$E124*'Calc Wind'!$B$3/168,'Input Wind'!G124) -> 0
B34: =IF('Input Wind'!$D$116=Background!$M$1,'Input Wind'!$E125*'Calc Wind'!$B$3/168,'Input Wind'!G125) -> 0
B35: =IF('Input Wind'!$D$116=Background!$M$1,'Input Wind'!$E126*'Calc Wind'!$B$3/168,'Input Wind'!G126) -> 0
B36: =IF('Input Wind'!$D$116=Background!$M$1,'Input Wind'!$E127*'Calc Wind'!$B$3/168,'Input Wind'!G127) -> 0
B37: =IF('Input Wind'!$D$116=Background!$M$1,'Input Wind'!$E128*'Calc Wind'!$B$3/168,'Input Wind'!G128) -> 0
B38: =IF('Input Wind'!$D$116=Background!$M$1,'Input Wind'!$E129*'Calc Wind'!$B$3/168,'Input Wind'!G129) -> 0
B39: =IF('Input Wind'!$D$116=Background!$M$1,'Input Wind'!$E130*'Calc Wind'!$B$3/168,'Input Wind'!G130) -> 0
B41: RE-Share | C41: Wind-Size (new)
B42: Battery-Capacity | C42: =IF('Input Wind'!$D$116=Background!$M$1,'Input Wind'!$D$120*'Calc Wind'!$B$2,'Input Wind'!$F$120) -> 0 | D42: =IF('Input Wind'!$D$116=Background!$M$1,'Input Wind'!$D$121*'Calc Wind'!$B$2,'Input Wind'!$F$121) -> 0 | E42: =IF('Input Wind'!$D$116=Background!$M$1,'Input Wind'!$D$122*'Calc Wind'!$B$2,'Input Wind'!F$122) -> 0 | F42: =IF('Input Wind'!$D$116=Background!$M$1,'Input Wind'!$D$123*'Calc Wind'!$B$2,'Input Wind'!$F$123) -> 0 | G42: =IF('Input Wind'!$D$116=Background!$M$1,'Input Wind'!$D$124*'Calc Wind'!$B$2,'Input Wind'!F$124) -> 0 | H42: =IF('Input Wind'!$D$116=Background!$M$1,'Input Wind'!$D$125*'Calc Wind'!$B$2,'Input Wind'!F$125) -> 0 | I42: =IF('Input Wind'!$D$116=Background!$M$1,'Input Wind'!$D$126*'Calc Wind'!$B$2,'Input Wind'!F$126) -> 0 | J42: =IF('Input Wind'!$D$116=Background!$M$1,'Input Wind'!$D$127*'Calc Wind'!$B$2,'Input Wind'!F$127) -> 0 | K42: =IF('Input Wind'!$D$116=Background!$M$1,'Input Wind'!$D$128*'Calc Wind'!$B$2,'Input Wind'!F$128) -> 0 | L42: =IF('Input Wind'!$D$116=Background!$M$1,'Input Wind'!$D$129*'Calc Wind'!$B$2,'Input Wind'!F$129) -> 0 | M42: =IF('Input Wind'!$D$116=Background!$M$1,'Input Wind'!$D$130*'Calc Wind'!$B$2,'Input Wind'!F$130) -> 0
B43: =IF('Input Wind'!$D$116=Background!$M$1,'Input Wind'!$E$120*'Calc Wind'!$B$3/168,'Input Wind'!$G$120) -> 0
B44: =IF('Input Wind'!$D$116=Background!$M$1,'Input Wind'!$E121*'Calc Wind'!$B$3/168,'Input Wind'!G121) -> 0
B45: =IF('Input Wind'!$D$116=Background!$M$1,'Input Wind'!$E122*'Calc Wind'!$B$3/168,'Input Wind'!G122) -> 0
B46: =IF('Input Wind'!$D$116=Background!$M$1,'Input Wind'!$E123*'Calc Wind'!$B$3/168,'Input Wind'!G123) -> 0
B47: =IF('Input Wind'!$D$116=Background!$M$1,'Input Wind'!$E124*'Calc Wind'!$B$3/168,'Input Wind'!G124) -> 0
B48: =IF('Input Wind'!$D$116=Background!$M$1,'Input Wind'!$E125*'Calc Wind'!$B$3/168,'Input Wind'!G125) -> 0
B49: =IF('Input Wind'!$D$116=Background!$M$1,'Input Wind'!$E126*'Calc Wind'!$B$3/168,'Input Wind'!G126) -> 0
B50: =IF('Input Wind'!$D$116=Background!$M$1,'Input Wind'!$E127*'Calc Wind'!$B$3/168,'Input Wind'!G127) -> 0
B51: =IF('Input Wind'!$D$116=Background!$M$1,'Input Wind'!$E128*'Calc Wind'!$B$3/168,'Input Wind'!G128) -> 0
B52: =IF('Input Wind'!$D$116=Background!$M$1,'Input Wind'!$E129*'Calc Wind'!$B$3/168,'Input Wind'!G129) -> 0
B53: =IF('Input Wind'!$D$116=Background!$M$1,'Input Wind'!$E130*'Calc Wind'!$B$3/168,'Input Wind'!G130) -> 0

Sheet Calc Wind (hidden)
A1: Framework | C1: Caution when shifting cells, VBA uses cells in these columns | F1: Total Load | G1: Load plus losses | H1: v_wind reference | I1: v_wind at location | J1: v_wind at height | K1: v_wind rounded | L1: Wind power potential | M1: Demand minus Wind | N1: Excess | O1: C-rate constraint ch. | P1: potential Charge | Q1: Residual | R1: C-rate constraint dch. | S1: pot. discharge | T1: pot. discharge - losses | U1: Diesel requirement | V1: RT requirement | W1: RT of Batt | X1: RTr minus Batt requirment | Y1: Diesel req. Total | Z1: Diesel generation | AA1: Gen Efficiency | AB1: l/kwh | AC1: Gen Consumption l | AD1: Surplus | AE1: C-rate check ch. | AF1: SOC Charge | AG1: C-rate check disch. | AH1: SOC Discharge | AI1: Battery discharge | AJ1: Battery charge | AK1: Real SoC | AL1: Initial Batt. Energy | AM1: Unmet load | AN1: Wind power used | AO1: wind battcharge | AP1: Diesel direct use | AQ1: Diesel surplus | AR1: Diesel battcharge | AS1: Diesel Excess | AT1: Diesel electricity used
A2: Peak load | B2: =MAX(F3:F170) -> 0 | E2: Hours | T2: =ROUNDDOWN(MAX(0,N4-U4),3) ->  | AI2: (pos. for Diagram) | AJ2: (neg. for diagram) | AK2: =MIN(B12+(AL2/B8),0.7) ->  | AL2: =MAX(AL6-AL8,0)*B10 -> 
A3: Demand per week | B3: =SUM(F3:F170) -> 0 | E3: 1 | F3: ='Existing Load'!J7 -> 0 | G3: =F3*(1+$B$4) -> 0 | H3: 4.641 | I3: =H3*$H$173 -> 7.242190299 | J3: =MIN(I3*Background!$AG$28,20) ->  | K3: =ROUND('Calc Wind'!J3/5,1)*5 ->  | L3: =Background!$AG$17*VLOOKUP(K3,Background!$AB$32:$AG$72,1+MATCH(Background!$AG$18,Background!$AC$30:$AG$30,0),FALSE) ->  | M3: =G3-L3 ->  | N3: =MIN(M3,0) ->  | O3: =MAX(N3*$B$10,-1*$B$8*$B$9*$B$10) ->  | P3: =MAX(O3,-(1-AK2)*$B$8) ->  | Q3: =MAX(M3,0) ->  | R3: =MIN(Q3/$B$11,$B$8*$B$9/$B$11) ->  | S3: =MAX(MIN(R3,(AK2-$B$12)*$B$8),0) ->  | T3: =S3*$B$11 ->  | U3: =ROUND(MAX(0,M3-T3),5) ->  | V3: =G3*$B$14 -> 0 | W3: =MIN($B$9*$B$8,(AK2-$B$12)*$B$8*$B$11) ->  | X3: =MAX(0,V3-W3) ->  | Y3: =MAX(U3,X3) ->  | Z3: =IF(Y3<=0,0,(MIN(MAX(Y3,$D$105),$D$106))) ->  | AA3: =IF(Z3=0,0,MIN((Z3/$D$107)/(($D$111+$D$112*(Z3/$D$107)))/$D$113,$D$123)) ->  | AB3: =IF(AA3>0,Background!$M$22/AA3,0) ->  | AC3: =AB3*Z3 ->  | AD3: =Z3+L3-G3 ->  | AE3: =IF(AD3>0,MIN(AD3*$B$10,$B$8*$B$9*$B$10),0) ->  | AF3: =MAX(0,MIN(AE3/$B$8,1-AK2)) ->  | AG3: =IF(AD3<0,MAX(AD3/$B$11,-$B$8*$B$9/$B$11),0) ->  | AH3: =MIN(0,MAX(AG3/$B$8,-1*(AK2-$B$12))) ->  | AI3: =AH3*-$B$8*$B$11 ->  | AJ3: =AF3*-$B$8 ->  | AK3: =MIN(1,AK2+AH3+AF3) ->  | AL3: initial Batt. used | AM3: =MAX(G3-L3-Z3-AI3,0) ->  | AN3: =MAX(G3-Z3-AI3-AM3,0) ->  | AO3: =MAX(AJ3,-1*(L3-AN3)) ->  | AP3: =G3-AN3-AM3-AI3 ->  | AQ3: =Z3-AP3 ->  | AR3: =MAX(AJ3-AO3,-1*AQ3) ->  | AS3: =-1*(AQ3+AR3) ->  | AT3: =AP3-AR3 -> 
A4: Losses | B4: =IF('Input Wind'!D63="Default",'Input Wind'!D69,'Input Wind'!E69) -> 0.05 | E4: 2 | F4: ='Existing Load'!J8 -> 0 | G4: 0 | H4: 4.483 | I4: =H4*$H$173 -> 6.99563437 | J4: =MIN(I4*Background!$AG$28,20) ->  | K4: =ROUND('Calc Wind'!J4/5,1)*5 ->  | L4: =Background!$AG$17*VLOOKUP(K4,Background!$AB$32:$AG$72,1+MATCH(Background!$AG$18,Background!$AC$30:$AG$30,0),FALSE) ->  | M4: =G4-L4 ->  | N4: =MIN(M4,0) ->  | O4: =MAX(N4*$B$10,-1*$B$8*$B$9*$B$10) ->  | P4: =MAX(O4,-(1-AK3)*$B$8) ->  | Q4: =MAX(M4,0) ->  | R4: =MIN(Q4/$B$11,$B$8*$B$9/$B$11) ->  | S4: =MAX(MIN(R4,(AK3-$B$12)*$B$8),0) ->  | T4: =S4*$B$11 ->  | U4: =ROUND(MAX(0,M4-T4),5) ->  | V4: =G4*$B$14 -> 0 | W4: =MIN($B$9*$B$8,(AK3-$B$12)*$B$8*$B$11) ->  | X4: =MAX(0,V4-W4) ->  | Y4: =MAX(U4,X4) ->  | Z4: =IF(Y4<=0,0,(MIN(MAX(Y4,$D$105),$D$106))) ->  | AA4: =IF(Z4=0,0,MIN((Z4/$D$107)/(($D$111+$D$112*(Z4/$D$107)))/$D$113,$D$123)) ->  | AB4: =IF(AA4>0,Background!$M$22/AA4,0) ->  | AC4: =AB4*Z4 ->  | AD4: =Z4+L4-G4 ->  | AE4: =IF(AD4>0,MIN(AD4*$B$10,$B$8*$B$9*$B$10),0) ->  | AF4: =MAX(0,MIN(AE4/$B$8,1-AK3)) ->  | AG4: =IF(AD4<0,MAX(AD4/$B$11,-$B$8*$B$9/$B$11),0) ->  | AH4: =MIN(0,MAX(AG4/$B$8,-1*(AK3-$B$12))) ->  | AI4: =AH4*-$B$8*$B$11 ->  | AJ4: =AF4*-$B$8 ->  | AK4: =MIN(1,AK3+AH4+AF4) ->  | AL4: =MAX(0,SUM(AI3:AI170)-(-1*SUM(AJ3:AJ170))) ->  | AM4: =MAX(G4-L4-Z4-AI4,0) ->  | AN4: =MAX(G4-Z4-AI4-AM4,0) ->  | AO4: =MAX(AJ4,-1*(L4-AN4)) ->  | AP4: =G4-AN4-AM4-AI4 ->  | AQ4: =Z4-AP4 ->  | AR4: =MAX(AJ4-AO4,-1*AQ4) ->  | AS4: =-1*(AQ4+AR4) ->  | AT4: =AP4-AR4 -> 
A5: Caution when shifting cells, VBA uses cells in these columns | E5: 3 | F5: ='Existing Load'!J9 -> 0 | G5: 0 | H5: 4.447 | I5: 6.93945707 | J5: =MIN(I5*Background!$AG$28,20) ->  | K5: =ROUND('Calc Wind'!J5/5,1)*5 ->  | L5: =Background!$AG$17*VLOOKUP(K5,Background!$AB$32:$AG$72,1+MATCH(Background!$AG$18,Background!$AC$30:$AG$30,0),FALSE) ->  | V5: 0 | Z5: =IF(Y5<=0,0,(MIN(MAX(Y5,$D$105),$D$106))) ->  | AB5: =IF(AA5>0,Background!$M$22/AA5,0) ->  | AL5: RE excess | AR5: =MAX(AJ5-AO5,-1*AQ5) ->  | AT5: =AP5-AR5 -> 
A6: System parameters | E6: 4 | F6: ='Existing Load'!J10 -> 0 | G6: 0 | H6: 4.467 | I6: 6.970666681 | J6: =MIN(I6*Background!$AG$28,20) ->  | K6: =ROUND('Calc Wind'!J6/5,1)*5 ->  | L6: =Background!$AG$17*VLOOKUP(K6,Background!$AB$32:$AG$72,1+MATCH(Background!$AG$18,Background!$AC$30:$AG$30,0),FALSE) ->  | V6: 0 | AB6: =IF(AA6>0,Background!$M$22/AA6,0) ->  | AL6: =-1*SUM(N3:N170) -> 
A7: Wind peak capacity | B7: =IF(Background!U2,Background!U3,IF('Input Wind'!$D$11="Default",'Input Wind'!$D$17,'Input Wind'!$E$17)) -> 0 | E7: 5 | F7: ='Existing Load'!J11 -> 0 | G7: 0 | H7: 4.555 | I7: 7.10798897 | J7: =MIN(I7*Background!$AG$28,20) ->  | K7: =ROUND('Calc Wind'!J7/5,1)*5 ->  | L7: =Background!$AG$17*VLOOKUP(K7,Background!$AB$32:$AG$72,1+MATCH(Background!$AG$18,Background!$AC$30:$AG$30,0),FALSE) ->  | V7: 0 | AB7: =IF(AA7>0,Background!$M$22/AA7,0) ->  | AL7: Residual | AT7: =AP7-AR7 -> 
A8: Battery capacity | B8: =(MAX(IF(Background!U2,Background!U4,IF('Input Wind'!$D$57="Default",'Input Wind'!$D$59,'Input Wind'!$E$59)),0.000000001)) -> 1e-09 | E8: 6 | F8: ='Existing Load'!J12 -> 0 | G8: 0 | H8: 4.559 | I8: 7.114230893 | J8: =MIN(I8*Background!$AG$28,20) ->  | K8: =ROUND('Calc Wind'!J8/5,1)*5 ->  | L8: =Background!$AG$17*VLOOKUP(K8,Background!$AB$32:$AG$72,1+MATCH(Background!$AG$18,Background!$AC$30:$AG$30,0),FALSE) ->  | V8: 0 | AB8: =IF(AA8>0,Background!$M$22/AA8,0) ->  | AL8: =SUM(Q3:Q170) -> 
A9: C-rate 1: | B9: =IF('Input Wind'!D45<>"Individual",'Input Wind'!D51,'Input Wind'!E51) -> 1 | E9: 7 | F9: ='Existing Load'!J13 -> 0 | G9: 0 | H9: 4.43 | I9: 6.9129289 | J9: =MIN(I9*Background!$AG$28,20) ->  | K9: =ROUND('Calc Wind'!J9/5,1)*5 ->  | L9: =Background!$AG$17*VLOOKUP(K9,Background!$AB$32:$AG$72,1+MATCH(Background!$AG$18,Background!$AC$30:$AG$30,0),FALSE) ->  | V9: 0 | AB9: =IF(AA9>0,Background!$M$22/AA9,0) -> 
A10: Charge efficiency | B10: =IF('Input Wind'!D45<>"Individual",'Input Wind'!D53,'Input Wind'!E53) -> 0.9 | E10: 8 | F10: ='Existing Load'!J14 -> 0 | G10: 0 | H10: 4.234 | I10: 6.607074709 | J10: =MIN(I10*Background!$AG$28,20) ->  | K10: =ROUND('Calc Wind'!J10/5,1)*5 ->  | L10: =Background!$AG$17*VLOOKUP(K10,Background!$AB$32:$AG$72,1+MATCH(Background!$AG$18,Background!$AC$30:$AG$30,0),FALSE) ->  | V10: 0 | AB10: =IF(AA10>0,Background!$M$22/AA10,0) -> 
A11: Discharge efficiency | B11: =IF('Input Wind'!D45<>"Individual",'Input Wind'!D54,'Input Wind'!E54) -> 0.9 | E11: 9 | F11: ='Existing Load'!J15 -> 0 | G11: 0 | H11: 3.963 | I11: 6.184184476 | J11: =MIN(I11*Background!$AG$28,20) ->  | K11: =ROUND('Calc Wind'!J11/5,1)*5 ->  | L11: =Background!$AG$17*VLOOKUP(K11,Background!$AB$32:$AG$72,1+MATCH(Background!$AG$18,Background!$AC$30:$AG$30,0),FALSE) ->  | V11: 0 | AB11: =IF(AA11>0,Background!$M$22/AA11,0) -> 
A12: min SOC | B12: =(1-IF('Input Wind'!D45<>"Individual",'Input Wind'!D52,'Input Wind'!E52)) -> 0.2 | E12: 10 | F12: ='Existing Load'!J16 -> 0 | G12: 0 | H12: 3.339 | I12: 5.210444604 | J12: =MIN(I12*Background!$AG$28,20) ->  | K12: =ROUND('Calc Wind'!J12/5,1)*5 ->  | L12: =Background!$AG$17*VLOOKUP(K12,Background!$AB$32:$AG$72,1+MATCH(Background!$AG$18,Background!$AC$30:$AG$30,0),FALSE) ->  | V12: 0 | AB12: =IF(AA12>0,Background!$M$22/AA12,0) -> 
A13: Diesel capacity | B13: =IF('Input Wind'!D35="Default",'Input Wind'!D38,'Input Wind'!E38) -> 0 | E13: 11 | F13: ='Existing Load'!J17 -> 0 | G13: 0 | H13: 2.523 | I13: 3.937092464 | J13: =MIN(I13*Background!$AG$28,20) ->  | K13: =ROUND('Calc Wind'!J13/5,1)*5 ->  | L13: =Background!$AG$17*VLOOKUP(K13,Background!$AB$32:$AG$72,1+MATCH(Background!$AG$18,Background!$AC$30:$AG$30,0),FALSE) ->  | V13: 0 | AB13: =IF(AA13>0,Background!$M$22/AA13,0) -> 
A14: Rotating mass | B14: =IF('Input Wind'!D63="Default",'Input Wind'!D70,'Input Wind'!E70) -> 0.4 | E14: 12 | F14: ='Existing Load'!J18 -> 0 | G14: 0 | H14: 1.809 | I14: 2.822909341 | J14: =MIN(I14*Background!$AG$28,20) ->  | K14: =ROUND('Calc Wind'!J14/5,1)*5 ->  | L14: =Background!$AG$17*VLOOKUP(K14,Background!$AB$32:$AG$72,1+MATCH(Background!$AG$18,Background!$AC$30:$AG$30,0),FALSE) ->  | V14: 0 | AB14: =IF(AA14>0,Background!$M$22/AA14,0) -> 
A15: Distribution losses | B15: =(SUM('Calc Wind'!$G$3:$G$170)-SUM('Calc Wind'!$F$3:$F$170)) -> 0 | E15: 13 | F15: ='Existing Load'!J19 -> 0 | G15: 0 | H15: 1.892 | I15: 2.952429228 | J15: =MIN(I15*Background!$AG$28,20) ->  | K15: =ROUND('Calc Wind'!J15/5,1)*5 ->  | L15: =Background!$AG$17*VLOOKUP(K15,Background!$AB$32:$AG$72,1+MATCH(Background!$AG$18,Background!$AC$30:$AG$30,0),FALSE) ->  | V15: 0 | AB15: =IF(AA15>0,Background!$M$22/AA15,0) -> 
A16: Wind generation | B16: =SUM(L2:L170) ->  | E16: 14 | F16: ='Existing Load'!J20 -> 0 | G16: 0 | H16: 2.45 | I16: 3.823177383 | J16: =MIN(I16*Background!$AG$28,20) ->  | K16: =ROUND('Calc Wind'!J16/5,1)*5 ->  | L16: =Background!$AG$17*VLOOKUP(K16,Background!$AB$32:$AG$72,1+MATCH(Background!$AG$18,Background!$AC$30:$AG$30,0),FALSE) ->  | V16: 0 | AB16: =IF(AA16>0,Background!$M$22/AA16,0) ->  | AT16: =AP16-AR16 -> 
A17: Battery discharge | B17: =SUM(AI3:AI170) ->  | E17: 15 | F17: ='Existing Load'!J21 -> 0 | G17: 0 | H17: 2.903 | I17: 4.530075078 | J17: =MIN(I17*Background!$AG$28,20) ->  | K17: =ROUND('Calc Wind'!J17/5,1)*5 ->  | L17: =Background!$AG$17*VLOOKUP(K17,Background!$AB$32:$AG$72,1+MATCH(Background!$AG$18,Background!$AC$30:$AG$30,0),FALSE) ->  | V17: 0 | AB17: =IF(AA17>0,Background!$M$22/AA17,0) -> 
A18: Diesel generation | B18: =SUM(Z3:Z170) ->  | E18: 16 | F18: ='Existing Load'!J22 -> 0 | G18: 0 | H18: 3.183 | I18: 4.967009636 | J18: =MIN(I18*Background!$AG$28,20) ->  | K18: =ROUND('Calc Wind'!J18/5,1)*5 ->  | L18: =Background!$AG$17*VLOOKUP(K18,Background!$AB$32:$AG$72,1+MATCH(Background!$AG$18,Background!$AC$30:$AG$30,0),FALSE) ->  | V18: 0 | AB18: =IF(AA18>0,Background!$M$22/AA18,0) -> 
A19: Diesel fuel l/week | B19: =SUM(AC3:AC170) ->  | E19: 17 | F19: ='Existing Load'!J23 -> 0 | G19: 0 | H19: 3.39 | I19: 5.290029113 | J19: =MIN(I19*Background!$AG$28,20) ->  | K19: =ROUND('Calc Wind'!J19/5,1)*5 ->  | L19: =Background!$AG$17*VLOOKUP(K19,Background!$AB$32:$AG$72,1+MATCH(Background!$AG$18,Background!$AC$30:$AG$30,0),FALSE) ->  | V19: 0 | AB19: =IF(AA19>0,Background!$M$22/AA19,0) -> 
A20: Diesel fuel l/year | B20: =B19/168*8760 ->  | E20: 18 | F20: ='Existing Load'!J24 -> 0 | G20: 0 | H20: 3.859 | I20: 6.021894498 | J20: =MIN(I20*Background!$AG$28,20) ->  | K20: =ROUND('Calc Wind'!J20/5,1)*5 ->  | L20: =Background!$AG$17*VLOOKUP(K20,Background!$AB$32:$AG$72,1+MATCH(Background!$AG$18,Background!$AC$30:$AG$30,0),FALSE) ->  | V20: 0 | AB20: =IF(AA20>0,Background!$M$22/AA20,0) -> 
A21: Wind battery discharge | B21: =IF(B18=0,B17,MIN(-1*SUM(AO3:AO170)+AL4,B17)) ->  | E21: 19 | F21: ='Existing Load'!J25 -> 0 | G21: 0 | H21: 3.627 | I21: 5.659863007 | J21: =MIN(I21*Background!$AG$28,20) ->  | K21: =ROUND('Calc Wind'!J21/5,1)*5 ->  | L21: =Background!$AG$17*VLOOKUP(K21,Background!$AB$32:$AG$72,1+MATCH(Background!$AG$18,Background!$AC$30:$AG$30,0),FALSE) ->  | V21: 0 | AB21: =IF(AA21>0,Background!$M$22/AA21,0) -> 
A22: Wind capacity new | B22: =IF(Background!U2,Background!U5,IF('Input Wind'!$D$11="Default",'Input Wind'!$D$16,'Input Wind'!$E$16)) -> 0 | E22: 20 | F22: ='Existing Load'!J26 -> 0 | G22: 0 | H22: 2.905 | I22: 4.533196039 | J22: =MIN(I22*Background!$AG$28,20) ->  | K22: =ROUND('Calc Wind'!J22/5,1)*5 ->  | L22: =Background!$AG$17*VLOOKUP(K22,Background!$AB$32:$AG$72,1+MATCH(Background!$AG$18,Background!$AC$30:$AG$30,0),FALSE) ->  | V22: 0 | AB22: =IF(AA22>0,Background!$M$22/AA22,0) -> 
A23: Wind Capex | B23: =IF('Input Wind'!$D$3="Default",'Input Wind'!$D$7,'Input Wind'!$E$7) -> 100000 | E23: 21 | F23: ='Existing Load'!J27 -> 0 | G23: 0 | H23: 3.829 | I23: 5.975080081 | J23: =MIN(I23*Background!$AG$28,20) ->  | K23: =ROUND('Calc Wind'!J23/5,1)*5 ->  | L23: =Background!$AG$17*VLOOKUP(K23,Background!$AB$32:$AG$72,1+MATCH(Background!$AG$18,Background!$AC$30:$AG$30,0),FALSE) ->  | V23: 0 | AB23: =IF(AA23>0,Background!$M$22/AA23,0) -> 
A24: Wind OPEX | B24: =IF('Input Wind'!$D$3="Default",'Input Wind'!$D$8,'Input Wind'!$E$8) -> 2000 | E24: 22 | F24: ='Existing Load'!J28 -> 0 | G24: 0 | H24: 4.626 | I24: 7.218783091 | J24: =MIN(I24*Background!$AG$28,20) ->  | K24: =ROUND('Calc Wind'!J24/5,1)*5 ->  | L24: =Background!$AG$17*VLOOKUP(K24,Background!$AB$32:$AG$72,1+MATCH(Background!$AG$18,Background!$AC$30:$AG$30,0),FALSE) ->  | V24: 0 | AB24: =IF(AA24>0,Background!$M$22/AA24,0) -> 
A25: Diesel Capex | B25: =IF('Input Wind'!$D$23="Default",'Input Wind'!$D$27,'Input Wind'!$E$27) -> 30000 | E25: 23 | F25: ='Existing Load'!J29 -> 0 | G25: 0 | H25: 5.043 | I25: 7.869503486 | J25: =MIN(I25*Background!$AG$28,20) ->  | K25: =ROUND('Calc Wind'!J25/5,1)*5 ->  | L25: =Background!$AG$17*VLOOKUP(K25,Background!$AB$32:$AG$72,1+MATCH(Background!$AG$18,Background!$AC$30:$AG$30,0),FALSE) ->  | V25: 0 | AB25: =IF(AA25>0,Background!$M$22/AA25,0) -> 
A26: Diesel OPEX | B26: =IF('Input Wind'!$D$23="Default",'Input Wind'!$D$28,'Input Wind'!$E$28) -> 2.5 | E26: 24 | F26: ='Existing Load'!J30 -> 0 | G26: 0 | H26: 5.212 | I26: 8.133224701 | J26: =MIN(I26*Background!$AG$28,20) ->  | K26: =ROUND('Calc Wind'!J26/5,1)*5 ->  | L26: =Background!$AG$17*VLOOKUP(K26,Background!$AB$32:$AG$72,1+MATCH(Background!$AG$18,Background!$AC$30:$AG$30,0),FALSE) ->  | V26: 0 | AB26: =IF(AA26>0,Background!$M$22/AA26,0) -> 
A27: Battery Capex | B27: =IF('Input Wind'!$D$45<>"Individual",'Input Wind'!$D$49,'Input Wind'!$E$49) -> 27000 | E27: 25 | F27: =IF(E27-E3=24,F3,"") -> 0 | G27: 0 | H27: 5.279 | I27: 8.237776899 | J27: =MIN(I27*Background!$AG$28,20) ->  | K27: =ROUND('Calc Wind'!J27/5,1)*5 ->  | L27: =Background!$AG$17*VLOOKUP(K27,Background!$AB$32:$AG$72,1+MATCH(Background!$AG$18,Background!$AC$30:$AG$30,0),FALSE) ->  | V27: 0 | AB27: =IF(AA27>0,Background!$M$22/AA27,0) -> 
A28: Battery OPEX fix | B28: =IF('Input Wind'!$D$45<>"Individual",'Input Wind'!$D$50,'Input Wind'!$E$50) -> 405 | E28: 26 | F28: =IF(E28-E4=24,F4,"") -> 0 | G28: 0 | H28: 5.222 | I28: 8.148829507 | J28: =MIN(I28*Background!$AG$28,20) ->  | K28: =ROUND('Calc Wind'!J28/5,1)*5 ->  | L28: =Background!$AG$17*VLOOKUP(K28,Background!$AB$32:$AG$72,1+MATCH(Background!$AG$18,Background!$AC$30:$AG$30,0),FALSE) ->  | V28: 0 | AB28: =IF(AA28>0,Background!$M$22/AA28,0) -> 
A29: Wind capacity existing eligible | B29: =IF('Input Wind'!$D$11="Default",'Input Wind'!$D$14,'Input Wind'!$E$14) -> 0 | E29: 27 | F29: =IF(E29-E5=24,F5,"") -> 0 | G29: 0 | H29: 5.104 | I29: 7.9646928 | J29: =MIN(I29*Background!$AG$28,20) ->  | K29: =ROUND('Calc Wind'!J29/5,1)*5 ->  | L29: =Background!$AG$17*VLOOKUP(K29,Background!$AB$32:$AG$72,1+MATCH(Background!$AG$18,Background!$AC$30:$AG$30,0),FALSE) ->  | V29: 0 | AB29: =IF(AA29>0,Background!$M$22/AA29,0) -> 
E30: 28 | F30: 0 | G30: 0 | H30: 5.024 | I30: 7.839854355 | J30: =MIN(I30*Background!$AG$28,20) ->  | K30: =ROUND('Calc Wind'!J30/5,1)*5 ->  | L30: =Background!$AG$17*VLOOKUP(K30,Background!$AB$32:$AG$72,1+MATCH(Background!$AG$18,Background!$AC$30:$AG$30,0),FALSE) ->  | V30: 0 | AB30: =IF(AA30>0,Background!$M$22/AA30,0) -> 
A31: Fuel start | B31: =IF('Input Wind'!D23="Default",'Input Wind'!D31,'Input Wind'!E31) -> 35 | E31: 29 | F31: 0 | G31: 0 | H31: 5.008 | I31: 7.814886666 | J31: =MIN(I31*Background!$AG$28,20) ->  | K31: =ROUND('Calc Wind'!J31/5,1)*5 ->  | L31: =Background!$AG$17*VLOOKUP(K31,Background!$AB$32:$AG$72,1+MATCH(Background!$AG$18,Background!$AC$30:$AG$30,0),FALSE) ->  | V31: 0 | AB31: =IF(AA31>0,Background!$M$22/AA31,0) -> 
A32: Fuel increase | B32: =IF('Input Wind'!D23="Default",'Input Wind'!D32,'Input Wind'!E32) -> 0.03 | E32: 30 | F32: 0 | G32: 0 | H32: 5.07 | I32: 7.911636461 | J32: =MIN(I32*Background!$AG$28,20) ->  | K32: =ROUND('Calc Wind'!J32/5,1)*5 ->  | L32: =Background!$AG$17*VLOOKUP(K32,Background!$AB$32:$AG$72,1+MATCH(Background!$AG$18,Background!$AC$30:$AG$30,0),FALSE) ->  | V32: 0 | AB32: =IF(AA32>0,Background!$M$22/AA32,0) -> 
A33: Fuel costs | B33: =IF(Background!W2,B31*(1+B32)^(Background!B84-1),IF(Background!U2,fuel_costs(B31,B32,B34),B31)) -> 35 | E33: 31 | F33: 0 | G33: 0 | H33: 5.052 | I33: 7.883547811 | J33: =MIN(I33*Background!$AG$28,20) ->  | K33: =ROUND('Calc Wind'!J33/5,1)*5 ->  | L33: =Background!$AG$17*VLOOKUP(K33,Background!$AB$32:$AG$72,1+MATCH(Background!$AG$18,Background!$AC$30:$AG$30,0),FALSE) ->  | V33: 0 | AB33: =IF(AA33>0,Background!$M$22/AA33,0) -> 
A34: Project duration | B34: =IF('Input Wind'!D63="Default",'Input Wind'!D68,'Input Wind'!E68) -> 20 | E34: 32 | F34: =IF(E34-E10=24,F10,"") -> 0 | G34: 0 | H34: 4.963 | I34: 7.744665041 | J34: =MIN(I34*Background!$AG$28,20) ->  | K34: =ROUND('Calc Wind'!J34/5,1)*5 ->  | L34: =Background!$AG$17*VLOOKUP(K34,Background!$AB$32:$AG$72,1+MATCH(Background!$AG$18,Background!$AC$30:$AG$30,0),FALSE) ->  | V34: 0 | AB34: =IF(AA34>0,Background!$M$22/AA34,0) -> 
A35: Fuel l/kWh | B35: =IF('Input Wind'!D23="Default",'Input Wind'!D30,'Input Wind'!E30) -> 0.33 | E35: 33 | F35: 0 | G35: =F35*(1+$B$4) -> 0 | H35: 4.578 | I35: 7.143880023 | J35: =MIN(I35*Background!$AG$28,20) ->  | K35: =ROUND('Calc Wind'!J35/5,1)*5 ->  | L35: =Background!$AG$17*VLOOKUP(K35,Background!$AB$32:$AG$72,1+MATCH(Background!$AG$18,Background!$AC$30:$AG$30,0),FALSE) ->  | V35: 0 | AB35: =IF(AA35>0,Background!$M$22/AA35,0) -> 
A36: Diesel OPEX fix | B36: =IF('Input Wind'!D23="Default",'Input Wind'!D29,'Input Wind'!E29) -> 300 | E36: 34 | F36: 0 | G36: 0 | H36: 3.645 | I36: 5.687951657 | J36: =MIN(I36*Background!$AG$28,20) ->  | K36: =ROUND('Calc Wind'!J36/5,1)*5 ->  | L36: =Background!$AG$17*VLOOKUP(K36,Background!$AB$32:$AG$72,1+MATCH(Background!$AG$18,Background!$AC$30:$AG$30,0),FALSE) ->  | V36: 0 | AB36: =IF(AA36>0,Background!$M$22/AA36,0) -> 
E37: 35 | F37: =IF(E37-E13=24,F13,"") -> 0 | G37: 0 | H37: 2.439 | I37: 3.806012096 | J37: =MIN(I37*Background!$AG$28,20) ->  | K37: =ROUND('Calc Wind'!J37/5,1)*5 ->  | L37: =Background!$AG$17*VLOOKUP(K37,Background!$AB$32:$AG$72,1+MATCH(Background!$AG$18,Background!$AC$30:$AG$30,0),FALSE) ->  | V37: 0 | AB37: =IF(AA37>0,Background!$M$22/AA37,0) -> 
A38: Wind Capex total | B38: =B22*B23 -> 0 | E38: 36 | F38: 0 | G38: 0 | H38: 1.3 | I38: 2.028624734 | J38: =MIN(I38*Background!$AG$28,20) ->  | K38: =ROUND('Calc Wind'!J38/5,1)*5 ->  | L38: =Background!$AG$17*VLOOKUP(K38,Background!$AB$32:$AG$72,1+MATCH(Background!$AG$18,Background!$AC$30:$AG$30,0),FALSE) ->  | V38: 0 | AB38: =IF(AA38>0,Background!$M$22/AA38,0) -> 
A39: Diesel Capex total | B39: =B13*B25 -> 0 | E39: 37 | F39: =IF(E39-E15=24,F15,"") -> 0 | G39: 0 | H39: 0.702 | I39: 1.095457356 | J39: =MIN(I39*Background!$AG$28,20) ->  | K39: =ROUND('Calc Wind'!J39/5,1)*5 ->  | L39: =Background!$AG$17*VLOOKUP(K39,Background!$AB$32:$AG$72,1+MATCH(Background!$AG$18,Background!$AC$30:$AG$30,0),FALSE) ->  | V39: 0 | AB39: =IF(AA39>0,Background!$M$22/AA39,0) -> 
A40: Battery Capex total | B40: =B8*B27 -> 2.7e-05 | E40: 38 | F40: 0 | G40: 0 | H40: 1.927 | I40: 3.007046047 | J40: =MIN(I40*Background!$AG$28,20) ->  | K40: =ROUND('Calc Wind'!J40/5,1)*5 ->  | L40: =Background!$AG$17*VLOOKUP(K40,Background!$AB$32:$AG$72,1+MATCH(Background!$AG$18,Background!$AC$30:$AG$30,0),FALSE) ->  | V40: 0 | AB40: =IF(AA40>0,Background!$M$22/AA40,0) -> 
A41: Wind OPEX total | B41: =B24*B7 -> 0 | E41: 39 | F41: 0 | G41: 0 | H41: 2.769 | I41: 4.320970683 | J41: =MIN(I41*Background!$AG$28,20) ->  | K41: =ROUND('Calc Wind'!J41/5,1)*5 ->  | L41: =Background!$AG$17*VLOOKUP(K41,Background!$AB$32:$AG$72,1+MATCH(Background!$AG$18,Background!$AC$30:$AG$30,0),FALSE) ->  | V41: 0 | AB41: =IF(AA41>0,Background!$M$22/AA41,0) -> 
A42: Diesel OPEX var | B42: =B18*8760/168*B26 ->  | E42: 40 | F42: 0 | G42: 0 | H42: 3.526 | I42: 5.50225447 | J42: =MIN(I42*Background!$AG$28,20) ->  | K42: =ROUND('Calc Wind'!J42/5,1)*5 ->  | L42: =Background!$AG$17*VLOOKUP(K42,Background!$AB$32:$AG$72,1+MATCH(Background!$AG$18,Background!$AC$30:$AG$30,0),FALSE) ->  | V42: 0 | AB42: =IF(AA42>0,Background!$M$22/AA42,0) -> 
A43: Battery OPEX total | B43: =B28*B8 -> 4.05e-07 | E43: 41 | F43: 0 | G43: 0 | H43: 4.215 | I43: 6.577425579 | J43: =MIN(I43*Background!$AG$28,20) ->  | K43: =ROUND('Calc Wind'!J43/5,1)*5 ->  | L43: =Background!$AG$17*VLOOKUP(K43,Background!$AB$32:$AG$72,1+MATCH(Background!$AG$18,Background!$AC$30:$AG$30,0),FALSE) ->  | V43: 0 | AB43: =IF(AA43>0,Background!$M$22/AA43,0) -> 
A44: Fuel costs total | B44: =B33*B19*8760/168 ->  | E44: 42 | F44: 0 | G44: 0 | H44: 4.586 | I44: 7.156363868 | J44: =MIN(I44*Background!$AG$28,20) ->  | K44: =ROUND('Calc Wind'!J44/5,1)*5 ->  | L44: =Background!$AG$17*VLOOKUP(K44,Background!$AB$32:$AG$72,1+MATCH(Background!$AG$18,Background!$AC$30:$AG$30,0),FALSE) ->  | V44: 0 | AB44: =IF(AA44>0,Background!$M$22/AA44,0) -> 
A45: Diesel OPEX fix total | B45: =B36*B13 -> 0 | E45: 43 | F45: 0 | G45: 0 | H45: 4.545 | I45: 7.092384165 | J45: =MIN(I45*Background!$AG$28,20) ->  | K45: =ROUND('Calc Wind'!J45/5,1)*5 ->  | L45: =Background!$AG$17*VLOOKUP(K45,Background!$AB$32:$AG$72,1+MATCH(Background!$AG$18,Background!$AC$30:$AG$30,0),FALSE) ->  | V45: 0 | AB45: =IF(AA45>0,Background!$M$22/AA45,0) -> 
A46: Wind lifetime | B46: =IF('Input Wind'!D3="Default",'Input Wind'!D9,'Input Wind'!E9) -> 20 | E46: 44 | F46: 0 | G46: 0 | H46: 4.206 | I46: 6.563381254 | J46: =MIN(I46*Background!$AG$28,20) ->  | K46: =ROUND('Calc Wind'!J46/5,1)*5 ->  | L46: =Background!$AG$17*VLOOKUP(K46,Background!$AB$32:$AG$72,1+MATCH(Background!$AG$18,Background!$AC$30:$AG$30,0),FALSE) ->  | V46: 0 | AB46: =IF(AA46>0,Background!$M$22/AA46,0) -> 
A47: Wind CRF | B47: =B77*POWER(1+B77,B46)/(POWER(1+B77,B46)-1) -> 0.13387878 | E47: 45 | F47: 0 | G47: 0 | H47: 3.846 | I47: 6.00160825 | J47: =MIN(I47*Background!$AG$28,20) ->  | K47: =ROUND('Calc Wind'!J47/5,1)*5 ->  | L47: =Background!$AG$17*VLOOKUP(K47,Background!$AB$32:$AG$72,1+MATCH(Background!$AG$18,Background!$AC$30:$AG$30,0),FALSE) ->  | V47: 0 | AB47: =IF(AA47>0,Background!$M$22/AA47,0) -> 
A48: Wind Ann | B48: =B47*B38 -> 0 | E48: 46 | F48: 0 | G48: 0 | H48: 3.581 | I48: 5.588080901 | J48: =MIN(I48*Background!$AG$28,20) ->  | K48: =ROUND('Calc Wind'!J48/5,1)*5 ->  | L48: =Background!$AG$17*VLOOKUP(K48,Background!$AB$32:$AG$72,1+MATCH(Background!$AG$18,Background!$AC$30:$AG$30,0),FALSE) ->  | V48: 0 | AB48: =IF(AA48>0,Background!$M$22/AA48,0) -> 
E49: 47 | F49: 0 | G49: 0 | H49: 3.474 | I49: 5.42110948 | J49: =MIN(I49*Background!$AG$28,20) ->  | K49: =ROUND('Calc Wind'!J49/5,1)*5 ->  | L49: =Background!$AG$17*VLOOKUP(K49,Background!$AB$32:$AG$72,1+MATCH(Background!$AG$18,Background!$AC$30:$AG$30,0),FALSE) ->  | V49: 0 | AB49: =IF(AA49>0,Background!$M$22/AA49,0) -> 
A50: Diesel lifetime | B50: =IF('Input Wind'!D23="Default",'Input Wind'!D33,'Input Wind'!E33) -> 10 | E50: 48 | F50: 0 | G50: 0 | H50: 3.547 | I50: 5.535024562 | J50: =MIN(I50*Background!$AG$28,20) ->  | K50: =ROUND('Calc Wind'!J50/5,1)*5 ->  | L50: =Background!$AG$17*VLOOKUP(K50,Background!$AB$32:$AG$72,1+MATCH(Background!$AG$18,Background!$AC$30:$AG$30,0),FALSE) ->  | V50: 0 | AB50: =IF(AA50>0,Background!$M$22/AA50,0) -> 
A51: Diesel CRF | B51: =B77*POWER(1+B77,B50)/(POWER(1+B77,B50)-1) -> 0.1769841642 | E51: 49 | F51: 0 | G51: 0 | H51: 3.843 | I51: 5.996926809 | J51: =MIN(I51*Background!$AG$28,20) ->  | K51: =ROUND('Calc Wind'!J51/5,1)*5 ->  | L51: =Background!$AG$17*VLOOKUP(K51,Background!$AB$32:$AG$72,1+MATCH(Background!$AG$18,Background!$AC$30:$AG$30,0),FALSE) ->  | V51: 0 | AB51: =IF(AA51>0,Background!$M$22/AA51,0) -> 
A52: Diesel Ann | B52: =B51*B39 -> 0 | E52: 50 | F52: 0 | G52: 0 | H52: 4.283 | I52: 6.683538257 | J52: =MIN(I52*Background!$AG$28,20) ->  | K52: =ROUND('Calc Wind'!J52/5,1)*5 ->  | L52: =Background!$AG$17*VLOOKUP(K52,Background!$AB$32:$AG$72,1+MATCH(Background!$AG$18,Background!$AC$30:$AG$30,0),FALSE) ->  | V52: 0 | AB52: =IF(AA52>0,Background!$M$22/AA52,0) -> 
A53: Diesel Opex total | B53: =B45+B42 ->  | E53: 51 | F53: 0 | G53: 0 | H53: 4.688 | I53: 7.315532886 | J53: =MIN(I53*Background!$AG$28,20) ->  | K53: =ROUND('Calc Wind'!J53/5,1)*5 ->  | L53: =Background!$AG$17*VLOOKUP(K53,Background!$AB$32:$AG$72,1+MATCH(Background!$AG$18,Background!$AC$30:$AG$30,0),FALSE) ->  | V53: 0 | AB53: =IF(AA53>0,Background!$M$22/AA53,0) -> 
A54: Bat lifetime | B54: =IF('Input Wind'!D45<>"Individual",'Input Wind'!D55,'Input Wind'!E55) -> 10 | E54: 52 | F54: 0 | G54: 0 | H54: 4.989 | I54: 7.785237535 | J54: =MIN(I54*Background!$AG$28,20) ->  | K54: =ROUND('Calc Wind'!J54/5,1)*5 ->  | L54: =Background!$AG$17*VLOOKUP(K54,Background!$AB$32:$AG$72,1+MATCH(Background!$AG$18,Background!$AC$30:$AG$30,0),FALSE) ->  | V54: 0 | AB54: =IF(AA54>0,Background!$M$22/AA54,0) -> 
A55: Bat CRF | B55: =B77*POWER(1+B77,B54)/(POWER(1+B77,B54)-1) -> 0.1769841642 | E55: 53 | F55: 0 | G55: 0 | H55: 5.194 | I55: 8.105136051 | J55: =MIN(I55*Background!$AG$28,20) ->  | K55: =ROUND('Calc Wind'!J55/5,1)*5 ->  | L55: =Background!$AG$17*VLOOKUP(K55,Background!$AB$32:$AG$72,1+MATCH(Background!$AG$18,Background!$AC$30:$AG$30,0),FALSE) ->  | V55: 0 | AB55: =IF(AA55>0,Background!$M$22/AA55,0) -> 
A56: Bat Ann | B56: =B55*B40 -> 4.778572432e-06 | E56: 54 | F56: =IF(E56-E32=24,F32,"") -> 0 | G56: 0 | H56: 5.285 | I56: 8.247139782 | J56: =MIN(I56*Background!$AG$28,20) ->  | K56: =ROUND('Calc Wind'!J56/5,1)*5 ->  | L56: =Background!$AG$17*VLOOKUP(K56,Background!$AB$32:$AG$72,1+MATCH(Background!$AG$18,Background!$AC$30:$AG$30,0),FALSE) ->  | V56: 0 | AB56: =IF(AA56>0,Background!$M$22/AA56,0) -> 
E57: 55 | F57: 0 | G57: 0 | H57: 5.192 | I57: 8.10201509 | J57: =MIN(I57*Background!$AG$28,20) ->  | K57: =ROUND('Calc Wind'!J57/5,1)*5 ->  | L57: =Background!$AG$17*VLOOKUP(K57,Background!$AB$32:$AG$72,1+MATCH(Background!$AG$18,Background!$AC$30:$AG$30,0),FALSE) ->  | V57: 0 | AB57: =IF(AA57>0,Background!$M$22/AA57,0) -> 
A58: Project CAPEX | B58: =IF('Input Wind'!D63<>"Individual",'Input Wind'!D72,'Input Wind'!E72) -> 500000 | E58: 56 | F58: 0 | G58: 0 | H58: 5.05 | I58: 7.88042685 | J58: =MIN(I58*Background!$AG$28,20) ->  | K58: =ROUND('Calc Wind'!J58/5,1)*5 ->  | L58: =Background!$AG$17*VLOOKUP(K58,Background!$AB$32:$AG$72,1+MATCH(Background!$AG$18,Background!$AC$30:$AG$30,0),FALSE) ->  | V58: 0 | AB58: =IF(AA58>0,Background!$M$22/AA58,0) -> 
A59: Project CRF | B59: =B77*POWER(1+B77,B34)/(POWER(1+B77,B34)-1) -> 0.13387878 | E59: 57 | F59: 0 | G59: 0 | H59: 5.071 | I59: 7.913196942 | J59: =MIN(I59*Background!$AG$28,20) ->  | K59: =ROUND('Calc Wind'!J59/5,1)*5 ->  | L59: =Background!$AG$17*VLOOKUP(K59,Background!$AB$32:$AG$72,1+MATCH(Background!$AG$18,Background!$AC$30:$AG$30,0),FALSE) ->  | V59: 0 | AB59: =IF(AA59>0,Background!$M$22/AA59,0) -> 
A60: Project Ann | B60: =B58*B59 -> 66939.39002 | E60: 58 | F60: 0 | G60: 0 | H60: 4.958 | I60: 7.736862638 | J60: =MIN(I60*Background!$AG$28,20) ->  | K60: =ROUND('Calc Wind'!J60/5,1)*5 ->  | L60: =Background!$AG$17*VLOOKUP(K60,Background!$AB$32:$AG$72,1+MATCH(Background!$AG$18,Background!$AC$30:$AG$30,0),FALSE) ->  | V60: 0 | AB60: =IF(AA60>0,Background!$M$22/AA60,0) -> 
A61: Other CAPEX | B61: =IF('Input Wind'!D63<>"Individual",'Input Wind'!D73,'Input Wind'!E73) -> 0 | E61: 59 | F61: 0 | G61: 0 | H61: 4.827 | I61: 7.532439684 | J61: =MIN(I61*Background!$AG$28,20) ->  | K61: =ROUND('Calc Wind'!J61/5,1)*5 ->  | L61: =Background!$AG$17*VLOOKUP(K61,Background!$AB$32:$AG$72,1+MATCH(Background!$AG$18,Background!$AC$30:$AG$30,0),FALSE) ->  | V61: 0 | AB61: =IF(AA61>0,Background!$M$22/AA61,0) -> 
A62: Other Ann | B62: =B61*B59 -> 0 | E62: 60 | F62: 0 | G62: 0 | H62: 4.626 | I62: 7.218783091 | J62: =MIN(I62*Background!$AG$28,20) ->  | K62: =ROUND('Calc Wind'!J62/5,1)*5 ->  | L62: =Background!$AG$17*VLOOKUP(K62,Background!$AB$32:$AG$72,1+MATCH(Background!$AG$18,Background!$AC$30:$AG$30,0),FALSE) ->  | V62: 0 | AB62: =IF(AA62>0,Background!$M$22/AA62,0) -> 
A63: Other OPEX fix | B63: =IF('Input Wind'!D63<>"Individual",'Input Wind'!D74,'Input Wind'!E74) -> 0 | E63: 61 | F63: 0 | G63: 0 | H63: 4.47 | I63: 6.975348123 | J63: =MIN(I63*Background!$AG$28,20) ->  | K63: =ROUND('Calc Wind'!J63/5,1)*5 ->  | L63: =Background!$AG$17*VLOOKUP(K63,Background!$AB$32:$AG$72,1+MATCH(Background!$AG$18,Background!$AC$30:$AG$30,0),FALSE) ->  | V63: 0 | AB63: =IF(AA63>0,Background!$M$22/AA63,0) -> 
A64: Personal OPEX fix | B64: =IF('Input Wind'!D63<>"Individual",'Input Wind'!D75,'Input Wind'!E75) -> 0 | E64: 62 | F64: 0 | G64: 0 | H64: 4.498 | I64: 7.019041578 | J64: =MIN(I64*Background!$AG$28,20) ->  | K64: =ROUND('Calc Wind'!J64/5,1)*5 ->  | L64: =Background!$AG$17*VLOOKUP(K64,Background!$AB$32:$AG$72,1+MATCH(Background!$AG$18,Background!$AC$30:$AG$30,0),FALSE) ->  | V64: 0 | AB64: =IF(AA64>0,Background!$M$22/AA64,0) -> 
E65: 63 | F65: 0 | G65: 0 | H65: 4.627 | I65: 7.220343571 | J65: =MIN(I65*Background!$AG$28,20) ->  | K65: =ROUND('Calc Wind'!J65/5,1)*5 ->  | L65: =Background!$AG$17*VLOOKUP(K65,Background!$AB$32:$AG$72,1+MATCH(Background!$AG$18,Background!$AC$30:$AG$30,0),FALSE) ->  | V65: 0 | AB65: =IF(AA65>0,Background!$M$22/AA65,0) -> 
A66: Grid CAPEX | B66: =IF('Input Wind'!D79<>"Individual",'Input Wind'!D83,'Input Wind'!E83) -> 0 | E66: 64 | F66: 0 | G66: 0 | H66: 4.831 | I66: 7.538681606 | J66: =MIN(I66*Background!$AG$28,20) ->  | K66: =ROUND('Calc Wind'!J66/5,1)*5 ->  | L66: =Background!$AG$17*VLOOKUP(K66,Background!$AB$32:$AG$72,1+MATCH(Background!$AG$18,Background!$AC$30:$AG$30,0),FALSE) ->  | V66: 0 | AB66: =IF(AA66>0,Background!$M$22/AA66,0) -> 
A67: Grid OPEX | B67: =IF('Input Wind'!D79<>"Individual",'Input Wind'!D84,'Input Wind'!E84) -> 0 | E67: 65 | F67: 0 | G67: =F67*(1+$B$4) -> 0 | H67: 5.206 | I67: 8.123861818 | J67: =MIN(I67*Background!$AG$28,20) ->  | K67: =ROUND('Calc Wind'!J67/5,1)*5 ->  | L67: =Background!$AG$17*VLOOKUP(K67,Background!$AB$32:$AG$72,1+MATCH(Background!$AG$18,Background!$AC$30:$AG$30,0),FALSE) ->  | V67: 0 | AB67: =IF(AA67>0,Background!$M$22/AA67,0) -> 
A68: Grid lifetime | B68: =IF('Input Wind'!$D$79<>"Individual",'Input Wind'!D85,'Input Wind'!E85) -> 20 | E68: 66 | F68: 0 | G68: 0 | H68: 6.098 | I68: =H68*$H$173 -> 9.515810481 | J68: =MIN(I68*Background!$AG$28,20) ->  | K68: =ROUND('Calc Wind'!J68/5,1)*5 ->  | L68: =Background!$AG$17*VLOOKUP(K68,Background!$AB$32:$AG$72,1+MATCH(Background!$AG$18,Background!$AC$30:$AG$30,0),FALSE) ->  | M68: =G68-L68 ->  | N68: =MIN(M68,0) ->  | O68: =MAX(N68*$B$10,-1*$B$8*$B$9*$B$10) ->  | P68: =MAX(O68,-(1-AK67)*$B$8) ->  | Q68: =MAX(M68,0) ->  | R68: =MIN(Q68/$B$11,$B$8*$B$9/$B$11) ->  | S68: =MAX(MIN(R68,(AK67-$B$12)*$B$8),0) ->  | T68: =S68*$B$11 ->  | U68: =ROUND(MAX(0,M68-T68),5) ->  | V68: =G68*$B$14 -> 0 | W68: =MIN($B$9*$B$8,(AK67-$B$12)*$B$8*$B$11) ->  | X68: =MAX(0,V68-W68) ->  | Y68: =MAX(U68,X68) ->  | AA68: =IF(Z68=0,0,MIN((Z68/$D$107)/(($D$111+$D$112*(Z68/$D$107)))/$D$113,$D$123)) ->  | AB68: =IF(AA68>0,Background!$M$22/AA68,0) ->  | AC68: =AB68*Z68 ->  | AD68: =Z68+L68-G68 ->  | AE68: =IF(AD68>0,MIN(AD68*$B$10,$B$8*$B$9*$B$10),0) ->  | AF68: =MAX(0,MIN(AE68/$B$8,1-AK67)) ->  | AG68: =IF(AD68<0,MAX(AD68/$B$11,-$B$8*$B$9/$B$11),0) ->  | AH68: =MIN(0,MAX(AG68/$B$8,-1*(AK67-$B$12))) ->  | AI68: =AH68*-$B$8*$B$11 ->  | AJ68: =AF68*-$B$8 ->  | AK68: =MIN(1,AK67+AH68+AF68) ->  | AM68: =MAX(G68-L68-Z68-AI68,0) ->  | AN68: =MAX(G68-Z68-AI68-AM68,0) ->  | AO68: =MAX(AJ68,-1*(L68-AN68)) ->  | AP68: =G68-AN68-AM68-AI68 ->  | AQ68: =Z68-AP68 ->  | AR68: =MAX(AJ68-AO68,-1*AQ68) ->  | AS68: =-1*(AQ68+AR68) ->  | AT68: =AP68-AR68 -> 
A69: Grid CRF | B69: =B77*POWER(1+B77,B68)/(POWER(1+B77,B68)-1) -> 0.13387878 | E69: 67 | F69: 0 | G69: 0 | H69: 6.841 | I69: 10.67524754 | J69: =MIN(I69*Background!$AG$28,20) ->  | K69: =ROUND('Calc Wind'!J69/5,1)*5 ->  | L69: =Background!$AG$17*VLOOKUP(K69,Background!$AB$32:$AG$72,1+MATCH(Background!$AG$18,Background!$AC$30:$AG$30,0),FALSE) ->  | V69: 0 | Z69: =IF(Y69<=0,0,(MIN(MAX(Y69,$D$105),$D$106))) ->  | AB69: =IF(AA69>0,Background!$M$22/AA69,0) -> 
A70: Grid Ann | B70: =B66*B69 -> 0 | E70: 68 | F70: 0 | G70: 0 | H70: 7.137 | I70: 11.13714979 | J70: =MIN(I70*Background!$AG$28,20) ->  | K70: =ROUND('Calc Wind'!J70/5,1)*5 ->  | L70: =Background!$AG$17*VLOOKUP(K70,Background!$AB$32:$AG$72,1+MATCH(Background!$AG$18,Background!$AC$30:$AG$30,0),FALSE) ->  | V70: 0 | AB70: =IF(AA70>0,Background!$M$22/AA70,0) -> 
E71: 69 | F71: 0 | G71: 0 | H71: 7.052 | I71: 11.00450894 | J71: =MIN(I71*Background!$AG$28,20) ->  | K71: =ROUND('Calc Wind'!J71/5,1)*5 ->  | L71: =Background!$AG$17*VLOOKUP(K71,Background!$AB$32:$AG$72,1+MATCH(Background!$AG$18,Background!$AC$30:$AG$30,0),FALSE) ->  | V71: 0 | AB71: =IF(AA71>0,Background!$M$22/AA71,0) -> 
